{"text_format":"3","workbook":"xlsx","n_sheets":8,"sheets":["Grafika","Nastavení","Data","Kontrolní list","Kalendářní plán","Grafický plán","INA","Data_zdroj"],"not_rendered":{"images":6,"macros":1,"defined_names":2},"read":"whole","date_system":"1900"}

{"sheet":"Grafika","index":0,"n_rows":0,"n_cols":0,"rows_kept":0,"hidden":true}

{"sheet":"Nastavení","index":1,"n_rows":8,"n_cols":5,"rows_kept":8}
[null,null,"Název projektu","Pořízení mobilní věže ŘLP"]
[null,null,"Vydání specifikace příslušným organizačním celkem","2021-09-01","specifikace"]
[null,null,"Zahájení projektu dle SdP (rok)",2023]
[null,null,"Předpokládaný termín pořízení projektu - podpis smlouvy (měsíc.rok)","2023-06-01","smlouva"]
[null,null,"Provedení vojskových zkoušek / zkrácených vojskových zkoušek","2023-11-01","VZ"]
[null,null,"Dosažení počátečních operačních schopností (IOC)","2024-04-01","IOC"]
[null,null,"Dosažení plných operačních schopností (FOC)","2024-12-01","FOC"]
[null,null,"Ukončení projektu dle SdP (rok)",2024]

{"sheet":"Data","index":2,"n_rows":136,"n_cols":12,"rows_kept":136,"merged":[[1,1,1,3]]}
[]
[null,"Etapa"]
[null,"před akvizicí","akvizice","po akvizici","Oblast","Činnost","Úkol","FO","Legislativa","Do kdy provést","Platnost","Vybráno/ Vyplněno"]
[null,"x",null,null,"Doktríny","Provedení aktualizace Doktrín","Navrhnout systémové a organizační změny tvorby doktrín.",null,"RMO 61/2017 Koncepční dokumenty MO; Koncepce Koncepční materiály",-40,"D","xx"]
[null,"x",null,null,"Doktríny","Provedení aktualizace Doktrín","Provést analýzu doktríny AČR a případně navrhnout její změnu.",null,"RMO 61/2017 Koncepční dokumenty MO; Koncepce Koncepční materiály",-50,"D","xx"]
[null,"x",null,null,"Doktríny","Provedení aktualizace Doktrín","Provést analýzu doktríny druhu vojska (služby) a případně navrhnout její změnu.",null,"RMO 61/2017 Koncepční dokumenty MO; Koncepce Koncepční materiály",-40,"D"]
[null,"x",null,null,"Doktríny","Provedení aktualizace Plánu vydávání (novelizací, revizí) vojenských předpisů a publikací","Aktualizovat Plány tvorby voj. předpisů a publikací, stanovit priority.",null,"RMO 1/2017 O přípravě návrhů, posuzování a schvalování vnitřních předpisů a Věstníku MO",-24,"D","xx"]
[null,null,"x",null,"Doktríny","Provedení aktualizace Plánu vydávání (novelizací, revizí) vojenských předpisů a publikací","Aktualizovat nebo vydat nový předpis \"Popis a provoz\"","M","ČOS 051632 Průvodní a provozní dokumentace pro vojenskou techniku a materiál; Zákon č. 219/1999 Sb. Zákon o ozbrojených silách ČR",12,"D"]
[null,"x",null,null,"Doktríny","Provedení aktualizace Plánu vydávání (novelizací, revizí) vojenských předpisů a publikací","Zapracovat požadavek na zpracování výcvikové dokumentace do specifikace","T","ČOS 051632 Průvodní a provozní dokumentace pro vojenskou techniku a materiál; Pub Vojenské publikace pro výcvik (obecně); Vševojsk-4-2 Osnovy střeleb z ručních zbraní a zbraní bojových vozidel",-24,"D"]
[null,null,"x",null,"Doktríny","Provedení aktualizace Plánu vydávání (novelizací, revizí) vojenských předpisů a publikací","Aktualizovat nebo vydat nový předpis pro výcvik s technikou.","T","ČOS 051633 Učební pomůcky pro pozemní vojenskou techniku; Pub Vojenské publikace pro výcvik (obecně); Vševojsk-4-2 Osnovy střeleb z ručních zbraní a zbraní bojových vozidel; Zákon č. 219/1999 Sb. Zákon o ozbrojených silách ČR",12,"D"]
[null,null,"x",null,"Doktríny","Provedení aktualizace Plánu vydávání (novelizací, revizí) vojenských předpisů a publikací","Aktualizovat nebo vydat nový předpis pro výcvik s využitím STT.","T","Pub Vojenské publikace pro výcvik (obecně); Vševojsk-4-2 Osnovy střeleb z ručních zbraní a zbraní bojových vozidel",12,"D"]
[null,"x",null,null,"Doktríny","Provedení aktualizace Plánu vydávání (novelizací, revizí) vojenských předpisů a publikací","Zapracovat požadavek na zpracování průvodní a provozní dokumentace dle ČOS 051632 do specifikace.","M",null,12,"D"]
[null,null,"x",null,"Doktríny","Provedení aktualizace Plánu vydávání (novelizací, revizí) vojenských předpisů a publikací","Aktualizovat nebo vydat nový předpis pro logistickou podporu (tzv. průvodní dokumentace dle ČOS).","M","ČOS 051632 Průvodní a provozní dokumentace pro vojenskou techniku a materiál; NVMO 2/2018 Provozování pozemní vojenské techniky; MO 15835/2019-3416 Odborné pokyny majetkového hospodáře pro provozování pozemní techniky v rezortu MO.; STANAG AEP  STANAG AEP ; Vševojsk-10-1 Pravidla vedení provozní dokumentace výzbroje a ostatní techniky; Vyhláška 100/2018 Sb. Vyhláška o technické způsobilosti a pravidelných technických prohlídkách vojenských vozidel; Vyhláška 154/2011 Sb. Vyhláška o vojenské letecké technice; Vyhláška 273/1999 Sb. Vyhláška vojenské technické zařízení; Vyhláška 275/1999 Sb. Vyhláška kategorie vojenských plavidel, technická způsobilost",12,"D"]
[null,null,"x",null,"Doktríny","Provedení aktualizace Plánu vydávání (novelizací, revizí) vojenských předpisů a publikací","Aktualizovat nebo vydat předpisy KIS.","M","RMO 1/2017 O přípravě návrhů, posuzování a schvalování vnitřních předpisů a Věstníku MO",12,"D"]
[{"$nulls":3},"x","Doktríny","Provedení aktualizace Plánu vydávání (novelizací, revizí) vojenských předpisů a publikací","Aktualizovat nebo vydat Stálé operační postupy.",null,"Zákon č. 219/1999 Sb. Zákon o ozbrojených silách ČR; Koncepce Koncepční materiály",12,"D"]
[null,"x",null,null,"Doktríny","Provedení aktualizace Plánu vydávání (novelizací, revizí) vojenských předpisů a publikací","Definovat požadavky na splnění OUI a následné zapracování do specifikace.",null,"NVMO 60/2017 O jednotném postupu při úplatném nybývání majetku, služeb a stavebních prací vv rezoru MO; RMO 14/2013 Ochrana utajovaných informací v rezortu MO",-24,"D"]
[null,"x",null,null,"Doktríny","Provedení aktualizace Plánu vydávání (novelizací, revizí) vojenských předpisů a publikací","Definovat požadavky na stanovené (vyžadované) certifikace a následné zapracování požadavků do specifikace.",null,"NVMO 60/2017 O jednotném postupu při úplatném nybývání majetku, služeb a stavebních prací vv rezoru MO; Pub Vojenské publikace pro výcvik (obecně); Vyhláška 154/2011 Sb. Vyhláška o vojenské letecké technice; Let-1-1 Předpis pro létání; Let-1-4 Inženýrská letecká služba; Let-1-11 Letecký zkušební provoz; RMO 21/2018 O zajištění kybernetické bezpečnosti v rezortu MO; NVMO 111/2013 Kryptografická ochrana utajovaných informací v rezortu MO; NVMO 85/2013 Bezpečnost informačních a komunikačních systémů a elektronických zařízení nakládajících s utajovanými informacemi v rezortu MO; NVMO 20/2013 Bezpečnost informačních a komunikačních systémů a elektronických zařízení, které nakládají s určenými neutajovanými informacemi v rezortu MO",-24,"D","xx"]
[null,"x",null,null,"Doktríny","Provedení aktualizace Plánu vydávání (novelizací, revizí) vojenských předpisů a publikací","Zapracovat požadavek na stanovení tatkticko-technických parametrů výcvikových prostorů do specifikace.","T","Děl-1-20 Ohrožené prostory.; NVMO 41/2010 Vzdělávací a výcvikové aktivity v rezortu MO; NVMO 5/2013 Výcviková a školící zařízení organizačních celků rezortu MO; NVMO 60/2017 O jednotném postupu při úplatném nybývání majetku, služeb a stavebních prací vv rezoru MO; Vševojsk-10-6 Učební a výcviková základna",-24,"D"]
[null,null,"x",null,"Doktríny","Provedení aktualizace Plánu vydávání (novelizací, revizí) vojenských předpisů a publikací","Aktualizovat stanovenou dokumentaci učebně výcvikových zařízení (ohrožené prostory, normy cvičišť,…)","T","Děl-1-20 Ohrožené prostory.; NVMO 41/2010 Vzdělávací a výcvikové aktivity v rezortu MO; NVMO 5/2013 Výcviková a školící zařízení organizačních celků rezortu MO; Vševojsk-10-6 Učební a výcviková základna",12,"D"]
[null,null,"x",null,"Doktríny","Provedení aktualizace Plánu vydávání (novelizací, revizí) vojenských předpisů a publikací","Na základě výběru rozvojového projektu provést analýzu Organizace (jednotky, útvaru, …) a navrhnout její změny.","O","RMO Organizační řád MO vydaný jako služební předpis Státního tajemníka v Ministerstvu obrany",-48,"D"]
[null,null,"x",null,"Doktríny","Provedení aktualizace Plánu vydávání (novelizací, revizí) vojenských předpisů a publikací","Na základě vybrané výzbroje (techniky) provést analýzu funkčních náplní a navrhnout jejich aktualizaci.","O","RMO 1/2017 O přípravě návrhů, posuzování a schvalování vnitřních předpisů a Věstníku MO",-24,"D"]
[null,null,"x",null,"Doktríny","Provedení aktualizace jiných právních předpisů (zákony, vyhlášky, ČSN, ČOS, STANAG,…)","Na základě výsledků technického vývoje provést analýzu Zákona o majetku státu a majetku ozbrojených sil a navrhnout jejich novelizace","M","Zákon č. 219/2000 Sb. Zákon o majetku ČR a jejím vystupovánmím v právních vztazích; Zákon č. 219/1999 Sb. Zákon o ozbrojených silách ČR",-12,"D"]
[null,null,"X",null,"Doktríny","Provedení aktualizace jiných právních předpisů (zákony, vyhlášky, ČSN, ČOS, STANAG,…)","Na základě výsledků technického vývoje provést analýzu Vyhlášek v gesci MO ČR a případně navrhnout jejich novelizaci","M","Vyhláška 100/2018 Sb. Vyhláška o technické způsobilosti a pravidelných technických prohlídkách vojenských vozidel; Vyhláška 154/2011 Sb. Vyhláška o vojenské letecké technice; Vyhláška 273/1999 Sb. Vyhláška vojenské technické zařízení; Vyhláška 275/1999 Sb. Vyhláška kategorie vojenských plavidel, technická způsobilost",-12,"D"]
[null,null,"X",null,"Doktríny","Provedení aktualizace jiných právních předpisů (zákony, vyhlášky, ČSN, ČOS, STANAG,…)","Na základě výsledků technického vývoje provést analýzu ČOS, STANAG a případně navrhnout jejich novelizaci.",null,"ČOS 051616 Termionologie pro bezporuchovost a udržovatelnost; ČOS 051632 Průvodní a provozní dokumentace pro vojenskou techniku a materiál; ČOS 051633 Učební pomůcky pro pozemní vojenskou techniku; ČOS 051655 Etapy a procesy životního cyklu systémů NATO; ČOS 051659 Pokyny NATO pro analýzu nákladů životního cyklu; ČOS 051662 Příručka pro postupné plánování vyzbrojování; Zákon č. 309/2000 Sb. Zákon o obranné standardizaci, katagolizaci a státního ověřování jakosti …",-12,"D","xx"]
[null,null,"x",null,"Organizace","Organizační změny v závislosti na nově pořizovanou techniku","Na základě výběru rozvojového projektu provést analýzu organizačních struktur základního stupně (družstvo, četa, rota) a případně navrhnout jejich změny.",null,"RMO 2/2019 Zásady tvorby systémizovaných míst",-12,"D"]
[null,null,"x",null,"Organizace","Organizační změny v závislosti na nově pořizovanou techniku","Provést analýzu organizační struktury příslušného útvaru nebo příslušných útvarů AČR a případně navrhnout jeho nebo jejich změny.",null,"RMO 2/2019 Zásady tvorby systémizovaných míst",-12,"D"]
[null,null,"x",null,"Organizace","Organizační změny v závislosti na nově pořizovanou techniku","Provést analýzu organizačních struktur AČR a případně navrhnout jejich změny.",null,"RMO 2/2019 Zásady tvorby systémizovaných míst",-12,"D"]
[null,null,"x",null,"Organizace","Organizační změny v závislosti na nově pořizovanou techniku","Provést analýzu organizačních struktur jednotek pro výcvik a případně navrhnout jejich změny.",null,"NVMO 41/2010 Vzdělávací a výcvikové aktivity v rezortu MO; NVMO 5/2013 Výcviková a školící zařízení organizačních celků rezortu MO; RMO 2/2019 Zásady tvorby systémizovaných míst",-12,"D"]
[null,null,"x",null,"Organizace","Organizační změny v závislosti na nově pořizovanou techniku","Provést analýzu organizačních struktur jednotek pro školení SW a případně navrhnout jejich změny.",null,"NVMO 41/2010 Vzdělávací a výcvikové aktivity v rezortu MO; NVMO 5/2013 Výcviková a školící zařízení organizačních celků rezortu MO; RMO 2/2019 Zásady tvorby systémizovaných míst",-12,"D","xx"]
[null,null,"x",null,"Organizace","Organizační změny v závislosti na nově pořizovanou techniku","Provést analýzu organizačních struktur jednotek včetně bojového zabezpečení a bojové podpory a případně navrhnout jejich změny.","M","ČOS 051655 Etapy a procesy životního cyklu systémů NATO; ČOS 051662 Příručka pro postupné plánování vyzbrojování; Log-2-4 Vojskové opravy pozemní vojenské techniky.; NVMO 41/2010 Vzdělávací a výcvikové aktivity v rezortu MO; NVMO 5/2013 Výcviková a školící zařízení organizačních celků rezortu MO; RMO 2/2019 Zásady tvorby systémizovaných míst",-12,"D"]
[null,null,"x",null,"Organizace","Organizační změny v závislosti na nově pořizovanou techniku","Navrhnout organizační změny za účelem podpory koncepčního rozvoje, výzkumu, vývoje a inovací.",null,"RMO 2/2019 Zásady tvorby systémizovaných míst; Koncepce Koncepční materiály",-12,"D"]
[null,null,"x",null,"Organizace","Organizační změny v závislosti na nově pořizovanou techniku","Realizovat organizační změny vydáním OMDZ.",null,"RMO 2/2019 Zásady tvorby systémizovaných míst; Koncepce Koncepční materiály",-12,"D"]
[null,null,"x",null,"Organizace","Organizační změny v závislosti na nově pořizovanou techniku","Navrhnout a provést aktualizace odpovědností v Organizačním řádu velitelství/jednotek.","D","RMO Organizační řád MO vydaný jako služební předpis Státního tajemníka v Ministerstvu obrany",-12,"D"]
[null,"x",null,null,"Výcvik","Modernizace nebo výstavba učební a výcvikové základny","Plánovat údržbu a rozvoj posádkového cvičiště a následné zapracování do projektové dokumentace (specifikace).",null,"MP Metodické pokyny pro tvorbu SdP; RMO 66/2012 Plánování činnosti a rozvoje vojsk v rezortu MO; Vševojsk-17-2 Plánování a hodnocení přípravy vojsk AČR",-24,"D"]
[null,"x",null,null,"Výcvik","Modernizace nebo výstavba učební a výcvikové základny","Plánovat údržbu a rozvoj VA-VeV a následné zapracování do projektové dokumentace (specifikace).",null,"MP Metodické pokyny pro tvorbu SdP; RMO 66/2012 Plánování činnosti a rozvoje vojsk v rezortu MO; Vševojsk-17-2 Plánování a hodnocení přípravy vojsk AČR",-24,"D"]
[null,"x",null,null,"Výcvik","Modernizace nebo výstavba učební a výcvikové základny","Plánovat údržbu a rozvoj SOVZ a následné zapracování do projektové dokumentace (specifikace).",null,"MP Metodické pokyny pro tvorbu SdP; NVMO 41/2010 Vzdělávací a výcvikové aktivity v rezortu MO; NVMO 5/2013 Výcviková a školící zařízení organizačních celků rezortu MO; RMO 66/2012 Plánování činnosti a rozvoje vojsk v rezortu MO; Vševojsk-17-2 Plánování a hodnocení přípravy vojsk AČR",-24,"D"]
[null,"x",null,null,"Výcvik","Modernizace nebo výstavba učební a výcvikové základny","Plánovat údržbu a rozvoj školících zařízení KIS - školení SW a následné zapracování do projektové dokumentace (specifikace).",null,"MP Metodické pokyny pro tvorbu SdP; NVMO 41/2010 Vzdělávací a výcvikové aktivity v rezortu MO; NVMO 5/2013 Výcviková a školící zařízení organizačních celků rezortu MO; NVMO 60/2017 O jednotném postupu při úplatném nybývání majetku, služeb a stavebních prací vv rezoru MO; RMO 66/2012 Plánování činnosti a rozvoje vojsk v rezortu MO; Vševojsk-17-2 Plánování a hodnocení přípravy vojsk AČR",-24,"D"]
[null,"x",null,null,"Výcvik","Modernizace nebo výstavba učební a výcvikové základny","Plánovat údržbu a rozvoj CSTT a následné zapracování do projektové dokumentace (specifikace).",null,"MP Metodické pokyny pro tvorbu SdP; NVMO 41/2010 Vzdělávací a výcvikové aktivity v rezortu MO; NVMO 5/2013 Výcviková a školící zařízení organizačních celků rezortu MO; NVMO 60/2017 O jednotném postupu při úplatném nybývání majetku, služeb a stavebních prací vv rezoru MO; RMO 66/2012 Plánování činnosti a rozvoje vojsk v rezortu MO; Vševojsk-17-2 Plánování a hodnocení přípravy vojsk AČR",-24,"D"]
[null,"x",null,null,"Výcvik","Dokumentace výcviku","Aktualizovat nebo vydat novou dokumentaci pro školení řidičů, osádek, technického personálu.",null,"ČOS 051633 Učební pomůcky pro pozemní vojenskou techniku; MP Metodické pokyny pro tvorbu SdP; NVMO 2/2018 Provozování pozemní vojenské techniky; NVMO 41/2010 Vzdělávací a výcvikové aktivity v rezortu MO; RMO 1/2017 O přípravě návrhů, posuzování a schvalování vnitřních předpisů a Věstníku MO; RMO 66/2012 Plánování činnosti a rozvoje vojsk v rezortu MO; Zákon č. 258/2000 Sb. Zákon o ochraně veřejného zdraví; Zákon č. 309/2000 Sb. Zákon o obranné standardizaci, katagolizaci a státního ověřování jakosti …; Zákon č. 309/2006 Sb. Zákon o zajištění dalších podmínek bezpečnosti a ochrany zdraví při práci; Zákon č. 361/2000 Sb. Zákon o provozu na pozemních komunikacích",12,"D"]
[null,"x",null,null,"Výcvik","Úvodní školení s dodávkou prvního kusu","Zapracovat požadavek na školení instruktorů výcviku osádek a technického personálu do specifikace.",null,"ČOS 051633 Učební pomůcky pro pozemní vojenskou techniku; NVMO 2/2018 Provozování pozemní vojenské techniky; NVMO 41/2010 Vzdělávací a výcvikové aktivity v rezortu MO; RMO 1/2017 O přípravě návrhů, posuzování a schvalování vnitřních předpisů a Věstníku MO; RMO 66/2012 Plánování činnosti a rozvoje vojsk v rezortu MO; Zákon č. 258/2000 Sb. Zákon o ochraně veřejného zdraví; Zákon č. 309/2000 Sb. Zákon o obranné standardizaci, katagolizaci a státního ověřování jakosti …; Zákon č. 309/2006 Sb. Zákon o zajištění dalších podmínek bezpečnosti a ochrany zdraví při práci",-24,"D"]
[null,"x",null,null,"Výcvik","Úvodní školení s dodávkou prvního kusu","Zapracovat požadavek na školení a výcvik prvních osádek a prvního technického personálu do specifikace.",null,"ČOS 051633 Učební pomůcky pro pozemní vojenskou techniku; NVMO 2/2018 Provozování pozemní vojenské techniky; NVMO 41/2010 Vzdělávací a výcvikové aktivity v rezortu MO; RMO 1/2017 O přípravě návrhů, posuzování a schvalování vnitřních předpisů a Věstníku MO; RMO 66/2012 Plánování činnosti a rozvoje vojsk v rezortu MO; Zákon č. 258/2000 Sb. Zákon o ochraně veřejného zdraví; Zákon č. 309/2000 Sb. Zákon o obranné standardizaci, katagolizaci a státního ověřování jakosti …; Zákon č. 309/2006 Sb. Zákon o zajištění dalších podmínek bezpečnosti a ochrany zdraví při práci",-24,"D"]
[null,"x",null,null,"Výcvik","Předpokládaný záměr rozsahu používání","Stanovit roční proběh v km (lehký/střední/těžký terén), případně jiný faktor dle daného rozvojového projektu.","M","ČOS 051659 Pokyny NATO pro analýzu nákladů životního cyklu; NVMO 2/2018 Provozování pozemní vojenské techniky; NVMO 41/2010 Vzdělávací a výcvikové aktivity v rezortu MO; RMO 66/2012 Plánování činnosti a rozvoje vojsk v rezortu MO; Pub Vojenské publikace pro výcvik (obecně)",-24,"D"]
[null,"x",null,null,"Výcvik","Předpokládaný záměr rozsahu používání","Stanovit roční počet výstřelů po druzích a typech.","M","ČOS 051659 Pokyny NATO pro analýzu nákladů životního cyklu; NVMO 2/2018 Provozování pozemní vojenské techniky; NVMO 41/2010 Vzdělávací a výcvikové aktivity v rezortu MO; RMO 66/2012 Plánování činnosti a rozvoje vojsk v rezortu MO; Pub Vojenské publikace pro výcvik (obecně)",-24,"D"]
[null,"x",null,null,"Výcvik","Předpokládaný záměr rozsahu používání","Definovat další provozní ukazatele (nabíjecí cyklus, provozní hodiny, motohodiny,…).","M","ČOS 051659 Pokyny NATO pro analýzu nákladů životního cyklu; NVMO 2/2018 Provozování pozemní vojenské techniky; RMO 66/2012 Plánování činnosti a rozvoje vojsk v rezortu MO; Pub Vojenské publikace pro výcvik (obecně)",-24,"D"]
[null,null,"x",null,"Výcvik","Aktualizace dokumentace pro hodnocení bojové připravenosti jednotek","Aktualizovat dokumentaci pro hodnocení bojové připravenosti jednotek systémem CREVAL.","D","Pub Vojenské publikace pro výcvik (obecně); Koncepce Koncepční materiály",-12,"D","xx"]
[null,null,"x",null,"Výcvik","Aktualizace dokumentace pro hodnocení bojové připravenosti jednotek","Aktualizovat dokumentaci pro hodnocení bojové připravenosti jednotek systémem TACEVAL.","D","Pub Vojenské publikace pro výcvik (obecně); Koncepce Koncepční materiály",-12,"D"]
[null,null,"xi",null,"Výcvik","Aktualizace dokumentace pro hodnocení bojové připravenosti jednotek","Aktualizovat dokumentaci pro zajištění požadovaných certifikací (ODVL SŘO MO, NÚKIB,...)","D","Pub Vojenské publikace pro výcvik (obecně); Koncepce Koncepční materiály",6,"D"]
[null,null,"x",null,"Výcvik","Systém přípravy a výcviku jednotek","Navrhovat úpravy systému přípravy a výcviku jednotek a úpravy výcvikových cyklů k dosažení (udržení) operačních schopností.",null,"NVMO 41/2010 Vzdělávací a výcvikové aktivity v rezortu MO",-12,"D"]
[null,null,"x",null,"Výcvik","Systém přípravy a výcviku jednotek","Navrhovat úpravu systému přípravy a výcviku jednotek a úpravy výcvikových cyklů při přípravě do operace, pro plnění stanoveného úkolu.",null,"NVMO 41/2010 Vzdělávací a výcvikové aktivity v rezortu MO",-12,"D"]
[null,null,"x",null,"Výcvik","Systém přípravy a výcviku jednotek","Aktualizovat výcvikovou dokumentaci s využitím simulace, zavádění nového typu výcviku na základě nových technologií.","D","ČOS 051633 Učební pomůcky pro pozemní vojenskou techniku; NVMO 41/2010 Vzdělávací a výcvikové aktivity v rezortu MO; Pub Vojenské publikace pro výcvik (obecně)",-12,"D"]
[null,null,"x",null,"Materiál","Udržitelnost","Na základě analýzy opravárenských schopností navrhnout změny pro jejich dostatečnost - organizační změny.","O","ČOS 051616 Termionologie pro bezporuchovost a udržovatelnost; ČOS 051655 Etapy a procesy životního cyklu systémů NATO; Log-2-4 Vojskové opravy pozemní vojenské techniky.; RMO 66/2012 Plánování činnosti a rozvoje vojsk v rezortu MO; Koncepce Koncepční materiály",-12,"D"]
[null,null,"x",null,"Materiál","Udržitelnost","Na základě analýzy opravárenských schopností navrhnout změny pro jejich dostatečnost - nákup služby.",null,"ČOS 051616 Termionologie pro bezporuchovost a udržovatelnost; ČOS 051655 Etapy a procesy životního cyklu systémů NATO; Log-2-4 Vojskové opravy pozemní vojenské techniky.; RMO 66/2012 Plánování činnosti a rozvoje vojsk v rezortu MO; Koncepce Koncepční materiály",-12,"D"]
[null,"x",null,null,"Materiál","Udržitelnost","Do specifikace zapracovat požadavek na vytvoření Normy náhradních dílů a na pořízení jedné takovéto soupravy.",null,"ČOS 051616 Termionologie pro bezporuchovost a udržovatelnost; Log-2-4 Vojskové opravy pozemní vojenské techniky.; NVMO 16/2017 Rezervy majetku v působnosti MO; RMO 66/2012 Plánování činnosti a rozvoje vojsk v rezortu MO; Koncepce Koncepční materiály",-24,"D"]
[null,null,"x",null,"Materiál","Udržitelnost","Do SdP zapracovat požadavek na tvorbu  zásob nové výzbroje a techniky po celý životní cyklus.",null,"ČOS 051616 Termionologie pro bezporuchovost a udržovatelnost; ČOS 051655 Etapy a procesy životního cyklu systémů NATO; NVMO 16/2017 Rezervy majetku v působnosti MO; RMO 66/2012 Plánování činnosti a rozvoje vojsk v rezortu MO; Koncepce Koncepční materiály",-24,"D"]
[{"$nulls":3},"x","Materiál","Udržitelnost","V SdP aktualizovat požadavek na tvorbu  zásob nové výzbroje a techniky po celý životní cyklus.",null,"ČOS 051616 Termionologie pro bezporuchovost a udržovatelnost; ČOS 051655 Etapy a procesy životního cyklu systémů NATO; NVMO 16/2017 Rezervy majetku v působnosti MO; RMO 66/2012 Plánování činnosti a rozvoje vojsk v rezortu MO; Koncepce Koncepční materiály",6,"D","xx"]
[null,null,"x",null,"Materiál","Udržení schopnosti","Do SdP zapracovat požadavek na údržbu a doplňování  zásob nové výzbroje a techniky po celý její životní cyklus.",null,"ČOS 051616 Termionologie pro bezporuchovost a udržovatelnost; ČOS 051632 Průvodní a provozní dokumentace pro vojenskou techniku a materiál; ČOS 051655 Etapy a procesy životního cyklu systémů NATO; Log-2-4 Vojskové opravy pozemní vojenské techniky.; NVMO 16/2017 Rezervy majetku v působnosti MO; RMO 66/2012 Plánování činnosti a rozvoje vojsk v rezortu MO; Koncepce Koncepční materiály",-24,"D"]
[{"$nulls":3},"x","Materiál","Udržení schopnosti","V SdP aktualizovat požadavek na údržbu a doplňování  zásob nové výzbroje a techniky po celý její životní cyklus.",null,"ČOS 051616 Termionologie pro bezporuchovost a udržovatelnost; ČOS 051632 Průvodní a provozní dokumentace pro vojenskou techniku a materiál; ČOS 051655 Etapy a procesy životního cyklu systémů NATO; Log-2-4 Vojskové opravy pozemní vojenské techniky.; NVMO 16/2017 Rezervy majetku v působnosti MO; RMO 66/2012 Plánování činnosti a rozvoje vojsk v rezortu MO; Koncepce Koncepční materiály",6,"D"]
[null,null,"x",null,"Materiál","Udržení schopnosti","Do specifikace zapracovat požadavek na pořízení mechanizačních dílenských prostředků (MDP).",null,"ČOS 051616 Termionologie pro bezporuchovost a udržovatelnost; ČOS 051632 Průvodní a provozní dokumentace pro vojenskou techniku a materiál; ČOS 051655 Etapy a procesy životního cyklu systémů NATO; Log-2-4 Vojskové opravy pozemní vojenské techniky.; RMO 66/2012 Plánování činnosti a rozvoje vojsk v rezortu MO; Vševojsk-16-3 Systemizace technologických zařízení pracovišť, dílen a opraven pro údržbu pozemní vojenské techniky; Koncepce Koncepční materiály",-12,"D"]
[null,null,"x",null,"Materiál","Udržení schopnosti","Do specifikace zapracovat požadavek na pořízení nebo modernizaci evakuačních, vyprošťovacích a mobilních dílenských prostředků.",null,"ČOS 051616 Termionologie pro bezporuchovost a udržovatelnost; ČOS 051632 Průvodní a provozní dokumentace pro vojenskou techniku a materiál; ČOS 051655 Etapy a procesy životního cyklu systémů NATO; Log-2-4 Vojskové opravy pozemní vojenské techniky.; NVMO 38/2014 Normy vojenského materiálu pro předepisování do tabulek počtů; RMO 66/2012 Plánování činnosti a rozvoje vojsk v rezortu MO; Koncepce Koncepční materiály",-12,"D"]
[null,null,"x",null,"Materiál","Udržení schopnosti","Do SdP zapracovat požadavky na údržbu a obměnu vojenské výzbroje a vojenské techniky (naplnění životního cyklu).",null,"ČOS 051616 Termionologie pro bezporuchovost a udržovatelnost; ČOS 051632 Průvodní a provozní dokumentace pro vojenskou techniku a materiál; RMO 66/2012 Plánování činnosti a rozvoje vojsk v rezortu MO; Koncepce Koncepční materiály",-12,"D"]
[{"$nulls":3},"x","Materiál","Udržení schopnosti","V SdP aktualizovat požadavky na údržbu a obměnu vojenské výzbroje a vojenské techniky (naplnění životního cyklu).",null,"ČOS 051616 Termionologie pro bezporuchovost a udržovatelnost; ČOS 051632 Průvodní a provozní dokumentace pro vojenskou techniku a materiál; RMO 66/2012 Plánování činnosti a rozvoje vojsk v rezortu MO; Koncepce Koncepční materiály",6,"D"]
[null,null,"x",null,"Materiál","Udržení schopnosti","Do SdP zapracovat požadavky na údržbu a obměnu  zařízení a techniky UVZ a STT (naplnění životního cyklu).","T","ČOS 051616 Termionologie pro bezporuchovost a udržovatelnost; ČOS 051632 Průvodní a provozní dokumentace pro vojenskou techniku a materiál; RMO 66/2012 Plánování činnosti a rozvoje vojsk v rezortu MO; Koncepce Koncepční materiály",-12,"D"]
[{"$nulls":3},"x","Materiál","Udržení schopnosti","V SdP aktualizovat požadavky na údržbu a obměnu  zařízení a techniky UVZ a STT (naplnění životního cyklu).","T","ČOS 051616 Termionologie pro bezporuchovost a udržovatelnost; ČOS 051632 Průvodní a provozní dokumentace pro vojenskou techniku a materiál; RMO 66/2012 Plánování činnosti a rozvoje vojsk v rezortu MO; Koncepce Koncepční materiály",6,"D"]
[{"$nulls":3},"x","Materiál","Rozvoj schopnosti","Vyčlenit finanční prostředky pro zabezpečení životního cyklu nové výzbroje a techniky (pořízení MDP, ND, školení personálu, údržby a oprav).",null,"ČOS 051616 Termionologie pro bezporuchovost a udržovatelnost; ČOS 051632 Průvodní a provozní dokumentace pro vojenskou techniku a materiál; RMO 66/2012 Plánování činnosti a rozvoje vojsk v rezortu MO; Koncepce Koncepční materiály",24,"D"]
[null,null,"x",null,"Materiál","Rozvoj schopnosti","Plánovat (rozpočtovat) finanční prostředky pro zabezpečení nákladů na vojskové zkoušky a certifikaci (NUKIB, ODVL SŘO MO, …)",null,"ČOS 051616 Termionologie pro bezporuchovost a udržovatelnost; ČOS 051632 Průvodní a provozní dokumentace pro vojenskou techniku a materiál; ČOS 051655 Etapy a procesy životního cyklu systémů NATO; RMO 66/2012 Plánování činnosti a rozvoje vojsk v rezortu MO; Koncepce Koncepční materiály; Let-1-1 Předpis pro létání; Let-1-4 Inženýrská letecká služba; Let-1-11 Letecký zkušební provoz; RMO 21/2018 O zajištění kybernetické bezpečnosti v rezortu MO; NVMO 111/2013 Kryptografická ochrana utajovaných informací v rezortu MO; NVMO 85/2013 Bezpečnost informačních a komunikačních systémů a elektronických zařízení nakládajících s utajovanými informacemi v rezortu MO; NVMO 20/2013 Bezpečnost informačních a komunikačních systémů a elektronických zařízení, které nakládají s určenými neutajovanými informacemi v rezortu MO",-12,"D"]
[{"$nulls":3},"x","Materiál","Rozvoj schopnosti","Vyčlenit finanční prostředky pro zabezpečení nákladů na vojskové zkoušky a certifikaci",null,"ČOS 051616 Termionologie pro bezporuchovost a udržovatelnost; ČOS 051632 Průvodní a provozní dokumentace pro vojenskou techniku a materiál; ČOS 051655 Etapy a procesy životního cyklu systémů NATO; RMO 66/2012 Plánování činnosti a rozvoje vojsk v rezortu MO; Koncepce Koncepční materiály",6,"D","xx"]
[{"$nulls":3},"x","Materiál","Rozvoj schopnosti","Aktualizovat Koncepci rozvoje materiálního zabezpečení (logistiky, KIS, zdr.).","D","ČOS 051616 Termionologie pro bezporuchovost a udržovatelnost; ČOS 051632 Průvodní a provozní dokumentace pro vojenskou techniku a materiál; ČOS 051655 Etapy a procesy životního cyklu systémů NATO; RMO 61/2017 Koncepční dokumenty MO; RMO 66/2012 Plánování činnosti a rozvoje vojsk v rezortu MO; Koncepce Koncepční materiály",12,"D"]
[null,null,"x",null,"Materiál","Rozvoj schopnosti","Aktualizovat předpisy, pomůcky a postupy pro materiální zabezpečení.","D","ČOS 051616 Termionologie pro bezporuchovost a udržovatelnost; ČOS 051632 Průvodní a provozní dokumentace pro vojenskou techniku a materiál; ČOS 051655 Etapy a procesy životního cyklu systémů NATO; RMO 66/2012 Plánování činnosti a rozvoje vojsk v rezortu MO; Koncepce Koncepční materiály; Let-1-1 Předpis pro létání; Let-1-4 Inženýrská letecká služba; Let-1-11 Letecký zkušební provoz; RMO 21/2018 O zajištění kybernetické bezpečnosti v rezortu MO; NVMO 111/2013 Kryptografická ochrana utajovaných informací v rezortu MO; NVMO 85/2013 Bezpečnost informačních a komunikačních systémů a elektronických zařízení nakládajících s utajovanými informacemi v rezortu MO; NVMO 20/2013 Bezpečnost informačních a komunikačních systémů a elektronických zařízení, které nakládají s určenými neutajovanými informacemi v rezortu MO",-12,"D"]
[{"$nulls":3},"x","Materiál","Rozvoj schopnosti","Zpracovat předpisy, pomůcky a postupy pro materiální zabezpečení.","D","ČOS 051616 Termionologie pro bezporuchovost a udržovatelnost; ČOS 051632 Průvodní a provozní dokumentace pro vojenskou techniku a materiál; ČOS 051655 Etapy a procesy životního cyklu systémů NATO; RMO 66/2012 Plánování činnosti a rozvoje vojsk v rezortu MO; Koncepce Koncepční materiály",18,"D"]
[null,"x",null,null,"Leadership","Udržení a rozvoj schopnosti","Do specifikace zapracovat požadavek na implementaci/integraci stávajících prostředků SVŘ nebo na přizpůsobení stávajícího SW.","M","ČOS 051616 Termionologie pro bezporuchovost a udržovatelnost; ČOS 051632 Průvodní a provozní dokumentace pro vojenskou techniku a materiál; ČOS 051655 Etapy a procesy životního cyklu systémů NATO; NVMO 60/2017 O jednotném postupu při úplatném nybývání majetku, služeb a stavebních prací vv rezoru MO; RMO 66/2012 Plánování činnosti a rozvoje vojsk v rezortu MO; Koncepce Koncepční materiály",-24,"D"]
[null,null,"x",null,"Leadership","Udržení a rozvoj schopnosti","Při pořizování nové výzbroje a techniky zabezpečit implementaci do stávajícího SVŘ.","M","Koncepce Koncepční materiály",-12,"D"]
[null,null,"x",null,"Leadership","Udržení a rozvoj schopnosti","Zabezpečit rozvoj prostředků systému velení a řízení včetně implementace do zavedené vojenské výzbroje a techniky.","M","Koncepce Koncepční materiály",-12,"D"]
[null,"x",null,null,"Interoperabilita","Udržení a rozvoj schopnosti","Zabezpečit interoperabilitu se systémy NATO.","M","Koncepce Koncepční materiály",-24,"D"]
[null,null,"x",null,"Výcvik","Udržení a rozvoj schopnosti","Plánovat přípravu personálu v oblasti velení a řízení.","T, P","N NGŠ N NGŠ k pplánování a provádění PVPŠ; NVMO 41/2010 Vzdělávací a výcvikové aktivity v rezortu MO; NVMO 5/2013 Výcviková a školící zařízení organizačních celků rezortu MO; RMO 1/2017 O přípravě návrhů, posuzování a schvalování vnitřních předpisů a Věstníku MO; Pub Vojenské publikace pro výcvik (obecně)",-12,"D"]
[{"$nulls":3},"x","Výcvik","Udržení a rozvoj schopnosti","Zajistit přípravu personálu v oblasti velení a řízení.","T, P","N NGŠ N NGŠ k pplánování a provádění PVPŠ; NVMO 41/2010 Vzdělávací a výcvikové aktivity v rezortu MO; NVMO 5/2013 Výcviková a školící zařízení organizačních celků rezortu MO; RMO 1/2017 O přípravě návrhů, posuzování a schvalování vnitřních předpisů a Věstníku MO; Pub Vojenské publikace pro výcvik (obecně)",12,"D","xx"]
[null,null,"x",null,"Materiál","Udržení schopnosti","Plánovat informační podporu plánování, provedení a vyhodnocování využívání vzdušného prostoru UVZ (SVOZ)",null,"MP Metodické pokyny pro tvorbu SdP; NVMO 41/2010 Vzdělávací a výcvikové aktivity v rezortu MO; NVMO 5/2013 Výcviková a školící zařízení organizačních celků rezortu MO",-12,"D"]
[{"$nulls":3},"x","Materiál","Udržení schopnosti","Zabezpečit informační podporu plánování, provedení a vyhodnocování využívání vzdušného prostoru UVZ (SVOZ)",null,"MP Metodické pokyny pro tvorbu SdP; NVMO 41/2010 Vzdělávací a výcvikové aktivity v rezortu MO; NVMO 5/2013 Výcviková a školící zařízení organizačních celků rezortu MO",12,"D"]
[null,null,"x",null,"Leadership","Udržení a rozvoj schopnosti","Plánovat informační podporu plánování, provedení a vyhodnocování UVZ.","M","ČOS 051633 Učební pomůcky pro pozemní vojenskou techniku; Vševojsk-10-1 Pravidla vedení provozní dokumentace výzbroje a ostatní techniky; Vševojsk-10-6 Učební a výcviková základna",-12,"D"]
[{"$nulls":3},"x","Leadership","Udržení a rozvoj schopnosti","Zabezpečit informační podporu plánování, provedení a vyhodnocování UVZ.","M","ČOS 051633 Učební pomůcky pro pozemní vojenskou techniku; Vševojsk-10-1 Pravidla vedení provozní dokumentace výzbroje a ostatní techniky; Vševojsk-10-6 Učební a výcviková základna",12,"D"]
[null,null,"x",null,"Výcvik","Udržení a rozvoj schopnosti","Aktualizovat pomůcky, předpisy a směrnice pro přípravu velitelů a štábů.","D","ČOS 051633 Učební pomůcky pro pozemní vojenskou techniku; RMO 1/2017 O přípravě návrhů, posuzování a schvalování vnitřních předpisů a Věstníku MO",-12,"D"]
[{"$nulls":3},"x","Výcvik","Udržení a rozvoj schopnosti","Zpracovat pomůcky, předpisy a směrnice pro přípravu velitelů a štábů.","D","ČOS 051633 Učební pomůcky pro pozemní vojenskou techniku; RMO 1/2017 O přípravě návrhů, posuzování a schvalování vnitřních předpisů a Věstníku MO",18,"D"]
[null,"x",null,null,"Leadership","Udržení a rozvoj schopnosti","Aktualizovat Koncepci výstavby systému velení a řízení AČR.","D","RMO 61/2017 Koncepční dokumenty MO; Koncepce Koncepční materiály",-36,"D"]
[{"$nulls":3},"x","Personál","Udržení a rozvoj schopnosti","Zpracovat nebo aktualizovat popis jednotlivých systemizovaných míst.","O","RMO Organizační řád MO vydaný jako služební předpis Státního tajemníka v Ministerstvu obrany; RMO 2/2019 Zásady tvorby systémizovaných míst; Vševojsk-1-1 Povinnosti funkcionářů a jednotek pozemního vojska Čs. armády",18,"D"]
[null,"x",null,null,"Personál","Udržení a rozvoj schopnosti","Do specifikace zapracovat požadavek na prvotní vyškolení personálu (osádek a instruktorů).","T, M","ČOS 051655 Etapy a procesy životního cyklu systémů NATO; NVMO 60/2017 O jednotném postupu při úplatném nybývání majetku, služeb a stavebních prací vv rezoru MO; Vševojsk-10-6 Učební a výcviková základna; Vševojsk-1-1 Povinnosti funkcionářů a jednotek pozemního vojska Čs. armády; Vševojsk-17-2 Plánování a hodnocení přípravy vojsk AČR; Vševojsk-4-2 Osnovy střeleb z ručních zbraní a zbraní bojových vozidel",-24,"D"]
[null,null,"x",null,"Personál","Udržení a rozvoj schopnosti","Plánovat přípravu instruktorů.","T","Vševojsk-10-6 Učební a výcviková základna; Vševojsk-1-1 Povinnosti funkcionářů a jednotek pozemního vojska Čs. armády; Vševojsk-17-2 Plánování a hodnocení přípravy vojsk AČR; Vševojsk-4-2 Osnovy střeleb z ručních zbraní a zbraní bojových vozidel",-12,"D"]
[{"$nulls":3},"x","Personál","Udržení a rozvoj schopnosti","Zabezpečit přípravu instruktorů.","T","Vševojsk-10-6 Učební a výcviková základna; Vševojsk-1-1 Povinnosti funkcionářů a jednotek pozemního vojska Čs. armády; Vševojsk-17-2 Plánování a hodnocení přípravy vojsk AČR; Vševojsk-4-2 Osnovy střeleb z ručních zbraní a zbraní bojových vozidel",12,"D"]
[null,null,"x",null,"Personál","Udržení a rozvoj schopnosti","Plánovat přípravu pedagogického sboru vojenského školství a školících zařízení.","T","ČOS 051633 Učební pomůcky pro pozemní vojenskou techniku; Vševojsk-10-6 Učební a výcviková základna; Vševojsk-1-1 Povinnosti funkcionářů a jednotek pozemního vojska Čs. armády; Vševojsk-17-2 Plánování a hodnocení přípravy vojsk AČR",-12,"D"]
[{"$nulls":3},"x","Personál","Udržení a rozvoj schopnosti","Připravit pedagogický sbor vojenského školství a školících zařízení.","T","ČOS 051633 Učební pomůcky pro pozemní vojenskou techniku; Vševojsk-10-6 Učební a výcviková základna; Vševojsk-1-1 Povinnosti funkcionářů a jednotek pozemního vojska Čs. armády; Vševojsk-17-2 Plánování a hodnocení přípravy vojsk AČR",12,"D"]
[null,null,"x",null,"Personál","Udržení a rozvoj schopnosti","Plánovat zavedení nových metod přípravy personálu na základě nových technologií.","T","ČOS 051633 Učební pomůcky pro pozemní vojenskou techniku; Vševojsk-10-6 Učební a výcviková základna; Vševojsk-1-1 Povinnosti funkcionářů a jednotek pozemního vojska Čs. armády; Vševojsk-17-2 Plánování a hodnocení přípravy vojsk AČR",-12,"D"]
[{"$nulls":3},"x","Personál","Udržení a rozvoj schopnosti","Zavést nové metody přípravy personálu na základě nových technologií.","T","ČOS 051633 Učební pomůcky pro pozemní vojenskou techniku; Vševojsk-10-6 Učební a výcviková základna; Vševojsk-1-1 Povinnosti funkcionářů a jednotek pozemního vojska Čs. armády; Vševojsk-17-2 Plánování a hodnocení přípravy vojsk AČR",18,"D"]
[null,null,"x",null,"Personál","Udržení a rozvoj schopnosti","Aktualizovat popis jednotlivých systemizovaných míst.","O, D","RMO 2/2019 Zásady tvorby systémizovaných míst",-12,"D"]
[{"$nulls":3},"x","Personál","Udržení a rozvoj schopnosti","Zpracovat popis jednotlivých systemizovaných míst.","O, D","RMO 2/2019 Zásady tvorby systémizovaných míst",12,"D"]
[{"$nulls":3},"x","Personál","Udržení a rozvoj schopnosti","Provést nábor personálu při zavádění nové výzbroje a techniky.","O","N NGŠ N NGŠ k pplánování a provádění PVPŠ; NVMO 41/2010 Vzdělávací a výcvikové aktivity v rezortu MO",18,"D"]
[null,null,"x",null,"Infrastruktura","Služební a pobytové zóny","Plánovat zabezpečení dostatečné kapacity služebních a pobytových zón.","O","N NGŠ N NGŠ k pplánování a provádění PVPŠ; NVMO 41/2010 Vzdělávací a výcvikové aktivity v rezortu MO",-12,"D"]
[{"$nulls":3},"x","Infrastruktura","Služební a pobytové zóny","Zabezpečit dostatečné kapacity služebních a pobytových zón.","O","N NGŠ N NGŠ k pplánování a provádění PVPŠ; NVMO 41/2010 Vzdělávací a výcvikové aktivity v rezortu MO",12,"D"]
[{"$nulls":3},"x","Infrastruktura","Služební a pobytové zóny","Provést údržbu stávajících prostorů služebních a pobytových zón.",null,"ČOS 051655 Etapy a procesy životního cyklu systémů NATO; Log-2-4 Vojskové opravy pozemní vojenské techniky.; Zákon č. 219/2000 Sb. Zákon o majetku ČR a jejím vystupovánmím v právních vztazích",12,"D"]
[null,null,"x",null,"Infrastruktura","Služební a pobytové zóny","Plánovat modernizaci stávajících prostor na zaváděné nové technologie.","M","ČOS 051655 Etapy a procesy životního cyklu systémů NATO; Zákon č. 219/2000 Sb. Zákon o majetku ČR a jejím vystupovánmím v právních vztazích",-12,"D"]
[{"$nulls":3},"x","Infrastruktura","Služební a pobytové zóny","Modernizovat stávající prostory na zaváděné nové technologie.","M","ČOS 051655 Etapy a procesy životního cyklu systémů NATO; Zákon č. 219/2000 Sb. Zákon o majetku ČR a jejím vystupovánmím v právních vztazích",18,"D"]
[null,null,"x",null,"Infrastruktura","Zabezpečení vojenského majetku","Plánovat údržbu garážových stání.","M","ČOS 051655 Etapy a procesy životního cyklu systémů NATO; RMO 66/2012 Plánování činnosti a rozvoje vojsk v rezortu MO; Všeob-P-5 Parky vojenské techniky v působnosti MO a provoz v nich; Zákon č. 219/2000 Sb. Zákon o majetku ČR a jejím vystupovánmím v právních vztazích",-12,"D"]
[{"$nulls":3},"x","Infrastruktura","Zabezpečení vojenského majetku","Provést údržbu garážových stání.","M","ČOS 051655 Etapy a procesy životního cyklu systémů NATO; RMO 66/2012 Plánování činnosti a rozvoje vojsk v rezortu MO; Všeob-P-5 Parky vojenské techniky v působnosti MO a provoz v nich; Zákon č. 219/2000 Sb. Zákon o majetku ČR a jejím vystupovánmím v právních vztazích",18,"D"]
[null,null,"x",null,"Infrastruktura","Zabezpečení vojenského majetku","Plánovat údržbu skladových prostorů.","M","ČOS 051655 Etapy a procesy životního cyklu systémů NATO; RMO 66/2012 Plánování činnosti a rozvoje vojsk v rezortu MO; Všeob-P-5 Parky vojenské techniky v působnosti MO a provoz v nich; Zákon č. 219/2000 Sb. Zákon o majetku ČR a jejím vystupovánmím v právních vztazích",-12,"D"]
[{"$nulls":3},"x","Infrastruktura","Zabezpečení vojenského majetku","Provést údržbu skladových prostorů.","M","ČOS 051655 Etapy a procesy životního cyklu systémů NATO; RMO 66/2012 Plánování činnosti a rozvoje vojsk v rezortu MO; Všeob-P-5 Parky vojenské techniky v působnosti MO a provoz v nich; Zákon č. 219/2000 Sb. Zákon o majetku ČR a jejím vystupovánmím v právních vztazích",18,"D"]
[null,null,"x",null,"Infrastruktura","Zabezpečení vojenského majetku","Plánovat údržbu prostorů pro ošetřování, údržbu a opravy vojenského majetku.","M","ČOS 051655 Etapy a procesy životního cyklu systémů NATO; RMO 66/2012 Plánování činnosti a rozvoje vojsk v rezortu MO; Všeob-P-5 Parky vojenské techniky v působnosti MO a provoz v nich; Zákon č. 219/2000 Sb. Zákon o majetku ČR a jejím vystupovánmím v právních vztazích",-12,"D"]
[{"$nulls":3},"x","Infrastruktura","Zabezpečení vojenského majetku","Provést údržbu prostorů pro ošetřování, údržbu a opravy vojenského majetku.","M","ČOS 051655 Etapy a procesy životního cyklu systémů NATO; RMO 66/2012 Plánování činnosti a rozvoje vojsk v rezortu MO; Všeob-P-5 Parky vojenské techniky v působnosti MO a provoz v nich; Zákon č. 219/2000 Sb. Zákon o majetku ČR a jejím vystupovánmím v právních vztazích",18,"D"]
[null,"x",null,null,"Infrastruktura","Zabezpečení vojenského majetku","Zapracovat požadavky do specifikace pro AHNM na rekonstrukci nebo výstavbu potřebné infrastruktury pro nově pořizovaný vojenský majetek.","M","ČOS 051655 Etapy a procesy životního cyklu systémů NATO; RMO 66/2012 Plánování činnosti a rozvoje vojsk v rezortu MO; Všeob-P-5 Parky vojenské techniky v působnosti MO a provoz v nich; Zákon č. 219/2000 Sb. Zákon o majetku ČR a jejím vystupovánmím v právních vztazích",-48,"D"]
[null,null,"x",null,"Infrastruktura","Učebně výcviková zařízení, SOVZ, STT","Vyčlenit finanční prostředky na zabezpečení údržby a rozvoje prostorů pro výcvik.","T","RMO 66/2012 Plánování činnosti a rozvoje vojsk v rezortu MO; Zákon č. 219/2000 Sb. Zákon o majetku ČR a jejím vystupovánmím v právních vztazích",-12,"D"]
[{"$nulls":3},"x","Infrastruktura","Učebně výcviková zařízení, SOVZ, STT","Realizovat údržbu a rozvoj prostorů pro výcvik.","T","RMO 66/2012 Plánování činnosti a rozvoje vojsk v rezortu MO; Zákon č. 219/2000 Sb. Zákon o majetku ČR a jejím vystupovánmím v právních vztazích",24,"D"]
[null,null,"x",null,"Infrastruktura","Učebně výcviková zařízení, SOVZ, STT","Plánovat modernizaci prostorů pro výcvik na moderní systémy simulace.","T","RMO 66/2012 Plánování činnosti a rozvoje vojsk v rezortu MO; Zákon č. 219/2000 Sb. Zákon o majetku ČR a jejím vystupovánmím v právních vztazích; Koncepce Koncepční materiály",-12,"D"]
[{"$nulls":3},"x","Infrastruktura","Učebně výcviková zařízení, SOVZ, STT","Zabezpečit modernizaci prostorů pro výcvik na moderní systémy simulace.","T","RMO 66/2012 Plánování činnosti a rozvoje vojsk v rezortu MO; Zákon č. 219/2000 Sb. Zákon o majetku ČR a jejím vystupovánmím v právních vztazích; Koncepce Koncepční materiály",24,"D"]
[null,null,"x",null,"Infrastruktura","Učebně výcviková zařízení, SOVZ, STT","Plánovat údržbu a rozvoj ubytovacích kapacit ve VÚ.","T","ČOS 051655 Etapy a procesy životního cyklu systémů NATO; RMO 66/2012 Plánování činnosti a rozvoje vojsk v rezortu MO; Zákon č. 219/2000 Sb. Zákon o majetku ČR a jejím vystupovánmím v právních vztazích; Koncepce Koncepční materiály",-12,"D"]
[{"$nulls":3},"x","Infrastruktura","Učebně výcviková zařízení, SOVZ, STT","Provést údržbu a rozvoj ubytovacích kapacit ve VÚ.","T","ČOS 051655 Etapy a procesy životního cyklu systémů NATO; RMO 66/2012 Plánování činnosti a rozvoje vojsk v rezortu MO; Zákon č. 219/2000 Sb. Zákon o majetku ČR a jejím vystupovánmím v právních vztazích; Koncepce Koncepční materiály",18,"D"]
[null,null,"x",null,"Infrastruktura","Učebně výcviková zařízení, SOVZ, STT","Plánovat údržbu a rozvoj technického zázemí pro výcvik ve vojenských újezdech a na posádkových cvičištích.",null,"ČOS 051655 Etapy a procesy životního cyklu systémů NATO; RMO 66/2012 Plánování činnosti a rozvoje vojsk v rezortu MO; Zákon č. 219/2000 Sb. Zákon o majetku ČR a jejím vystupovánmím v právních vztazích",-12,"D"]
[{"$nulls":3},"x","Infrastruktura","Učebně výcviková zařízení, SOVZ, STT","Provést údržbu a rozvoj technického zázemí pro výcvik ve vojenských újezdech a na posádkových cvičištích.",null,"ČOS 051655 Etapy a procesy životního cyklu systémů NATO; RMO 66/2012 Plánování činnosti a rozvoje vojsk v rezortu MO; Zákon č. 219/2000 Sb. Zákon o majetku ČR a jejím vystupovánmím v právních vztazích",18,"D"]
[null,null,"x",null,"Infrastruktura","Učebně výcviková zařízení, SOVZ, STT","Plánovat údržbu a rozvoj objektů vojenského školství.","T","ČOS 051655 Etapy a procesy životního cyklu systémů NATO; RMO 66/2012 Plánování činnosti a rozvoje vojsk v rezortu MO; Zákon č. 219/2000 Sb. Zákon o majetku ČR a jejím vystupovánmím v právních vztazích",-12,"D"]
[{"$nulls":3},"x","Infrastruktura","Učebně výcviková zařízení, SOVZ, STT","Provést údržbu a rozvoj objektů vojenského školství.","T","ČOS 051655 Etapy a procesy životního cyklu systémů NATO; RMO 66/2012 Plánování činnosti a rozvoje vojsk v rezortu MO; Zákon č. 219/2000 Sb. Zákon o majetku ČR a jejím vystupovánmím v právních vztazích",18,"D"]
[null,null,"x",null,"Infrastruktura","Učebně výcviková zařízení, SOVZ, STT","Plánovat údržbu a rozvoj vojenských školících zařízení.",null,"ČOS 051655 Etapy a procesy životního cyklu systémů NATO; RMO 66/2012 Plánování činnosti a rozvoje vojsk v rezortu MO; Zákon č. 219/2000 Sb. Zákon o majetku ČR a jejím vystupovánmím v právních vztazích",-12,"D"]
[{"$nulls":3},"x","Infrastruktura","Učebně výcviková zařízení, SOVZ, STT","Provést údržbu a rozvoj vojenských školících zařízení.",null,"ČOS 051655 Etapy a procesy životního cyklu systémů NATO; RMO 66/2012 Plánování činnosti a rozvoje vojsk v rezortu MO; Zákon č. 219/2000 Sb. Zákon o majetku ČR a jejím vystupovánmím v právních vztazích",24,"D"]
[null,"x",null,null,"Interoperabilita","Systém velení a řízení","Do specifikace zapracovat požadavek na zabezpečení interoperability prostředků SVŘ v rámci jednotlivých druhů vojsk.",null,"ČOS 051662 Příručka pro postupné plánování vyzbrojování",-24,"D"]
[null,null,"x",null,"Interoperabilita","Systém velení a řízení","Kontrolovat zabezpečení interoperability prostředků SVŘ v rámci jednotlivých druhů vojsk.",null,"ČOS 051662 Příručka pro postupné plánování vyzbrojování",-24,"D"]
[{"$nulls":3},"x","Interoperabilita","Systém velení a řízení","Zabezpečit interoperabilitu prostředků SVŘ v rámci jednotlivých druhů vojsk.",null,"ČOS 051662 Příručka pro postupné plánování vyzbrojování",18,"D"]
[null,"x",null,null,"Interoperabilita","Systém velení a řízení","Do specifikace zapracovat požadavek na interoperabilitu prostředků SVŘ mezi jednotlivými druhy vojsk.",null,"ČOS 051662 Příručka pro postupné plánování vyzbrojování",-24,"D"]
[null,null,"x",null,"Interoperabilita","Systém velení a řízení","Kontrolovat zabezpečení interoperability prostředků SVŘ mezi jednotlivými druhy vojsk.",null,"ČOS 051662 Příručka pro postupné plánování vyzbrojování",-12,"D"]
[{"$nulls":3},"x","Interoperabilita","Systém velení a řízení","Zabezpečit interoperabilitu prostředků SVŘ mezi jednotlivými druhy vojsk.",null,"ČOS 051662 Příručka pro postupné plánování vyzbrojování",18,"D"]
[null,"x",null,null,"Interoperabilita","Systém velení a řízení","Do specifikace zapracovat požadavek na interoperabilitu prostředků SVŘ v rámci NATO.",null,"ČOS 051662 Příručka pro postupné plánování vyzbrojování",-24,"D"]
[null,null,"x",null,"Interoperabilita","Systém velení a řízení","Kontrolovat zabezpečení interoperability prostředků SVŘ v rámci NATO.",null,"ČOS 051662 Příručka pro postupné plánování vyzbrojování",12,"D"]
[{"$nulls":3},"x","Interoperabilita","Systém velení a řízení","Zabezpečit interoperabilitu prostředků SVŘ v rámci NATO.",null,"ČOS 051662 Příručka pro postupné plánování vyzbrojování",18,"D"]
[null,"x",null,null,"Interoperabilita","Výzbroj a technika","Zapracovat požadavky do specifikace na zabezpečení provozování nové VTM na jednotné palivo NATO.","M","ČOS 051662 Příručka pro postupné plánování vyzbrojování",-24,"D"]
[null,"x",null,null,"Interoperabilita","Výzbroj a technika","Zapracovat požadavky do specifikace na vyprošťovací prvky dle příslušných STANAGů a ČOSů.","M","ČOS 051662 Příručka pro postupné plánování vyzbrojování",-24,"D"]
[null,"x",null,null,"Interoperabilita","Výzbroj a technika","Zapracovat požadavky do specifikace na používání unifikované munice NATO.","M","ČOS 051662 Příručka pro postupné plánování vyzbrojování",-24,"D"]
[null,"x",null,null,"Interoperabilita","Výzbroj a technika","Zapracovat požadavek do specifikace na zabezpečení jednotné podvozkové platformy a jednotné logistiky s již zavedeným vojenským materiálem.","M","ČOS 051662 Příručka pro postupné plánování vyzbrojování",-24,"D"]
[{"$nulls":3},"x","Interoperabilita","Doktríny","Aktualizovat a implementovat STANAGy do národních předpisů.","D","ČOS 051662 Příručka pro postupné plánování vyzbrojování",24,"D"]
[{"$nulls":3},"x","Interoperabilita","UVZ, VVP, STT","Aplikovat alianční předpisy a postupy do národních předpisů a postupů.","T, D","ČOS 051662 Příručka pro postupné plánování vyzbrojování",24,"D"]
[null,"x",null,null,"Interoperabilita","Udržení a rozvoj schopnosti","Do specifikace zapracovat požadavek na interoperabilitu se systémy NATO.","M, T, D","ČOS 051662 Příručka pro postupné plánování vyzbrojování",-24,"D"]
[null,null,"x",null,"Interoperabilita","Udržení a rozvoj schopnosti","Kontrolovat zabezpečení interoperability se systémy NATO.","M, T, D","ČOS 051662 Příručka pro postupné plánování vyzbrojování",18,"D"]
[{"$nulls":3},"x","Interoperabilita","Udržení a rozvoj schopnosti","Zabezpečit interoperabilitu se systémy NATO.","M, T, D","ČOS 051662 Příručka pro postupné plánování vyzbrojování",12,"D"]
[{"$nulls":3},"x","Materiál","Udržitelnost","Zabezpečení životního cyklu majetku","T, D","ČOS 051662 Příručka pro postupné plánování vyzbrojování",96,"D"]

{"sheet":"Kontrolní list","index":3,"n_rows":70,"n_cols":14,"rows_kept":70,"merged":[[0,1,0,12],[2,1,2,12],[5,7,5,8],[5,9,5,11]]}
[null,"MOŽNÝ VZOR GIP"]
[{"$nulls":12},"Příloha 1"]
[null,{"$f":"Nastavení!D1","v":"Pořízení mobilní věže ŘLP"}]
[null,"Předpokládaný termín pořízení projektu (měsíc.rok)",{"$nulls":4},{"$f":"DATE(Nastavení!D3,1,1)","v":"2023-01-01"},{"$nulls":5},""]
[]
[{"$nulls":6},"Termín","Kdo odpovídá",null,"Splnění daného opatření"]
["O","Etapa","FO","Úkol","Poznámka","Lhůta"," provedení","Složka / odbor / oddělení","Jméno","Datum","Výstup","Místo uložení","Kdo provedl","Platnost"]
[11,"Předakviziční","D","Navrhnout systémové a organizační změny tvorby doktrín.",null,-40,{"$f":"DATE(YEAR(G4),MONTH(G4)+F8,DAY(G4))","v":"2019-09-01"},{"$nulls":6},"D"]
[11,"Předakviziční","D","Provést analýzu doktríny AČR a případně navrhnout její změnu.",null,-50,{"$f":"DATE(YEAR(G4),MONTH(G4)+F9,DAY(G4))","v":"2018-11-01"},{"$nulls":6},"D"]
[11,"Předakviziční","D","Aktualizovat Plány tvorby voj. předpisů a publikací, stanovit priority.",null,-24,{"$f":"DATE(YEAR(G4),MONTH(G4)+F10,DAY(G4))","v":"2021-01-01"},{"$nulls":6},"D"]
[11,"Předakviziční","D","Definovat požadavky na stanovené (vyžadované) certifikace a následné zapracování požadavků do specifikace.",null,-24,{"$f":"DATE(YEAR(G4),MONTH(G4)+F11,DAY(G4))","v":"2021-01-01"},{"$nulls":6},"D"]
[21,"Akviziční","D","Na základě výsledků technického vývoje provést analýzu ČOS, STANAG a případně navrhnout jejich novelizaci.",null,-12,{"$f":"DATE(YEAR(G4),MONTH(G4)+F12,DAY(G4))","v":"2022-01-01"},{"$nulls":6},"D"]
[22,"Akviziční","O","Provést analýzu organizačních struktur jednotek pro školení SW a případně navrhnout jejich změny.",null,-12,{"$f":"DATE(YEAR(G4),MONTH(G4)+F13,DAY(G4))","v":"2022-01-01"},{"$nulls":6},"D"]
[23,"Akviziční","T","Aktualizovat dokumentaci pro hodnocení bojové připravenosti jednotek systémem CREVAL.",null,-12,{"$f":"DATE(YEAR(G4),MONTH(G4)+F14,DAY(G4))","v":"2022-01-01"},{"$nulls":6},"D"]
[33,"Poakviziční","T","Zajistit přípravu personálu v oblasti velení a řízení.",null,12,{"$f":"DATE(YEAR(G4),MONTH(G4)+F15,DAY(G4))","v":"2024-01-01"},{"$nulls":6},"D"]
[34,"Poakviziční","M","V SdP aktualizovat požadavek na tvorbu  zásob nové výzbroje a techniky po celý životní cyklus.",null,6,{"$f":"DATE(YEAR(G4),MONTH(G4)+F16,DAY(G4))","v":"2023-07-01"},{"$nulls":6},"D"]
[34,"Poakviziční","M","Vyčlenit finanční prostředky pro zabezpečení nákladů na vojskové zkoušky a certifikaci",null,6,{"$f":"DATE(YEAR(G4),MONTH(G4)+F17,DAY(G4))","v":"2023-07-01"},{"$nulls":6},"D"]
{"$rows_empty":46}
[{"$nulls":6},""]
[{"$nulls":6},""]
[{"$nulls":6},""]
[{"$nulls":6},""]
[{"$nulls":6},""]
[{"$nulls":6},""]
[{"$nulls":6},""]

{"sheet":"Kalendářní plán","index":4,"n_rows":140,"n_cols":253,"rows_kept":140,"merged":[[8,12,8,14],[8,15,8,17],[8,18,8,20],[8,21,8,23],[8,24,8,26],[8,27,8,29],[8,30,8,32],[8,33,8,35],[8,36,8,38],[8,39,8,41],[8,42,8,44],[8,45,8,47],[8,48,8,50],[8,51,8,53],[8,54,8,56],[8,57,8,59],[8,60,8,62],[8,63,8,65],[8,66,8,68],[8,69,8,71],[8,72,8,74],[8,75,8,77],[8,78,8,80],[8,81,8,83],[8,84,8,86],[8,87,8,89],[8,90,8,92],[8,93,8,95],[8,96,8,98],[8,99,8,101],[8,102,8,104],[8,105,8,107],[8,108,8,110],[8,111,8,113],[8,114,8,116],[8,117,8,119],[8,120,8,122],[8,123,8,125],[8,126,8,128],[8,129,8,131],[8,132,8,134],[8,135,8,137],[8,138,8,140],[8,141,8,143],[8,144,8,146],[8,147,8,149],[8,150,8,152],[8,153,8,155],[8,156,8,158],[8,159,8,161],[8,162,8,164],[8,165,8,167],[8,168,8,170],[8,171,8,173],[8,174,8,176],[8,177,8,179],[8,180,8,182],[8,183,8,185],[8,186,8,188],[8,189,8,191],[8,192,8,194],[8,195,8,197],[8,198,8,200],[8,201,8,203],[8,204,8,206],[8,207,8,209],[8,210,8,212],[8,213,8,215],[8,216,8,218],[8,219,8,221],[8,222,8,224],[8,225,8,227],[8,228,8,230],[8,231,8,233],[8,234,8,236],[8,237,8,239],[8,240,8,242],[8,243,8,245],[8,246,8,248],[8,249,8,251],[9,12,9,23],[9,24,9,35],[9,36,9,47],[9,48,9,59],[9,60,9,71],[9,72,9,83],[9,84,9,95],[9,96,9,107],[9,108,9,119],[9,120,9,131],[9,132,9,143],[9,144,9,155],[9,156,9,167],[9,168,9,179],[9,180,9,191],[9,192,9,203],[9,204,9,215],[9,216,9,227],[9,228,9,239],[9,240,9,251]]}
[]
[{"$nulls":231},"Příloha 2"]
[]
[]
[]
[null,"Předpokládaný termín pořízení projektu - podpis smlouvy (měsíc.rok).",{"$nulls":3},{"$f":"Nastavení!D4","v":"2023-06-01"}]
[null,"Provedení vojskových zkoušek / zkrácených vojskových zkoušek.",{"$nulls":3},{"$f":"Nastavení!D5","v":"2023-11-01"}]
[null,"Předpokládaný termín ukončení projektu (dodávka posledního kusu).",{"$nulls":3},{"$f":"DATE(Nastavení!D8,12,31)","v":"2024-12-31"}]
["Celková doba realizace projektu (od odeslání specifikace po ukončení dodávky)",{"$nulls":7},{"$f":"DATE(Nastavení!D3,1,1)","v":"2023-01-01"},{"$f":"DATE(Nastavení!D8,12,31)","v":"2024-12-31"},null,null,{"$f":"IF(Nastavení!$D$2=M11,Nastavení!$E$2,IF(Nastavení!$D$4='Kalendářní plán'!M11,Nastavení!$E$4,IF(Nastavení!$D$5='Kalendářní plán'!M11,Nastavení!$E$5,IF(Nastavení!$D$6='Kalendářní plán'!M11,Nastavení!$E$6,IF(Nastavení!$D$7='Kalendářní plán'!M11,Nastavení!$E$7,IF(Nastavení!$D$2='Kalendářní plán'!N11,Nastavení!$E$2,IF(Nastavení!$D$4='Kalendářní plán'!N11,Nastavení!$E$4,IF(Nastavení!$D$5='Kalendářní plán'!N11,Nastavení!$E$5,IF(Nastavení!$D$6='Kalendářní plán'!N11,Nastavení!$E$6,IF(Nastavení!$D$7='Kalendářní plán'!N11,Nastavení!$E$7,IF(Nastavení!$D$2='Kalendářní plán'!O11,Nastavení!$E$2,IF(Nastavení!$D$4='Kalendářní plán'!O11,Nastavení!$E$4,IF(Nastavení!$D$5='Kalendářní plán'!O11,Nastavení!$E$5,IF(Nastavení!$D$6='Kalendářní plán'!O11,Nastavení!$E$6,IF(Nastavení!$D$7='Kalendářní plán'!O11,Nastavení!$E$7,\"\")))))))))))))))","v":""},null,null,{"$f":"IF(Nastavení!$D$2='Kalendářní plán'!P11,Nastavení!$E$2,IF(Nastavení!$D$4='Kalendářní plán'!P11,Nastavení!$E$4,IF(Nastavení!$D$5='Kalendářní plán'!P11,Nastavení!$E$5,IF(Nastavení!$D$6='Kalendářní plán'!P11,Nastavení!$E$6,IF(Nastavení!$D$7='Kalendářní plán'!P11,Nastavení!$E$7,IF(Nastavení!$D$2='Kalendářní plán'!Q11,Nastavení!$E$2,IF(Nastavení!$D$4='Kalendářní plán'!Q11,Nastavení!$E$4,IF(Nastavení!$D$5='Kalendářní plán'!Q11,Nastavení!$E$5,IF(Nastavení!$D$6='Kalendářní plán'!Q11,Nastavení!$E$6,IF(Nastavení!$D$7='Kalendářní plán'!Q11,Nastavení!$E$7,IF(Nastavení!$D$2='Kalendářní plán'!R11,Nastavení!$E$2,IF(Nastavení!$D$4='Kalendářní plán'!R11,Nastavení!$E$4,IF(Nastavení!$D$5='Kalendářní plán'!R11,Nastavení!$E$5,IF(Nastavení!$D$6='Kalendářní plán'!R11,Nastavení!$E$6,IF(Nastavení!$D$7='Kalendářní plán'!R11,Nastavení!$E$7,\"\")))))))))))))))","v":""},null,null,{"$f":"IF(Nastavení!$D$2='Kalendářní plán'!S11,Nastavení!$E$2,IF(Nastavení!$D$4='Kalendářní plán'!S11,Nastavení!$E$4,IF(Nastavení!$D$5='Kalendářní plán'!S11,Nastavení!$E$5,IF(Nastavení!$D$6='Kalendářní plán'!S11,Nastavení!$E$6,IF(Nastavení!$D$7='Kalendářní plán'!S11,Nastavení!$E$7,IF(Nastavení!$D$2='Kalendářní plán'!T11,Nastavení!$E$2,IF(Nastavení!$D$4='Kalendářní plán'!T11,Nastavení!$E$4,IF(Nastavení!$D$5='Kalendářní plán'!T11,Nastavení!$E$5,IF(Nastavení!$D$6='Kalendářní plán'!T11,Nastavení!$E$6,IF(Nastavení!$D$7='Kalendářní plán'!T11,Nastavení!$E$7,IF(Nastavení!$D$2='Kalendářní plán'!U11,Nastavení!$E$2,IF(Nastavení!$D$4='Kalendářní plán'!U11,Nastavení!$E$4,IF(Nastavení!$D$5='Kalendářní plán'!U11,Nastavení!$E$5,IF(Nastavení!$D$6='Kalendářní plán'!U11,Nastavení!$E$6,IF(Nastavení!$D$7='Kalendářní plán'!U11,Nastavení!$E$7,\"\")))))))))))))))","v":"specifikace"},null,null,{"$f":"IF(Nastavení!$D$2='Kalendářní plán'!V11,Nastavení!$E$2,IF(Nastavení!$D$4='Kalendářní plán'!V11,Nastavení!$E$4,IF(Nastavení!$D$5='Kalendářní plán'!V11,Nastavení!$E$5,IF(Nastavení!$D$6='Kalendářní plán'!V11,Nastavení!$E$6,IF(Nastavení!$D$7='Kalendářní plán'!V11,Nastavení!$E$7,IF(Nastavení!$D$2='Kalendářní plán'!W11,Nastavení!$E$2,IF(Nastavení!$D$4='Kalendářní plán'!W11,Nastavení!$E$4,IF(Nastavení!$D$5='Kalendářní plán'!W11,Nastavení!$E$5,IF(Nastavení!$D$6='Kalendářní plán'!W11,Nastavení!$E$6,IF(Nastavení!$D$7='Kalendářní plán'!W11,Nastavení!$E$7,IF(Nastavení!$D$2='Kalendářní plán'!X11,Nastavení!$E$2,IF(Nastavení!$D$4='Kalendářní plán'!X11,Nastavení!$E$4,IF(Nastavení!$D$5='Kalendářní plán'!X11,Nastavení!$E$5,IF(Nastavení!$D$6='Kalendářní plán'!X11,Nastavení!$E$6,IF(Nastavení!$D$7='Kalendářní plán'!X11,Nastavení!$E$7,\"\")))))))))))))))","v":""},null,null,{"$f":"IF(Nastavení!$D$2='Kalendářní plán'!Y11,Nastavení!$E$2,IF(Nastavení!$D$4='Kalendářní plán'!Y11,Nastavení!$E$4,IF(Nastavení!$D$5='Kalendářní plán'!Y11,Nastavení!$E$5,IF(Nastavení!$D$6='Kalendářní plán'!Y11,Nastavení!$E$6,IF(Nastavení!$D$7='Kalendářní plán'!Y11,Nastavení!$E$7,IF(Nastavení!$D$2='Kalendářní plán'!Z11,Nastavení!$E$2,IF(Nastavení!$D$4='Kalendářní plán'!Z11,Nastavení!$E$4,IF(Nastavení!$D$5='Kalendářní plán'!Z11,Nastavení!$E$5,IF(Nastavení!$D$6='Kalendářní plán'!Z11,Nastavení!$E$6,IF(Nastavení!$D$7='Kalendářní plán'!Z11,Nastavení!$E$7,IF(Nastavení!$D$2='Kalendářní plán'!AA11,Nastavení!$E$2,IF(Nastavení!$D$4='Kalendářní plán'!AA11,Nastavení!$E$4,IF(Nastavení!$D$5='Kalendářní plán'!AA11,Nastavení!$E$5,IF(Nastavení!$D$6='Kalendářní plán'!AA11,Nastavení!$E$6,IF(Nastavení!$D$7='Kalendářní plán'!AA11,Nastavení!$E$7,\"\")))))))))))))))","v":""},null,null,{"$f":"IF(Nastavení!$D$2='Kalendářní plán'!AB11,Nastavení!$E$2,IF(Nastavení!$D$4='Kalendářní plán'!AB11,Nastavení!$E$4,IF(Nastavení!$D$5='Kalendářní plán'!AB11,Nastavení!$E$5,IF(Nastavení!$D$6='Kalendářní plán'!AB11,Nastavení!$E$6,IF(Nastavení!$D$7='Kalendářní plán'!AB11,Nastavení!$E$7,IF(Nastavení!$D$2='Kalendářní plán'!AC11,Nastavení!$E$2,IF(Nastavení!$D$4='Kalendářní plán'!AC11,Nastavení!$E$4,IF(Nastavení!$D$5='Kalendářní plán'!AC11,Nastavení!$E$5,IF(Nastavení!$D$6='Kalendářní plán'!AC11,Nastavení!$E$6,IF(Nastavení!$D$7='Kalendářní plán'!AC11,Nastavení!$E$7,IF(Nastavení!$D$2='Kalendářní plán'!AD11,Nastavení!$E$2,IF(Nastavení!$D$4='Kalendářní plán'!AD11,Nastavení!$E$4,IF(Nastavení!$D$5='Kalendářní plán'!AD11,Nastavení!$E$5,IF(Nastavení!$D$6='Kalendářní plán'!AD11,Nastavení!$E$6,IF(Nastavení!$D$7='Kalendářní plán'!AD11,Nastavení!$E$7,\"\")))))))))))))))","v":""},null,null,{"$f":"IF(Nastavení!$D$2='Kalendářní plán'!AE11,Nastavení!$E$2,IF(Nastavení!$D$4='Kalendářní plán'!AE11,Nastavení!$E$4,IF(Nastavení!$D$5='Kalendářní plán'!AE11,Nastavení!$E$5,IF(Nastavení!$D$6='Kalendářní plán'!AE11,Nastavení!$E$6,IF(Nastavení!$D$7='Kalendářní plán'!AE11,Nastavení!$E$7,IF(Nastavení!$D$2='Kalendářní plán'!AF11,Nastavení!$E$2,IF(Nastavení!$D$4='Kalendářní plán'!AF11,Nastavení!$E$4,IF(Nastavení!$D$5='Kalendářní plán'!AF11,Nastavení!$E$5,IF(Nastavení!$D$6='Kalendářní plán'!AF11,Nastavení!$E$6,IF(Nastavení!$D$7='Kalendářní plán'!AF11,Nastavení!$E$7,IF(Nastavení!$D$2='Kalendářní plán'!AG11,Nastavení!$E$2,IF(Nastavení!$D$4='Kalendářní plán'!AG11,Nastavení!$E$4,IF(Nastavení!$D$5='Kalendářní plán'!AG11,Nastavení!$E$5,IF(Nastavení!$D$6='Kalendářní plán'!AG11,Nastavení!$E$6,IF(Nastavení!$D$7='Kalendářní plán'!AG11,Nastavení!$E$7,\"\")))))))))))))))","v":""},null,null,{"$f":"IF(Nastavení!$D$2='Kalendářní plán'!AH11,Nastavení!$E$2,IF(Nastavení!$D$4='Kalendářní plán'!AH11,Nastavení!$E$4,IF(Nastavení!$D$5='Kalendářní plán'!AH11,Nastavení!$E$5,IF(Nastavení!$D$6='Kalendářní plán'!AH11,Nastavení!$E$6,IF(Nastavení!$D$7='Kalendářní plán'!AH11,Nastavení!$E$7,IF(Nastavení!$D$2='Kalendářní plán'!AI11,Nastavení!$E$2,IF(Nastavení!$D$4='Kalendářní plán'!AI11,Nastavení!$E$4,IF(Nastavení!$D$5='Kalendářní plán'!AI11,Nastavení!$E$5,IF(Nastavení!$D$6='Kalendářní plán'!AI11,Nastavení!$E$6,IF(Nastavení!$D$7='Kalendářní plán'!AI11,Nastavení!$E$7,IF(Nastavení!$D$2='Kalendářní plán'!AJ11,Nastavení!$E$2,IF(Nastavení!$D$4='Kalendářní plán'!AJ11,Nastavení!$E$4,IF(Nastavení!$D$5='Kalendářní plán'!AJ11,Nastavení!$E$5,IF(Nastavení!$D$6='Kalendářní plán'!AJ11,Nastavení!$E$6,IF(Nastavení!$D$7='Kalendářní plán'!AJ11,Nastavení!$E$7,\"\")))))))))))))))","v":""},null,null,{"$f":"IF(Nastavení!$D$2='Kalendářní plán'!AK11,Nastavení!$E$2,IF(Nastavení!$D$4='Kalendářní plán'!AK11,Nastavení!$E$4,IF(Nastavení!$D$5='Kalendářní plán'!AK11,Nastavení!$E$5,IF(Nastavení!$D$6='Kalendářní plán'!AK11,Nastavení!$E$6,IF(Nastavení!$D$7='Kalendářní plán'!AK11,Nastavení!$E$7,IF(Nastavení!$D$2='Kalendářní plán'!AL11,Nastavení!$E$2,IF(Nastavení!$D$4='Kalendářní plán'!AL11,Nastavení!$E$4,IF(Nastavení!$D$5='Kalendářní plán'!AL11,Nastavení!$E$5,IF(Nastavení!$D$6='Kalendářní plán'!AL11,Nastavení!$E$6,IF(Nastavení!$D$7='Kalendářní plán'!AL11,Nastavení!$E$7,IF(Nastavení!$D$2='Kalendářní plán'!AM11,Nastavení!$E$2,IF(Nastavení!$D$4='Kalendářní plán'!AM11,Nastavení!$E$4,IF(Nastavení!$D$5='Kalendářní plán'!AM11,Nastavení!$E$5,IF(Nastavení!$D$6='Kalendářní plán'!AM11,Nastavení!$E$6,IF(Nastavení!$D$7='Kalendářní plán'!AM11,Nastavení!$E$7,\"\")))))))))))))))","v":""},null,null,{"$f":"IF(Nastavení!$D$2='Kalendářní plán'!AN11,Nastavení!$E$2,IF(Nastavení!$D$4='Kalendářní plán'!AN11,Nastavení!$E$4,IF(Nastavení!$D$5='Kalendářní plán'!AN11,Nastavení!$E$5,IF(Nastavení!$D$6='Kalendářní plán'!AN11,Nastavení!$E$6,IF(Nastavení!$D$7='Kalendářní plán'!AN11,Nastavení!$E$7,IF(Nastavení!$D$2='Kalendářní plán'!AO11,Nastavení!$E$2,IF(Nastavení!$D$4='Kalendářní plán'!AO11,Nastavení!$E$4,IF(Nastavení!$D$5='Kalendářní plán'!AO11,Nastavení!$E$5,IF(Nastavení!$D$6='Kalendářní plán'!AO11,Nastavení!$E$6,IF(Nastavení!$D$7='Kalendářní plán'!AO11,Nastavení!$E$7,IF(Nastavení!$D$2='Kalendářní plán'!AP11,Nastavení!$E$2,IF(Nastavení!$D$4='Kalendářní plán'!AP11,Nastavení!$E$4,IF(Nastavení!$D$5='Kalendářní plán'!AP11,Nastavení!$E$5,IF(Nastavení!$D$6='Kalendářní plán'!AP11,Nastavení!$E$6,IF(Nastavení!$D$7='Kalendářní plán'!AP11,Nastavení!$E$7,\"\")))))))))))))))","v":"smlouva"},null,null,{"$f":"IF(Nastavení!$D$2='Kalendářní plán'!AQ11,Nastavení!$E$2,IF(Nastavení!$D$4='Kalendářní plán'!AQ11,Nastavení!$E$4,IF(Nastavení!$D$5='Kalendářní plán'!AQ11,Nastavení!$E$5,IF(Nastavení!$D$6='Kalendářní plán'!AQ11,Nastavení!$E$6,IF(Nastavení!$D$7='Kalendářní plán'!AQ11,Nastavení!$E$7,IF(Nastavení!$D$2='Kalendářní plán'!AR11,Nastavení!$E$2,IF(Nastavení!$D$4='Kalendářní plán'!AR11,Nastavení!$E$4,IF(Nastavení!$D$5='Kalendářní plán'!AR11,Nastavení!$E$5,IF(Nastavení!$D$6='Kalendářní plán'!AR11,Nastavení!$E$6,IF(Nastavení!$D$7='Kalendářní plán'!AR11,Nastavení!$E$7,IF(Nastavení!$D$2='Kalendářní plán'!AS11,Nastavení!$E$2,IF(Nastavení!$D$4='Kalendářní plán'!AS11,Nastavení!$E$4,IF(Nastavení!$D$5='Kalendářní plán'!AS11,Nastavení!$E$5,IF(Nastavení!$D$6='Kalendářní plán'!AS11,Nastavení!$E$6,IF(Nastavení!$D$7='Kalendářní plán'!AS11,Nastavení!$E$7,\"\")))))))))))))))","v":""},null,null,{"$f":"IF(Nastavení!$D$2='Kalendářní plán'!AT11,Nastavení!$E$2,IF(Nastavení!$D$4='Kalendářní plán'!AT11,Nastavení!$E$4,IF(Nastavení!$D$5='Kalendářní plán'!AT11,Nastavení!$E$5,IF(Nastavení!$D$6='Kalendářní plán'!AT11,Nastavení!$E$6,IF(Nastavení!$D$7='Kalendářní plán'!AT11,Nastavení!$E$7,IF(Nastavení!$D$2='Kalendářní plán'!AU11,Nastavení!$E$2,IF(Nastavení!$D$4='Kalendářní plán'!AU11,Nastavení!$E$4,IF(Nastavení!$D$5='Kalendářní plán'!AU11,Nastavení!$E$5,IF(Nastavení!$D$6='Kalendářní plán'!AU11,Nastavení!$E$6,IF(Nastavení!$D$7='Kalendářní plán'!AU11,Nastavení!$E$7,IF(Nastavení!$D$2='Kalendářní plán'!AV11,Nastavení!$E$2,IF(Nastavení!$D$4='Kalendářní plán'!AV11,Nastavení!$E$4,IF(Nastavení!$D$5='Kalendářní plán'!AV11,Nastavení!$E$5,IF(Nastavení!$D$6='Kalendářní plán'!AV11,Nastavení!$E$6,IF(Nastavení!$D$7='Kalendářní plán'!AV11,Nastavení!$E$7,\"\")))))))))))))))","v":"VZ"},null,null,{"$f":"IF(Nastavení!$D$2='Kalendářní plán'!AW11,Nastavení!$E$2,IF(Nastavení!$D$4='Kalendářní plán'!AW11,Nastavení!$E$4,IF(Nastavení!$D$5='Kalendářní plán'!AW11,Nastavení!$E$5,IF(Nastavení!$D$6='Kalendářní plán'!AW11,Nastavení!$E$6,IF(Nastavení!$D$7='Kalendářní plán'!AW11,Nastavení!$E$7,IF(Nastavení!$D$2='Kalendářní plán'!AX11,Nastavení!$E$2,IF(Nastavení!$D$4='Kalendářní plán'!AX11,Nastavení!$E$4,IF(Nastavení!$D$5='Kalendářní plán'!AX11,Nastavení!$E$5,IF(Nastavení!$D$6='Kalendářní plán'!AX11,Nastavení!$E$6,IF(Nastavení!$D$7='Kalendářní plán'!AX11,Nastavení!$E$7,IF(Nastavení!$D$2='Kalendářní plán'!AY11,Nastavení!$E$2,IF(Nastavení!$D$4='Kalendářní plán'!AY11,Nastavení!$E$4,IF(Nastavení!$D$5='Kalendářní plán'!AY11,Nastavení!$E$5,IF(Nastavení!$D$6='Kalendářní plán'!AY11,Nastavení!$E$6,IF(Nastavení!$D$7='Kalendářní plán'!AY11,Nastavení!$E$7,\"\")))))))))))))))","v":""},null,null,{"$f":"IF(Nastavení!$D$2='Kalendářní plán'!AZ11,Nastavení!$E$2,IF(Nastavení!$D$4='Kalendářní plán'!AZ11,Nastavení!$E$4,IF(Nastavení!$D$5='Kalendářní plán'!AZ11,Nastavení!$E$5,IF(Nastavení!$D$6='Kalendářní plán'!AZ11,Nastavení!$E$6,IF(Nastavení!$D$7='Kalendářní plán'!AZ11,Nastavení!$E$7,IF(Nastavení!$D$2='Kalendářní plán'!BA11,Nastavení!$E$2,IF(Nastavení!$D$4='Kalendářní plán'!BA11,Nastavení!$E$4,IF(Nastavení!$D$5='Kalendářní plán'!BA11,Nastavení!$E$5,IF(Nastavení!$D$6='Kalendářní plán'!BA11,Nastavení!$E$6,IF(Nastavení!$D$7='Kalendářní plán'!BA11,Nastavení!$E$7,IF(Nastavení!$D$2='Kalendářní plán'!BB11,Nastavení!$E$2,IF(Nastavení!$D$4='Kalendářní plán'!BB11,Nastavení!$E$4,IF(Nastavení!$D$5='Kalendářní plán'!BB11,Nastavení!$E$5,IF(Nastavení!$D$6='Kalendářní plán'!BB11,Nastavení!$E$6,IF(Nastavení!$D$7='Kalendářní plán'!BB11,Nastavení!$E$7,\"\")))))))))))))))","v":"IOC"},null,null,{"$f":"IF(Nastavení!$D$2='Kalendářní plán'!BC11,Nastavení!$E$2,IF(Nastavení!$D$4='Kalendářní plán'!BC11,Nastavení!$E$4,IF(Nastavení!$D$5='Kalendářní plán'!BC11,Nastavení!$E$5,IF(Nastavení!$D$6='Kalendářní plán'!BC11,Nastavení!$E$6,IF(Nastavení!$D$7='Kalendářní plán'!BC11,Nastavení!$E$7,IF(Nastavení!$D$2='Kalendářní plán'!BD11,Nastavení!$E$2,IF(Nastavení!$D$4='Kalendářní plán'!BD11,Nastavení!$E$4,IF(Nastavení!$D$5='Kalendářní plán'!BD11,Nastavení!$E$5,IF(Nastavení!$D$6='Kalendářní plán'!BD11,Nastavení!$E$6,IF(Nastavení!$D$7='Kalendářní plán'!BD11,Nastavení!$E$7,IF(Nastavení!$D$2='Kalendářní plán'!BE11,Nastavení!$E$2,IF(Nastavení!$D$4='Kalendářní plán'!BE11,Nastavení!$E$4,IF(Nastavení!$D$5='Kalendářní plán'!BE11,Nastavení!$E$5,IF(Nastavení!$D$6='Kalendářní plán'!BE11,Nastavení!$E$6,IF(Nastavení!$D$7='Kalendářní plán'!BE11,Nastavení!$E$7,\"\")))))))))))))))","v":""},null,null,{"$f":"IF(Nastavení!$D$2='Kalendářní plán'!BF11,Nastavení!$E$2,IF(Nastavení!$D$4='Kalendářní plán'!BF11,Nastavení!$E$4,IF(Nastavení!$D$5='Kalendářní plán'!BF11,Nastavení!$E$5,IF(Nastavení!$D$6='Kalendářní plán'!BF11,Nastavení!$E$6,IF(Nastavení!$D$7='Kalendářní plán'!BF11,Nastavení!$E$7,IF(Nastavení!$D$2='Kalendářní plán'!BG11,Nastavení!$E$2,IF(Nastavení!$D$4='Kalendářní plán'!BG11,Nastavení!$E$4,IF(Nastavení!$D$5='Kalendářní plán'!BG11,Nastavení!$E$5,IF(Nastavení!$D$6='Kalendářní plán'!BG11,Nastavení!$E$6,IF(Nastavení!$D$7='Kalendářní plán'!BG11,Nastavení!$E$7,IF(Nastavení!$D$2='Kalendářní plán'!BH11,Nastavení!$E$2,IF(Nastavení!$D$4='Kalendářní plán'!BH11,Nastavení!$E$4,IF(Nastavení!$D$5='Kalendářní plán'!BH11,Nastavení!$E$5,IF(Nastavení!$D$6='Kalendářní plán'!BH11,Nastavení!$E$6,IF(Nastavení!$D$7='Kalendářní plán'!BH11,Nastavení!$E$7,\"\")))))))))))))))","v":"FOC"},null,null,{"$f":"IF(Nastavení!$D$2='Kalendářní plán'!BI11,Nastavení!$E$2,IF(Nastavení!$D$4='Kalendářní plán'!BI11,Nastavení!$E$4,IF(Nastavení!$D$5='Kalendářní plán'!BI11,Nastavení!$E$5,IF(Nastavení!$D$6='Kalendářní plán'!BI11,Nastavení!$E$6,IF(Nastavení!$D$7='Kalendářní plán'!BI11,Nastavení!$E$7,IF(Nastavení!$D$2='Kalendářní plán'!BJ11,Nastavení!$E$2,IF(Nastavení!$D$4='Kalendářní plán'!BJ11,Nastavení!$E$4,IF(Nastavení!$D$5='Kalendářní plán'!BJ11,Nastavení!$E$5,IF(Nastavení!$D$6='Kalendářní plán'!BJ11,Nastavení!$E$6,IF(Nastavení!$D$7='Kalendářní plán'!BJ11,Nastavení!$E$7,IF(Nastavení!$D$2='Kalendářní plán'!BK11,Nastavení!$E$2,IF(Nastavení!$D$4='Kalendářní plán'!BK11,Nastavení!$E$4,IF(Nastavení!$D$5='Kalendářní plán'!BK11,Nastavení!$E$5,IF(Nastavení!$D$6='Kalendářní plán'!BK11,Nastavení!$E$6,IF(Nastavení!$D$7='Kalendářní plán'!BK11,Nastavení!$E$7,\"\")))))))))))))))","v":""},null,null,{"$f":"IF(Nastavení!$D$2='Kalendářní plán'!BL11,Nastavení!$E$2,IF(Nastavení!$D$4='Kalendářní plán'!BL11,Nastavení!$E$4,IF(Nastavení!$D$5='Kalendářní plán'!BL11,Nastavení!$E$5,IF(Nastavení!$D$6='Kalendářní plán'!BL11,Nastavení!$E$6,IF(Nastavení!$D$7='Kalendářní plán'!BL11,Nastavení!$E$7,IF(Nastavení!$D$2='Kalendářní plán'!BM11,Nastavení!$E$2,IF(Nastavení!$D$4='Kalendářní plán'!BM11,Nastavení!$E$4,IF(Nastavení!$D$5='Kalendářní plán'!BM11,Nastavení!$E$5,IF(Nastavení!$D$6='Kalendářní plán'!BM11,Nastavení!$E$6,IF(Nastavení!$D$7='Kalendářní plán'!BM11,Nastavení!$E$7,IF(Nastavení!$D$2='Kalendářní plán'!BN11,Nastavení!$E$2,IF(Nastavení!$D$4='Kalendářní plán'!BN11,Nastavení!$E$4,IF(Nastavení!$D$5='Kalendářní plán'!BN11,Nastavení!$E$5,IF(Nastavení!$D$6='Kalendářní plán'!BN11,Nastavení!$E$6,IF(Nastavení!$D$7='Kalendářní plán'!BN11,Nastavení!$E$7,\"\")))))))))))))))","v":""},null,null,{"$f":"IF(Nastavení!$D$2='Kalendářní plán'!BO11,Nastavení!$E$2,IF(Nastavení!$D$4='Kalendářní plán'!BO11,Nastavení!$E$4,IF(Nastavení!$D$5='Kalendářní plán'!BO11,Nastavení!$E$5,IF(Nastavení!$D$6='Kalendářní plán'!BO11,Nastavení!$E$6,IF(Nastavení!$D$7='Kalendářní plán'!BO11,Nastavení!$E$7,IF(Nastavení!$D$2='Kalendářní plán'!BP11,Nastavení!$E$2,IF(Nastavení!$D$4='Kalendářní plán'!BP11,Nastavení!$E$4,IF(Nastavení!$D$5='Kalendářní plán'!BP11,Nastavení!$E$5,IF(Nastavení!$D$6='Kalendářní plán'!BP11,Nastavení!$E$6,IF(Nastavení!$D$7='Kalendářní plán'!BP11,Nastavení!$E$7,IF(Nastavení!$D$2='Kalendářní plán'!BQ11,Nastavení!$E$2,IF(Nastavení!$D$4='Kalendářní plán'!BQ11,Nastavení!$E$4,IF(Nastavení!$D$5='Kalendářní plán'!BQ11,Nastavení!$E$5,IF(Nastavení!$D$6='Kalendářní plán'!BQ11,Nastavení!$E$6,IF(Nastavení!$D$7='Kalendářní plán'!BQ11,Nastavení!$E$7,\"\")))))))))))))))","v":""},null,null,{"$f":"IF(Nastavení!$D$2='Kalendářní plán'!BR11,Nastavení!$E$2,IF(Nastavení!$D$4='Kalendářní plán'!BR11,Nastavení!$E$4,IF(Nastavení!$D$5='Kalendářní plán'!BR11,Nastavení!$E$5,IF(Nastavení!$D$6='Kalendářní plán'!BR11,Nastavení!$E$6,IF(Nastavení!$D$7='Kalendářní plán'!BR11,Nastavení!$E$7,IF(Nastavení!$D$2='Kalendářní plán'!BS11,Nastavení!$E$2,IF(Nastavení!$D$4='Kalendářní plán'!BS11,Nastavení!$E$4,IF(Nastavení!$D$5='Kalendářní plán'!BS11,Nastavení!$E$5,IF(Nastavení!$D$6='Kalendářní plán'!BS11,Nastavení!$E$6,IF(Nastavení!$D$7='Kalendářní plán'!BS11,Nastavení!$E$7,IF(Nastavení!$D$2='Kalendářní plán'!BT11,Nastavení!$E$2,IF(Nastavení!$D$4='Kalendářní plán'!BT11,Nastavení!$E$4,IF(Nastavení!$D$5='Kalendářní plán'!BT11,Nastavení!$E$5,IF(Nastavení!$D$6='Kalendářní plán'!BT11,Nastavení!$E$6,IF(Nastavení!$D$7='Kalendářní plán'!BT11,Nastavení!$E$7,\"\")))))))))))))))","v":""},null,null,{"$f":"IF(Nastavení!$D$2='Kalendářní plán'!BU11,Nastavení!$E$2,IF(Nastavení!$D$4='Kalendářní plán'!BU11,Nastavení!$E$4,IF(Nastavení!$D$5='Kalendářní plán'!BU11,Nastavení!$E$5,IF(Nastavení!$D$6='Kalendářní plán'!BU11,Nastavení!$E$6,IF(Nastavení!$D$7='Kalendářní plán'!BU11,Nastavení!$E$7,IF(Nastavení!$D$2='Kalendářní plán'!BV11,Nastavení!$E$2,IF(Nastavení!$D$4='Kalendářní plán'!BV11,Nastavení!$E$4,IF(Nastavení!$D$5='Kalendářní plán'!BV11,Nastavení!$E$5,IF(Nastavení!$D$6='Kalendářní plán'!BV11,Nastavení!$E$6,IF(Nastavení!$D$7='Kalendářní plán'!BV11,Nastavení!$E$7,IF(Nastavení!$D$2='Kalendářní plán'!BW11,Nastavení!$E$2,IF(Nastavení!$D$4='Kalendářní plán'!BW11,Nastavení!$E$4,IF(Nastavení!$D$5='Kalendářní plán'!BW11,Nastavení!$E$5,IF(Nastavení!$D$6='Kalendářní plán'!BW11,Nastavení!$E$6,IF(Nastavení!$D$7='Kalendářní plán'!BW11,Nastavení!$E$7,\"\")))))))))))))))","v":""},null,null,{"$f":"IF(Nastavení!$D$2='Kalendářní plán'!BX11,Nastavení!$E$2,IF(Nastavení!$D$4='Kalendářní plán'!BX11,Nastavení!$E$4,IF(Nastavení!$D$5='Kalendářní plán'!BX11,Nastavení!$E$5,IF(Nastavení!$D$6='Kalendářní plán'!BX11,Nastavení!$E$6,IF(Nastavení!$D$7='Kalendářní plán'!BX11,Nastavení!$E$7,IF(Nastavení!$D$2='Kalendářní plán'!BY11,Nastavení!$E$2,IF(Nastavení!$D$4='Kalendářní plán'!BY11,Nastavení!$E$4,IF(Nastavení!$D$5='Kalendářní plán'!BY11,Nastavení!$E$5,IF(Nastavení!$D$6='Kalendářní plán'!BY11,Nastavení!$E$6,IF(Nastavení!$D$7='Kalendářní plán'!BY11,Nastavení!$E$7,IF(Nastavení!$D$2='Kalendářní plán'!BZ11,Nastavení!$E$2,IF(Nastavení!$D$4='Kalendářní plán'!BZ11,Nastavení!$E$4,IF(Nastavení!$D$5='Kalendářní plán'!BZ11,Nastavení!$E$5,IF(Nastavení!$D$6='Kalendářní plán'!BZ11,Nastavení!$E$6,IF(Nastavení!$D$7='Kalendářní plán'!BZ11,Nastavení!$E$7,\"\")))))))))))))))","v":""},null,null,{"$f":"IF(Nastavení!$D$2='Kalendářní plán'!CA11,Nastavení!$E$2,IF(Nastavení!$D$4='Kalendářní plán'!CA11,Nastavení!$E$4,IF(Nastavení!$D$5='Kalendářní plán'!CA11,Nastavení!$E$5,IF(Nastavení!$D$6='Kalendářní plán'!CA11,Nastavení!$E$6,IF(Nastavení!$D$7='Kalendářní plán'!CA11,Nastavení!$E$7,IF(Nastavení!$D$2='Kalendářní plán'!CB11,Nastavení!$E$2,IF(Nastavení!$D$4='Kalendářní plán'!CB11,Nastavení!$E$4,IF(Nastavení!$D$5='Kalendářní plán'!CB11,Nastavení!$E$5,IF(Nastavení!$D$6='Kalendářní plán'!CB11,Nastavení!$E$6,IF(Nastavení!$D$7='Kalendářní plán'!CB11,Nastavení!$E$7,IF(Nastavení!$D$2='Kalendářní plán'!CC11,Nastavení!$E$2,IF(Nastavení!$D$4='Kalendářní plán'!CC11,Nastavení!$E$4,IF(Nastavení!$D$5='Kalendářní plán'!CC11,Nastavení!$E$5,IF(Nastavení!$D$6='Kalendářní plán'!CC11,Nastavení!$E$6,IF(Nastavení!$D$7='Kalendářní plán'!CC11,Nastavení!$E$7,\"\")))))))))))))))","v":""},null,null,{"$f":"IF(Nastavení!$D$2='Kalendářní plán'!CD11,Nastavení!$E$2,IF(Nastavení!$D$4='Kalendářní plán'!CD11,Nastavení!$E$4,IF(Nastavení!$D$5='Kalendářní plán'!CD11,Nastavení!$E$5,IF(Nastavení!$D$6='Kalendářní plán'!CD11,Nastavení!$E$6,IF(Nastavení!$D$7='Kalendářní plán'!CD11,Nastavení!$E$7,IF(Nastavení!$D$2='Kalendářní plán'!CE11,Nastavení!$E$2,IF(Nastavení!$D$4='Kalendářní plán'!CE11,Nastavení!$E$4,IF(Nastavení!$D$5='Kalendářní plán'!CE11,Nastavení!$E$5,IF(Nastavení!$D$6='Kalendářní plán'!CE11,Nastavení!$E$6,IF(Nastavení!$D$7='Kalendářní plán'!CE11,Nastavení!$E$7,IF(Nastavení!$D$2='Kalendářní plán'!CF11,Nastavení!$E$2,IF(Nastavení!$D$4='Kalendářní plán'!CF11,Nastavení!$E$4,IF(Nastavení!$D$5='Kalendářní plán'!CF11,Nastavení!$E$5,IF(Nastavení!$D$6='Kalendářní plán'!CF11,Nastavení!$E$6,IF(Nastavení!$D$7='Kalendářní plán'!CF11,Nastavení!$E$7,\"\")))))))))))))))","v":""},null,null,{"$f":"IF(Nastavení!$D$2='Kalendářní plán'!CG11,Nastavení!$E$2,IF(Nastavení!$D$4='Kalendářní plán'!CG11,Nastavení!$E$4,IF(Nastavení!$D$5='Kalendářní plán'!CG11,Nastavení!$E$5,IF(Nastavení!$D$6='Kalendářní plán'!CG11,Nastavení!$E$6,IF(Nastavení!$D$7='Kalendářní plán'!CG11,Nastavení!$E$7,IF(Nastavení!$D$2='Kalendářní plán'!CH11,Nastavení!$E$2,IF(Nastavení!$D$4='Kalendářní plán'!CH11,Nastavení!$E$4,IF(Nastavení!$D$5='Kalendářní plán'!CH11,Nastavení!$E$5,IF(Nastavení!$D$6='Kalendářní plán'!CH11,Nastavení!$E$6,IF(Nastavení!$D$7='Kalendářní plán'!CH11,Nastavení!$E$7,IF(Nastavení!$D$2='Kalendářní plán'!CI11,Nastavení!$E$2,IF(Nastavení!$D$4='Kalendářní plán'!CI11,Nastavení!$E$4,IF(Nastavení!$D$5='Kalendářní plán'!CI11,Nastavení!$E$5,IF(Nastavení!$D$6='Kalendářní plán'!CI11,Nastavení!$E$6,IF(Nastavení!$D$7='Kalendářní plán'!CI11,Nastavení!$E$7,\"\")))))))))))))))","v":""},null,null,{"$f":"IF(Nastavení!$D$2='Kalendářní plán'!CJ11,Nastavení!$E$2,IF(Nastavení!$D$4='Kalendářní plán'!CJ11,Nastavení!$E$4,IF(Nastavení!$D$5='Kalendářní plán'!CJ11,Nastavení!$E$5,IF(Nastavení!$D$6='Kalendářní plán'!CJ11,Nastavení!$E$6,IF(Nastavení!$D$7='Kalendářní plán'!CJ11,Nastavení!$E$7,IF(Nastavení!$D$2='Kalendářní plán'!CK11,Nastavení!$E$2,IF(Nastavení!$D$4='Kalendářní plán'!CK11,Nastavení!$E$4,IF(Nastavení!$D$5='Kalendářní plán'!CK11,Nastavení!$E$5,IF(Nastavení!$D$6='Kalendářní plán'!CK11,Nastavení!$E$6,IF(Nastavení!$D$7='Kalendářní plán'!CK11,Nastavení!$E$7,IF(Nastavení!$D$2='Kalendářní plán'!CL11,Nastavení!$E$2,IF(Nastavení!$D$4='Kalendářní plán'!CL11,Nastavení!$E$4,IF(Nastavení!$D$5='Kalendářní plán'!CL11,Nastavení!$E$5,IF(Nastavení!$D$6='Kalendářní plán'!CL11,Nastavení!$E$6,IF(Nastavení!$D$7='Kalendářní plán'!CL11,Nastavení!$E$7,\"\")))))))))))))))","v":""},null,null,{"$f":"IF(Nastavení!$D$2='Kalendářní plán'!CM11,Nastavení!$E$2,IF(Nastavení!$D$4='Kalendářní plán'!CM11,Nastavení!$E$4,IF(Nastavení!$D$5='Kalendářní plán'!CM11,Nastavení!$E$5,IF(Nastavení!$D$6='Kalendářní plán'!CM11,Nastavení!$E$6,IF(Nastavení!$D$7='Kalendářní plán'!CM11,Nastavení!$E$7,IF(Nastavení!$D$2='Kalendářní plán'!CN11,Nastavení!$E$2,IF(Nastavení!$D$4='Kalendářní plán'!CN11,Nastavení!$E$4,IF(Nastavení!$D$5='Kalendářní plán'!CN11,Nastavení!$E$5,IF(Nastavení!$D$6='Kalendářní plán'!CN11,Nastavení!$E$6,IF(Nastavení!$D$7='Kalendářní plán'!CN11,Nastavení!$E$7,IF(Nastavení!$D$2='Kalendářní plán'!CO11,Nastavení!$E$2,IF(Nastavení!$D$4='Kalendářní plán'!CO11,Nastavení!$E$4,IF(Nastavení!$D$5='Kalendářní plán'!CO11,Nastavení!$E$5,IF(Nastavení!$D$6='Kalendářní plán'!CO11,Nastavení!$E$6,IF(Nastavení!$D$7='Kalendářní plán'!CO11,Nastavení!$E$7,\"\")))))))))))))))","v":""},null,null,{"$f":"IF(Nastavení!$D$2='Kalendářní plán'!CP11,Nastavení!$E$2,IF(Nastavení!$D$4='Kalendářní plán'!CP11,Nastavení!$E$4,IF(Nastavení!$D$5='Kalendářní plán'!CP11,Nastavení!$E$5,IF(Nastavení!$D$6='Kalendářní plán'!CP11,Nastavení!$E$6,IF(Nastavení!$D$7='Kalendářní plán'!CP11,Nastavení!$E$7,IF(Nastavení!$D$2='Kalendářní plán'!CQ11,Nastavení!$E$2,IF(Nastavení!$D$4='Kalendářní plán'!CQ11,Nastavení!$E$4,IF(Nastavení!$D$5='Kalendářní plán'!CQ11,Nastavení!$E$5,IF(Nastavení!$D$6='Kalendářní plán'!CQ11,Nastavení!$E$6,IF(Nastavení!$D$7='Kalendářní plán'!CQ11,Nastavení!$E$7,IF(Nastavení!$D$2='Kalendářní plán'!CR11,Nastavení!$E$2,IF(Nastavení!$D$4='Kalendářní plán'!CR11,Nastavení!$E$4,IF(Nastavení!$D$5='Kalendářní plán'!CR11,Nastavení!$E$5,IF(Nastavení!$D$6='Kalendářní plán'!CR11,Nastavení!$E$6,IF(Nastavení!$D$7='Kalendářní plán'!CR11,Nastavení!$E$7,\"\")))))))))))))))","v":""},null,null,{"$f":"IF(Nastavení!$D$2='Kalendářní plán'!CS11,Nastavení!$E$2,IF(Nastavení!$D$4='Kalendářní plán'!CS11,Nastavení!$E$4,IF(Nastavení!$D$5='Kalendářní plán'!CS11,Nastavení!$E$5,IF(Nastavení!$D$6='Kalendářní plán'!CS11,Nastavení!$E$6,IF(Nastavení!$D$7='Kalendářní plán'!CS11,Nastavení!$E$7,IF(Nastavení!$D$2='Kalendářní plán'!CT11,Nastavení!$E$2,IF(Nastavení!$D$4='Kalendářní plán'!CT11,Nastavení!$E$4,IF(Nastavení!$D$5='Kalendářní plán'!CT11,Nastavení!$E$5,IF(Nastavení!$D$6='Kalendářní plán'!CT11,Nastavení!$E$6,IF(Nastavení!$D$7='Kalendářní plán'!CT11,Nastavení!$E$7,IF(Nastavení!$D$2='Kalendářní plán'!CU11,Nastavení!$E$2,IF(Nastavení!$D$4='Kalendářní plán'!CU11,Nastavení!$E$4,IF(Nastavení!$D$5='Kalendářní plán'!CU11,Nastavení!$E$5,IF(Nastavení!$D$6='Kalendářní plán'!CU11,Nastavení!$E$6,IF(Nastavení!$D$7='Kalendářní plán'!CU11,Nastavení!$E$7,\"\")))))))))))))))","v":""},null,null,{"$f":"IF(Nastavení!$D$2='Kalendářní plán'!CV11,Nastavení!$E$2,IF(Nastavení!$D$4='Kalendářní plán'!CV11,Nastavení!$E$4,IF(Nastavení!$D$5='Kalendářní plán'!CV11,Nastavení!$E$5,IF(Nastavení!$D$6='Kalendářní plán'!CV11,Nastavení!$E$6,IF(Nastavení!$D$7='Kalendářní plán'!CV11,Nastavení!$E$7,IF(Nastavení!$D$2='Kalendářní plán'!CW11,Nastavení!$E$2,IF(Nastavení!$D$4='Kalendářní plán'!CW11,Nastavení!$E$4,IF(Nastavení!$D$5='Kalendářní plán'!CW11,Nastavení!$E$5,IF(Nastavení!$D$6='Kalendářní plán'!CW11,Nastavení!$E$6,IF(Nastavení!$D$7='Kalendářní plán'!CW11,Nastavení!$E$7,IF(Nastavení!$D$2='Kalendářní plán'!CX11,Nastavení!$E$2,IF(Nastavení!$D$4='Kalendářní plán'!CX11,Nastavení!$E$4,IF(Nastavení!$D$5='Kalendářní plán'!CX11,Nastavení!$E$5,IF(Nastavení!$D$6='Kalendářní plán'!CX11,Nastavení!$E$6,IF(Nastavení!$D$7='Kalendářní plán'!CX11,Nastavení!$E$7,\"\")))))))))))))))","v":""},null,null,{"$f":"IF(Nastavení!$D$2='Kalendářní plán'!CY11,Nastavení!$E$2,IF(Nastavení!$D$4='Kalendářní plán'!CY11,Nastavení!$E$4,IF(Nastavení!$D$5='Kalendářní plán'!CY11,Nastavení!$E$5,IF(Nastavení!$D$6='Kalendářní plán'!CY11,Nastavení!$E$6,IF(Nastavení!$D$7='Kalendářní plán'!CY11,Nastavení!$E$7,IF(Nastavení!$D$2='Kalendářní plán'!CZ11,Nastavení!$E$2,IF(Nastavení!$D$4='Kalendářní plán'!CZ11,Nastavení!$E$4,IF(Nastavení!$D$5='Kalendářní plán'!CZ11,Nastavení!$E$5,IF(Nastavení!$D$6='Kalendářní plán'!CZ11,Nastavení!$E$6,IF(Nastavení!$D$7='Kalendářní plán'!CZ11,Nastavení!$E$7,IF(Nastavení!$D$2='Kalendářní plán'!DA11,Nastavení!$E$2,IF(Nastavení!$D$4='Kalendářní plán'!DA11,Nastavení!$E$4,IF(Nastavení!$D$5='Kalendářní plán'!DA11,Nastavení!$E$5,IF(Nastavení!$D$6='Kalendářní plán'!DA11,Nastavení!$E$6,IF(Nastavení!$D$7='Kalendářní plán'!DA11,Nastavení!$E$7,\"\")))))))))))))))","v":""},null,null,{"$f":"IF(Nastavení!$D$2='Kalendářní plán'!DB11,Nastavení!$E$2,IF(Nastavení!$D$4='Kalendářní plán'!DB11,Nastavení!$E$4,IF(Nastavení!$D$5='Kalendářní plán'!DB11,Nastavení!$E$5,IF(Nastavení!$D$6='Kalendářní plán'!DB11,Nastavení!$E$6,IF(Nastavení!$D$7='Kalendářní plán'!DB11,Nastavení!$E$7,IF(Nastavení!$D$2='Kalendářní plán'!DC11,Nastavení!$E$2,IF(Nastavení!$D$4='Kalendářní plán'!DC11,Nastavení!$E$4,IF(Nastavení!$D$5='Kalendářní plán'!DC11,Nastavení!$E$5,IF(Nastavení!$D$6='Kalendářní plán'!DC11,Nastavení!$E$6,IF(Nastavení!$D$7='Kalendářní plán'!DC11,Nastavení!$E$7,IF(Nastavení!$D$2='Kalendářní plán'!DD11,Nastavení!$E$2,IF(Nastavení!$D$4='Kalendářní plán'!DD11,Nastavení!$E$4,IF(Nastavení!$D$5='Kalendářní plán'!DD11,Nastavení!$E$5,IF(Nastavení!$D$6='Kalendářní plán'!DD11,Nastavení!$E$6,IF(Nastavení!$D$7='Kalendářní plán'!DD11,Nastavení!$E$7,\"\")))))))))))))))","v":""},null,null,{"$f":"IF(Nastavení!$D$2='Kalendářní plán'!DE11,Nastavení!$E$2,IF(Nastavení!$D$4='Kalendářní plán'!DE11,Nastavení!$E$4,IF(Nastavení!$D$5='Kalendářní plán'!DE11,Nastavení!$E$5,IF(Nastavení!$D$6='Kalendářní plán'!DE11,Nastavení!$E$6,IF(Nastavení!$D$7='Kalendářní plán'!DE11,Nastavení!$E$7,IF(Nastavení!$D$2='Kalendářní plán'!DF11,Nastavení!$E$2,IF(Nastavení!$D$4='Kalendářní plán'!DF11,Nastavení!$E$4,IF(Nastavení!$D$5='Kalendářní plán'!DF11,Nastavení!$E$5,IF(Nastavení!$D$6='Kalendářní plán'!DF11,Nastavení!$E$6,IF(Nastavení!$D$7='Kalendářní plán'!DF11,Nastavení!$E$7,IF(Nastavení!$D$2='Kalendářní plán'!DG11,Nastavení!$E$2,IF(Nastavení!$D$4='Kalendářní plán'!DG11,Nastavení!$E$4,IF(Nastavení!$D$5='Kalendářní plán'!DG11,Nastavení!$E$5,IF(Nastavení!$D$6='Kalendářní plán'!DG11,Nastavení!$E$6,IF(Nastavení!$D$7='Kalendářní plán'!DG11,Nastavení!$E$7,\"\")))))))))))))))","v":""},null,null,{"$f":"IF(Nastavení!$D$2='Kalendářní plán'!DH11,Nastavení!$E$2,IF(Nastavení!$D$4='Kalendářní plán'!DH11,Nastavení!$E$4,IF(Nastavení!$D$5='Kalendářní plán'!DH11,Nastavení!$E$5,IF(Nastavení!$D$6='Kalendářní plán'!DH11,Nastavení!$E$6,IF(Nastavení!$D$7='Kalendářní plán'!DH11,Nastavení!$E$7,IF(Nastavení!$D$2='Kalendářní plán'!DI11,Nastavení!$E$2,IF(Nastavení!$D$4='Kalendářní plán'!DI11,Nastavení!$E$4,IF(Nastavení!$D$5='Kalendářní plán'!DI11,Nastavení!$E$5,IF(Nastavení!$D$6='Kalendářní plán'!DI11,Nastavení!$E$6,IF(Nastavení!$D$7='Kalendářní plán'!DI11,Nastavení!$E$7,IF(Nastavení!$D$2='Kalendářní plán'!DJ11,Nastavení!$E$2,IF(Nastavení!$D$4='Kalendářní plán'!DJ11,Nastavení!$E$4,IF(Nastavení!$D$5='Kalendářní plán'!DJ11,Nastavení!$E$5,IF(Nastavení!$D$6='Kalendářní plán'!DJ11,Nastavení!$E$6,IF(Nastavení!$D$7='Kalendářní plán'!DJ11,Nastavení!$E$7,\"\")))))))))))))))","v":""},null,null,{"$f":"IF(Nastavení!$D$2='Kalendářní plán'!DK11,Nastavení!$E$2,IF(Nastavení!$D$4='Kalendářní plán'!DK11,Nastavení!$E$4,IF(Nastavení!$D$5='Kalendářní plán'!DK11,Nastavení!$E$5,IF(Nastavení!$D$6='Kalendářní plán'!DK11,Nastavení!$E$6,IF(Nastavení!$D$7='Kalendářní plán'!DK11,Nastavení!$E$7,IF(Nastavení!$D$2='Kalendářní plán'!DL11,Nastavení!$E$2,IF(Nastavení!$D$4='Kalendářní plán'!DL11,Nastavení!$E$4,IF(Nastavení!$D$5='Kalendářní plán'!DL11,Nastavení!$E$5,IF(Nastavení!$D$6='Kalendářní plán'!DL11,Nastavení!$E$6,IF(Nastavení!$D$7='Kalendářní plán'!DL11,Nastavení!$E$7,IF(Nastavení!$D$2='Kalendářní plán'!DM11,Nastavení!$E$2,IF(Nastavení!$D$4='Kalendářní plán'!DM11,Nastavení!$E$4,IF(Nastavení!$D$5='Kalendářní plán'!DM11,Nastavení!$E$5,IF(Nastavení!$D$6='Kalendářní plán'!DM11,Nastavení!$E$6,IF(Nastavení!$D$7='Kalendářní plán'!DM11,Nastavení!$E$7,\"\")))))))))))))))","v":""},null,null,{"$f":"IF(Nastavení!$D$2='Kalendářní plán'!DN11,Nastavení!$E$2,IF(Nastavení!$D$4='Kalendářní plán'!DN11,Nastavení!$E$4,IF(Nastavení!$D$5='Kalendářní plán'!DN11,Nastavení!$E$5,IF(Nastavení!$D$6='Kalendářní plán'!DN11,Nastavení!$E$6,IF(Nastavení!$D$7='Kalendářní plán'!DN11,Nastavení!$E$7,IF(Nastavení!$D$2='Kalendářní plán'!DO11,Nastavení!$E$2,IF(Nastavení!$D$4='Kalendářní plán'!DO11,Nastavení!$E$4,IF(Nastavení!$D$5='Kalendářní plán'!DO11,Nastavení!$E$5,IF(Nastavení!$D$6='Kalendářní plán'!DO11,Nastavení!$E$6,IF(Nastavení!$D$7='Kalendářní plán'!DO11,Nastavení!$E$7,IF(Nastavení!$D$2='Kalendářní plán'!DP11,Nastavení!$E$2,IF(Nastavení!$D$4='Kalendářní plán'!DP11,Nastavení!$E$4,IF(Nastavení!$D$5='Kalendářní plán'!DP11,Nastavení!$E$5,IF(Nastavení!$D$6='Kalendářní plán'!DP11,Nastavení!$E$6,IF(Nastavení!$D$7='Kalendářní plán'!DP11,Nastavení!$E$7,\"\")))))))))))))))","v":""},null,null,{"$f":"IF(Nastavení!$D$2='Kalendářní plán'!DQ11,Nastavení!$E$2,IF(Nastavení!$D$4='Kalendářní plán'!DQ11,Nastavení!$E$4,IF(Nastavení!$D$5='Kalendářní plán'!DQ11,Nastavení!$E$5,IF(Nastavení!$D$6='Kalendářní plán'!DQ11,Nastavení!$E$6,IF(Nastavení!$D$7='Kalendářní plán'!DQ11,Nastavení!$E$7,IF(Nastavení!$D$2='Kalendářní plán'!DR11,Nastavení!$E$2,IF(Nastavení!$D$4='Kalendářní plán'!DR11,Nastavení!$E$4,IF(Nastavení!$D$5='Kalendářní plán'!DR11,Nastavení!$E$5,IF(Nastavení!$D$6='Kalendářní plán'!DR11,Nastavení!$E$6,IF(Nastavení!$D$7='Kalendářní plán'!DR11,Nastavení!$E$7,IF(Nastavení!$D$2='Kalendářní plán'!DS11,Nastavení!$E$2,IF(Nastavení!$D$4='Kalendářní plán'!DS11,Nastavení!$E$4,IF(Nastavení!$D$5='Kalendářní plán'!DS11,Nastavení!$E$5,IF(Nastavení!$D$6='Kalendářní plán'!DS11,Nastavení!$E$6,IF(Nastavení!$D$7='Kalendářní plán'!DS11,Nastavení!$E$7,\"\")))))))))))))))","v":""},null,null,{"$f":"IF(Nastavení!$D$2='Kalendářní plán'!DT11,Nastavení!$E$2,IF(Nastavení!$D$4='Kalendářní plán'!DT11,Nastavení!$E$4,IF(Nastavení!$D$5='Kalendářní plán'!DT11,Nastavení!$E$5,IF(Nastavení!$D$6='Kalendářní plán'!DT11,Nastavení!$E$6,IF(Nastavení!$D$7='Kalendářní plán'!DT11,Nastavení!$E$7,IF(Nastavení!$D$2='Kalendářní plán'!DU11,Nastavení!$E$2,IF(Nastavení!$D$4='Kalendářní plán'!DU11,Nastavení!$E$4,IF(Nastavení!$D$5='Kalendářní plán'!DU11,Nastavení!$E$5,IF(Nastavení!$D$6='Kalendářní plán'!DU11,Nastavení!$E$6,IF(Nastavení!$D$7='Kalendářní plán'!DU11,Nastavení!$E$7,IF(Nastavení!$D$2='Kalendářní plán'!DV11,Nastavení!$E$2,IF(Nastavení!$D$4='Kalendářní plán'!DV11,Nastavení!$E$4,IF(Nastavení!$D$5='Kalendářní plán'!DV11,Nastavení!$E$5,IF(Nastavení!$D$6='Kalendářní plán'!DV11,Nastavení!$E$6,IF(Nastavení!$D$7='Kalendářní plán'!DV11,Nastavení!$E$7,\"\")))))))))))))))","v":""},null,null,{"$f":"IF(Nastavení!$D$2='Kalendářní plán'!DW11,Nastavení!$E$2,IF(Nastavení!$D$4='Kalendářní plán'!DW11,Nastavení!$E$4,IF(Nastavení!$D$5='Kalendářní plán'!DW11,Nastavení!$E$5,IF(Nastavení!$D$6='Kalendářní plán'!DW11,Nastavení!$E$6,IF(Nastavení!$D$7='Kalendářní plán'!DW11,Nastavení!$E$7,IF(Nastavení!$D$2='Kalendářní plán'!DX11,Nastavení!$E$2,IF(Nastavení!$D$4='Kalendářní plán'!DX11,Nastavení!$E$4,IF(Nastavení!$D$5='Kalendářní plán'!DX11,Nastavení!$E$5,IF(Nastavení!$D$6='Kalendářní plán'!DX11,Nastavení!$E$6,IF(Nastavení!$D$7='Kalendářní plán'!DX11,Nastavení!$E$7,IF(Nastavení!$D$2='Kalendářní plán'!DY11,Nastavení!$E$2,IF(Nastavení!$D$4='Kalendářní plán'!DY11,Nastavení!$E$4,IF(Nastavení!$D$5='Kalendářní plán'!DY11,Nastavení!$E$5,IF(Nastavení!$D$6='Kalendářní plán'!DY11,Nastavení!$E$6,IF(Nastavení!$D$7='Kalendářní plán'!DY11,Nastavení!$E$7,\"\")))))))))))))))","v":""},null,null,{"$f":"IF(Nastavení!$D$2='Kalendářní plán'!DZ11,Nastavení!$E$2,IF(Nastavení!$D$4='Kalendářní plán'!DZ11,Nastavení!$E$4,IF(Nastavení!$D$5='Kalendářní plán'!DZ11,Nastavení!$E$5,IF(Nastavení!$D$6='Kalendářní plán'!DZ11,Nastavení!$E$6,IF(Nastavení!$D$7='Kalendářní plán'!DZ11,Nastavení!$E$7,IF(Nastavení!$D$2='Kalendářní plán'!EA11,Nastavení!$E$2,IF(Nastavení!$D$4='Kalendářní plán'!EA11,Nastavení!$E$4,IF(Nastavení!$D$5='Kalendářní plán'!EA11,Nastavení!$E$5,IF(Nastavení!$D$6='Kalendářní plán'!EA11,Nastavení!$E$6,IF(Nastavení!$D$7='Kalendářní plán'!EA11,Nastavení!$E$7,IF(Nastavení!$D$2='Kalendářní plán'!EB11,Nastavení!$E$2,IF(Nastavení!$D$4='Kalendářní plán'!EB11,Nastavení!$E$4,IF(Nastavení!$D$5='Kalendářní plán'!EB11,Nastavení!$E$5,IF(Nastavení!$D$6='Kalendářní plán'!EB11,Nastavení!$E$6,IF(Nastavení!$D$7='Kalendářní plán'!EB11,Nastavení!$E$7,\"\")))))))))))))))","v":""},null,null,{"$f":"IF(Nastavení!$D$2='Kalendářní plán'!EC11,Nastavení!$E$2,IF(Nastavení!$D$4='Kalendářní plán'!EC11,Nastavení!$E$4,IF(Nastavení!$D$5='Kalendářní plán'!EC11,Nastavení!$E$5,IF(Nastavení!$D$6='Kalendářní plán'!EC11,Nastavení!$E$6,IF(Nastavení!$D$7='Kalendářní plán'!EC11,Nastavení!$E$7,IF(Nastavení!$D$2='Kalendářní plán'!ED11,Nastavení!$E$2,IF(Nastavení!$D$4='Kalendářní plán'!ED11,Nastavení!$E$4,IF(Nastavení!$D$5='Kalendářní plán'!ED11,Nastavení!$E$5,IF(Nastavení!$D$6='Kalendářní plán'!ED11,Nastavení!$E$6,IF(Nastavení!$D$7='Kalendářní plán'!ED11,Nastavení!$E$7,IF(Nastavení!$D$2='Kalendářní plán'!EE11,Nastavení!$E$2,IF(Nastavení!$D$4='Kalendářní plán'!EE11,Nastavení!$E$4,IF(Nastavení!$D$5='Kalendářní plán'!EE11,Nastavení!$E$5,IF(Nastavení!$D$6='Kalendářní plán'!EE11,Nastavení!$E$6,IF(Nastavení!$D$7='Kalendářní plán'!EE11,Nastavení!$E$7,\"\")))))))))))))))","v":""},null,null,{"$f":"IF(Nastavení!$D$2='Kalendářní plán'!EF11,Nastavení!$E$2,IF(Nastavení!$D$4='Kalendářní plán'!EF11,Nastavení!$E$4,IF(Nastavení!$D$5='Kalendářní plán'!EF11,Nastavení!$E$5,IF(Nastavení!$D$6='Kalendářní plán'!EF11,Nastavení!$E$6,IF(Nastavení!$D$7='Kalendářní plán'!EF11,Nastavení!$E$7,IF(Nastavení!$D$2='Kalendářní plán'!EG11,Nastavení!$E$2,IF(Nastavení!$D$4='Kalendářní plán'!EG11,Nastavení!$E$4,IF(Nastavení!$D$5='Kalendářní plán'!EG11,Nastavení!$E$5,IF(Nastavení!$D$6='Kalendářní plán'!EG11,Nastavení!$E$6,IF(Nastavení!$D$7='Kalendářní plán'!EG11,Nastavení!$E$7,IF(Nastavení!$D$2='Kalendářní plán'!EH11,Nastavení!$E$2,IF(Nastavení!$D$4='Kalendářní plán'!EH11,Nastavení!$E$4,IF(Nastavení!$D$5='Kalendářní plán'!EH11,Nastavení!$E$5,IF(Nastavení!$D$6='Kalendářní plán'!EH11,Nastavení!$E$6,IF(Nastavení!$D$7='Kalendářní plán'!EH11,Nastavení!$E$7,\"\")))))))))))))))","v":""},null,null,{"$f":"IF(Nastavení!$D$2='Kalendářní plán'!EI11,Nastavení!$E$2,IF(Nastavení!$D$4='Kalendářní plán'!EI11,Nastavení!$E$4,IF(Nastavení!$D$5='Kalendářní plán'!EI11,Nastavení!$E$5,IF(Nastavení!$D$6='Kalendářní plán'!EI11,Nastavení!$E$6,IF(Nastavení!$D$7='Kalendářní plán'!EI11,Nastavení!$E$7,IF(Nastavení!$D$2='Kalendářní plán'!EJ11,Nastavení!$E$2,IF(Nastavení!$D$4='Kalendářní plán'!EJ11,Nastavení!$E$4,IF(Nastavení!$D$5='Kalendářní plán'!EJ11,Nastavení!$E$5,IF(Nastavení!$D$6='Kalendářní plán'!EJ11,Nastavení!$E$6,IF(Nastavení!$D$7='Kalendářní plán'!EJ11,Nastavení!$E$7,IF(Nastavení!$D$2='Kalendářní plán'!EK11,Nastavení!$E$2,IF(Nastavení!$D$4='Kalendářní plán'!EK11,Nastavení!$E$4,IF(Nastavení!$D$5='Kalendářní plán'!EK11,Nastavení!$E$5,IF(Nastavení!$D$6='Kalendářní plán'!EK11,Nastavení!$E$6,IF(Nastavení!$D$7='Kalendářní plán'!EK11,Nastavení!$E$7,\"\")))))))))))))))","v":""},null,null,{"$f":"IF(Nastavení!$D$2='Kalendářní plán'!EL11,Nastavení!$E$2,IF(Nastavení!$D$4='Kalendářní plán'!EL11,Nastavení!$E$4,IF(Nastavení!$D$5='Kalendářní plán'!EL11,Nastavení!$E$5,IF(Nastavení!$D$6='Kalendářní plán'!EL11,Nastavení!$E$6,IF(Nastavení!$D$7='Kalendářní plán'!EL11,Nastavení!$E$7,IF(Nastavení!$D$2='Kalendářní plán'!EM11,Nastavení!$E$2,IF(Nastavení!$D$4='Kalendářní plán'!EM11,Nastavení!$E$4,IF(Nastavení!$D$5='Kalendářní plán'!EM11,Nastavení!$E$5,IF(Nastavení!$D$6='Kalendářní plán'!EM11,Nastavení!$E$6,IF(Nastavení!$D$7='Kalendářní plán'!EM11,Nastavení!$E$7,IF(Nastavení!$D$2='Kalendářní plán'!EN11,Nastavení!$E$2,IF(Nastavení!$D$4='Kalendářní plán'!EN11,Nastavení!$E$4,IF(Nastavení!$D$5='Kalendářní plán'!EN11,Nastavení!$E$5,IF(Nastavení!$D$6='Kalendářní plán'!EN11,Nastavení!$E$6,IF(Nastavení!$D$7='Kalendářní plán'!EN11,Nastavení!$E$7,\"\")))))))))))))))","v":""},null,null,{"$f":"IF(Nastavení!$D$2='Kalendářní plán'!EO11,Nastavení!$E$2,IF(Nastavení!$D$4='Kalendářní plán'!EO11,Nastavení!$E$4,IF(Nastavení!$D$5='Kalendářní plán'!EO11,Nastavení!$E$5,IF(Nastavení!$D$6='Kalendářní plán'!EO11,Nastavení!$E$6,IF(Nastavení!$D$7='Kalendářní plán'!EO11,Nastavení!$E$7,IF(Nastavení!$D$2='Kalendářní plán'!EP11,Nastavení!$E$2,IF(Nastavení!$D$4='Kalendářní plán'!EP11,Nastavení!$E$4,IF(Nastavení!$D$5='Kalendářní plán'!EP11,Nastavení!$E$5,IF(Nastavení!$D$6='Kalendářní plán'!EP11,Nastavení!$E$6,IF(Nastavení!$D$7='Kalendářní plán'!EP11,Nastavení!$E$7,IF(Nastavení!$D$2='Kalendářní plán'!EQ11,Nastavení!$E$2,IF(Nastavení!$D$4='Kalendářní plán'!EQ11,Nastavení!$E$4,IF(Nastavení!$D$5='Kalendářní plán'!EQ11,Nastavení!$E$5,IF(Nastavení!$D$6='Kalendářní plán'!EQ11,Nastavení!$E$6,IF(Nastavení!$D$7='Kalendářní plán'!EQ11,Nastavení!$E$7,\"\")))))))))))))))","v":""},null,null,{"$f":"IF(Nastavení!$D$2='Kalendářní plán'!ER11,Nastavení!$E$2,IF(Nastavení!$D$4='Kalendářní plán'!ER11,Nastavení!$E$4,IF(Nastavení!$D$5='Kalendářní plán'!ER11,Nastavení!$E$5,IF(Nastavení!$D$6='Kalendářní plán'!ER11,Nastavení!$E$6,IF(Nastavení!$D$7='Kalendářní plán'!ER11,Nastavení!$E$7,IF(Nastavení!$D$2='Kalendářní plán'!ES11,Nastavení!$E$2,IF(Nastavení!$D$4='Kalendářní plán'!ES11,Nastavení!$E$4,IF(Nastavení!$D$5='Kalendářní plán'!ES11,Nastavení!$E$5,IF(Nastavení!$D$6='Kalendářní plán'!ES11,Nastavení!$E$6,IF(Nastavení!$D$7='Kalendářní plán'!ES11,Nastavení!$E$7,IF(Nastavení!$D$2='Kalendářní plán'!ET11,Nastavení!$E$2,IF(Nastavení!$D$4='Kalendářní plán'!ET11,Nastavení!$E$4,IF(Nastavení!$D$5='Kalendářní plán'!ET11,Nastavení!$E$5,IF(Nastavení!$D$6='Kalendářní plán'!ET11,Nastavení!$E$6,IF(Nastavení!$D$7='Kalendářní plán'!ET11,Nastavení!$E$7,\"\")))))))))))))))","v":""},null,null,{"$f":"IF(Nastavení!$D$2='Kalendářní plán'!EU11,Nastavení!$E$2,IF(Nastavení!$D$4='Kalendářní plán'!EU11,Nastavení!$E$4,IF(Nastavení!$D$5='Kalendářní plán'!EU11,Nastavení!$E$5,IF(Nastavení!$D$6='Kalendářní plán'!EU11,Nastavení!$E$6,IF(Nastavení!$D$7='Kalendářní plán'!EU11,Nastavení!$E$7,IF(Nastavení!$D$2='Kalendářní plán'!EV11,Nastavení!$E$2,IF(Nastavení!$D$4='Kalendářní plán'!EV11,Nastavení!$E$4,IF(Nastavení!$D$5='Kalendářní plán'!EV11,Nastavení!$E$5,IF(Nastavení!$D$6='Kalendářní plán'!EV11,Nastavení!$E$6,IF(Nastavení!$D$7='Kalendářní plán'!EV11,Nastavení!$E$7,IF(Nastavení!$D$2='Kalendářní plán'!EW11,Nastavení!$E$2,IF(Nastavení!$D$4='Kalendářní plán'!EW11,Nastavení!$E$4,IF(Nastavení!$D$5='Kalendářní plán'!EW11,Nastavení!$E$5,IF(Nastavení!$D$6='Kalendářní plán'!EW11,Nastavení!$E$6,IF(Nastavení!$D$7='Kalendářní plán'!EW11,Nastavení!$E$7,\"\")))))))))))))))","v":""},null,null,{"$f":"IF(Nastavení!$D$2='Kalendářní plán'!EX11,Nastavení!$E$2,IF(Nastavení!$D$4='Kalendářní plán'!EX11,Nastavení!$E$4,IF(Nastavení!$D$5='Kalendářní plán'!EX11,Nastavení!$E$5,IF(Nastavení!$D$6='Kalendářní plán'!EX11,Nastavení!$E$6,IF(Nastavení!$D$7='Kalendářní plán'!EX11,Nastavení!$E$7,IF(Nastavení!$D$2='Kalendářní plán'!EY11,Nastavení!$E$2,IF(Nastavení!$D$4='Kalendářní plán'!EY11,Nastavení!$E$4,IF(Nastavení!$D$5='Kalendářní plán'!EY11,Nastavení!$E$5,IF(Nastavení!$D$6='Kalendářní plán'!EY11,Nastavení!$E$6,IF(Nastavení!$D$7='Kalendářní plán'!EY11,Nastavení!$E$7,IF(Nastavení!$D$2='Kalendářní plán'!EZ11,Nastavení!$E$2,IF(Nastavení!$D$4='Kalendářní plán'!EZ11,Nastavení!$E$4,IF(Nastavení!$D$5='Kalendářní plán'!EZ11,Nastavení!$E$5,IF(Nastavení!$D$6='Kalendářní plán'!EZ11,Nastavení!$E$6,IF(Nastavení!$D$7='Kalendářní plán'!EZ11,Nastavení!$E$7,\"\")))))))))))))))","v":""},null,null,{"$f":"IF(Nastavení!$D$2='Kalendářní plán'!FA11,Nastavení!$E$2,IF(Nastavení!$D$4='Kalendářní plán'!FA11,Nastavení!$E$4,IF(Nastavení!$D$5='Kalendářní plán'!FA11,Nastavení!$E$5,IF(Nastavení!$D$6='Kalendářní plán'!FA11,Nastavení!$E$6,IF(Nastavení!$D$7='Kalendářní plán'!FA11,Nastavení!$E$7,IF(Nastavení!$D$2='Kalendářní plán'!FB11,Nastavení!$E$2,IF(Nastavení!$D$4='Kalendářní plán'!FB11,Nastavení!$E$4,IF(Nastavení!$D$5='Kalendářní plán'!FB11,Nastavení!$E$5,IF(Nastavení!$D$6='Kalendářní plán'!FB11,Nastavení!$E$6,IF(Nastavení!$D$7='Kalendářní plán'!FB11,Nastavení!$E$7,IF(Nastavení!$D$2='Kalendářní plán'!FC11,Nastavení!$E$2,IF(Nastavení!$D$4='Kalendářní plán'!FC11,Nastavení!$E$4,IF(Nastavení!$D$5='Kalendářní plán'!FC11,Nastavení!$E$5,IF(Nastavení!$D$6='Kalendářní plán'!FC11,Nastavení!$E$6,IF(Nastavení!$D$7='Kalendářní plán'!FC11,Nastavení!$E$7,\"\")))))))))))))))","v":""},null,null,{"$f":"IF(Nastavení!$D$2='Kalendářní plán'!FD11,Nastavení!$E$2,IF(Nastavení!$D$4='Kalendářní plán'!FD11,Nastavení!$E$4,IF(Nastavení!$D$5='Kalendářní plán'!FD11,Nastavení!$E$5,IF(Nastavení!$D$6='Kalendářní plán'!FD11,Nastavení!$E$6,IF(Nastavení!$D$7='Kalendářní plán'!FD11,Nastavení!$E$7,IF(Nastavení!$D$2='Kalendářní plán'!FE11,Nastavení!$E$2,IF(Nastavení!$D$4='Kalendářní plán'!FE11,Nastavení!$E$4,IF(Nastavení!$D$5='Kalendářní plán'!FE11,Nastavení!$E$5,IF(Nastavení!$D$6='Kalendářní plán'!FE11,Nastavení!$E$6,IF(Nastavení!$D$7='Kalendářní plán'!FE11,Nastavení!$E$7,IF(Nastavení!$D$2='Kalendářní plán'!FF11,Nastavení!$E$2,IF(Nastavení!$D$4='Kalendářní plán'!FF11,Nastavení!$E$4,IF(Nastavení!$D$5='Kalendářní plán'!FF11,Nastavení!$E$5,IF(Nastavení!$D$6='Kalendářní plán'!FF11,Nastavení!$E$6,IF(Nastavení!$D$7='Kalendářní plán'!FF11,Nastavení!$E$7,\"\")))))))))))))))","v":""},null,null,{"$f":"IF(Nastavení!$D$2='Kalendářní plán'!FG11,Nastavení!$E$2,IF(Nastavení!$D$4='Kalendářní plán'!FG11,Nastavení!$E$4,IF(Nastavení!$D$5='Kalendářní plán'!FG11,Nastavení!$E$5,IF(Nastavení!$D$6='Kalendářní plán'!FG11,Nastavení!$E$6,IF(Nastavení!$D$7='Kalendářní plán'!FG11,Nastavení!$E$7,IF(Nastavení!$D$2='Kalendářní plán'!FH11,Nastavení!$E$2,IF(Nastavení!$D$4='Kalendářní plán'!FH11,Nastavení!$E$4,IF(Nastavení!$D$5='Kalendářní plán'!FH11,Nastavení!$E$5,IF(Nastavení!$D$6='Kalendářní plán'!FH11,Nastavení!$E$6,IF(Nastavení!$D$7='Kalendářní plán'!FH11,Nastavení!$E$7,IF(Nastavení!$D$2='Kalendářní plán'!FI11,Nastavení!$E$2,IF(Nastavení!$D$4='Kalendářní plán'!FI11,Nastavení!$E$4,IF(Nastavení!$D$5='Kalendářní plán'!FI11,Nastavení!$E$5,IF(Nastavení!$D$6='Kalendářní plán'!FI11,Nastavení!$E$6,IF(Nastavení!$D$7='Kalendářní plán'!FI11,Nastavení!$E$7,\"\")))))))))))))))","v":""},null,null,{"$f":"IF(Nastavení!$D$2='Kalendářní plán'!FJ11,Nastavení!$E$2,IF(Nastavení!$D$4='Kalendářní plán'!FJ11,Nastavení!$E$4,IF(Nastavení!$D$5='Kalendářní plán'!FJ11,Nastavení!$E$5,IF(Nastavení!$D$6='Kalendářní plán'!FJ11,Nastavení!$E$6,IF(Nastavení!$D$7='Kalendářní plán'!FJ11,Nastavení!$E$7,IF(Nastavení!$D$2='Kalendářní plán'!FK11,Nastavení!$E$2,IF(Nastavení!$D$4='Kalendářní plán'!FK11,Nastavení!$E$4,IF(Nastavení!$D$5='Kalendářní plán'!FK11,Nastavení!$E$5,IF(Nastavení!$D$6='Kalendářní plán'!FK11,Nastavení!$E$6,IF(Nastavení!$D$7='Kalendářní plán'!FK11,Nastavení!$E$7,IF(Nastavení!$D$2='Kalendářní plán'!FL11,Nastavení!$E$2,IF(Nastavení!$D$4='Kalendářní plán'!FL11,Nastavení!$E$4,IF(Nastavení!$D$5='Kalendářní plán'!FL11,Nastavení!$E$5,IF(Nastavení!$D$6='Kalendářní plán'!FL11,Nastavení!$E$6,IF(Nastavení!$D$7='Kalendářní plán'!FL11,Nastavení!$E$7,\"\")))))))))))))))","v":""},null,null,{"$f":"IF(Nastavení!$D$2='Kalendářní plán'!FM11,Nastavení!$E$2,IF(Nastavení!$D$4='Kalendářní plán'!FM11,Nastavení!$E$4,IF(Nastavení!$D$5='Kalendářní plán'!FM11,Nastavení!$E$5,IF(Nastavení!$D$6='Kalendářní plán'!FM11,Nastavení!$E$6,IF(Nastavení!$D$7='Kalendářní plán'!FM11,Nastavení!$E$7,IF(Nastavení!$D$2='Kalendářní plán'!FN11,Nastavení!$E$2,IF(Nastavení!$D$4='Kalendářní plán'!FN11,Nastavení!$E$4,IF(Nastavení!$D$5='Kalendářní plán'!FN11,Nastavení!$E$5,IF(Nastavení!$D$6='Kalendářní plán'!FN11,Nastavení!$E$6,IF(Nastavení!$D$7='Kalendářní plán'!FN11,Nastavení!$E$7,IF(Nastavení!$D$2='Kalendářní plán'!FO11,Nastavení!$E$2,IF(Nastavení!$D$4='Kalendářní plán'!FO11,Nastavení!$E$4,IF(Nastavení!$D$5='Kalendářní plán'!FO11,Nastavení!$E$5,IF(Nastavení!$D$6='Kalendářní plán'!FO11,Nastavení!$E$6,IF(Nastavení!$D$7='Kalendářní plán'!FO11,Nastavení!$E$7,\"\")))))))))))))))","v":""},null,null,{"$f":"IF(Nastavení!$D$2='Kalendářní plán'!FP11,Nastavení!$E$2,IF(Nastavení!$D$4='Kalendářní plán'!FP11,Nastavení!$E$4,IF(Nastavení!$D$5='Kalendářní plán'!FP11,Nastavení!$E$5,IF(Nastavení!$D$6='Kalendářní plán'!FP11,Nastavení!$E$6,IF(Nastavení!$D$7='Kalendářní plán'!FP11,Nastavení!$E$7,IF(Nastavení!$D$2='Kalendářní plán'!FQ11,Nastavení!$E$2,IF(Nastavení!$D$4='Kalendářní plán'!FQ11,Nastavení!$E$4,IF(Nastavení!$D$5='Kalendářní plán'!FQ11,Nastavení!$E$5,IF(Nastavení!$D$6='Kalendářní plán'!FQ11,Nastavení!$E$6,IF(Nastavení!$D$7='Kalendářní plán'!FQ11,Nastavení!$E$7,IF(Nastavení!$D$2='Kalendářní plán'!FR11,Nastavení!$E$2,IF(Nastavení!$D$4='Kalendářní plán'!FR11,Nastavení!$E$4,IF(Nastavení!$D$5='Kalendářní plán'!FR11,Nastavení!$E$5,IF(Nastavení!$D$6='Kalendářní plán'!FR11,Nastavení!$E$6,IF(Nastavení!$D$7='Kalendářní plán'!FR11,Nastavení!$E$7,\"\")))))))))))))))","v":""},null,null,{"$f":"IF(Nastavení!$D$2='Kalendářní plán'!FS11,Nastavení!$E$2,IF(Nastavení!$D$4='Kalendářní plán'!FS11,Nastavení!$E$4,IF(Nastavení!$D$5='Kalendářní plán'!FS11,Nastavení!$E$5,IF(Nastavení!$D$6='Kalendářní plán'!FS11,Nastavení!$E$6,IF(Nastavení!$D$7='Kalendářní plán'!FS11,Nastavení!$E$7,IF(Nastavení!$D$2='Kalendářní plán'!FT11,Nastavení!$E$2,IF(Nastavení!$D$4='Kalendářní plán'!FT11,Nastavení!$E$4,IF(Nastavení!$D$5='Kalendářní plán'!FT11,Nastavení!$E$5,IF(Nastavení!$D$6='Kalendářní plán'!FT11,Nastavení!$E$6,IF(Nastavení!$D$7='Kalendářní plán'!FT11,Nastavení!$E$7,IF(Nastavení!$D$2='Kalendářní plán'!FU11,Nastavení!$E$2,IF(Nastavení!$D$4='Kalendářní plán'!FU11,Nastavení!$E$4,IF(Nastavení!$D$5='Kalendářní plán'!FU11,Nastavení!$E$5,IF(Nastavení!$D$6='Kalendářní plán'!FU11,Nastavení!$E$6,IF(Nastavení!$D$7='Kalendářní plán'!FU11,Nastavení!$E$7,\"\")))))))))))))))","v":""},null,null,{"$f":"IF(Nastavení!$D$2='Kalendářní plán'!FV11,Nastavení!$E$2,IF(Nastavení!$D$4='Kalendářní plán'!FV11,Nastavení!$E$4,IF(Nastavení!$D$5='Kalendářní plán'!FV11,Nastavení!$E$5,IF(Nastavení!$D$6='Kalendářní plán'!FV11,Nastavení!$E$6,IF(Nastavení!$D$7='Kalendářní plán'!FV11,Nastavení!$E$7,IF(Nastavení!$D$2='Kalendářní plán'!FW11,Nastavení!$E$2,IF(Nastavení!$D$4='Kalendářní plán'!FW11,Nastavení!$E$4,IF(Nastavení!$D$5='Kalendářní plán'!FW11,Nastavení!$E$5,IF(Nastavení!$D$6='Kalendářní plán'!FW11,Nastavení!$E$6,IF(Nastavení!$D$7='Kalendářní plán'!FW11,Nastavení!$E$7,IF(Nastavení!$D$2='Kalendářní plán'!FX11,Nastavení!$E$2,IF(Nastavení!$D$4='Kalendářní plán'!FX11,Nastavení!$E$4,IF(Nastavení!$D$5='Kalendářní plán'!FX11,Nastavení!$E$5,IF(Nastavení!$D$6='Kalendářní plán'!FX11,Nastavení!$E$6,IF(Nastavení!$D$7='Kalendářní plán'!FX11,Nastavení!$E$7,\"\")))))))))))))))","v":""},null,null,{"$f":"IF(Nastavení!$D$2='Kalendářní plán'!FY11,Nastavení!$E$2,IF(Nastavení!$D$4='Kalendářní plán'!FY11,Nastavení!$E$4,IF(Nastavení!$D$5='Kalendářní plán'!FY11,Nastavení!$E$5,IF(Nastavení!$D$6='Kalendářní plán'!FY11,Nastavení!$E$6,IF(Nastavení!$D$7='Kalendářní plán'!FY11,Nastavení!$E$7,IF(Nastavení!$D$2='Kalendářní plán'!FZ11,Nastavení!$E$2,IF(Nastavení!$D$4='Kalendářní plán'!FZ11,Nastavení!$E$4,IF(Nastavení!$D$5='Kalendářní plán'!FZ11,Nastavení!$E$5,IF(Nastavení!$D$6='Kalendářní plán'!FZ11,Nastavení!$E$6,IF(Nastavení!$D$7='Kalendářní plán'!FZ11,Nastavení!$E$7,IF(Nastavení!$D$2='Kalendářní plán'!GA11,Nastavení!$E$2,IF(Nastavení!$D$4='Kalendářní plán'!GA11,Nastavení!$E$4,IF(Nastavení!$D$5='Kalendářní plán'!GA11,Nastavení!$E$5,IF(Nastavení!$D$6='Kalendářní plán'!GA11,Nastavení!$E$6,IF(Nastavení!$D$7='Kalendářní plán'!GA11,Nastavení!$E$7,\"\")))))))))))))))","v":""},null,null,{"$f":"IF(Nastavení!$D$2='Kalendářní plán'!GB11,Nastavení!$E$2,IF(Nastavení!$D$4='Kalendářní plán'!GB11,Nastavení!$E$4,IF(Nastavení!$D$5='Kalendářní plán'!GB11,Nastavení!$E$5,IF(Nastavení!$D$6='Kalendářní plán'!GB11,Nastavení!$E$6,IF(Nastavení!$D$7='Kalendářní plán'!GB11,Nastavení!$E$7,IF(Nastavení!$D$2='Kalendářní plán'!GC11,Nastavení!$E$2,IF(Nastavení!$D$4='Kalendářní plán'!GC11,Nastavení!$E$4,IF(Nastavení!$D$5='Kalendářní plán'!GC11,Nastavení!$E$5,IF(Nastavení!$D$6='Kalendářní plán'!GC11,Nastavení!$E$6,IF(Nastavení!$D$7='Kalendářní plán'!GC11,Nastavení!$E$7,IF(Nastavení!$D$2='Kalendářní plán'!GD11,Nastavení!$E$2,IF(Nastavení!$D$4='Kalendářní plán'!GD11,Nastavení!$E$4,IF(Nastavení!$D$5='Kalendářní plán'!GD11,Nastavení!$E$5,IF(Nastavení!$D$6='Kalendářní plán'!GD11,Nastavení!$E$6,IF(Nastavení!$D$7='Kalendářní plán'!GD11,Nastavení!$E$7,\"\")))))))))))))))","v":""},null,null,{"$f":"IF(Nastavení!$D$2='Kalendářní plán'!GE11,Nastavení!$E$2,IF(Nastavení!$D$4='Kalendářní plán'!GE11,Nastavení!$E$4,IF(Nastavení!$D$5='Kalendářní plán'!GE11,Nastavení!$E$5,IF(Nastavení!$D$6='Kalendářní plán'!GE11,Nastavení!$E$6,IF(Nastavení!$D$7='Kalendářní plán'!GE11,Nastavení!$E$7,IF(Nastavení!$D$2='Kalendářní plán'!GF11,Nastavení!$E$2,IF(Nastavení!$D$4='Kalendářní plán'!GF11,Nastavení!$E$4,IF(Nastavení!$D$5='Kalendářní plán'!GF11,Nastavení!$E$5,IF(Nastavení!$D$6='Kalendářní plán'!GF11,Nastavení!$E$6,IF(Nastavení!$D$7='Kalendářní plán'!GF11,Nastavení!$E$7,IF(Nastavení!$D$2='Kalendářní plán'!GG11,Nastavení!$E$2,IF(Nastavení!$D$4='Kalendářní plán'!GG11,Nastavení!$E$4,IF(Nastavení!$D$5='Kalendářní plán'!GG11,Nastavení!$E$5,IF(Nastavení!$D$6='Kalendářní plán'!GG11,Nastavení!$E$6,IF(Nastavení!$D$7='Kalendářní plán'!GG11,Nastavení!$E$7,\"\")))))))))))))))","v":""},null,null,{"$f":"IF(Nastavení!$D$2='Kalendářní plán'!GH11,Nastavení!$E$2,IF(Nastavení!$D$4='Kalendářní plán'!GH11,Nastavení!$E$4,IF(Nastavení!$D$5='Kalendářní plán'!GH11,Nastavení!$E$5,IF(Nastavení!$D$6='Kalendářní plán'!GH11,Nastavení!$E$6,IF(Nastavení!$D$7='Kalendářní plán'!GH11,Nastavení!$E$7,IF(Nastavení!$D$2='Kalendářní plán'!GI11,Nastavení!$E$2,IF(Nastavení!$D$4='Kalendářní plán'!GI11,Nastavení!$E$4,IF(Nastavení!$D$5='Kalendářní plán'!GI11,Nastavení!$E$5,IF(Nastavení!$D$6='Kalendářní plán'!GI11,Nastavení!$E$6,IF(Nastavení!$D$7='Kalendářní plán'!GI11,Nastavení!$E$7,IF(Nastavení!$D$2='Kalendářní plán'!GJ11,Nastavení!$E$2,IF(Nastavení!$D$4='Kalendářní plán'!GJ11,Nastavení!$E$4,IF(Nastavení!$D$5='Kalendářní plán'!GJ11,Nastavení!$E$5,IF(Nastavení!$D$6='Kalendářní plán'!GJ11,Nastavení!$E$6,IF(Nastavení!$D$7='Kalendářní plán'!GJ11,Nastavení!$E$7,\"\")))))))))))))))","v":""},null,null,{"$f":"IF(Nastavení!$D$2='Kalendářní plán'!GK11,Nastavení!$E$2,IF(Nastavení!$D$4='Kalendářní plán'!GK11,Nastavení!$E$4,IF(Nastavení!$D$5='Kalendářní plán'!GK11,Nastavení!$E$5,IF(Nastavení!$D$6='Kalendářní plán'!GK11,Nastavení!$E$6,IF(Nastavení!$D$7='Kalendářní plán'!GK11,Nastavení!$E$7,IF(Nastavení!$D$2='Kalendářní plán'!GL11,Nastavení!$E$2,IF(Nastavení!$D$4='Kalendářní plán'!GL11,Nastavení!$E$4,IF(Nastavení!$D$5='Kalendářní plán'!GL11,Nastavení!$E$5,IF(Nastavení!$D$6='Kalendářní plán'!GL11,Nastavení!$E$6,IF(Nastavení!$D$7='Kalendářní plán'!GL11,Nastavení!$E$7,IF(Nastavení!$D$2='Kalendářní plán'!GM11,Nastavení!$E$2,IF(Nastavení!$D$4='Kalendářní plán'!GM11,Nastavení!$E$4,IF(Nastavení!$D$5='Kalendářní plán'!GM11,Nastavení!$E$5,IF(Nastavení!$D$6='Kalendářní plán'!GM11,Nastavení!$E$6,IF(Nastavení!$D$7='Kalendářní plán'!GM11,Nastavení!$E$7,\"\")))))))))))))))","v":""},null,null,{"$f":"IF(Nastavení!$D$2='Kalendářní plán'!GN11,Nastavení!$E$2,IF(Nastavení!$D$4='Kalendářní plán'!GN11,Nastavení!$E$4,IF(Nastavení!$D$5='Kalendářní plán'!GN11,Nastavení!$E$5,IF(Nastavení!$D$6='Kalendářní plán'!GN11,Nastavení!$E$6,IF(Nastavení!$D$7='Kalendářní plán'!GN11,Nastavení!$E$7,IF(Nastavení!$D$2='Kalendářní plán'!GO11,Nastavení!$E$2,IF(Nastavení!$D$4='Kalendářní plán'!GO11,Nastavení!$E$4,IF(Nastavení!$D$5='Kalendářní plán'!GO11,Nastavení!$E$5,IF(Nastavení!$D$6='Kalendářní plán'!GO11,Nastavení!$E$6,IF(Nastavení!$D$7='Kalendářní plán'!GO11,Nastavení!$E$7,IF(Nastavení!$D$2='Kalendářní plán'!GP11,Nastavení!$E$2,IF(Nastavení!$D$4='Kalendářní plán'!GP11,Nastavení!$E$4,IF(Nastavení!$D$5='Kalendářní plán'!GP11,Nastavení!$E$5,IF(Nastavení!$D$6='Kalendářní plán'!GP11,Nastavení!$E$6,IF(Nastavení!$D$7='Kalendářní plán'!GP11,Nastavení!$E$7,\"\")))))))))))))))","v":""},null,null,{"$f":"IF(Nastavení!$D$2='Kalendářní plán'!GQ11,Nastavení!$E$2,IF(Nastavení!$D$4='Kalendářní plán'!GQ11,Nastavení!$E$4,IF(Nastavení!$D$5='Kalendářní plán'!GQ11,Nastavení!$E$5,IF(Nastavení!$D$6='Kalendářní plán'!GQ11,Nastavení!$E$6,IF(Nastavení!$D$7='Kalendářní plán'!GQ11,Nastavení!$E$7,IF(Nastavení!$D$2='Kalendářní plán'!GR11,Nastavení!$E$2,IF(Nastavení!$D$4='Kalendářní plán'!GR11,Nastavení!$E$4,IF(Nastavení!$D$5='Kalendářní plán'!GR11,Nastavení!$E$5,IF(Nastavení!$D$6='Kalendářní plán'!GR11,Nastavení!$E$6,IF(Nastavení!$D$7='Kalendářní plán'!GR11,Nastavení!$E$7,IF(Nastavení!$D$2='Kalendářní plán'!GS11,Nastavení!$E$2,IF(Nastavení!$D$4='Kalendářní plán'!GS11,Nastavení!$E$4,IF(Nastavení!$D$5='Kalendářní plán'!GS11,Nastavení!$E$5,IF(Nastavení!$D$6='Kalendářní plán'!GS11,Nastavení!$E$6,IF(Nastavení!$D$7='Kalendářní plán'!GS11,Nastavení!$E$7,\"\")))))))))))))))","v":""},null,null,{"$f":"IF(Nastavení!$D$2='Kalendářní plán'!GT11,Nastavení!$E$2,IF(Nastavení!$D$4='Kalendářní plán'!GT11,Nastavení!$E$4,IF(Nastavení!$D$5='Kalendářní plán'!GT11,Nastavení!$E$5,IF(Nastavení!$D$6='Kalendářní plán'!GT11,Nastavení!$E$6,IF(Nastavení!$D$7='Kalendářní plán'!GT11,Nastavení!$E$7,IF(Nastavení!$D$2='Kalendářní plán'!GU11,Nastavení!$E$2,IF(Nastavení!$D$4='Kalendářní plán'!GU11,Nastavení!$E$4,IF(Nastavení!$D$5='Kalendářní plán'!GU11,Nastavení!$E$5,IF(Nastavení!$D$6='Kalendářní plán'!GU11,Nastavení!$E$6,IF(Nastavení!$D$7='Kalendářní plán'!GU11,Nastavení!$E$7,IF(Nastavení!$D$2='Kalendářní plán'!GV11,Nastavení!$E$2,IF(Nastavení!$D$4='Kalendářní plán'!GV11,Nastavení!$E$4,IF(Nastavení!$D$5='Kalendářní plán'!GV11,Nastavení!$E$5,IF(Nastavení!$D$6='Kalendářní plán'!GV11,Nastavení!$E$6,IF(Nastavení!$D$7='Kalendářní plán'!GV11,Nastavení!$E$7,\"\")))))))))))))))","v":""},null,null,{"$f":"IF(Nastavení!$D$2='Kalendářní plán'!GW11,Nastavení!$E$2,IF(Nastavení!$D$4='Kalendářní plán'!GW11,Nastavení!$E$4,IF(Nastavení!$D$5='Kalendářní plán'!GW11,Nastavení!$E$5,IF(Nastavení!$D$6='Kalendářní plán'!GW11,Nastavení!$E$6,IF(Nastavení!$D$7='Kalendářní plán'!GW11,Nastavení!$E$7,IF(Nastavení!$D$2='Kalendářní plán'!GX11,Nastavení!$E$2,IF(Nastavení!$D$4='Kalendářní plán'!GX11,Nastavení!$E$4,IF(Nastavení!$D$5='Kalendářní plán'!GX11,Nastavení!$E$5,IF(Nastavení!$D$6='Kalendářní plán'!GX11,Nastavení!$E$6,IF(Nastavení!$D$7='Kalendářní plán'!GX11,Nastavení!$E$7,IF(Nastavení!$D$2='Kalendářní plán'!GY11,Nastavení!$E$2,IF(Nastavení!$D$4='Kalendářní plán'!GY11,Nastavení!$E$4,IF(Nastavení!$D$5='Kalendářní plán'!GY11,Nastavení!$E$5,IF(Nastavení!$D$6='Kalendářní plán'!GY11,Nastavení!$E$6,IF(Nastavení!$D$7='Kalendářní plán'!GY11,Nastavení!$E$7,\"\")))))))))))))))","v":""},null,null,{"$f":"IF(Nastavení!$D$2='Kalendářní plán'!GZ11,Nastavení!$E$2,IF(Nastavení!$D$4='Kalendářní plán'!GZ11,Nastavení!$E$4,IF(Nastavení!$D$5='Kalendářní plán'!GZ11,Nastavení!$E$5,IF(Nastavení!$D$6='Kalendářní plán'!GZ11,Nastavení!$E$6,IF(Nastavení!$D$7='Kalendářní plán'!GZ11,Nastavení!$E$7,IF(Nastavení!$D$2='Kalendářní plán'!HA11,Nastavení!$E$2,IF(Nastavení!$D$4='Kalendářní plán'!HA11,Nastavení!$E$4,IF(Nastavení!$D$5='Kalendářní plán'!HA11,Nastavení!$E$5,IF(Nastavení!$D$6='Kalendářní plán'!HA11,Nastavení!$E$6,IF(Nastavení!$D$7='Kalendářní plán'!HA11,Nastavení!$E$7,IF(Nastavení!$D$2='Kalendářní plán'!HB11,Nastavení!$E$2,IF(Nastavení!$D$4='Kalendářní plán'!HB11,Nastavení!$E$4,IF(Nastavení!$D$5='Kalendářní plán'!HB11,Nastavení!$E$5,IF(Nastavení!$D$6='Kalendářní plán'!HB11,Nastavení!$E$6,IF(Nastavení!$D$7='Kalendářní plán'!HB11,Nastavení!$E$7,\"\")))))))))))))))","v":""},null,null,{"$f":"IF(Nastavení!$D$2='Kalendářní plán'!HC11,Nastavení!$E$2,IF(Nastavení!$D$4='Kalendářní plán'!HC11,Nastavení!$E$4,IF(Nastavení!$D$5='Kalendářní plán'!HC11,Nastavení!$E$5,IF(Nastavení!$D$6='Kalendářní plán'!HC11,Nastavení!$E$6,IF(Nastavení!$D$7='Kalendářní plán'!HC11,Nastavení!$E$7,IF(Nastavení!$D$2='Kalendářní plán'!HD11,Nastavení!$E$2,IF(Nastavení!$D$4='Kalendářní plán'!HD11,Nastavení!$E$4,IF(Nastavení!$D$5='Kalendářní plán'!HD11,Nastavení!$E$5,IF(Nastavení!$D$6='Kalendářní plán'!HD11,Nastavení!$E$6,IF(Nastavení!$D$7='Kalendářní plán'!HD11,Nastavení!$E$7,IF(Nastavení!$D$2='Kalendářní plán'!HE11,Nastavení!$E$2,IF(Nastavení!$D$4='Kalendářní plán'!HE11,Nastavení!$E$4,IF(Nastavení!$D$5='Kalendářní plán'!HE11,Nastavení!$E$5,IF(Nastavení!$D$6='Kalendářní plán'!HE11,Nastavení!$E$6,IF(Nastavení!$D$7='Kalendářní plán'!HE11,Nastavení!$E$7,\"\")))))))))))))))","v":""},null,null,{"$f":"IF(Nastavení!$D$2='Kalendářní plán'!HF11,Nastavení!$E$2,IF(Nastavení!$D$4='Kalendářní plán'!HF11,Nastavení!$E$4,IF(Nastavení!$D$5='Kalendářní plán'!HF11,Nastavení!$E$5,IF(Nastavení!$D$6='Kalendářní plán'!HF11,Nastavení!$E$6,IF(Nastavení!$D$7='Kalendářní plán'!HF11,Nastavení!$E$7,IF(Nastavení!$D$2='Kalendářní plán'!HG11,Nastavení!$E$2,IF(Nastavení!$D$4='Kalendářní plán'!HG11,Nastavení!$E$4,IF(Nastavení!$D$5='Kalendářní plán'!HG11,Nastavení!$E$5,IF(Nastavení!$D$6='Kalendářní plán'!HG11,Nastavení!$E$6,IF(Nastavení!$D$7='Kalendářní plán'!HG11,Nastavení!$E$7,IF(Nastavení!$D$2='Kalendářní plán'!HH11,Nastavení!$E$2,IF(Nastavení!$D$4='Kalendářní plán'!HH11,Nastavení!$E$4,IF(Nastavení!$D$5='Kalendářní plán'!HH11,Nastavení!$E$5,IF(Nastavení!$D$6='Kalendářní plán'!HH11,Nastavení!$E$6,IF(Nastavení!$D$7='Kalendářní plán'!HH11,Nastavení!$E$7,\"\")))))))))))))))","v":""},null,null,{"$f":"IF(Nastavení!$D$2='Kalendářní plán'!HI11,Nastavení!$E$2,IF(Nastavení!$D$4='Kalendářní plán'!HI11,Nastavení!$E$4,IF(Nastavení!$D$5='Kalendářní plán'!HI11,Nastavení!$E$5,IF(Nastavení!$D$6='Kalendářní plán'!HI11,Nastavení!$E$6,IF(Nastavení!$D$7='Kalendářní plán'!HI11,Nastavení!$E$7,IF(Nastavení!$D$2='Kalendářní plán'!HJ11,Nastavení!$E$2,IF(Nastavení!$D$4='Kalendářní plán'!HJ11,Nastavení!$E$4,IF(Nastavení!$D$5='Kalendářní plán'!HJ11,Nastavení!$E$5,IF(Nastavení!$D$6='Kalendářní plán'!HJ11,Nastavení!$E$6,IF(Nastavení!$D$7='Kalendářní plán'!HJ11,Nastavení!$E$7,IF(Nastavení!$D$2='Kalendářní plán'!HK11,Nastavení!$E$2,IF(Nastavení!$D$4='Kalendářní plán'!HK11,Nastavení!$E$4,IF(Nastavení!$D$5='Kalendářní plán'!HK11,Nastavení!$E$5,IF(Nastavení!$D$6='Kalendářní plán'!HK11,Nastavení!$E$6,IF(Nastavení!$D$7='Kalendářní plán'!HK11,Nastavení!$E$7,\"\")))))))))))))))","v":""},null,null,{"$f":"IF(Nastavení!$D$2='Kalendářní plán'!HL11,Nastavení!$E$2,IF(Nastavení!$D$4='Kalendářní plán'!HL11,Nastavení!$E$4,IF(Nastavení!$D$5='Kalendářní plán'!HL11,Nastavení!$E$5,IF(Nastavení!$D$6='Kalendářní plán'!HL11,Nastavení!$E$6,IF(Nastavení!$D$7='Kalendářní plán'!HL11,Nastavení!$E$7,IF(Nastavení!$D$2='Kalendářní plán'!HM11,Nastavení!$E$2,IF(Nastavení!$D$4='Kalendářní plán'!HM11,Nastavení!$E$4,IF(Nastavení!$D$5='Kalendářní plán'!HM11,Nastavení!$E$5,IF(Nastavení!$D$6='Kalendářní plán'!HM11,Nastavení!$E$6,IF(Nastavení!$D$7='Kalendářní plán'!HM11,Nastavení!$E$7,IF(Nastavení!$D$2='Kalendářní plán'!HN11,Nastavení!$E$2,IF(Nastavení!$D$4='Kalendářní plán'!HN11,Nastavení!$E$4,IF(Nastavení!$D$5='Kalendářní plán'!HN11,Nastavení!$E$5,IF(Nastavení!$D$6='Kalendářní plán'!HN11,Nastavení!$E$6,IF(Nastavení!$D$7='Kalendářní plán'!HN11,Nastavení!$E$7,\"\")))))))))))))))","v":""},null,null,{"$f":"IF(Nastavení!$D$2='Kalendářní plán'!HO11,Nastavení!$E$2,IF(Nastavení!$D$4='Kalendářní plán'!HO11,Nastavení!$E$4,IF(Nastavení!$D$5='Kalendářní plán'!HO11,Nastavení!$E$5,IF(Nastavení!$D$6='Kalendářní plán'!HO11,Nastavení!$E$6,IF(Nastavení!$D$7='Kalendářní plán'!HO11,Nastavení!$E$7,IF(Nastavení!$D$2='Kalendářní plán'!HP11,Nastavení!$E$2,IF(Nastavení!$D$4='Kalendářní plán'!HP11,Nastavení!$E$4,IF(Nastavení!$D$5='Kalendářní plán'!HP11,Nastavení!$E$5,IF(Nastavení!$D$6='Kalendářní plán'!HP11,Nastavení!$E$6,IF(Nastavení!$D$7='Kalendářní plán'!HP11,Nastavení!$E$7,IF(Nastavení!$D$2='Kalendářní plán'!HQ11,Nastavení!$E$2,IF(Nastavení!$D$4='Kalendářní plán'!HQ11,Nastavení!$E$4,IF(Nastavení!$D$5='Kalendářní plán'!HQ11,Nastavení!$E$5,IF(Nastavení!$D$6='Kalendářní plán'!HQ11,Nastavení!$E$6,IF(Nastavení!$D$7='Kalendářní plán'!HQ11,Nastavení!$E$7,\"\")))))))))))))))","v":""},null,null,{"$f":"IF(Nastavení!$D$2='Kalendářní plán'!HR11,Nastavení!$E$2,IF(Nastavení!$D$4='Kalendářní plán'!HR11,Nastavení!$E$4,IF(Nastavení!$D$5='Kalendářní plán'!HR11,Nastavení!$E$5,IF(Nastavení!$D$6='Kalendářní plán'!HR11,Nastavení!$E$6,IF(Nastavení!$D$7='Kalendářní plán'!HR11,Nastavení!$E$7,IF(Nastavení!$D$2='Kalendářní plán'!HS11,Nastavení!$E$2,IF(Nastavení!$D$4='Kalendářní plán'!HS11,Nastavení!$E$4,IF(Nastavení!$D$5='Kalendářní plán'!HS11,Nastavení!$E$5,IF(Nastavení!$D$6='Kalendářní plán'!HS11,Nastavení!$E$6,IF(Nastavení!$D$7='Kalendářní plán'!HS11,Nastavení!$E$7,IF(Nastavení!$D$2='Kalendářní plán'!HT11,Nastavení!$E$2,IF(Nastavení!$D$4='Kalendářní plán'!HT11,Nastavení!$E$4,IF(Nastavení!$D$5='Kalendářní plán'!HT11,Nastavení!$E$5,IF(Nastavení!$D$6='Kalendářní plán'!HT11,Nastavení!$E$6,IF(Nastavení!$D$7='Kalendářní plán'!HT11,Nastavení!$E$7,\"\")))))))))))))))","v":""},null,null,{"$f":"IF(Nastavení!$D$2='Kalendářní plán'!HU11,Nastavení!$E$2,IF(Nastavení!$D$4='Kalendářní plán'!HU11,Nastavení!$E$4,IF(Nastavení!$D$5='Kalendářní plán'!HU11,Nastavení!$E$5,IF(Nastavení!$D$6='Kalendářní plán'!HU11,Nastavení!$E$6,IF(Nastavení!$D$7='Kalendářní plán'!HU11,Nastavení!$E$7,IF(Nastavení!$D$2='Kalendářní plán'!HV11,Nastavení!$E$2,IF(Nastavení!$D$4='Kalendářní plán'!HV11,Nastavení!$E$4,IF(Nastavení!$D$5='Kalendářní plán'!HV11,Nastavení!$E$5,IF(Nastavení!$D$6='Kalendářní plán'!HV11,Nastavení!$E$6,IF(Nastavení!$D$7='Kalendářní plán'!HV11,Nastavení!$E$7,IF(Nastavení!$D$2='Kalendářní plán'!HW11,Nastavení!$E$2,IF(Nastavení!$D$4='Kalendářní plán'!HW11,Nastavení!$E$4,IF(Nastavení!$D$5='Kalendářní plán'!HW11,Nastavení!$E$5,IF(Nastavení!$D$6='Kalendářní plán'!HW11,Nastavení!$E$6,IF(Nastavení!$D$7='Kalendářní plán'!HW11,Nastavení!$E$7,\"\")))))))))))))))","v":""},null,null,{"$f":"IF(Nastavení!$D$2='Kalendářní plán'!HX11,Nastavení!$E$2,IF(Nastavení!$D$4='Kalendářní plán'!HX11,Nastavení!$E$4,IF(Nastavení!$D$5='Kalendářní plán'!HX11,Nastavení!$E$5,IF(Nastavení!$D$6='Kalendářní plán'!HX11,Nastavení!$E$6,IF(Nastavení!$D$7='Kalendářní plán'!HX11,Nastavení!$E$7,IF(Nastavení!$D$2='Kalendářní plán'!HY11,Nastavení!$E$2,IF(Nastavení!$D$4='Kalendářní plán'!HY11,Nastavení!$E$4,IF(Nastavení!$D$5='Kalendářní plán'!HY11,Nastavení!$E$5,IF(Nastavení!$D$6='Kalendářní plán'!HY11,Nastavení!$E$6,IF(Nastavení!$D$7='Kalendářní plán'!HY11,Nastavení!$E$7,IF(Nastavení!$D$2='Kalendářní plán'!HZ11,Nastavení!$E$2,IF(Nastavení!$D$4='Kalendářní plán'!HZ11,Nastavení!$E$4,IF(Nastavení!$D$5='Kalendářní plán'!HZ11,Nastavení!$E$5,IF(Nastavení!$D$6='Kalendářní plán'!HZ11,Nastavení!$E$6,IF(Nastavení!$D$7='Kalendářní plán'!HZ11,Nastavení!$E$7,\"\")))))))))))))))","v":""},null,null,{"$f":"IF(Nastavení!$D$2='Kalendářní plán'!IA11,Nastavení!$E$2,IF(Nastavení!$D$4='Kalendářní plán'!IA11,Nastavení!$E$4,IF(Nastavení!$D$5='Kalendářní plán'!IA11,Nastavení!$E$5,IF(Nastavení!$D$6='Kalendářní plán'!IA11,Nastavení!$E$6,IF(Nastavení!$D$7='Kalendářní plán'!IA11,Nastavení!$E$7,IF(Nastavení!$D$2='Kalendářní plán'!IB11,Nastavení!$E$2,IF(Nastavení!$D$4='Kalendářní plán'!IB11,Nastavení!$E$4,IF(Nastavení!$D$5='Kalendářní plán'!IB11,Nastavení!$E$5,IF(Nastavení!$D$6='Kalendářní plán'!IB11,Nastavení!$E$6,IF(Nastavení!$D$7='Kalendářní plán'!IB11,Nastavení!$E$7,IF(Nastavení!$D$2='Kalendářní plán'!IC11,Nastavení!$E$2,IF(Nastavení!$D$4='Kalendářní plán'!IC11,Nastavení!$E$4,IF(Nastavení!$D$5='Kalendářní plán'!IC11,Nastavení!$E$5,IF(Nastavení!$D$6='Kalendářní plán'!IC11,Nastavení!$E$6,IF(Nastavení!$D$7='Kalendářní plán'!IC11,Nastavení!$E$7,\"\")))))))))))))))","v":""},null,null,{"$f":"IF(Nastavení!$D$2='Kalendářní plán'!ID11,Nastavení!$E$2,IF(Nastavení!$D$4='Kalendářní plán'!ID11,Nastavení!$E$4,IF(Nastavení!$D$5='Kalendářní plán'!ID11,Nastavení!$E$5,IF(Nastavení!$D$6='Kalendářní plán'!ID11,Nastavení!$E$6,IF(Nastavení!$D$7='Kalendářní plán'!ID11,Nastavení!$E$7,IF(Nastavení!$D$2='Kalendářní plán'!IE11,Nastavení!$E$2,IF(Nastavení!$D$4='Kalendářní plán'!IE11,Nastavení!$E$4,IF(Nastavení!$D$5='Kalendářní plán'!IE11,Nastavení!$E$5,IF(Nastavení!$D$6='Kalendářní plán'!IE11,Nastavení!$E$6,IF(Nastavení!$D$7='Kalendářní plán'!IE11,Nastavení!$E$7,IF(Nastavení!$D$2='Kalendářní plán'!IF11,Nastavení!$E$2,IF(Nastavení!$D$4='Kalendářní plán'!IF11,Nastavení!$E$4,IF(Nastavení!$D$5='Kalendářní plán'!IF11,Nastavení!$E$5,IF(Nastavení!$D$6='Kalendářní plán'!IF11,Nastavení!$E$6,IF(Nastavení!$D$7='Kalendářní plán'!IF11,Nastavení!$E$7,\"\")))))))))))))))","v":""},null,null,{"$f":"IF(Nastavení!$D$2='Kalendářní plán'!IG11,Nastavení!$E$2,IF(Nastavení!$D$4='Kalendářní plán'!IG11,Nastavení!$E$4,IF(Nastavení!$D$5='Kalendářní plán'!IG11,Nastavení!$E$5,IF(Nastavení!$D$6='Kalendářní plán'!IG11,Nastavení!$E$6,IF(Nastavení!$D$7='Kalendářní plán'!IG11,Nastavení!$E$7,IF(Nastavení!$D$2='Kalendářní plán'!IH11,Nastavení!$E$2,IF(Nastavení!$D$4='Kalendářní plán'!IH11,Nastavení!$E$4,IF(Nastavení!$D$5='Kalendářní plán'!IH11,Nastavení!$E$5,IF(Nastavení!$D$6='Kalendářní plán'!IH11,Nastavení!$E$6,IF(Nastavení!$D$7='Kalendářní plán'!IH11,Nastavení!$E$7,IF(Nastavení!$D$2='Kalendářní plán'!II11,Nastavení!$E$2,IF(Nastavení!$D$4='Kalendářní plán'!II11,Nastavení!$E$4,IF(Nastavení!$D$5='Kalendářní plán'!II11,Nastavení!$E$5,IF(Nastavení!$D$6='Kalendářní plán'!II11,Nastavení!$E$6,IF(Nastavení!$D$7='Kalendářní plán'!II11,Nastavení!$E$7,\"\")))))))))))))))","v":""},null,null,{"$f":"IF(Nastavení!$D$2='Kalendářní plán'!IJ11,Nastavení!$E$2,IF(Nastavení!$D$4='Kalendářní plán'!IJ11,Nastavení!$E$4,IF(Nastavení!$D$5='Kalendářní plán'!IJ11,Nastavení!$E$5,IF(Nastavení!$D$6='Kalendářní plán'!IJ11,Nastavení!$E$6,IF(Nastavení!$D$7='Kalendářní plán'!IJ11,Nastavení!$E$7,IF(Nastavení!$D$2='Kalendářní plán'!IK11,Nastavení!$E$2,IF(Nastavení!$D$4='Kalendářní plán'!IK11,Nastavení!$E$4,IF(Nastavení!$D$5='Kalendářní plán'!IK11,Nastavení!$E$5,IF(Nastavení!$D$6='Kalendářní plán'!IK11,Nastavení!$E$6,IF(Nastavení!$D$7='Kalendářní plán'!IK11,Nastavení!$E$7,IF(Nastavení!$D$2='Kalendářní plán'!IL11,Nastavení!$E$2,IF(Nastavení!$D$4='Kalendářní plán'!IL11,Nastavení!$E$4,IF(Nastavení!$D$5='Kalendářní plán'!IL11,Nastavení!$E$5,IF(Nastavení!$D$6='Kalendářní plán'!IL11,Nastavení!$E$6,IF(Nastavení!$D$7='Kalendářní plán'!IL11,Nastavení!$E$7,\"\")))))))))))))))","v":""},null,null,{"$f":"IF(Nastavení!$D$2='Kalendářní plán'!IM11,Nastavení!$E$2,IF(Nastavení!$D$4='Kalendářní plán'!IM11,Nastavení!$E$4,IF(Nastavení!$D$5='Kalendářní plán'!IM11,Nastavení!$E$5,IF(Nastavení!$D$6='Kalendářní plán'!IM11,Nastavení!$E$6,IF(Nastavení!$D$7='Kalendářní plán'!IM11,Nastavení!$E$7,IF(Nastavení!$D$2='Kalendářní plán'!IN11,Nastavení!$E$2,IF(Nastavení!$D$4='Kalendářní plán'!IN11,Nastavení!$E$4,IF(Nastavení!$D$5='Kalendářní plán'!IN11,Nastavení!$E$5,IF(Nastavení!$D$6='Kalendářní plán'!IN11,Nastavení!$E$6,IF(Nastavení!$D$7='Kalendářní plán'!IN11,Nastavení!$E$7,IF(Nastavení!$D$2='Kalendářní plán'!IO11,Nastavení!$E$2,IF(Nastavení!$D$4='Kalendářní plán'!IO11,Nastavení!$E$4,IF(Nastavení!$D$5='Kalendářní plán'!IO11,Nastavení!$E$5,IF(Nastavení!$D$6='Kalendářní plán'!IO11,Nastavení!$E$6,IF(Nastavení!$D$7='Kalendářní plán'!IO11,Nastavení!$E$7,\"\")))))))))))))))","v":""},null,null,{"$f":"IF(Nastavení!$D$2='Kalendářní plán'!IP11,Nastavení!$E$2,IF(Nastavení!$D$4='Kalendářní plán'!IP11,Nastavení!$E$4,IF(Nastavení!$D$5='Kalendářní plán'!IP11,Nastavení!$E$5,IF(Nastavení!$D$6='Kalendářní plán'!IP11,Nastavení!$E$6,IF(Nastavení!$D$7='Kalendářní plán'!IP11,Nastavení!$E$7,IF(Nastavení!$D$2='Kalendářní plán'!IQ11,Nastavení!$E$2,IF(Nastavení!$D$4='Kalendářní plán'!IQ11,Nastavení!$E$4,IF(Nastavení!$D$5='Kalendářní plán'!IQ11,Nastavení!$E$5,IF(Nastavení!$D$6='Kalendářní plán'!IQ11,Nastavení!$E$6,IF(Nastavení!$D$7='Kalendářní plán'!IQ11,Nastavení!$E$7,IF(Nastavení!$D$2='Kalendářní plán'!IR11,Nastavení!$E$2,IF(Nastavení!$D$4='Kalendářní plán'!IR11,Nastavení!$E$4,IF(Nastavení!$D$5='Kalendářní plán'!IR11,Nastavení!$E$5,IF(Nastavení!$D$6='Kalendářní plán'!IR11,Nastavení!$E$6,IF(Nastavení!$D$7='Kalendářní plán'!IR11,Nastavení!$E$7,\"\")))))))))))))))","v":""},null,null,{"$f":"DATE(IS10,1,1)","v":"1900-01-01"}]
[null,"Úkol","Poznámka","Plní","Odpovídá","Součinnot","Lhůta splnění","Doba realizace","Zahájení","Ukončení","Platnost","Vybránno",{"$f":"Nastavení!D3-2","v":2021},{"$nulls":11},{"$f":"M10+1","v":2022},{"$nulls":11},{"$f":"Y10+1","v":2023},{"$nulls":11},{"$f":"AK10+1","v":2024},{"$nulls":11},{"$f":"AW10+1","v":2025},{"$nulls":11},{"$f":"BI10+1","v":2026},{"$nulls":11},{"$f":"BU10+1","v":2027},{"$nulls":11},{"$f":"CG10+1","v":2028},{"$nulls":11},{"$f":"CS10+1","v":2029},{"$nulls":11},{"$f":"DE10+1","v":2030},{"$nulls":11},{"$f":"DQ10+1","v":2031},{"$nulls":11},{"$f":"EC10+1","v":2032},{"$nulls":11},{"$f":"EO10+1","v":2033},{"$nulls":11},{"$f":"FA10+1","v":2034},{"$nulls":11},{"$f":"FM10+1","v":2035},{"$nulls":11},{"$f":"FY10+1","v":2036},{"$nulls":11},{"$f":"GK10+1","v":2037},{"$nulls":11},{"$f":"GW10+1","v":2038},{"$nulls":11},{"$f":"HI10+1","v":2039},{"$nulls":11},{"$f":"HU10+1","v":2040}]
[{"$nulls":12},{"$f":"DATE(M10,1,1)","v":"2021-01-01"},{"$f":"DATE(M10,2,1)","v":"2021-02-01"},{"$f":"DATE(M10,3,1)","v":"2021-03-01"},{"$f":"DATE(M10,4,1)","v":"2021-04-01"},{"$f":"DATE(M10,5,1)","v":"2021-05-01"},{"$f":"DATE(M10,6,1)","v":"2021-06-01"},{"$f":"DATE(M10,7,1)","v":"2021-07-01"},{"$f":"DATE(M10,8,1)","v":"2021-08-01"},{"$f":"DATE(M10,9,1)","v":"2021-09-01"},{"$f":"DATE(M10,10,1)","v":"2021-10-01"},{"$f":"DATE(M10,11,1)","v":"2021-11-01"},{"$f":"DATE(M10,12,1)","v":"2021-12-01"},{"$f":"DATE(Y10,1,1)","v":"2022-01-01"},{"$f":"DATE(Y10,2,1)","v":"2022-02-01"},{"$f":"DATE(Y10,3,1)","v":"2022-03-01"},{"$f":"DATE(Y10,4,1)","v":"2022-04-01"},{"$f":"DATE(Y10,5,1)","v":"2022-05-01"},{"$f":"DATE(Y10,6,1)","v":"2022-06-01"},{"$f":"DATE(Y10,7,1)","v":"2022-07-01"},{"$f":"DATE(Y10,8,1)","v":"2022-08-01"},{"$f":"DATE(Y10,9,1)","v":"2022-09-01"},{"$f":"DATE(Y10,10,1)","v":"2022-10-01"},{"$f":"DATE(Y10,11,1)","v":"2022-11-01"},{"$f":"DATE(Y10,12,1)","v":"2022-12-01"},{"$f":"DATE(AK10,1,1)","v":"2023-01-01"},{"$f":"DATE(AK10,2,1)","v":"2023-02-01"},{"$f":"DATE(AK10,3,1)","v":"2023-03-01"},{"$f":"DATE(AK10,4,1)","v":"2023-04-01"},{"$f":"DATE(AK10,5,1)","v":"2023-05-01"},{"$f":"DATE(AK10,6,1)","v":"2023-06-01"},{"$f":"DATE(AK10,7,1)","v":"2023-07-01"},{"$f":"DATE(AK10,8,1)","v":"2023-08-01"},{"$f":"DATE(AK10,9,1)","v":"2023-09-01"},{"$f":"DATE(AK10,10,1)","v":"2023-10-01"},{"$f":"DATE(AK10,11,1)","v":"2023-11-01"},{"$f":"DATE(AK10,12,1)","v":"2023-12-01"},{"$f":"DATE(AW10,1,1)","v":"2024-01-01"},{"$f":"DATE(AW10,2,1)","v":"2024-02-01"},{"$f":"DATE(AW10,3,1)","v":"2024-03-01"},{"$f":"DATE(AW10,4,1)","v":"2024-04-01"},{"$f":"DATE(AW10,5,1)","v":"2024-05-01"},{"$f":"DATE(AW10,6,1)","v":"2024-06-01"},{"$f":"DATE(AW10,7,1)","v":"2024-07-01"},{"$f":"DATE(AW10,8,1)","v":"2024-08-01"},{"$f":"DATE(AW10,9,1)","v":"2024-09-01"},{"$f":"DATE(AW10,10,1)","v":"2024-10-01"},{"$f":"DATE(AW10,11,1)","v":"2024-11-01"},{"$f":"DATE(AW10,12,1)","v":"2024-12-01"},{"$f":"DATE(BI10,1,1)","v":"2025-01-01"},{"$f":"DATE(BI10,2,1)","v":"2025-02-01"},{"$f":"DATE(BI10,3,1)","v":"2025-03-01"},{"$f":"DATE(BI10,4,1)","v":"2025-04-01"},{"$f":"DATE(BI10,5,1)","v":"2025-05-01"},{"$f":"DATE(BI10,6,1)","v":"2025-06-01"},{"$f":"DATE(BI10,7,1)","v":"2025-07-01"},{"$f":"DATE(BI10,8,1)","v":"2025-08-01"},{"$f":"DATE(BI10,9,1)","v":"2025-09-01"},{"$f":"DATE(BI10,10,1)","v":"2025-10-01"},{"$f":"DATE(BI10,11,1)","v":"2025-11-01"},{"$f":"DATE(BI10,12,1)","v":"2025-12-01"},{"$f":"DATE(BU10,1,1)","v":"2026-01-01"},{"$f":"DATE(BU10,2,1)","v":"2026-02-01"},{"$f":"DATE(BU10,3,1)","v":"2026-03-01"},{"$f":"DATE(BU10,4,1)","v":"2026-04-01"},{"$f":"DATE(BU10,5,1)","v":"2026-05-01"},{"$f":"DATE(BU10,6,1)","v":"2026-06-01"},{"$f":"DATE(BU10,7,1)","v":"2026-07-01"},{"$f":"DATE(BU10,8,1)","v":"2026-08-01"},{"$f":"DATE(BU10,9,1)","v":"2026-09-01"},{"$f":"DATE(BU10,10,1)","v":"2026-10-01"},{"$f":"DATE(BU10,11,1)","v":"2026-11-01"},{"$f":"DATE(BU10,12,1)","v":"2026-12-01"},{"$f":"DATE(CG10,1,1)","v":"2027-01-01"},{"$f":"DATE(CG10,2,1)","v":"2027-02-01"},{"$f":"DATE(CG10,3,1)","v":"2027-03-01"},{"$f":"DATE(CG10,4,1)","v":"2027-04-01"},{"$f":"DATE(CG10,5,1)","v":"2027-05-01"},{"$f":"DATE(CG10,6,1)","v":"2027-06-01"},{"$f":"DATE(CG10,7,1)","v":"2027-07-01"},{"$f":"DATE(CG10,8,1)","v":"2027-08-01"},{"$f":"DATE(CG10,9,1)","v":"2027-09-01"},{"$f":"DATE(CG10,10,1)","v":"2027-10-01"},{"$f":"DATE(CG10,11,1)","v":"2027-11-01"},{"$f":"DATE(CG10,12,1)","v":"2027-12-01"},{"$f":"DATE(CS10,1,1)","v":"2028-01-01"},{"$f":"DATE(CS10,2,1)","v":"2028-02-01"},{"$f":"DATE(CS10,3,1)","v":"2028-03-01"},{"$f":"DATE(CS10,4,1)","v":"2028-04-01"},{"$f":"DATE(CS10,5,1)","v":"2028-05-01"},{"$f":"DATE(CS10,6,1)","v":"2028-06-01"},{"$f":"DATE(CS10,7,1)","v":"2028-07-01"},{"$f":"DATE(CS10,8,1)","v":"2028-08-01"},{"$f":"DATE(CS10,9,1)","v":"2028-09-01"},{"$f":"DATE(CS10,10,1)","v":"2028-10-01"},{"$f":"DATE(CS10,11,1)","v":"2028-11-01"},{"$f":"DATE(CS10,12,1)","v":"2028-12-01"},{"$f":"DATE(DE10,1,1)","v":"2029-01-01"},{"$f":"DATE(DE10,2,1)","v":"2029-02-01"},{"$f":"DATE(DE10,3,1)","v":"2029-03-01"},{"$f":"DATE(DE10,4,1)","v":"2029-04-01"},{"$f":"DATE(DE10,5,1)","v":"2029-05-01"},{"$f":"DATE(DE10,6,1)","v":"2029-06-01"},{"$f":"DATE(DE10,7,1)","v":"2029-07-01"},{"$f":"DATE(DE10,8,1)","v":"2029-08-01"},{"$f":"DATE(DE10,9,1)","v":"2029-09-01"},{"$f":"DATE(DE10,10,1)","v":"2029-10-01"},{"$f":"DATE(DE10,11,1)","v":"2029-11-01"},{"$f":"DATE(DE10,12,1)","v":"2029-12-01"},{"$f":"DATE(DQ10,1,1)","v":"2030-01-01"},{"$f":"DATE(DQ10,2,1)","v":"2030-02-01"},{"$f":"DATE(DQ10,3,1)","v":"2030-03-01"},{"$f":"DATE(DQ10,4,1)","v":"2030-04-01"},{"$f":"DATE(DQ10,5,1)","v":"2030-05-01"},{"$f":"DATE(DQ10,6,1)","v":"2030-06-01"},{"$f":"DATE(DQ10,7,1)","v":"2030-07-01"},{"$f":"DATE(DQ10,8,1)","v":"2030-08-01"},{"$f":"DATE(DQ10,9,1)","v":"2030-09-01"},{"$f":"DATE(DQ10,10,1)","v":"2030-10-01"},{"$f":"DATE(DQ10,11,1)","v":"2030-11-01"},{"$f":"DATE(DQ10,12,1)","v":"2030-12-01"},{"$f":"DATE(EC10,1,1)","v":"2031-01-01"},{"$f":"DATE(EC10,2,1)","v":"2031-02-01"},{"$f":"DATE(EC10,3,1)","v":"2031-03-01"},{"$f":"DATE(EC10,4,1)","v":"2031-04-01"},{"$f":"DATE(EC10,5,1)","v":"2031-05-01"},{"$f":"DATE(EC10,6,1)","v":"2031-06-01"},{"$f":"DATE(EC10,7,1)","v":"2031-07-01"},{"$f":"DATE(EC10,8,1)","v":"2031-08-01"},{"$f":"DATE(EC10,9,1)","v":"2031-09-01"},{"$f":"DATE(EC10,10,1)","v":"2031-10-01"},{"$f":"DATE(EC10,11,1)","v":"2031-11-01"},{"$f":"DATE(EC10,12,1)","v":"2031-12-01"},{"$f":"DATE(EO10,1,1)","v":"2032-01-01"},{"$f":"DATE(EO10,2,1)","v":"2032-02-01"},{"$f":"DATE(EO10,3,1)","v":"2032-03-01"},{"$f":"DATE(EO10,4,1)","v":"2032-04-01"},{"$f":"DATE(EO10,5,1)","v":"2032-05-01"},{"$f":"DATE(EO10,6,1)","v":"2032-06-01"},{"$f":"DATE(EO10,7,1)","v":"2032-07-01"},{"$f":"DATE(EO10,8,1)","v":"2032-08-01"},{"$f":"DATE(EO10,9,1)","v":"2032-09-01"},{"$f":"DATE(EO10,10,1)","v":"2032-10-01"},{"$f":"DATE(EO10,11,1)","v":"2032-11-01"},{"$f":"DATE(EO10,12,1)","v":"2032-12-01"},{"$f":"DATE(FA10,1,1)","v":"2033-01-01"},{"$f":"DATE(FA10,2,1)","v":"2033-02-01"},{"$f":"DATE(FA10,3,1)","v":"2033-03-01"},{"$f":"DATE(FA10,4,1)","v":"2033-04-01"},{"$f":"DATE(FA10,5,1)","v":"2033-05-01"},{"$f":"DATE(FA10,6,1)","v":"2033-06-01"},{"$f":"DATE(FA10,7,1)","v":"2033-07-01"},{"$f":"DATE(FA10,8,1)","v":"2033-08-01"},{"$f":"DATE(FA10,9,1)","v":"2033-09-01"},{"$f":"DATE(FA10,10,1)","v":"2033-10-01"},{"$f":"DATE(FA10,11,1)","v":"2033-11-01"},{"$f":"DATE(FA10,12,1)","v":"2033-12-01"},{"$f":"DATE(FM10,1,1)","v":"2034-01-01"},{"$f":"DATE(FM10,2,1)","v":"2034-02-01"},{"$f":"DATE(FM10,3,1)","v":"2034-03-01"},{"$f":"DATE(FM10,4,1)","v":"2034-04-01"},{"$f":"DATE(FM10,5,1)","v":"2034-05-01"},{"$f":"DATE(FM10,6,1)","v":"2034-06-01"},{"$f":"DATE(FM10,7,1)","v":"2034-07-01"},{"$f":"DATE(FM10,8,1)","v":"2034-08-01"},{"$f":"DATE(FM10,9,1)","v":"2034-09-01"},{"$f":"DATE(FM10,10,1)","v":"2034-10-01"},{"$f":"DATE(FM10,11,1)","v":"2034-11-01"},{"$f":"DATE(FM10,12,1)","v":"2034-12-01"},{"$f":"DATE(FY10,1,1)","v":"2035-01-01"},{"$f":"DATE(FY10,2,1)","v":"2035-02-01"},{"$f":"DATE(FY10,3,1)","v":"2035-03-01"},{"$f":"DATE(FY10,4,1)","v":"2035-04-01"},{"$f":"DATE(FY10,5,1)","v":"2035-05-01"},{"$f":"DATE(FY10,6,1)","v":"2035-06-01"},{"$f":"DATE(FY10,7,1)","v":"2035-07-01"},{"$f":"DATE(FY10,8,1)","v":"2035-08-01"},{"$f":"DATE(FY10,9,1)","v":"2035-09-01"},{"$f":"DATE(FY10,10,1)","v":"2035-10-01"},{"$f":"DATE(FY10,11,1)","v":"2035-11-01"},{"$f":"DATE(FY10,12,1)","v":"2035-12-01"},{"$f":"DATE(GK10,1,1)","v":"2036-01-01"},{"$f":"DATE(GK10,2,1)","v":"2036-02-01"},{"$f":"DATE(GK10,3,1)","v":"2036-03-01"},{"$f":"DATE(GK10,4,1)","v":"2036-04-01"},{"$f":"DATE(GK10,5,1)","v":"2036-05-01"},{"$f":"DATE(GK10,6,1)","v":"2036-06-01"},{"$f":"DATE(GK10,7,1)","v":"2036-07-01"},{"$f":"DATE(GK10,8,1)","v":"2036-08-01"},{"$f":"DATE(GK10,9,1)","v":"2036-09-01"},{"$f":"DATE(GK10,10,1)","v":"2036-10-01"},{"$f":"DATE(GK10,11,1)","v":"2036-11-01"},{"$f":"DATE(GK10,12,1)","v":"2036-12-01"},{"$f":"DATE(GW10,1,1)","v":"2037-01-01"},{"$f":"DATE(GW10,2,1)","v":"2037-02-01"},{"$f":"DATE(GW10,3,1)","v":"2037-03-01"},{"$f":"DATE(GW10,4,1)","v":"2037-04-01"},{"$f":"DATE(GW10,5,1)","v":"2037-05-01"},{"$f":"DATE(GW10,6,1)","v":"2037-06-01"},{"$f":"DATE(GW10,7,1)","v":"2037-07-01"},{"$f":"DATE(GW10,8,1)","v":"2037-08-01"},{"$f":"DATE(GW10,9,1)","v":"2037-09-01"},{"$f":"DATE(GW10,10,1)","v":"2037-10-01"},{"$f":"DATE(GW10,11,1)","v":"2037-11-01"},{"$f":"DATE(GW10,12,1)","v":"2037-12-01"},{"$f":"DATE(HI10,1,1)","v":"2038-01-01"},{"$f":"DATE(HI10,2,1)","v":"2038-02-01"},{"$f":"DATE(HI10,3,1)","v":"2038-03-01"},{"$f":"DATE(HI10,4,1)","v":"2038-04-01"},{"$f":"DATE(HI10,5,1)","v":"2038-05-01"},{"$f":"DATE(HI10,6,1)","v":"2038-06-01"},{"$f":"DATE(HI10,7,1)","v":"2038-07-01"},{"$f":"DATE(HI10,8,1)","v":"2038-08-01"},{"$f":"DATE(HI10,9,1)","v":"2038-09-01"},{"$f":"DATE(HI10,10,1)","v":"2038-10-01"},{"$f":"DATE(HI10,11,1)","v":"2038-11-01"},{"$f":"DATE(HI10,12,1)","v":"2038-12-01"},{"$f":"DATE(HU10,1,1)","v":"2039-01-01"},{"$f":"DATE(HU10,2,1)","v":"2039-02-01"},{"$f":"DATE(HU10,3,1)","v":"2039-03-01"},{"$f":"DATE(HU10,4,1)","v":"2039-04-01"},{"$f":"DATE(HU10,5,1)","v":"2039-05-01"},{"$f":"DATE(HU10,6,1)","v":"2039-06-01"},{"$f":"DATE(HU10,7,1)","v":"2039-07-01"},{"$f":"DATE(HU10,8,1)","v":"2039-08-01"},{"$f":"DATE(HU10,9,1)","v":"2039-09-01"},{"$f":"DATE(HU10,10,1)","v":"2039-10-01"},{"$f":"DATE(HU10,11,1)","v":"2039-11-01"},{"$f":"DATE(HU10,12,1)","v":"2039-12-01"},{"$f":"DATE(IG10,1,1)","v":"2040-01-01"},{"$f":"DATE(IG10,2,1)","v":"2040-02-01"},{"$f":"DATE(IG10,3,1)","v":"2040-03-01"},{"$f":"DATE(IG10,4,1)","v":"2040-04-01"},{"$f":"DATE(IG10,5,1)","v":"2040-05-01"},{"$f":"DATE(IG10,6,1)","v":"2040-06-01"},{"$f":"DATE(IG10,7,1)","v":"2040-07-01"},{"$f":"DATE(IG10,8,1)","v":"2040-08-01"},{"$f":"DATE(IG10,9,1)","v":"2040-09-01"},{"$f":"DATE(IG10,10,1)","v":"2040-10-01"},{"$f":"DATE(IG10,11,1)","v":"2040-11-01"},{"$f":"DATE(IG10,12,1)","v":"2040-12-01"}]
["Předakviziční",{"$nulls":7},{"$f":"IF(H12=\"\",\"\",DATE(YEAR(J12),MONTH(J12)-H12,DAY(J12)))","v":""},{"$f":"IF(G12=\"\",\"\",DATE(YEAR(F6),MONTH(F6)+G12,DAY(F6)))","v":""}]
["Doktríny",{"$nulls":7},"",{"$f":"IF(G13=\"\",\"\",DATE(YEAR(F6),MONTH(F6)+G13,DAY(F6)))","v":""}]
[null,"Provést analýzu doktríny druhu vojska (služby) a případně navrhnout její změnu.",{"$nulls":4},-40,null,"",{"$f":"IF(G14=\"\",\"\",DATE(YEAR(F6),MONTH(F6)+G14,DAY(F6)))","v":"2020-02-01"},"D"]
["Akviziční",{"$nulls":7},"",{"$f":"IF(G15=\"\",\"\",DATE(YEAR(F6),MONTH(F6)+G15,DAY(F6)))","v":""}]
["Doktríny",{"$nulls":7},"",{"$f":"IF(G16=\"\",\"\",DATE(YEAR(F6),MONTH(F6)+G16,DAY(F6)))","v":""}]
[null,"Aktualizovat nebo vydat nový předpis pro výcvik s technikou.",{"$nulls":4},12,null,"",{"$f":"IF(G17=\"\",\"\",DATE(YEAR(F6),MONTH(F6)+G17,DAY(F6)))","v":"2024-06-01"},"D"]
{"$rows_empty":73}
[{"$nulls":8},{"$f":"IF(H91=\"\",\"\",DATE(YEAR($F$6),MONTH($F$6)-H91,DAY($F$6)))","v":""},{"$f":"IF(G91=\"\",\"\",$F$6-G91)","v":""}]
[{"$nulls":8},"",""]
[{"$nulls":8},"",""]
[{"$nulls":8},"",""]
[{"$nulls":8},"",""]
[{"$nulls":8},"",""]
[{"$nulls":8},"",""]
[{"$nulls":8},"",""]
[{"$nulls":8},"",""]
[{"$nulls":8},"",""]
[{"$nulls":8},"",""]
[{"$nulls":8},"",""]
[{"$nulls":8},"",""]
[{"$nulls":8},"",""]
[{"$nulls":8},"",""]
[{"$nulls":8},"",""]
[{"$nulls":8},"",""]
[{"$nulls":8},"",""]
[{"$nulls":8},"",""]
[{"$nulls":8},"",""]
[{"$nulls":8},"",""]
[{"$nulls":8},"",""]
[{"$nulls":8},"",""]
[{"$nulls":8},"",""]
[{"$nulls":8},"",""]
[{"$nulls":8},"",""]
[{"$nulls":8},"",""]
[{"$nulls":8},"",""]
[{"$nulls":8},"",""]
[{"$nulls":8},"",""]
[{"$nulls":8},"",""]
[{"$nulls":8},"",""]
[{"$nulls":8},"",""]
[{"$nulls":8},"",""]
[{"$nulls":8},"",""]
[{"$nulls":8},"",""]
[{"$nulls":8},"",""]
[{"$nulls":8},"",""]
[{"$nulls":8},"",""]
[{"$nulls":8},"",""]
[{"$nulls":8},"",""]
[{"$nulls":8},"",""]
[{"$nulls":8},"",""]
[{"$nulls":8},"",""]
[{"$nulls":8},"",""]
[{"$nulls":8},"",""]
[{"$nulls":8},"",""]
[{"$nulls":8},"",""]
[{"$nulls":8},"",""]
[{"$nulls":8},"",""]

{"sheet":"Grafický plán","index":5,"n_rows":5,"n_cols":242,"rows_kept":5,"merged":[[2,2,2,4],[2,5,2,7],[2,8,2,10],[2,11,2,13],[2,14,2,16],[2,17,2,19],[2,20,2,22],[2,23,2,25],[2,26,2,28],[2,29,2,31],[2,32,2,34],[2,35,2,37],[2,38,2,40],[2,41,2,43],[2,44,2,46],[2,47,2,49],[2,50,2,52],[2,53,2,55],[2,56,2,58],[2,59,2,61],[2,62,2,64],[2,65,2,67],[2,68,2,70],[2,71,2,73],[2,74,2,76],[2,77,2,79],[2,80,2,82],[2,83,2,85],[2,86,2,88],[2,89,2,91],[2,92,2,94],[2,95,2,97],[2,98,2,100],[2,101,2,103],[2,104,2,106],[2,107,2,109],[2,110,2,112],[2,113,2,115],[2,116,2,118],[2,119,2,121],[2,122,2,124],[2,125,2,127],[2,128,2,130],[2,131,2,133],[2,134,2,136],[2,137,2,139],[2,140,2,142],[2,143,2,145],[2,146,2,148],[2,149,2,151],[2,152,2,154],[2,155,2,157],[2,158,2,160],[2,161,2,163],[2,164,2,166],[2,167,2,169],[2,170,2,172],[2,173,2,175],[2,176,2,178],[2,179,2,181],[2,182,2,184],[2,185,2,187],[2,188,2,190],[2,191,2,193],[2,194,2,196],[2,197,2,199],[2,200,2,202],[2,203,2,205],[2,206,2,208],[2,209,2,211],[2,212,2,214],[2,215,2,217],[2,218,2,220],[2,221,2,223],[2,224,2,226],[2,227,2,229],[2,230,2,232],[2,233,2,235],[2,236,2,238],[2,239,2,241],[3,2,3,13],[3,14,3,25],[3,26,3,37],[3,38,3,49],[3,50,3,61],[3,62,3,73],[3,74,3,85],[3,86,3,97],[3,98,3,109],[3,110,3,121],[3,122,3,133],[3,134,3,145],[3,146,3,157],[3,158,3,169],[3,170,3,181],[3,182,3,193],[3,194,3,205],[3,206,3,217],[3,218,3,229],[3,230,3,241]]}
[]
[null,"Grafické znázornění",{"$nulls":239},"Příloha 1"]
[null,null,{"$f":"IF(C5=Nastavení!$D$2,Nastavení!$E$2,IF(C5=Nastavení!$D$4,Nastavení!$E$4,IF(C5=Nastavení!$D$5,Nastavení!$E$5,IF(C5=Nastavení!$D$6,Nastavení!$E$6,IF(C5=Nastavení!$D$7,Nastavení!$E$7,IF(D5=Nastavení!$D$2,Nastavení!$E$2,IF(D5=Nastavení!$D$4,Nastavení!$E$4,IF(D5=Nastavení!$D$5,Nastavení!$E$5,IF(D5=Nastavení!$D$6,Nastavení!$E$6,IF(D5=Nastavení!$D$7,Nastavení!$E$7,IF(E5=Nastavení!$D$2,Nastavení!$E$2,IF(E5=Nastavení!$D$4,Nastavení!$E$4,IF(E5=Nastavení!$D$5,Nastavení!$E$5,IF(E5=Nastavení!$D$6,Nastavení!$E$6,IF(E5=Nastavení!$D$7,Nastavení!$E$7,\"\")))))))))))))))","v":""},null,null,{"$f":"IF(F5=Nastavení!$D$2,Nastavení!$E$2,IF(F5=Nastavení!$D$4,Nastavení!$E$4,IF(F5=Nastavení!$D$5,Nastavení!$E$5,IF(F5=Nastavení!$D$6,Nastavení!$E$6,IF(F5=Nastavení!$D$7,Nastavení!$E$7,IF(G5=Nastavení!$D$2,Nastavení!$E$2,IF(G5=Nastavení!$D$4,Nastavení!$E$4,IF(G5=Nastavení!$D$5,Nastavení!$E$5,IF(G5=Nastavení!$D$6,Nastavení!$E$6,IF(G5=Nastavení!$D$7,Nastavení!$E$7,IF(H5=Nastavení!$D$2,Nastavení!$E$2,IF(H5=Nastavení!$D$4,Nastavení!$E$4,IF(H5=Nastavení!$D$5,Nastavení!$E$5,IF(H5=Nastavení!$D$6,Nastavení!$E$6,IF(H5=Nastavení!$D$7,Nastavení!$E$7,\"\")))))))))))))))","v":""},null,null,{"$f":"IF(I5=Nastavení!$D$2,Nastavení!$E$2,IF(I5=Nastavení!$D$4,Nastavení!$E$4,IF(I5=Nastavení!$D$5,Nastavení!$E$5,IF(I5=Nastavení!$D$6,Nastavení!$E$6,IF(I5=Nastavení!$D$7,Nastavení!$E$7,IF(J5=Nastavení!$D$2,Nastavení!$E$2,IF(J5=Nastavení!$D$4,Nastavení!$E$4,IF(J5=Nastavení!$D$5,Nastavení!$E$5,IF(J5=Nastavení!$D$6,Nastavení!$E$6,IF(J5=Nastavení!$D$7,Nastavení!$E$7,IF(K5=Nastavení!$D$2,Nastavení!$E$2,IF(K5=Nastavení!$D$4,Nastavení!$E$4,IF(K5=Nastavení!$D$5,Nastavení!$E$5,IF(K5=Nastavení!$D$6,Nastavení!$E$6,IF(K5=Nastavení!$D$7,Nastavení!$E$7,\"\")))))))))))))))","v":"specifikace"},null,null,{"$f":"IF(L5=Nastavení!$D$2,Nastavení!$E$2,IF(L5=Nastavení!$D$4,Nastavení!$E$4,IF(L5=Nastavení!$D$5,Nastavení!$E$5,IF(L5=Nastavení!$D$6,Nastavení!$E$6,IF(L5=Nastavení!$D$7,Nastavení!$E$7,IF(M5=Nastavení!$D$2,Nastavení!$E$2,IF(M5=Nastavení!$D$4,Nastavení!$E$4,IF(M5=Nastavení!$D$5,Nastavení!$E$5,IF(M5=Nastavení!$D$6,Nastavení!$E$6,IF(M5=Nastavení!$D$7,Nastavení!$E$7,IF(N5=Nastavení!$D$2,Nastavení!$E$2,IF(N5=Nastavení!$D$4,Nastavení!$E$4,IF(N5=Nastavení!$D$5,Nastavení!$E$5,IF(N5=Nastavení!$D$6,Nastavení!$E$6,IF(N5=Nastavení!$D$7,Nastavení!$E$7,\"\")))))))))))))))","v":""},null,null,{"$f":"IF(O5=Nastavení!$D$2,Nastavení!$E$2,IF(O5=Nastavení!$D$4,Nastavení!$E$4,IF(O5=Nastavení!$D$5,Nastavení!$E$5,IF(O5=Nastavení!$D$6,Nastavení!$E$6,IF(O5=Nastavení!$D$7,Nastavení!$E$7,IF(P5=Nastavení!$D$2,Nastavení!$E$2,IF(P5=Nastavení!$D$4,Nastavení!$E$4,IF(P5=Nastavení!$D$5,Nastavení!$E$5,IF(P5=Nastavení!$D$6,Nastavení!$E$6,IF(P5=Nastavení!$D$7,Nastavení!$E$7,IF(Q5=Nastavení!$D$2,Nastavení!$E$2,IF(Q5=Nastavení!$D$4,Nastavení!$E$4,IF(Q5=Nastavení!$D$5,Nastavení!$E$5,IF(Q5=Nastavení!$D$6,Nastavení!$E$6,IF(Q5=Nastavení!$D$7,Nastavení!$E$7,\"\")))))))))))))))","v":""},null,null,{"$f":"IF(R5=Nastavení!$D$2,Nastavení!$E$2,IF(R5=Nastavení!$D$4,Nastavení!$E$4,IF(R5=Nastavení!$D$5,Nastavení!$E$5,IF(R5=Nastavení!$D$6,Nastavení!$E$6,IF(R5=Nastavení!$D$7,Nastavení!$E$7,IF(S5=Nastavení!$D$2,Nastavení!$E$2,IF(S5=Nastavení!$D$4,Nastavení!$E$4,IF(S5=Nastavení!$D$5,Nastavení!$E$5,IF(S5=Nastavení!$D$6,Nastavení!$E$6,IF(S5=Nastavení!$D$7,Nastavení!$E$7,IF(T5=Nastavení!$D$2,Nastavení!$E$2,IF(T5=Nastavení!$D$4,Nastavení!$E$4,IF(T5=Nastavení!$D$5,Nastavení!$E$5,IF(T5=Nastavení!$D$6,Nastavení!$E$6,IF(T5=Nastavení!$D$7,Nastavení!$E$7,\"\")))))))))))))))","v":""},null,null,{"$f":"IF(U5=Nastavení!$D$2,Nastavení!$E$2,IF(U5=Nastavení!$D$4,Nastavení!$E$4,IF(U5=Nastavení!$D$5,Nastavení!$E$5,IF(U5=Nastavení!$D$6,Nastavení!$E$6,IF(U5=Nastavení!$D$7,Nastavení!$E$7,IF(V5=Nastavení!$D$2,Nastavení!$E$2,IF(V5=Nastavení!$D$4,Nastavení!$E$4,IF(V5=Nastavení!$D$5,Nastavení!$E$5,IF(V5=Nastavení!$D$6,Nastavení!$E$6,IF(V5=Nastavení!$D$7,Nastavení!$E$7,IF(W5=Nastavení!$D$2,Nastavení!$E$2,IF(W5=Nastavení!$D$4,Nastavení!$E$4,IF(W5=Nastavení!$D$5,Nastavení!$E$5,IF(W5=Nastavení!$D$6,Nastavení!$E$6,IF(W5=Nastavení!$D$7,Nastavení!$E$7,\"\")))))))))))))))","v":""},null,null,{"$f":"IF(X5=Nastavení!$D$2,Nastavení!$E$2,IF(X5=Nastavení!$D$4,Nastavení!$E$4,IF(X5=Nastavení!$D$5,Nastavení!$E$5,IF(X5=Nastavení!$D$6,Nastavení!$E$6,IF(X5=Nastavení!$D$7,Nastavení!$E$7,IF(Y5=Nastavení!$D$2,Nastavení!$E$2,IF(Y5=Nastavení!$D$4,Nastavení!$E$4,IF(Y5=Nastavení!$D$5,Nastavení!$E$5,IF(Y5=Nastavení!$D$6,Nastavení!$E$6,IF(Y5=Nastavení!$D$7,Nastavení!$E$7,IF(Z5=Nastavení!$D$2,Nastavení!$E$2,IF(Z5=Nastavení!$D$4,Nastavení!$E$4,IF(Z5=Nastavení!$D$5,Nastavení!$E$5,IF(Z5=Nastavení!$D$6,Nastavení!$E$6,IF(Z5=Nastavení!$D$7,Nastavení!$E$7,\"\")))))))))))))))","v":""},null,null,{"$f":"IF(AA5=Nastavení!$D$2,Nastavení!$E$2,IF(AA5=Nastavení!$D$4,Nastavení!$E$4,IF(AA5=Nastavení!$D$5,Nastavení!$E$5,IF(AA5=Nastavení!$D$6,Nastavení!$E$6,IF(AA5=Nastavení!$D$7,Nastavení!$E$7,IF(AB5=Nastavení!$D$2,Nastavení!$E$2,IF(AB5=Nastavení!$D$4,Nastavení!$E$4,IF(AB5=Nastavení!$D$5,Nastavení!$E$5,IF(AB5=Nastavení!$D$6,Nastavení!$E$6,IF(AB5=Nastavení!$D$7,Nastavení!$E$7,IF(AC5=Nastavení!$D$2,Nastavení!$E$2,IF(AC5=Nastavení!$D$4,Nastavení!$E$4,IF(AC5=Nastavení!$D$5,Nastavení!$E$5,IF(AC5=Nastavení!$D$6,Nastavení!$E$6,IF(AC5=Nastavení!$D$7,Nastavení!$E$7,\"\")))))))))))))))","v":""},null,null,{"$f":"IF(AD5=Nastavení!$D$2,Nastavení!$E$2,IF(AD5=Nastavení!$D$4,Nastavení!$E$4,IF(AD5=Nastavení!$D$5,Nastavení!$E$5,IF(AD5=Nastavení!$D$6,Nastavení!$E$6,IF(AD5=Nastavení!$D$7,Nastavení!$E$7,IF(AE5=Nastavení!$D$2,Nastavení!$E$2,IF(AE5=Nastavení!$D$4,Nastavení!$E$4,IF(AE5=Nastavení!$D$5,Nastavení!$E$5,IF(AE5=Nastavení!$D$6,Nastavení!$E$6,IF(AE5=Nastavení!$D$7,Nastavení!$E$7,IF(AF5=Nastavení!$D$2,Nastavení!$E$2,IF(AF5=Nastavení!$D$4,Nastavení!$E$4,IF(AF5=Nastavení!$D$5,Nastavení!$E$5,IF(AF5=Nastavení!$D$6,Nastavení!$E$6,IF(AF5=Nastavení!$D$7,Nastavení!$E$7,\"\")))))))))))))))","v":"smlouva"},null,null,{"$f":"IF(AG5=Nastavení!$D$2,Nastavení!$E$2,IF(AG5=Nastavení!$D$4,Nastavení!$E$4,IF(AG5=Nastavení!$D$5,Nastavení!$E$5,IF(AG5=Nastavení!$D$6,Nastavení!$E$6,IF(AG5=Nastavení!$D$7,Nastavení!$E$7,IF(AH5=Nastavení!$D$2,Nastavení!$E$2,IF(AH5=Nastavení!$D$4,Nastavení!$E$4,IF(AH5=Nastavení!$D$5,Nastavení!$E$5,IF(AH5=Nastavení!$D$6,Nastavení!$E$6,IF(AH5=Nastavení!$D$7,Nastavení!$E$7,IF(AI5=Nastavení!$D$2,Nastavení!$E$2,IF(AI5=Nastavení!$D$4,Nastavení!$E$4,IF(AI5=Nastavení!$D$5,Nastavení!$E$5,IF(AI5=Nastavení!$D$6,Nastavení!$E$6,IF(AI5=Nastavení!$D$7,Nastavení!$E$7,\"\")))))))))))))))","v":""},null,null,{"$f":"IF(AJ5=Nastavení!$D$2,Nastavení!$E$2,IF(AJ5=Nastavení!$D$4,Nastavení!$E$4,IF(AJ5=Nastavení!$D$5,Nastavení!$E$5,IF(AJ5=Nastavení!$D$6,Nastavení!$E$6,IF(AJ5=Nastavení!$D$7,Nastavení!$E$7,IF(AK5=Nastavení!$D$2,Nastavení!$E$2,IF(AK5=Nastavení!$D$4,Nastavení!$E$4,IF(AK5=Nastavení!$D$5,Nastavení!$E$5,IF(AK5=Nastavení!$D$6,Nastavení!$E$6,IF(AK5=Nastavení!$D$7,Nastavení!$E$7,IF(AL5=Nastavení!$D$2,Nastavení!$E$2,IF(AL5=Nastavení!$D$4,Nastavení!$E$4,IF(AL5=Nastavení!$D$5,Nastavení!$E$5,IF(AL5=Nastavení!$D$6,Nastavení!$E$6,IF(AL5=Nastavení!$D$7,Nastavení!$E$7,\"\")))))))))))))))","v":"VZ"},null,null,{"$f":"IF(AM5=Nastavení!$D$2,Nastavení!$E$2,IF(AM5=Nastavení!$D$4,Nastavení!$E$4,IF(AM5=Nastavení!$D$5,Nastavení!$E$5,IF(AM5=Nastavení!$D$6,Nastavení!$E$6,IF(AM5=Nastavení!$D$7,Nastavení!$E$7,IF(AN5=Nastavení!$D$2,Nastavení!$E$2,IF(AN5=Nastavení!$D$4,Nastavení!$E$4,IF(AN5=Nastavení!$D$5,Nastavení!$E$5,IF(AN5=Nastavení!$D$6,Nastavení!$E$6,IF(AN5=Nastavení!$D$7,Nastavení!$E$7,IF(AO5=Nastavení!$D$2,Nastavení!$E$2,IF(AO5=Nastavení!$D$4,Nastavení!$E$4,IF(AO5=Nastavení!$D$5,Nastavení!$E$5,IF(AO5=Nastavení!$D$6,Nastavení!$E$6,IF(AO5=Nastavení!$D$7,Nastavení!$E$7,\"\")))))))))))))))","v":""},null,null,{"$f":"IF(AP5=Nastavení!$D$2,Nastavení!$E$2,IF(AP5=Nastavení!$D$4,Nastavení!$E$4,IF(AP5=Nastavení!$D$5,Nastavení!$E$5,IF(AP5=Nastavení!$D$6,Nastavení!$E$6,IF(AP5=Nastavení!$D$7,Nastavení!$E$7,IF(AQ5=Nastavení!$D$2,Nastavení!$E$2,IF(AQ5=Nastavení!$D$4,Nastavení!$E$4,IF(AQ5=Nastavení!$D$5,Nastavení!$E$5,IF(AQ5=Nastavení!$D$6,Nastavení!$E$6,IF(AQ5=Nastavení!$D$7,Nastavení!$E$7,IF(AR5=Nastavení!$D$2,Nastavení!$E$2,IF(AR5=Nastavení!$D$4,Nastavení!$E$4,IF(AR5=Nastavení!$D$5,Nastavení!$E$5,IF(AR5=Nastavení!$D$6,Nastavení!$E$6,IF(AR5=Nastavení!$D$7,Nastavení!$E$7,\"\")))))))))))))))","v":"IOC"},null,null,{"$f":"IF(AS5=Nastavení!$D$2,Nastavení!$E$2,IF(AS5=Nastavení!$D$4,Nastavení!$E$4,IF(AS5=Nastavení!$D$5,Nastavení!$E$5,IF(AS5=Nastavení!$D$6,Nastavení!$E$6,IF(AS5=Nastavení!$D$7,Nastavení!$E$7,IF(AT5=Nastavení!$D$2,Nastavení!$E$2,IF(AT5=Nastavení!$D$4,Nastavení!$E$4,IF(AT5=Nastavení!$D$5,Nastavení!$E$5,IF(AT5=Nastavení!$D$6,Nastavení!$E$6,IF(AT5=Nastavení!$D$7,Nastavení!$E$7,IF(AU5=Nastavení!$D$2,Nastavení!$E$2,IF(AU5=Nastavení!$D$4,Nastavení!$E$4,IF(AU5=Nastavení!$D$5,Nastavení!$E$5,IF(AU5=Nastavení!$D$6,Nastavení!$E$6,IF(AU5=Nastavení!$D$7,Nastavení!$E$7,\"\")))))))))))))))","v":""},null,null,{"$f":"IF(AV5=Nastavení!$D$2,Nastavení!$E$2,IF(AV5=Nastavení!$D$4,Nastavení!$E$4,IF(AV5=Nastavení!$D$5,Nastavení!$E$5,IF(AV5=Nastavení!$D$6,Nastavení!$E$6,IF(AV5=Nastavení!$D$7,Nastavení!$E$7,IF(AW5=Nastavení!$D$2,Nastavení!$E$2,IF(AW5=Nastavení!$D$4,Nastavení!$E$4,IF(AW5=Nastavení!$D$5,Nastavení!$E$5,IF(AW5=Nastavení!$D$6,Nastavení!$E$6,IF(AW5=Nastavení!$D$7,Nastavení!$E$7,IF(AX5=Nastavení!$D$2,Nastavení!$E$2,IF(AX5=Nastavení!$D$4,Nastavení!$E$4,IF(AX5=Nastavení!$D$5,Nastavení!$E$5,IF(AX5=Nastavení!$D$6,Nastavení!$E$6,IF(AX5=Nastavení!$D$7,Nastavení!$E$7,\"\")))))))))))))))","v":"FOC"},null,null,{"$f":"IF(AY5=Nastavení!$D$2,Nastavení!$E$2,IF(AY5=Nastavení!$D$4,Nastavení!$E$4,IF(AY5=Nastavení!$D$5,Nastavení!$E$5,IF(AY5=Nastavení!$D$6,Nastavení!$E$6,IF(AY5=Nastavení!$D$7,Nastavení!$E$7,IF(AZ5=Nastavení!$D$2,Nastavení!$E$2,IF(AZ5=Nastavení!$D$4,Nastavení!$E$4,IF(AZ5=Nastavení!$D$5,Nastavení!$E$5,IF(AZ5=Nastavení!$D$6,Nastavení!$E$6,IF(AZ5=Nastavení!$D$7,Nastavení!$E$7,IF(BA5=Nastavení!$D$2,Nastavení!$E$2,IF(BA5=Nastavení!$D$4,Nastavení!$E$4,IF(BA5=Nastavení!$D$5,Nastavení!$E$5,IF(BA5=Nastavení!$D$6,Nastavení!$E$6,IF(BA5=Nastavení!$D$7,Nastavení!$E$7,\"\")))))))))))))))","v":""},null,null,{"$f":"IF(BB5=Nastavení!$D$2,Nastavení!$E$2,IF(BB5=Nastavení!$D$4,Nastavení!$E$4,IF(BB5=Nastavení!$D$5,Nastavení!$E$5,IF(BB5=Nastavení!$D$6,Nastavení!$E$6,IF(BB5=Nastavení!$D$7,Nastavení!$E$7,IF(BC5=Nastavení!$D$2,Nastavení!$E$2,IF(BC5=Nastavení!$D$4,Nastavení!$E$4,IF(BC5=Nastavení!$D$5,Nastavení!$E$5,IF(BC5=Nastavení!$D$6,Nastavení!$E$6,IF(BC5=Nastavení!$D$7,Nastavení!$E$7,IF(BD5=Nastavení!$D$2,Nastavení!$E$2,IF(BD5=Nastavení!$D$4,Nastavení!$E$4,IF(BD5=Nastavení!$D$5,Nastavení!$E$5,IF(BD5=Nastavení!$D$6,Nastavení!$E$6,IF(BD5=Nastavení!$D$7,Nastavení!$E$7,\"\")))))))))))))))","v":""},null,null,{"$f":"IF(BE5=Nastavení!$D$2,Nastavení!$E$2,IF(BE5=Nastavení!$D$4,Nastavení!$E$4,IF(BE5=Nastavení!$D$5,Nastavení!$E$5,IF(BE5=Nastavení!$D$6,Nastavení!$E$6,IF(BE5=Nastavení!$D$7,Nastavení!$E$7,IF(BF5=Nastavení!$D$2,Nastavení!$E$2,IF(BF5=Nastavení!$D$4,Nastavení!$E$4,IF(BF5=Nastavení!$D$5,Nastavení!$E$5,IF(BF5=Nastavení!$D$6,Nastavení!$E$6,IF(BF5=Nastavení!$D$7,Nastavení!$E$7,IF(BG5=Nastavení!$D$2,Nastavení!$E$2,IF(BG5=Nastavení!$D$4,Nastavení!$E$4,IF(BG5=Nastavení!$D$5,Nastavení!$E$5,IF(BG5=Nastavení!$D$6,Nastavení!$E$6,IF(BG5=Nastavení!$D$7,Nastavení!$E$7,\"\")))))))))))))))","v":""},null,null,{"$f":"IF(BH5=Nastavení!$D$2,Nastavení!$E$2,IF(BH5=Nastavení!$D$4,Nastavení!$E$4,IF(BH5=Nastavení!$D$5,Nastavení!$E$5,IF(BH5=Nastavení!$D$6,Nastavení!$E$6,IF(BH5=Nastavení!$D$7,Nastavení!$E$7,IF(BI5=Nastavení!$D$2,Nastavení!$E$2,IF(BI5=Nastavení!$D$4,Nastavení!$E$4,IF(BI5=Nastavení!$D$5,Nastavení!$E$5,IF(BI5=Nastavení!$D$6,Nastavení!$E$6,IF(BI5=Nastavení!$D$7,Nastavení!$E$7,IF(BJ5=Nastavení!$D$2,Nastavení!$E$2,IF(BJ5=Nastavení!$D$4,Nastavení!$E$4,IF(BJ5=Nastavení!$D$5,Nastavení!$E$5,IF(BJ5=Nastavení!$D$6,Nastavení!$E$6,IF(BJ5=Nastavení!$D$7,Nastavení!$E$7,\"\")))))))))))))))","v":""},null,null,{"$f":"IF(BK5=Nastavení!$D$2,Nastavení!$E$2,IF(BK5=Nastavení!$D$4,Nastavení!$E$4,IF(BK5=Nastavení!$D$5,Nastavení!$E$5,IF(BK5=Nastavení!$D$6,Nastavení!$E$6,IF(BK5=Nastavení!$D$7,Nastavení!$E$7,IF(BL5=Nastavení!$D$2,Nastavení!$E$2,IF(BL5=Nastavení!$D$4,Nastavení!$E$4,IF(BL5=Nastavení!$D$5,Nastavení!$E$5,IF(BL5=Nastavení!$D$6,Nastavení!$E$6,IF(BL5=Nastavení!$D$7,Nastavení!$E$7,IF(BM5=Nastavení!$D$2,Nastavení!$E$2,IF(BM5=Nastavení!$D$4,Nastavení!$E$4,IF(BM5=Nastavení!$D$5,Nastavení!$E$5,IF(BM5=Nastavení!$D$6,Nastavení!$E$6,IF(BM5=Nastavení!$D$7,Nastavení!$E$7,\"\")))))))))))))))","v":""},null,null,{"$f":"IF(BN5=Nastavení!$D$2,Nastavení!$E$2,IF(BN5=Nastavení!$D$4,Nastavení!$E$4,IF(BN5=Nastavení!$D$5,Nastavení!$E$5,IF(BN5=Nastavení!$D$6,Nastavení!$E$6,IF(BN5=Nastavení!$D$7,Nastavení!$E$7,IF(BO5=Nastavení!$D$2,Nastavení!$E$2,IF(BO5=Nastavení!$D$4,Nastavení!$E$4,IF(BO5=Nastavení!$D$5,Nastavení!$E$5,IF(BO5=Nastavení!$D$6,Nastavení!$E$6,IF(BO5=Nastavení!$D$7,Nastavení!$E$7,IF(BP5=Nastavení!$D$2,Nastavení!$E$2,IF(BP5=Nastavení!$D$4,Nastavení!$E$4,IF(BP5=Nastavení!$D$5,Nastavení!$E$5,IF(BP5=Nastavení!$D$6,Nastavení!$E$6,IF(BP5=Nastavení!$D$7,Nastavení!$E$7,\"\")))))))))))))))","v":""},null,null,{"$f":"IF(BQ5=Nastavení!$D$2,Nastavení!$E$2,IF(BQ5=Nastavení!$D$4,Nastavení!$E$4,IF(BQ5=Nastavení!$D$5,Nastavení!$E$5,IF(BQ5=Nastavení!$D$6,Nastavení!$E$6,IF(BQ5=Nastavení!$D$7,Nastavení!$E$7,IF(BR5=Nastavení!$D$2,Nastavení!$E$2,IF(BR5=Nastavení!$D$4,Nastavení!$E$4,IF(BR5=Nastavení!$D$5,Nastavení!$E$5,IF(BR5=Nastavení!$D$6,Nastavení!$E$6,IF(BR5=Nastavení!$D$7,Nastavení!$E$7,IF(BS5=Nastavení!$D$2,Nastavení!$E$2,IF(BS5=Nastavení!$D$4,Nastavení!$E$4,IF(BS5=Nastavení!$D$5,Nastavení!$E$5,IF(BS5=Nastavení!$D$6,Nastavení!$E$6,IF(BS5=Nastavení!$D$7,Nastavení!$E$7,\"\")))))))))))))))","v":""},null,null,{"$f":"IF(BT5=Nastavení!$D$2,Nastavení!$E$2,IF(BT5=Nastavení!$D$4,Nastavení!$E$4,IF(BT5=Nastavení!$D$5,Nastavení!$E$5,IF(BT5=Nastavení!$D$6,Nastavení!$E$6,IF(BT5=Nastavení!$D$7,Nastavení!$E$7,IF(BU5=Nastavení!$D$2,Nastavení!$E$2,IF(BU5=Nastavení!$D$4,Nastavení!$E$4,IF(BU5=Nastavení!$D$5,Nastavení!$E$5,IF(BU5=Nastavení!$D$6,Nastavení!$E$6,IF(BU5=Nastavení!$D$7,Nastavení!$E$7,IF(BV5=Nastavení!$D$2,Nastavení!$E$2,IF(BV5=Nastavení!$D$4,Nastavení!$E$4,IF(BV5=Nastavení!$D$5,Nastavení!$E$5,IF(BV5=Nastavení!$D$6,Nastavení!$E$6,IF(BV5=Nastavení!$D$7,Nastavení!$E$7,\"\")))))))))))))))","v":""},null,null,{"$f":"IF(BW5=Nastavení!$D$2,Nastavení!$E$2,IF(BW5=Nastavení!$D$4,Nastavení!$E$4,IF(BW5=Nastavení!$D$5,Nastavení!$E$5,IF(BW5=Nastavení!$D$6,Nastavení!$E$6,IF(BW5=Nastavení!$D$7,Nastavení!$E$7,IF(BX5=Nastavení!$D$2,Nastavení!$E$2,IF(BX5=Nastavení!$D$4,Nastavení!$E$4,IF(BX5=Nastavení!$D$5,Nastavení!$E$5,IF(BX5=Nastavení!$D$6,Nastavení!$E$6,IF(BX5=Nastavení!$D$7,Nastavení!$E$7,IF(BY5=Nastavení!$D$2,Nastavení!$E$2,IF(BY5=Nastavení!$D$4,Nastavení!$E$4,IF(BY5=Nastavení!$D$5,Nastavení!$E$5,IF(BY5=Nastavení!$D$6,Nastavení!$E$6,IF(BY5=Nastavení!$D$7,Nastavení!$E$7,\"\")))))))))))))))","v":""},null,null,{"$f":"IF(BZ5=Nastavení!$D$2,Nastavení!$E$2,IF(BZ5=Nastavení!$D$4,Nastavení!$E$4,IF(BZ5=Nastavení!$D$5,Nastavení!$E$5,IF(BZ5=Nastavení!$D$6,Nastavení!$E$6,IF(BZ5=Nastavení!$D$7,Nastavení!$E$7,IF(CA5=Nastavení!$D$2,Nastavení!$E$2,IF(CA5=Nastavení!$D$4,Nastavení!$E$4,IF(CA5=Nastavení!$D$5,Nastavení!$E$5,IF(CA5=Nastavení!$D$6,Nastavení!$E$6,IF(CA5=Nastavení!$D$7,Nastavení!$E$7,IF(CB5=Nastavení!$D$2,Nastavení!$E$2,IF(CB5=Nastavení!$D$4,Nastavení!$E$4,IF(CB5=Nastavení!$D$5,Nastavení!$E$5,IF(CB5=Nastavení!$D$6,Nastavení!$E$6,IF(CB5=Nastavení!$D$7,Nastavení!$E$7,\"\")))))))))))))))","v":""},null,null,{"$f":"IF(CC5=Nastavení!$D$2,Nastavení!$E$2,IF(CC5=Nastavení!$D$4,Nastavení!$E$4,IF(CC5=Nastavení!$D$5,Nastavení!$E$5,IF(CC5=Nastavení!$D$6,Nastavení!$E$6,IF(CC5=Nastavení!$D$7,Nastavení!$E$7,IF(CD5=Nastavení!$D$2,Nastavení!$E$2,IF(CD5=Nastavení!$D$4,Nastavení!$E$4,IF(CD5=Nastavení!$D$5,Nastavení!$E$5,IF(CD5=Nastavení!$D$6,Nastavení!$E$6,IF(CD5=Nastavení!$D$7,Nastavení!$E$7,IF(CE5=Nastavení!$D$2,Nastavení!$E$2,IF(CE5=Nastavení!$D$4,Nastavení!$E$4,IF(CE5=Nastavení!$D$5,Nastavení!$E$5,IF(CE5=Nastavení!$D$6,Nastavení!$E$6,IF(CE5=Nastavení!$D$7,Nastavení!$E$7,\"\")))))))))))))))","v":""},null,null,{"$f":"IF(CF5=Nastavení!$D$2,Nastavení!$E$2,IF(CF5=Nastavení!$D$4,Nastavení!$E$4,IF(CF5=Nastavení!$D$5,Nastavení!$E$5,IF(CF5=Nastavení!$D$6,Nastavení!$E$6,IF(CF5=Nastavení!$D$7,Nastavení!$E$7,IF(CG5=Nastavení!$D$2,Nastavení!$E$2,IF(CG5=Nastavení!$D$4,Nastavení!$E$4,IF(CG5=Nastavení!$D$5,Nastavení!$E$5,IF(CG5=Nastavení!$D$6,Nastavení!$E$6,IF(CG5=Nastavení!$D$7,Nastavení!$E$7,IF(CH5=Nastavení!$D$2,Nastavení!$E$2,IF(CH5=Nastavení!$D$4,Nastavení!$E$4,IF(CH5=Nastavení!$D$5,Nastavení!$E$5,IF(CH5=Nastavení!$D$6,Nastavení!$E$6,IF(CH5=Nastavení!$D$7,Nastavení!$E$7,\"\")))))))))))))))","v":""},null,null,{"$f":"IF(CI5=Nastavení!$D$2,Nastavení!$E$2,IF(CI5=Nastavení!$D$4,Nastavení!$E$4,IF(CI5=Nastavení!$D$5,Nastavení!$E$5,IF(CI5=Nastavení!$D$6,Nastavení!$E$6,IF(CI5=Nastavení!$D$7,Nastavení!$E$7,IF(CJ5=Nastavení!$D$2,Nastavení!$E$2,IF(CJ5=Nastavení!$D$4,Nastavení!$E$4,IF(CJ5=Nastavení!$D$5,Nastavení!$E$5,IF(CJ5=Nastavení!$D$6,Nastavení!$E$6,IF(CJ5=Nastavení!$D$7,Nastavení!$E$7,IF(CK5=Nastavení!$D$2,Nastavení!$E$2,IF(CK5=Nastavení!$D$4,Nastavení!$E$4,IF(CK5=Nastavení!$D$5,Nastavení!$E$5,IF(CK5=Nastavení!$D$6,Nastavení!$E$6,IF(CK5=Nastavení!$D$7,Nastavení!$E$7,\"\")))))))))))))))","v":""},null,null,{"$f":"IF(CL5=Nastavení!$D$2,Nastavení!$E$2,IF(CL5=Nastavení!$D$4,Nastavení!$E$4,IF(CL5=Nastavení!$D$5,Nastavení!$E$5,IF(CL5=Nastavení!$D$6,Nastavení!$E$6,IF(CL5=Nastavení!$D$7,Nastavení!$E$7,IF(CM5=Nastavení!$D$2,Nastavení!$E$2,IF(CM5=Nastavení!$D$4,Nastavení!$E$4,IF(CM5=Nastavení!$D$5,Nastavení!$E$5,IF(CM5=Nastavení!$D$6,Nastavení!$E$6,IF(CM5=Nastavení!$D$7,Nastavení!$E$7,IF(CN5=Nastavení!$D$2,Nastavení!$E$2,IF(CN5=Nastavení!$D$4,Nastavení!$E$4,IF(CN5=Nastavení!$D$5,Nastavení!$E$5,IF(CN5=Nastavení!$D$6,Nastavení!$E$6,IF(CN5=Nastavení!$D$7,Nastavení!$E$7,\"\")))))))))))))))","v":""},null,null,{"$f":"IF(CO5=Nastavení!$D$2,Nastavení!$E$2,IF(CO5=Nastavení!$D$4,Nastavení!$E$4,IF(CO5=Nastavení!$D$5,Nastavení!$E$5,IF(CO5=Nastavení!$D$6,Nastavení!$E$6,IF(CO5=Nastavení!$D$7,Nastavení!$E$7,IF(CP5=Nastavení!$D$2,Nastavení!$E$2,IF(CP5=Nastavení!$D$4,Nastavení!$E$4,IF(CP5=Nastavení!$D$5,Nastavení!$E$5,IF(CP5=Nastavení!$D$6,Nastavení!$E$6,IF(CP5=Nastavení!$D$7,Nastavení!$E$7,IF(CQ5=Nastavení!$D$2,Nastavení!$E$2,IF(CQ5=Nastavení!$D$4,Nastavení!$E$4,IF(CQ5=Nastavení!$D$5,Nastavení!$E$5,IF(CQ5=Nastavení!$D$6,Nastavení!$E$6,IF(CQ5=Nastavení!$D$7,Nastavení!$E$7,\"\")))))))))))))))","v":""},null,null,{"$f":"IF(CR5=Nastavení!$D$2,Nastavení!$E$2,IF(CR5=Nastavení!$D$4,Nastavení!$E$4,IF(CR5=Nastavení!$D$5,Nastavení!$E$5,IF(CR5=Nastavení!$D$6,Nastavení!$E$6,IF(CR5=Nastavení!$D$7,Nastavení!$E$7,IF(CS5=Nastavení!$D$2,Nastavení!$E$2,IF(CS5=Nastavení!$D$4,Nastavení!$E$4,IF(CS5=Nastavení!$D$5,Nastavení!$E$5,IF(CS5=Nastavení!$D$6,Nastavení!$E$6,IF(CS5=Nastavení!$D$7,Nastavení!$E$7,IF(CT5=Nastavení!$D$2,Nastavení!$E$2,IF(CT5=Nastavení!$D$4,Nastavení!$E$4,IF(CT5=Nastavení!$D$5,Nastavení!$E$5,IF(CT5=Nastavení!$D$6,Nastavení!$E$6,IF(CT5=Nastavení!$D$7,Nastavení!$E$7,\"\")))))))))))))))","v":""},null,null,{"$f":"IF(CU5=Nastavení!$D$2,Nastavení!$E$2,IF(CU5=Nastavení!$D$4,Nastavení!$E$4,IF(CU5=Nastavení!$D$5,Nastavení!$E$5,IF(CU5=Nastavení!$D$6,Nastavení!$E$6,IF(CU5=Nastavení!$D$7,Nastavení!$E$7,IF(CV5=Nastavení!$D$2,Nastavení!$E$2,IF(CV5=Nastavení!$D$4,Nastavení!$E$4,IF(CV5=Nastavení!$D$5,Nastavení!$E$5,IF(CV5=Nastavení!$D$6,Nastavení!$E$6,IF(CV5=Nastavení!$D$7,Nastavení!$E$7,IF(CW5=Nastavení!$D$2,Nastavení!$E$2,IF(CW5=Nastavení!$D$4,Nastavení!$E$4,IF(CW5=Nastavení!$D$5,Nastavení!$E$5,IF(CW5=Nastavení!$D$6,Nastavení!$E$6,IF(CW5=Nastavení!$D$7,Nastavení!$E$7,\"\")))))))))))))))","v":""},null,null,{"$f":"IF(CX5=Nastavení!$D$2,Nastavení!$E$2,IF(CX5=Nastavení!$D$4,Nastavení!$E$4,IF(CX5=Nastavení!$D$5,Nastavení!$E$5,IF(CX5=Nastavení!$D$6,Nastavení!$E$6,IF(CX5=Nastavení!$D$7,Nastavení!$E$7,IF(CY5=Nastavení!$D$2,Nastavení!$E$2,IF(CY5=Nastavení!$D$4,Nastavení!$E$4,IF(CY5=Nastavení!$D$5,Nastavení!$E$5,IF(CY5=Nastavení!$D$6,Nastavení!$E$6,IF(CY5=Nastavení!$D$7,Nastavení!$E$7,IF(CZ5=Nastavení!$D$2,Nastavení!$E$2,IF(CZ5=Nastavení!$D$4,Nastavení!$E$4,IF(CZ5=Nastavení!$D$5,Nastavení!$E$5,IF(CZ5=Nastavení!$D$6,Nastavení!$E$6,IF(CZ5=Nastavení!$D$7,Nastavení!$E$7,\"\")))))))))))))))","v":""},null,null,{"$f":"IF(DA5=Nastavení!$D$2,Nastavení!$E$2,IF(DA5=Nastavení!$D$4,Nastavení!$E$4,IF(DA5=Nastavení!$D$5,Nastavení!$E$5,IF(DA5=Nastavení!$D$6,Nastavení!$E$6,IF(DA5=Nastavení!$D$7,Nastavení!$E$7,IF(DB5=Nastavení!$D$2,Nastavení!$E$2,IF(DB5=Nastavení!$D$4,Nastavení!$E$4,IF(DB5=Nastavení!$D$5,Nastavení!$E$5,IF(DB5=Nastavení!$D$6,Nastavení!$E$6,IF(DB5=Nastavení!$D$7,Nastavení!$E$7,IF(DC5=Nastavení!$D$2,Nastavení!$E$2,IF(DC5=Nastavení!$D$4,Nastavení!$E$4,IF(DC5=Nastavení!$D$5,Nastavení!$E$5,IF(DC5=Nastavení!$D$6,Nastavení!$E$6,IF(DC5=Nastavení!$D$7,Nastavení!$E$7,\"\")))))))))))))))","v":""},null,null,{"$f":"IF(DD5=Nastavení!$D$2,Nastavení!$E$2,IF(DD5=Nastavení!$D$4,Nastavení!$E$4,IF(DD5=Nastavení!$D$5,Nastavení!$E$5,IF(DD5=Nastavení!$D$6,Nastavení!$E$6,IF(DD5=Nastavení!$D$7,Nastavení!$E$7,IF(DE5=Nastavení!$D$2,Nastavení!$E$2,IF(DE5=Nastavení!$D$4,Nastavení!$E$4,IF(DE5=Nastavení!$D$5,Nastavení!$E$5,IF(DE5=Nastavení!$D$6,Nastavení!$E$6,IF(DE5=Nastavení!$D$7,Nastavení!$E$7,IF(DF5=Nastavení!$D$2,Nastavení!$E$2,IF(DF5=Nastavení!$D$4,Nastavení!$E$4,IF(DF5=Nastavení!$D$5,Nastavení!$E$5,IF(DF5=Nastavení!$D$6,Nastavení!$E$6,IF(DF5=Nastavení!$D$7,Nastavení!$E$7,\"\")))))))))))))))","v":""},null,null,{"$f":"IF(DG5=Nastavení!$D$2,Nastavení!$E$2,IF(DG5=Nastavení!$D$4,Nastavení!$E$4,IF(DG5=Nastavení!$D$5,Nastavení!$E$5,IF(DG5=Nastavení!$D$6,Nastavení!$E$6,IF(DG5=Nastavení!$D$7,Nastavení!$E$7,IF(DH5=Nastavení!$D$2,Nastavení!$E$2,IF(DH5=Nastavení!$D$4,Nastavení!$E$4,IF(DH5=Nastavení!$D$5,Nastavení!$E$5,IF(DH5=Nastavení!$D$6,Nastavení!$E$6,IF(DH5=Nastavení!$D$7,Nastavení!$E$7,IF(DI5=Nastavení!$D$2,Nastavení!$E$2,IF(DI5=Nastavení!$D$4,Nastavení!$E$4,IF(DI5=Nastavení!$D$5,Nastavení!$E$5,IF(DI5=Nastavení!$D$6,Nastavení!$E$6,IF(DI5=Nastavení!$D$7,Nastavení!$E$7,\"\")))))))))))))))","v":""},null,null,{"$f":"IF(DJ5=Nastavení!$D$2,Nastavení!$E$2,IF(DJ5=Nastavení!$D$4,Nastavení!$E$4,IF(DJ5=Nastavení!$D$5,Nastavení!$E$5,IF(DJ5=Nastavení!$D$6,Nastavení!$E$6,IF(DJ5=Nastavení!$D$7,Nastavení!$E$7,IF(DK5=Nastavení!$D$2,Nastavení!$E$2,IF(DK5=Nastavení!$D$4,Nastavení!$E$4,IF(DK5=Nastavení!$D$5,Nastavení!$E$5,IF(DK5=Nastavení!$D$6,Nastavení!$E$6,IF(DK5=Nastavení!$D$7,Nastavení!$E$7,IF(DL5=Nastavení!$D$2,Nastavení!$E$2,IF(DL5=Nastavení!$D$4,Nastavení!$E$4,IF(DL5=Nastavení!$D$5,Nastavení!$E$5,IF(DL5=Nastavení!$D$6,Nastavení!$E$6,IF(DL5=Nastavení!$D$7,Nastavení!$E$7,\"\")))))))))))))))","v":""},null,null,{"$f":"IF(DM5=Nastavení!$D$2,Nastavení!$E$2,IF(DM5=Nastavení!$D$4,Nastavení!$E$4,IF(DM5=Nastavení!$D$5,Nastavení!$E$5,IF(DM5=Nastavení!$D$6,Nastavení!$E$6,IF(DM5=Nastavení!$D$7,Nastavení!$E$7,IF(DN5=Nastavení!$D$2,Nastavení!$E$2,IF(DN5=Nastavení!$D$4,Nastavení!$E$4,IF(DN5=Nastavení!$D$5,Nastavení!$E$5,IF(DN5=Nastavení!$D$6,Nastavení!$E$6,IF(DN5=Nastavení!$D$7,Nastavení!$E$7,IF(DO5=Nastavení!$D$2,Nastavení!$E$2,IF(DO5=Nastavení!$D$4,Nastavení!$E$4,IF(DO5=Nastavení!$D$5,Nastavení!$E$5,IF(DO5=Nastavení!$D$6,Nastavení!$E$6,IF(DO5=Nastavení!$D$7,Nastavení!$E$7,\"\")))))))))))))))","v":""},null,null,{"$f":"IF(DP5=Nastavení!$D$2,Nastavení!$E$2,IF(DP5=Nastavení!$D$4,Nastavení!$E$4,IF(DP5=Nastavení!$D$5,Nastavení!$E$5,IF(DP5=Nastavení!$D$6,Nastavení!$E$6,IF(DP5=Nastavení!$D$7,Nastavení!$E$7,IF(DQ5=Nastavení!$D$2,Nastavení!$E$2,IF(DQ5=Nastavení!$D$4,Nastavení!$E$4,IF(DQ5=Nastavení!$D$5,Nastavení!$E$5,IF(DQ5=Nastavení!$D$6,Nastavení!$E$6,IF(DQ5=Nastavení!$D$7,Nastavení!$E$7,IF(DR5=Nastavení!$D$2,Nastavení!$E$2,IF(DR5=Nastavení!$D$4,Nastavení!$E$4,IF(DR5=Nastavení!$D$5,Nastavení!$E$5,IF(DR5=Nastavení!$D$6,Nastavení!$E$6,IF(DR5=Nastavení!$D$7,Nastavení!$E$7,\"\")))))))))))))))","v":""},null,null,{"$f":"IF(DS5=Nastavení!$D$2,Nastavení!$E$2,IF(DS5=Nastavení!$D$4,Nastavení!$E$4,IF(DS5=Nastavení!$D$5,Nastavení!$E$5,IF(DS5=Nastavení!$D$6,Nastavení!$E$6,IF(DS5=Nastavení!$D$7,Nastavení!$E$7,IF(DT5=Nastavení!$D$2,Nastavení!$E$2,IF(DT5=Nastavení!$D$4,Nastavení!$E$4,IF(DT5=Nastavení!$D$5,Nastavení!$E$5,IF(DT5=Nastavení!$D$6,Nastavení!$E$6,IF(DT5=Nastavení!$D$7,Nastavení!$E$7,IF(DU5=Nastavení!$D$2,Nastavení!$E$2,IF(DU5=Nastavení!$D$4,Nastavení!$E$4,IF(DU5=Nastavení!$D$5,Nastavení!$E$5,IF(DU5=Nastavení!$D$6,Nastavení!$E$6,IF(DU5=Nastavení!$D$7,Nastavení!$E$7,\"\")))))))))))))))","v":""},null,null,{"$f":"IF(DV5=Nastavení!$D$2,Nastavení!$E$2,IF(DV5=Nastavení!$D$4,Nastavení!$E$4,IF(DV5=Nastavení!$D$5,Nastavení!$E$5,IF(DV5=Nastavení!$D$6,Nastavení!$E$6,IF(DV5=Nastavení!$D$7,Nastavení!$E$7,IF(DW5=Nastavení!$D$2,Nastavení!$E$2,IF(DW5=Nastavení!$D$4,Nastavení!$E$4,IF(DW5=Nastavení!$D$5,Nastavení!$E$5,IF(DW5=Nastavení!$D$6,Nastavení!$E$6,IF(DW5=Nastavení!$D$7,Nastavení!$E$7,IF(DX5=Nastavení!$D$2,Nastavení!$E$2,IF(DX5=Nastavení!$D$4,Nastavení!$E$4,IF(DX5=Nastavení!$D$5,Nastavení!$E$5,IF(DX5=Nastavení!$D$6,Nastavení!$E$6,IF(DX5=Nastavení!$D$7,Nastavení!$E$7,\"\")))))))))))))))","v":""},null,null,{"$f":"IF(DY5=Nastavení!$D$2,Nastavení!$E$2,IF(DY5=Nastavení!$D$4,Nastavení!$E$4,IF(DY5=Nastavení!$D$5,Nastavení!$E$5,IF(DY5=Nastavení!$D$6,Nastavení!$E$6,IF(DY5=Nastavení!$D$7,Nastavení!$E$7,IF(DZ5=Nastavení!$D$2,Nastavení!$E$2,IF(DZ5=Nastavení!$D$4,Nastavení!$E$4,IF(DZ5=Nastavení!$D$5,Nastavení!$E$5,IF(DZ5=Nastavení!$D$6,Nastavení!$E$6,IF(DZ5=Nastavení!$D$7,Nastavení!$E$7,IF(EA5=Nastavení!$D$2,Nastavení!$E$2,IF(EA5=Nastavení!$D$4,Nastavení!$E$4,IF(EA5=Nastavení!$D$5,Nastavení!$E$5,IF(EA5=Nastavení!$D$6,Nastavení!$E$6,IF(EA5=Nastavení!$D$7,Nastavení!$E$7,\"\")))))))))))))))","v":""},null,null,{"$f":"IF(EB5=Nastavení!$D$2,Nastavení!$E$2,IF(EB5=Nastavení!$D$4,Nastavení!$E$4,IF(EB5=Nastavení!$D$5,Nastavení!$E$5,IF(EB5=Nastavení!$D$6,Nastavení!$E$6,IF(EB5=Nastavení!$D$7,Nastavení!$E$7,IF(EC5=Nastavení!$D$2,Nastavení!$E$2,IF(EC5=Nastavení!$D$4,Nastavení!$E$4,IF(EC5=Nastavení!$D$5,Nastavení!$E$5,IF(EC5=Nastavení!$D$6,Nastavení!$E$6,IF(EC5=Nastavení!$D$7,Nastavení!$E$7,IF(ED5=Nastavení!$D$2,Nastavení!$E$2,IF(ED5=Nastavení!$D$4,Nastavení!$E$4,IF(ED5=Nastavení!$D$5,Nastavení!$E$5,IF(ED5=Nastavení!$D$6,Nastavení!$E$6,IF(ED5=Nastavení!$D$7,Nastavení!$E$7,\"\")))))))))))))))","v":""},null,null,{"$f":"IF(EE5=Nastavení!$D$2,Nastavení!$E$2,IF(EE5=Nastavení!$D$4,Nastavení!$E$4,IF(EE5=Nastavení!$D$5,Nastavení!$E$5,IF(EE5=Nastavení!$D$6,Nastavení!$E$6,IF(EE5=Nastavení!$D$7,Nastavení!$E$7,IF(EF5=Nastavení!$D$2,Nastavení!$E$2,IF(EF5=Nastavení!$D$4,Nastavení!$E$4,IF(EF5=Nastavení!$D$5,Nastavení!$E$5,IF(EF5=Nastavení!$D$6,Nastavení!$E$6,IF(EF5=Nastavení!$D$7,Nastavení!$E$7,IF(EG5=Nastavení!$D$2,Nastavení!$E$2,IF(EG5=Nastavení!$D$4,Nastavení!$E$4,IF(EG5=Nastavení!$D$5,Nastavení!$E$5,IF(EG5=Nastavení!$D$6,Nastavení!$E$6,IF(EG5=Nastavení!$D$7,Nastavení!$E$7,\"\")))))))))))))))","v":""},null,null,{"$f":"IF(EH5=Nastavení!$D$2,Nastavení!$E$2,IF(EH5=Nastavení!$D$4,Nastavení!$E$4,IF(EH5=Nastavení!$D$5,Nastavení!$E$5,IF(EH5=Nastavení!$D$6,Nastavení!$E$6,IF(EH5=Nastavení!$D$7,Nastavení!$E$7,IF(EI5=Nastavení!$D$2,Nastavení!$E$2,IF(EI5=Nastavení!$D$4,Nastavení!$E$4,IF(EI5=Nastavení!$D$5,Nastavení!$E$5,IF(EI5=Nastavení!$D$6,Nastavení!$E$6,IF(EI5=Nastavení!$D$7,Nastavení!$E$7,IF(EJ5=Nastavení!$D$2,Nastavení!$E$2,IF(EJ5=Nastavení!$D$4,Nastavení!$E$4,IF(EJ5=Nastavení!$D$5,Nastavení!$E$5,IF(EJ5=Nastavení!$D$6,Nastavení!$E$6,IF(EJ5=Nastavení!$D$7,Nastavení!$E$7,\"\")))))))))))))))","v":""},null,null,{"$f":"IF(EK5=Nastavení!$D$2,Nastavení!$E$2,IF(EK5=Nastavení!$D$4,Nastavení!$E$4,IF(EK5=Nastavení!$D$5,Nastavení!$E$5,IF(EK5=Nastavení!$D$6,Nastavení!$E$6,IF(EK5=Nastavení!$D$7,Nastavení!$E$7,IF(EL5=Nastavení!$D$2,Nastavení!$E$2,IF(EL5=Nastavení!$D$4,Nastavení!$E$4,IF(EL5=Nastavení!$D$5,Nastavení!$E$5,IF(EL5=Nastavení!$D$6,Nastavení!$E$6,IF(EL5=Nastavení!$D$7,Nastavení!$E$7,IF(EM5=Nastavení!$D$2,Nastavení!$E$2,IF(EM5=Nastavení!$D$4,Nastavení!$E$4,IF(EM5=Nastavení!$D$5,Nastavení!$E$5,IF(EM5=Nastavení!$D$6,Nastavení!$E$6,IF(EM5=Nastavení!$D$7,Nastavení!$E$7,\"\")))))))))))))))","v":""},null,null,{"$f":"IF(EN5=Nastavení!$D$2,Nastavení!$E$2,IF(EN5=Nastavení!$D$4,Nastavení!$E$4,IF(EN5=Nastavení!$D$5,Nastavení!$E$5,IF(EN5=Nastavení!$D$6,Nastavení!$E$6,IF(EN5=Nastavení!$D$7,Nastavení!$E$7,IF(EO5=Nastavení!$D$2,Nastavení!$E$2,IF(EO5=Nastavení!$D$4,Nastavení!$E$4,IF(EO5=Nastavení!$D$5,Nastavení!$E$5,IF(EO5=Nastavení!$D$6,Nastavení!$E$6,IF(EO5=Nastavení!$D$7,Nastavení!$E$7,IF(EP5=Nastavení!$D$2,Nastavení!$E$2,IF(EP5=Nastavení!$D$4,Nastavení!$E$4,IF(EP5=Nastavení!$D$5,Nastavení!$E$5,IF(EP5=Nastavení!$D$6,Nastavení!$E$6,IF(EP5=Nastavení!$D$7,Nastavení!$E$7,\"\")))))))))))))))","v":""},null,null,{"$f":"IF(EQ5=Nastavení!$D$2,Nastavení!$E$2,IF(EQ5=Nastavení!$D$4,Nastavení!$E$4,IF(EQ5=Nastavení!$D$5,Nastavení!$E$5,IF(EQ5=Nastavení!$D$6,Nastavení!$E$6,IF(EQ5=Nastavení!$D$7,Nastavení!$E$7,IF(ER5=Nastavení!$D$2,Nastavení!$E$2,IF(ER5=Nastavení!$D$4,Nastavení!$E$4,IF(ER5=Nastavení!$D$5,Nastavení!$E$5,IF(ER5=Nastavení!$D$6,Nastavení!$E$6,IF(ER5=Nastavení!$D$7,Nastavení!$E$7,IF(ES5=Nastavení!$D$2,Nastavení!$E$2,IF(ES5=Nastavení!$D$4,Nastavení!$E$4,IF(ES5=Nastavení!$D$5,Nastavení!$E$5,IF(ES5=Nastavení!$D$6,Nastavení!$E$6,IF(ES5=Nastavení!$D$7,Nastavení!$E$7,\"\")))))))))))))))","v":""},null,null,{"$f":"IF(ET5=Nastavení!$D$2,Nastavení!$E$2,IF(ET5=Nastavení!$D$4,Nastavení!$E$4,IF(ET5=Nastavení!$D$5,Nastavení!$E$5,IF(ET5=Nastavení!$D$6,Nastavení!$E$6,IF(ET5=Nastavení!$D$7,Nastavení!$E$7,IF(EU5=Nastavení!$D$2,Nastavení!$E$2,IF(EU5=Nastavení!$D$4,Nastavení!$E$4,IF(EU5=Nastavení!$D$5,Nastavení!$E$5,IF(EU5=Nastavení!$D$6,Nastavení!$E$6,IF(EU5=Nastavení!$D$7,Nastavení!$E$7,IF(EV5=Nastavení!$D$2,Nastavení!$E$2,IF(EV5=Nastavení!$D$4,Nastavení!$E$4,IF(EV5=Nastavení!$D$5,Nastavení!$E$5,IF(EV5=Nastavení!$D$6,Nastavení!$E$6,IF(EV5=Nastavení!$D$7,Nastavení!$E$7,\"\")))))))))))))))","v":""},null,null,{"$f":"IF(EW5=Nastavení!$D$2,Nastavení!$E$2,IF(EW5=Nastavení!$D$4,Nastavení!$E$4,IF(EW5=Nastavení!$D$5,Nastavení!$E$5,IF(EW5=Nastavení!$D$6,Nastavení!$E$6,IF(EW5=Nastavení!$D$7,Nastavení!$E$7,IF(EX5=Nastavení!$D$2,Nastavení!$E$2,IF(EX5=Nastavení!$D$4,Nastavení!$E$4,IF(EX5=Nastavení!$D$5,Nastavení!$E$5,IF(EX5=Nastavení!$D$6,Nastavení!$E$6,IF(EX5=Nastavení!$D$7,Nastavení!$E$7,IF(EY5=Nastavení!$D$2,Nastavení!$E$2,IF(EY5=Nastavení!$D$4,Nastavení!$E$4,IF(EY5=Nastavení!$D$5,Nastavení!$E$5,IF(EY5=Nastavení!$D$6,Nastavení!$E$6,IF(EY5=Nastavení!$D$7,Nastavení!$E$7,\"\")))))))))))))))","v":""},null,null,{"$f":"IF(EZ5=Nastavení!$D$2,Nastavení!$E$2,IF(EZ5=Nastavení!$D$4,Nastavení!$E$4,IF(EZ5=Nastavení!$D$5,Nastavení!$E$5,IF(EZ5=Nastavení!$D$6,Nastavení!$E$6,IF(EZ5=Nastavení!$D$7,Nastavení!$E$7,IF(FA5=Nastavení!$D$2,Nastavení!$E$2,IF(FA5=Nastavení!$D$4,Nastavení!$E$4,IF(FA5=Nastavení!$D$5,Nastavení!$E$5,IF(FA5=Nastavení!$D$6,Nastavení!$E$6,IF(FA5=Nastavení!$D$7,Nastavení!$E$7,IF(FB5=Nastavení!$D$2,Nastavení!$E$2,IF(FB5=Nastavení!$D$4,Nastavení!$E$4,IF(FB5=Nastavení!$D$5,Nastavení!$E$5,IF(FB5=Nastavení!$D$6,Nastavení!$E$6,IF(FB5=Nastavení!$D$7,Nastavení!$E$7,\"\")))))))))))))))","v":""},null,null,{"$f":"IF(FC5=Nastavení!$D$2,Nastavení!$E$2,IF(FC5=Nastavení!$D$4,Nastavení!$E$4,IF(FC5=Nastavení!$D$5,Nastavení!$E$5,IF(FC5=Nastavení!$D$6,Nastavení!$E$6,IF(FC5=Nastavení!$D$7,Nastavení!$E$7,IF(FD5=Nastavení!$D$2,Nastavení!$E$2,IF(FD5=Nastavení!$D$4,Nastavení!$E$4,IF(FD5=Nastavení!$D$5,Nastavení!$E$5,IF(FD5=Nastavení!$D$6,Nastavení!$E$6,IF(FD5=Nastavení!$D$7,Nastavení!$E$7,IF(FE5=Nastavení!$D$2,Nastavení!$E$2,IF(FE5=Nastavení!$D$4,Nastavení!$E$4,IF(FE5=Nastavení!$D$5,Nastavení!$E$5,IF(FE5=Nastavení!$D$6,Nastavení!$E$6,IF(FE5=Nastavení!$D$7,Nastavení!$E$7,\"\")))))))))))))))","v":""},null,null,{"$f":"IF(FF5=Nastavení!$D$2,Nastavení!$E$2,IF(FF5=Nastavení!$D$4,Nastavení!$E$4,IF(FF5=Nastavení!$D$5,Nastavení!$E$5,IF(FF5=Nastavení!$D$6,Nastavení!$E$6,IF(FF5=Nastavení!$D$7,Nastavení!$E$7,IF(FG5=Nastavení!$D$2,Nastavení!$E$2,IF(FG5=Nastavení!$D$4,Nastavení!$E$4,IF(FG5=Nastavení!$D$5,Nastavení!$E$5,IF(FG5=Nastavení!$D$6,Nastavení!$E$6,IF(FG5=Nastavení!$D$7,Nastavení!$E$7,IF(FH5=Nastavení!$D$2,Nastavení!$E$2,IF(FH5=Nastavení!$D$4,Nastavení!$E$4,IF(FH5=Nastavení!$D$5,Nastavení!$E$5,IF(FH5=Nastavení!$D$6,Nastavení!$E$6,IF(FH5=Nastavení!$D$7,Nastavení!$E$7,\"\")))))))))))))))","v":""},null,null,{"$f":"IF(FI5=Nastavení!$D$2,Nastavení!$E$2,IF(FI5=Nastavení!$D$4,Nastavení!$E$4,IF(FI5=Nastavení!$D$5,Nastavení!$E$5,IF(FI5=Nastavení!$D$6,Nastavení!$E$6,IF(FI5=Nastavení!$D$7,Nastavení!$E$7,IF(FJ5=Nastavení!$D$2,Nastavení!$E$2,IF(FJ5=Nastavení!$D$4,Nastavení!$E$4,IF(FJ5=Nastavení!$D$5,Nastavení!$E$5,IF(FJ5=Nastavení!$D$6,Nastavení!$E$6,IF(FJ5=Nastavení!$D$7,Nastavení!$E$7,IF(FK5=Nastavení!$D$2,Nastavení!$E$2,IF(FK5=Nastavení!$D$4,Nastavení!$E$4,IF(FK5=Nastavení!$D$5,Nastavení!$E$5,IF(FK5=Nastavení!$D$6,Nastavení!$E$6,IF(FK5=Nastavení!$D$7,Nastavení!$E$7,\"\")))))))))))))))","v":""},null,null,{"$f":"IF(FL5=Nastavení!$D$2,Nastavení!$E$2,IF(FL5=Nastavení!$D$4,Nastavení!$E$4,IF(FL5=Nastavení!$D$5,Nastavení!$E$5,IF(FL5=Nastavení!$D$6,Nastavení!$E$6,IF(FL5=Nastavení!$D$7,Nastavení!$E$7,IF(FM5=Nastavení!$D$2,Nastavení!$E$2,IF(FM5=Nastavení!$D$4,Nastavení!$E$4,IF(FM5=Nastavení!$D$5,Nastavení!$E$5,IF(FM5=Nastavení!$D$6,Nastavení!$E$6,IF(FM5=Nastavení!$D$7,Nastavení!$E$7,IF(FN5=Nastavení!$D$2,Nastavení!$E$2,IF(FN5=Nastavení!$D$4,Nastavení!$E$4,IF(FN5=Nastavení!$D$5,Nastavení!$E$5,IF(FN5=Nastavení!$D$6,Nastavení!$E$6,IF(FN5=Nastavení!$D$7,Nastavení!$E$7,\"\")))))))))))))))","v":""},null,null,{"$f":"IF(FO5=Nastavení!$D$2,Nastavení!$E$2,IF(FO5=Nastavení!$D$4,Nastavení!$E$4,IF(FO5=Nastavení!$D$5,Nastavení!$E$5,IF(FO5=Nastavení!$D$6,Nastavení!$E$6,IF(FO5=Nastavení!$D$7,Nastavení!$E$7,IF(FP5=Nastavení!$D$2,Nastavení!$E$2,IF(FP5=Nastavení!$D$4,Nastavení!$E$4,IF(FP5=Nastavení!$D$5,Nastavení!$E$5,IF(FP5=Nastavení!$D$6,Nastavení!$E$6,IF(FP5=Nastavení!$D$7,Nastavení!$E$7,IF(FQ5=Nastavení!$D$2,Nastavení!$E$2,IF(FQ5=Nastavení!$D$4,Nastavení!$E$4,IF(FQ5=Nastavení!$D$5,Nastavení!$E$5,IF(FQ5=Nastavení!$D$6,Nastavení!$E$6,IF(FQ5=Nastavení!$D$7,Nastavení!$E$7,\"\")))))))))))))))","v":""},null,null,{"$f":"IF(FR5=Nastavení!$D$2,Nastavení!$E$2,IF(FR5=Nastavení!$D$4,Nastavení!$E$4,IF(FR5=Nastavení!$D$5,Nastavení!$E$5,IF(FR5=Nastavení!$D$6,Nastavení!$E$6,IF(FR5=Nastavení!$D$7,Nastavení!$E$7,IF(FS5=Nastavení!$D$2,Nastavení!$E$2,IF(FS5=Nastavení!$D$4,Nastavení!$E$4,IF(FS5=Nastavení!$D$5,Nastavení!$E$5,IF(FS5=Nastavení!$D$6,Nastavení!$E$6,IF(FS5=Nastavení!$D$7,Nastavení!$E$7,IF(FT5=Nastavení!$D$2,Nastavení!$E$2,IF(FT5=Nastavení!$D$4,Nastavení!$E$4,IF(FT5=Nastavení!$D$5,Nastavení!$E$5,IF(FT5=Nastavení!$D$6,Nastavení!$E$6,IF(FT5=Nastavení!$D$7,Nastavení!$E$7,\"\")))))))))))))))","v":""},null,null,{"$f":"IF(FU5=Nastavení!$D$2,Nastavení!$E$2,IF(FU5=Nastavení!$D$4,Nastavení!$E$4,IF(FU5=Nastavení!$D$5,Nastavení!$E$5,IF(FU5=Nastavení!$D$6,Nastavení!$E$6,IF(FU5=Nastavení!$D$7,Nastavení!$E$7,IF(FV5=Nastavení!$D$2,Nastavení!$E$2,IF(FV5=Nastavení!$D$4,Nastavení!$E$4,IF(FV5=Nastavení!$D$5,Nastavení!$E$5,IF(FV5=Nastavení!$D$6,Nastavení!$E$6,IF(FV5=Nastavení!$D$7,Nastavení!$E$7,IF(FW5=Nastavení!$D$2,Nastavení!$E$2,IF(FW5=Nastavení!$D$4,Nastavení!$E$4,IF(FW5=Nastavení!$D$5,Nastavení!$E$5,IF(FW5=Nastavení!$D$6,Nastavení!$E$6,IF(FW5=Nastavení!$D$7,Nastavení!$E$7,\"\")))))))))))))))","v":""},null,null,{"$f":"IF(FX5=Nastavení!$D$2,Nastavení!$E$2,IF(FX5=Nastavení!$D$4,Nastavení!$E$4,IF(FX5=Nastavení!$D$5,Nastavení!$E$5,IF(FX5=Nastavení!$D$6,Nastavení!$E$6,IF(FX5=Nastavení!$D$7,Nastavení!$E$7,IF(FY5=Nastavení!$D$2,Nastavení!$E$2,IF(FY5=Nastavení!$D$4,Nastavení!$E$4,IF(FY5=Nastavení!$D$5,Nastavení!$E$5,IF(FY5=Nastavení!$D$6,Nastavení!$E$6,IF(FY5=Nastavení!$D$7,Nastavení!$E$7,IF(FZ5=Nastavení!$D$2,Nastavení!$E$2,IF(FZ5=Nastavení!$D$4,Nastavení!$E$4,IF(FZ5=Nastavení!$D$5,Nastavení!$E$5,IF(FZ5=Nastavení!$D$6,Nastavení!$E$6,IF(FZ5=Nastavení!$D$7,Nastavení!$E$7,\"\")))))))))))))))","v":""},null,null,{"$f":"IF(GA5=Nastavení!$D$2,Nastavení!$E$2,IF(GA5=Nastavení!$D$4,Nastavení!$E$4,IF(GA5=Nastavení!$D$5,Nastavení!$E$5,IF(GA5=Nastavení!$D$6,Nastavení!$E$6,IF(GA5=Nastavení!$D$7,Nastavení!$E$7,IF(GB5=Nastavení!$D$2,Nastavení!$E$2,IF(GB5=Nastavení!$D$4,Nastavení!$E$4,IF(GB5=Nastavení!$D$5,Nastavení!$E$5,IF(GB5=Nastavení!$D$6,Nastavení!$E$6,IF(GB5=Nastavení!$D$7,Nastavení!$E$7,IF(GC5=Nastavení!$D$2,Nastavení!$E$2,IF(GC5=Nastavení!$D$4,Nastavení!$E$4,IF(GC5=Nastavení!$D$5,Nastavení!$E$5,IF(GC5=Nastavení!$D$6,Nastavení!$E$6,IF(GC5=Nastavení!$D$7,Nastavení!$E$7,\"\")))))))))))))))","v":""},null,null,{"$f":"IF(GD5=Nastavení!$D$2,Nastavení!$E$2,IF(GD5=Nastavení!$D$4,Nastavení!$E$4,IF(GD5=Nastavení!$D$5,Nastavení!$E$5,IF(GD5=Nastavení!$D$6,Nastavení!$E$6,IF(GD5=Nastavení!$D$7,Nastavení!$E$7,IF(GE5=Nastavení!$D$2,Nastavení!$E$2,IF(GE5=Nastavení!$D$4,Nastavení!$E$4,IF(GE5=Nastavení!$D$5,Nastavení!$E$5,IF(GE5=Nastavení!$D$6,Nastavení!$E$6,IF(GE5=Nastavení!$D$7,Nastavení!$E$7,IF(GF5=Nastavení!$D$2,Nastavení!$E$2,IF(GF5=Nastavení!$D$4,Nastavení!$E$4,IF(GF5=Nastavení!$D$5,Nastavení!$E$5,IF(GF5=Nastavení!$D$6,Nastavení!$E$6,IF(GF5=Nastavení!$D$7,Nastavení!$E$7,\"\")))))))))))))))","v":""},null,null,{"$f":"IF(GG5=Nastavení!$D$2,Nastavení!$E$2,IF(GG5=Nastavení!$D$4,Nastavení!$E$4,IF(GG5=Nastavení!$D$5,Nastavení!$E$5,IF(GG5=Nastavení!$D$6,Nastavení!$E$6,IF(GG5=Nastavení!$D$7,Nastavení!$E$7,IF(GH5=Nastavení!$D$2,Nastavení!$E$2,IF(GH5=Nastavení!$D$4,Nastavení!$E$4,IF(GH5=Nastavení!$D$5,Nastavení!$E$5,IF(GH5=Nastavení!$D$6,Nastavení!$E$6,IF(GH5=Nastavení!$D$7,Nastavení!$E$7,IF(GI5=Nastavení!$D$2,Nastavení!$E$2,IF(GI5=Nastavení!$D$4,Nastavení!$E$4,IF(GI5=Nastavení!$D$5,Nastavení!$E$5,IF(GI5=Nastavení!$D$6,Nastavení!$E$6,IF(GI5=Nastavení!$D$7,Nastavení!$E$7,\"\")))))))))))))))","v":""},null,null,{"$f":"IF(GJ5=Nastavení!$D$2,Nastavení!$E$2,IF(GJ5=Nastavení!$D$4,Nastavení!$E$4,IF(GJ5=Nastavení!$D$5,Nastavení!$E$5,IF(GJ5=Nastavení!$D$6,Nastavení!$E$6,IF(GJ5=Nastavení!$D$7,Nastavení!$E$7,IF(GK5=Nastavení!$D$2,Nastavení!$E$2,IF(GK5=Nastavení!$D$4,Nastavení!$E$4,IF(GK5=Nastavení!$D$5,Nastavení!$E$5,IF(GK5=Nastavení!$D$6,Nastavení!$E$6,IF(GK5=Nastavení!$D$7,Nastavení!$E$7,IF(GL5=Nastavení!$D$2,Nastavení!$E$2,IF(GL5=Nastavení!$D$4,Nastavení!$E$4,IF(GL5=Nastavení!$D$5,Nastavení!$E$5,IF(GL5=Nastavení!$D$6,Nastavení!$E$6,IF(GL5=Nastavení!$D$7,Nastavení!$E$7,\"\")))))))))))))))","v":""},null,null,{"$f":"IF(GM5=Nastavení!$D$2,Nastavení!$E$2,IF(GM5=Nastavení!$D$4,Nastavení!$E$4,IF(GM5=Nastavení!$D$5,Nastavení!$E$5,IF(GM5=Nastavení!$D$6,Nastavení!$E$6,IF(GM5=Nastavení!$D$7,Nastavení!$E$7,IF(GN5=Nastavení!$D$2,Nastavení!$E$2,IF(GN5=Nastavení!$D$4,Nastavení!$E$4,IF(GN5=Nastavení!$D$5,Nastavení!$E$5,IF(GN5=Nastavení!$D$6,Nastavení!$E$6,IF(GN5=Nastavení!$D$7,Nastavení!$E$7,IF(GO5=Nastavení!$D$2,Nastavení!$E$2,IF(GO5=Nastavení!$D$4,Nastavení!$E$4,IF(GO5=Nastavení!$D$5,Nastavení!$E$5,IF(GO5=Nastavení!$D$6,Nastavení!$E$6,IF(GO5=Nastavení!$D$7,Nastavení!$E$7,\"\")))))))))))))))","v":""},null,null,{"$f":"IF(GP5=Nastavení!$D$2,Nastavení!$E$2,IF(GP5=Nastavení!$D$4,Nastavení!$E$4,IF(GP5=Nastavení!$D$5,Nastavení!$E$5,IF(GP5=Nastavení!$D$6,Nastavení!$E$6,IF(GP5=Nastavení!$D$7,Nastavení!$E$7,IF(GQ5=Nastavení!$D$2,Nastavení!$E$2,IF(GQ5=Nastavení!$D$4,Nastavení!$E$4,IF(GQ5=Nastavení!$D$5,Nastavení!$E$5,IF(GQ5=Nastavení!$D$6,Nastavení!$E$6,IF(GQ5=Nastavení!$D$7,Nastavení!$E$7,IF(GR5=Nastavení!$D$2,Nastavení!$E$2,IF(GR5=Nastavení!$D$4,Nastavení!$E$4,IF(GR5=Nastavení!$D$5,Nastavení!$E$5,IF(GR5=Nastavení!$D$6,Nastavení!$E$6,IF(GR5=Nastavení!$D$7,Nastavení!$E$7,\"\")))))))))))))))","v":""},null,null,{"$f":"IF(GS5=Nastavení!$D$2,Nastavení!$E$2,IF(GS5=Nastavení!$D$4,Nastavení!$E$4,IF(GS5=Nastavení!$D$5,Nastavení!$E$5,IF(GS5=Nastavení!$D$6,Nastavení!$E$6,IF(GS5=Nastavení!$D$7,Nastavení!$E$7,IF(GT5=Nastavení!$D$2,Nastavení!$E$2,IF(GT5=Nastavení!$D$4,Nastavení!$E$4,IF(GT5=Nastavení!$D$5,Nastavení!$E$5,IF(GT5=Nastavení!$D$6,Nastavení!$E$6,IF(GT5=Nastavení!$D$7,Nastavení!$E$7,IF(GU5=Nastavení!$D$2,Nastavení!$E$2,IF(GU5=Nastavení!$D$4,Nastavení!$E$4,IF(GU5=Nastavení!$D$5,Nastavení!$E$5,IF(GU5=Nastavení!$D$6,Nastavení!$E$6,IF(GU5=Nastavení!$D$7,Nastavení!$E$7,\"\")))))))))))))))","v":""},null,null,{"$f":"IF(GV5=Nastavení!$D$2,Nastavení!$E$2,IF(GV5=Nastavení!$D$4,Nastavení!$E$4,IF(GV5=Nastavení!$D$5,Nastavení!$E$5,IF(GV5=Nastavení!$D$6,Nastavení!$E$6,IF(GV5=Nastavení!$D$7,Nastavení!$E$7,IF(GW5=Nastavení!$D$2,Nastavení!$E$2,IF(GW5=Nastavení!$D$4,Nastavení!$E$4,IF(GW5=Nastavení!$D$5,Nastavení!$E$5,IF(GW5=Nastavení!$D$6,Nastavení!$E$6,IF(GW5=Nastavení!$D$7,Nastavení!$E$7,IF(GX5=Nastavení!$D$2,Nastavení!$E$2,IF(GX5=Nastavení!$D$4,Nastavení!$E$4,IF(GX5=Nastavení!$D$5,Nastavení!$E$5,IF(GX5=Nastavení!$D$6,Nastavení!$E$6,IF(GX5=Nastavení!$D$7,Nastavení!$E$7,\"\")))))))))))))))","v":""},null,null,{"$f":"IF(GY5=Nastavení!$D$2,Nastavení!$E$2,IF(GY5=Nastavení!$D$4,Nastavení!$E$4,IF(GY5=Nastavení!$D$5,Nastavení!$E$5,IF(GY5=Nastavení!$D$6,Nastavení!$E$6,IF(GY5=Nastavení!$D$7,Nastavení!$E$7,IF(GZ5=Nastavení!$D$2,Nastavení!$E$2,IF(GZ5=Nastavení!$D$4,Nastavení!$E$4,IF(GZ5=Nastavení!$D$5,Nastavení!$E$5,IF(GZ5=Nastavení!$D$6,Nastavení!$E$6,IF(GZ5=Nastavení!$D$7,Nastavení!$E$7,IF(HA5=Nastavení!$D$2,Nastavení!$E$2,IF(HA5=Nastavení!$D$4,Nastavení!$E$4,IF(HA5=Nastavení!$D$5,Nastavení!$E$5,IF(HA5=Nastavení!$D$6,Nastavení!$E$6,IF(HA5=Nastavení!$D$7,Nastavení!$E$7,\"\")))))))))))))))","v":""},null,null,{"$f":"IF(HB5=Nastavení!$D$2,Nastavení!$E$2,IF(HB5=Nastavení!$D$4,Nastavení!$E$4,IF(HB5=Nastavení!$D$5,Nastavení!$E$5,IF(HB5=Nastavení!$D$6,Nastavení!$E$6,IF(HB5=Nastavení!$D$7,Nastavení!$E$7,IF(HC5=Nastavení!$D$2,Nastavení!$E$2,IF(HC5=Nastavení!$D$4,Nastavení!$E$4,IF(HC5=Nastavení!$D$5,Nastavení!$E$5,IF(HC5=Nastavení!$D$6,Nastavení!$E$6,IF(HC5=Nastavení!$D$7,Nastavení!$E$7,IF(HD5=Nastavení!$D$2,Nastavení!$E$2,IF(HD5=Nastavení!$D$4,Nastavení!$E$4,IF(HD5=Nastavení!$D$5,Nastavení!$E$5,IF(HD5=Nastavení!$D$6,Nastavení!$E$6,IF(HD5=Nastavení!$D$7,Nastavení!$E$7,\"\")))))))))))))))","v":""},null,null,{"$f":"IF(HE5=Nastavení!$D$2,Nastavení!$E$2,IF(HE5=Nastavení!$D$4,Nastavení!$E$4,IF(HE5=Nastavení!$D$5,Nastavení!$E$5,IF(HE5=Nastavení!$D$6,Nastavení!$E$6,IF(HE5=Nastavení!$D$7,Nastavení!$E$7,IF(HF5=Nastavení!$D$2,Nastavení!$E$2,IF(HF5=Nastavení!$D$4,Nastavení!$E$4,IF(HF5=Nastavení!$D$5,Nastavení!$E$5,IF(HF5=Nastavení!$D$6,Nastavení!$E$6,IF(HF5=Nastavení!$D$7,Nastavení!$E$7,IF(HG5=Nastavení!$D$2,Nastavení!$E$2,IF(HG5=Nastavení!$D$4,Nastavení!$E$4,IF(HG5=Nastavení!$D$5,Nastavení!$E$5,IF(HG5=Nastavení!$D$6,Nastavení!$E$6,IF(HG5=Nastavení!$D$7,Nastavení!$E$7,\"\")))))))))))))))","v":""},null,null,{"$f":"IF(HH5=Nastavení!$D$2,Nastavení!$E$2,IF(HH5=Nastavení!$D$4,Nastavení!$E$4,IF(HH5=Nastavení!$D$5,Nastavení!$E$5,IF(HH5=Nastavení!$D$6,Nastavení!$E$6,IF(HH5=Nastavení!$D$7,Nastavení!$E$7,IF(HI5=Nastavení!$D$2,Nastavení!$E$2,IF(HI5=Nastavení!$D$4,Nastavení!$E$4,IF(HI5=Nastavení!$D$5,Nastavení!$E$5,IF(HI5=Nastavení!$D$6,Nastavení!$E$6,IF(HI5=Nastavení!$D$7,Nastavení!$E$7,IF(HJ5=Nastavení!$D$2,Nastavení!$E$2,IF(HJ5=Nastavení!$D$4,Nastavení!$E$4,IF(HJ5=Nastavení!$D$5,Nastavení!$E$5,IF(HJ5=Nastavení!$D$6,Nastavení!$E$6,IF(HJ5=Nastavení!$D$7,Nastavení!$E$7,\"\")))))))))))))))","v":""},null,null,{"$f":"IF(HK5=Nastavení!$D$2,Nastavení!$E$2,IF(HK5=Nastavení!$D$4,Nastavení!$E$4,IF(HK5=Nastavení!$D$5,Nastavení!$E$5,IF(HK5=Nastavení!$D$6,Nastavení!$E$6,IF(HK5=Nastavení!$D$7,Nastavení!$E$7,IF(HL5=Nastavení!$D$2,Nastavení!$E$2,IF(HL5=Nastavení!$D$4,Nastavení!$E$4,IF(HL5=Nastavení!$D$5,Nastavení!$E$5,IF(HL5=Nastavení!$D$6,Nastavení!$E$6,IF(HL5=Nastavení!$D$7,Nastavení!$E$7,IF(HM5=Nastavení!$D$2,Nastavení!$E$2,IF(HM5=Nastavení!$D$4,Nastavení!$E$4,IF(HM5=Nastavení!$D$5,Nastavení!$E$5,IF(HM5=Nastavení!$D$6,Nastavení!$E$6,IF(HM5=Nastavení!$D$7,Nastavení!$E$7,\"\")))))))))))))))","v":""},null,null,{"$f":"IF(HN5=Nastavení!$D$2,Nastavení!$E$2,IF(HN5=Nastavení!$D$4,Nastavení!$E$4,IF(HN5=Nastavení!$D$5,Nastavení!$E$5,IF(HN5=Nastavení!$D$6,Nastavení!$E$6,IF(HN5=Nastavení!$D$7,Nastavení!$E$7,IF(HO5=Nastavení!$D$2,Nastavení!$E$2,IF(HO5=Nastavení!$D$4,Nastavení!$E$4,IF(HO5=Nastavení!$D$5,Nastavení!$E$5,IF(HO5=Nastavení!$D$6,Nastavení!$E$6,IF(HO5=Nastavení!$D$7,Nastavení!$E$7,IF(HP5=Nastavení!$D$2,Nastavení!$E$2,IF(HP5=Nastavení!$D$4,Nastavení!$E$4,IF(HP5=Nastavení!$D$5,Nastavení!$E$5,IF(HP5=Nastavení!$D$6,Nastavení!$E$6,IF(HP5=Nastavení!$D$7,Nastavení!$E$7,\"\")))))))))))))))","v":""},null,null,{"$f":"IF(HQ5=Nastavení!$D$2,Nastavení!$E$2,IF(HQ5=Nastavení!$D$4,Nastavení!$E$4,IF(HQ5=Nastavení!$D$5,Nastavení!$E$5,IF(HQ5=Nastavení!$D$6,Nastavení!$E$6,IF(HQ5=Nastavení!$D$7,Nastavení!$E$7,IF(HR5=Nastavení!$D$2,Nastavení!$E$2,IF(HR5=Nastavení!$D$4,Nastavení!$E$4,IF(HR5=Nastavení!$D$5,Nastavení!$E$5,IF(HR5=Nastavení!$D$6,Nastavení!$E$6,IF(HR5=Nastavení!$D$7,Nastavení!$E$7,IF(HS5=Nastavení!$D$2,Nastavení!$E$2,IF(HS5=Nastavení!$D$4,Nastavení!$E$4,IF(HS5=Nastavení!$D$5,Nastavení!$E$5,IF(HS5=Nastavení!$D$6,Nastavení!$E$6,IF(HS5=Nastavení!$D$7,Nastavení!$E$7,\"\")))))))))))))))","v":""},null,null,{"$f":"IF(HT5=Nastavení!$D$2,Nastavení!$E$2,IF(HT5=Nastavení!$D$4,Nastavení!$E$4,IF(HT5=Nastavení!$D$5,Nastavení!$E$5,IF(HT5=Nastavení!$D$6,Nastavení!$E$6,IF(HT5=Nastavení!$D$7,Nastavení!$E$7,IF(HU5=Nastavení!$D$2,Nastavení!$E$2,IF(HU5=Nastavení!$D$4,Nastavení!$E$4,IF(HU5=Nastavení!$D$5,Nastavení!$E$5,IF(HU5=Nastavení!$D$6,Nastavení!$E$6,IF(HU5=Nastavení!$D$7,Nastavení!$E$7,IF(HV5=Nastavení!$D$2,Nastavení!$E$2,IF(HV5=Nastavení!$D$4,Nastavení!$E$4,IF(HV5=Nastavení!$D$5,Nastavení!$E$5,IF(HV5=Nastavení!$D$6,Nastavení!$E$6,IF(HV5=Nastavení!$D$7,Nastavení!$E$7,\"\")))))))))))))))","v":""},null,null,{"$f":"IF(HW5=Nastavení!$D$2,Nastavení!$E$2,IF(HW5=Nastavení!$D$4,Nastavení!$E$4,IF(HW5=Nastavení!$D$5,Nastavení!$E$5,IF(HW5=Nastavení!$D$6,Nastavení!$E$6,IF(HW5=Nastavení!$D$7,Nastavení!$E$7,IF(HX5=Nastavení!$D$2,Nastavení!$E$2,IF(HX5=Nastavení!$D$4,Nastavení!$E$4,IF(HX5=Nastavení!$D$5,Nastavení!$E$5,IF(HX5=Nastavení!$D$6,Nastavení!$E$6,IF(HX5=Nastavení!$D$7,Nastavení!$E$7,IF(HY5=Nastavení!$D$2,Nastavení!$E$2,IF(HY5=Nastavení!$D$4,Nastavení!$E$4,IF(HY5=Nastavení!$D$5,Nastavení!$E$5,IF(HY5=Nastavení!$D$6,Nastavení!$E$6,IF(HY5=Nastavení!$D$7,Nastavení!$E$7,\"\")))))))))))))))","v":""},null,null,{"$f":"IF(HZ5=Nastavení!$D$2,Nastavení!$E$2,IF(HZ5=Nastavení!$D$4,Nastavení!$E$4,IF(HZ5=Nastavení!$D$5,Nastavení!$E$5,IF(HZ5=Nastavení!$D$6,Nastavení!$E$6,IF(HZ5=Nastavení!$D$7,Nastavení!$E$7,IF(IA5=Nastavení!$D$2,Nastavení!$E$2,IF(IA5=Nastavení!$D$4,Nastavení!$E$4,IF(IA5=Nastavení!$D$5,Nastavení!$E$5,IF(IA5=Nastavení!$D$6,Nastavení!$E$6,IF(IA5=Nastavení!$D$7,Nastavení!$E$7,IF(IB5=Nastavení!$D$2,Nastavení!$E$2,IF(IB5=Nastavení!$D$4,Nastavení!$E$4,IF(IB5=Nastavení!$D$5,Nastavení!$E$5,IF(IB5=Nastavení!$D$6,Nastavení!$E$6,IF(IB5=Nastavení!$D$7,Nastavení!$E$7,\"\")))))))))))))))","v":""},null,null,{"$f":"IF(IC5=Nastavení!$D$2,Nastavení!$E$2,IF(IC5=Nastavení!$D$4,Nastavení!$E$4,IF(IC5=Nastavení!$D$5,Nastavení!$E$5,IF(IC5=Nastavení!$D$6,Nastavení!$E$6,IF(IC5=Nastavení!$D$7,Nastavení!$E$7,IF(ID5=Nastavení!$D$2,Nastavení!$E$2,IF(ID5=Nastavení!$D$4,Nastavení!$E$4,IF(ID5=Nastavení!$D$5,Nastavení!$E$5,IF(ID5=Nastavení!$D$6,Nastavení!$E$6,IF(ID5=Nastavení!$D$7,Nastavení!$E$7,IF(IE5=Nastavení!$D$2,Nastavení!$E$2,IF(IE5=Nastavení!$D$4,Nastavení!$E$4,IF(IE5=Nastavení!$D$5,Nastavení!$E$5,IF(IE5=Nastavení!$D$6,Nastavení!$E$6,IF(IE5=Nastavení!$D$7,Nastavení!$E$7,\"\")))))))))))))))","v":""},null,null,{"$f":"IF(IF5=Nastavení!$D$2,Nastavení!$E$2,IF(IF5=Nastavení!$D$4,Nastavení!$E$4,IF(IF5=Nastavení!$D$5,Nastavení!$E$5,IF(IF5=Nastavení!$D$6,Nastavení!$E$6,IF(IF5=Nastavení!$D$7,Nastavení!$E$7,IF(IG5=Nastavení!$D$2,Nastavení!$E$2,IF(IG5=Nastavení!$D$4,Nastavení!$E$4,IF(IG5=Nastavení!$D$5,Nastavení!$E$5,IF(IG5=Nastavení!$D$6,Nastavení!$E$6,IF(IG5=Nastavení!$D$7,Nastavení!$E$7,IF(IH5=Nastavení!$D$2,Nastavení!$E$2,IF(IH5=Nastavení!$D$4,Nastavení!$E$4,IF(IH5=Nastavení!$D$5,Nastavení!$E$5,IF(IH5=Nastavení!$D$6,Nastavení!$E$6,IF(IH5=Nastavení!$D$7,Nastavení!$E$7,\"\")))))))))))))))","v":""}]
[null,null,{"$f":"Nastavení!D3-2","v":2021},{"$nulls":11},{"$f":"C4+1","v":2022},{"$nulls":11},{"$f":"O4+1","v":2023},{"$nulls":11},{"$f":"AA4+1","v":2024},{"$nulls":11},{"$f":"AM4+1","v":2025},{"$nulls":11},{"$f":"AY4+1","v":2026},{"$nulls":11},{"$f":"BK4+1","v":2027},{"$nulls":11},{"$f":"BW4+1","v":2028},{"$nulls":11},{"$f":"CI4+1","v":2029},{"$nulls":11},{"$f":"CU4+1","v":2030},{"$nulls":11},{"$f":"DG4+1","v":2031},{"$nulls":11},{"$f":"DS4+1","v":2032},{"$nulls":11},{"$f":"EE4+1","v":2033},{"$nulls":11},{"$f":"EQ4+1","v":2034},{"$nulls":11},{"$f":"FC4+1","v":2035},{"$nulls":11},{"$f":"FO4+1","v":2036},{"$nulls":11},{"$f":"GA4+1","v":2037},{"$nulls":11},{"$f":"GM4+1","v":2038},{"$nulls":11},{"$f":"GY4+1","v":2039},{"$nulls":11},{"$f":"HK4+1","v":2040}]
[null,null,{"$f":"DATE(C4,1,1)","v":"2021-01-01"},{"$f":"DATE(C4,2,1)","v":"2021-02-01"},{"$f":"DATE(C4,3,1)","v":"2021-03-01"},{"$f":"DATE(C4,4,1)","v":"2021-04-01"},{"$f":"DATE(C4,5,1)","v":"2021-05-01"},{"$f":"DATE(C4,6,1)","v":"2021-06-01"},{"$f":"DATE(C4,7,1)","v":"2021-07-01"},{"$f":"DATE(C4,8,1)","v":"2021-08-01"},{"$f":"DATE(C4,9,1)","v":"2021-09-01"},{"$f":"DATE(C4,10,1)","v":"2021-10-01"},{"$f":"DATE(C4,11,1)","v":"2021-11-01"},{"$f":"DATE(C4,12,1)","v":"2021-12-01"},{"$f":"DATE(O4,1,1)","v":"2022-01-01"},{"$f":"DATE(O4,2,1)","v":"2022-02-01"},{"$f":"DATE(O4,3,1)","v":"2022-03-01"},{"$f":"DATE(O4,4,1)","v":"2022-04-01"},{"$f":"DATE(O4,5,1)","v":"2022-05-01"},{"$f":"DATE(O4,6,1)","v":"2022-06-01"},{"$f":"DATE(O4,7,1)","v":"2022-07-01"},{"$f":"DATE(O4,8,1)","v":"2022-08-01"},{"$f":"DATE(O4,9,1)","v":"2022-09-01"},{"$f":"DATE(O4,10,1)","v":"2022-10-01"},{"$f":"DATE(O4,11,1)","v":"2022-11-01"},{"$f":"DATE(O4,12,1)","v":"2022-12-01"},{"$f":"DATE(AA4,1,1)","v":"2023-01-01"},{"$f":"DATE(AA4,2,1)","v":"2023-02-01"},{"$f":"DATE(AA4,3,1)","v":"2023-03-01"},{"$f":"DATE(AA4,4,1)","v":"2023-04-01"},{"$f":"DATE(AA4,5,1)","v":"2023-05-01"},{"$f":"DATE(AA4,6,1)","v":"2023-06-01"},{"$f":"DATE(AA4,7,1)","v":"2023-07-01"},{"$f":"DATE(AA4,8,1)","v":"2023-08-01"},{"$f":"DATE(AA4,9,1)","v":"2023-09-01"},{"$f":"DATE(AA4,10,1)","v":"2023-10-01"},{"$f":"DATE(AA4,11,1)","v":"2023-11-01"},{"$f":"DATE(AA4,12,1)","v":"2023-12-01"},{"$f":"DATE(AM4,1,1)","v":"2024-01-01"},{"$f":"DATE(AM4,2,1)","v":"2024-02-01"},{"$f":"DATE(AM4,3,1)","v":"2024-03-01"},{"$f":"DATE(AM4,4,1)","v":"2024-04-01"},{"$f":"DATE(AM4,5,1)","v":"2024-05-01"},{"$f":"DATE(AM4,6,1)","v":"2024-06-01"},{"$f":"DATE(AM4,7,1)","v":"2024-07-01"},{"$f":"DATE(AM4,8,1)","v":"2024-08-01"},{"$f":"DATE(AM4,9,1)","v":"2024-09-01"},{"$f":"DATE(AM4,10,1)","v":"2024-10-01"},{"$f":"DATE(AM4,11,1)","v":"2024-11-01"},{"$f":"DATE(AM4,12,1)","v":"2024-12-01"},{"$f":"DATE(AY4,1,1)","v":"2025-01-01"},{"$f":"DATE(AY4,2,1)","v":"2025-02-01"},{"$f":"DATE(AY4,3,1)","v":"2025-03-01"},{"$f":"DATE(AY4,4,1)","v":"2025-04-01"},{"$f":"DATE(AY4,5,1)","v":"2025-05-01"},{"$f":"DATE(AY4,6,1)","v":"2025-06-01"},{"$f":"DATE(AY4,7,1)","v":"2025-07-01"},{"$f":"DATE(AY4,8,1)","v":"2025-08-01"},{"$f":"DATE(AY4,9,1)","v":"2025-09-01"},{"$f":"DATE(AY4,10,1)","v":"2025-10-01"},{"$f":"DATE(AY4,11,1)","v":"2025-11-01"},{"$f":"DATE(AY4,12,1)","v":"2025-12-01"},{"$f":"DATE(BK4,1,1)","v":"2026-01-01"},{"$f":"DATE(BK4,2,1)","v":"2026-02-01"},{"$f":"DATE(BK4,3,1)","v":"2026-03-01"},{"$f":"DATE(BK4,4,1)","v":"2026-04-01"},{"$f":"DATE(BK4,5,1)","v":"2026-05-01"},{"$f":"DATE(BK4,6,1)","v":"2026-06-01"},{"$f":"DATE(BK4,7,1)","v":"2026-07-01"},{"$f":"DATE(BK4,8,1)","v":"2026-08-01"},{"$f":"DATE(BK4,9,1)","v":"2026-09-01"},{"$f":"DATE(BK4,10,1)","v":"2026-10-01"},{"$f":"DATE(BK4,11,1)","v":"2026-11-01"},{"$f":"DATE(BK4,12,1)","v":"2026-12-01"},{"$f":"DATE(BW4,1,1)","v":"2027-01-01"},{"$f":"DATE(BW4,2,1)","v":"2027-02-01"},{"$f":"DATE(BW4,3,1)","v":"2027-03-01"},{"$f":"DATE(BW4,4,1)","v":"2027-04-01"},{"$f":"DATE(BW4,5,1)","v":"2027-05-01"},{"$f":"DATE(BW4,6,1)","v":"2027-06-01"},{"$f":"DATE(BW4,7,1)","v":"2027-07-01"},{"$f":"DATE(BW4,8,1)","v":"2027-08-01"},{"$f":"DATE(BW4,9,1)","v":"2027-09-01"},{"$f":"DATE(BW4,10,1)","v":"2027-10-01"},{"$f":"DATE(BW4,11,1)","v":"2027-11-01"},{"$f":"DATE(BW4,12,1)","v":"2027-12-01"},{"$f":"DATE(CI4,1,1)","v":"2028-01-01"},{"$f":"DATE(CI4,2,1)","v":"2028-02-01"},{"$f":"DATE(CI4,3,1)","v":"2028-03-01"},{"$f":"DATE(CI4,4,1)","v":"2028-04-01"},{"$f":"DATE(CI4,5,1)","v":"2028-05-01"},{"$f":"DATE(CI4,6,1)","v":"2028-06-01"},{"$f":"DATE(CI4,7,1)","v":"2028-07-01"},{"$f":"DATE(CI4,8,1)","v":"2028-08-01"},{"$f":"DATE(CI4,9,1)","v":"2028-09-01"},{"$f":"DATE(CI4,10,1)","v":"2028-10-01"},{"$f":"DATE(CI4,11,1)","v":"2028-11-01"},{"$f":"DATE(CI4,12,1)","v":"2028-12-01"},{"$f":"DATE(CU4,1,1)","v":"2029-01-01"},{"$f":"DATE(CU4,2,1)","v":"2029-02-01"},{"$f":"DATE(CU4,3,1)","v":"2029-03-01"},{"$f":"DATE(CU4,4,1)","v":"2029-04-01"},{"$f":"DATE(CU4,5,1)","v":"2029-05-01"},{"$f":"DATE(CU4,6,1)","v":"2029-06-01"},{"$f":"DATE(CU4,7,1)","v":"2029-07-01"},{"$f":"DATE(CU4,8,1)","v":"2029-08-01"},{"$f":"DATE(CU4,9,1)","v":"2029-09-01"},{"$f":"DATE(CU4,10,1)","v":"2029-10-01"},{"$f":"DATE(CU4,11,1)","v":"2029-11-01"},{"$f":"DATE(CU4,12,1)","v":"2029-12-01"},{"$f":"DATE(DG4,1,1)","v":"2030-01-01"},{"$f":"DATE(DG4,2,1)","v":"2030-02-01"},{"$f":"DATE(DG4,3,1)","v":"2030-03-01"},{"$f":"DATE(DG4,4,1)","v":"2030-04-01"},{"$f":"DATE(DG4,5,1)","v":"2030-05-01"},{"$f":"DATE(DG4,6,1)","v":"2030-06-01"},{"$f":"DATE(DG4,7,1)","v":"2030-07-01"},{"$f":"DATE(DG4,8,1)","v":"2030-08-01"},{"$f":"DATE(DG4,9,1)","v":"2030-09-01"},{"$f":"DATE(DG4,10,1)","v":"2030-10-01"},{"$f":"DATE(DG4,11,1)","v":"2030-11-01"},{"$f":"DATE(DG4,12,1)","v":"2030-12-01"},{"$f":"DATE(DS4,1,1)","v":"2031-01-01"},{"$f":"DATE(DS4,2,1)","v":"2031-02-01"},{"$f":"DATE(DS4,3,1)","v":"2031-03-01"},{"$f":"DATE(DS4,4,1)","v":"2031-04-01"},{"$f":"DATE(DS4,5,1)","v":"2031-05-01"},{"$f":"DATE(DS4,6,1)","v":"2031-06-01"},{"$f":"DATE(DS4,7,1)","v":"2031-07-01"},{"$f":"DATE(DS4,8,1)","v":"2031-08-01"},{"$f":"DATE(DS4,9,1)","v":"2031-09-01"},{"$f":"DATE(DS4,10,1)","v":"2031-10-01"},{"$f":"DATE(DS4,11,1)","v":"2031-11-01"},{"$f":"DATE(DS4,12,1)","v":"2031-12-01"},{"$f":"DATE(EE4,1,1)","v":"2032-01-01"},{"$f":"DATE(EE4,2,1)","v":"2032-02-01"},{"$f":"DATE(EE4,3,1)","v":"2032-03-01"},{"$f":"DATE(EE4,4,1)","v":"2032-04-01"},{"$f":"DATE(EE4,5,1)","v":"2032-05-01"},{"$f":"DATE(EE4,6,1)","v":"2032-06-01"},{"$f":"DATE(EE4,7,1)","v":"2032-07-01"},{"$f":"DATE(EE4,8,1)","v":"2032-08-01"},{"$f":"DATE(EE4,9,1)","v":"2032-09-01"},{"$f":"DATE(EE4,10,1)","v":"2032-10-01"},{"$f":"DATE(EE4,11,1)","v":"2032-11-01"},{"$f":"DATE(EE4,12,1)","v":"2032-12-01"},{"$f":"DATE(EQ4,1,1)","v":"2033-01-01"},{"$f":"DATE(EQ4,2,1)","v":"2033-02-01"},{"$f":"DATE(EQ4,3,1)","v":"2033-03-01"},{"$f":"DATE(EQ4,4,1)","v":"2033-04-01"},{"$f":"DATE(EQ4,5,1)","v":"2033-05-01"},{"$f":"DATE(EQ4,6,1)","v":"2033-06-01"},{"$f":"DATE(EQ4,7,1)","v":"2033-07-01"},{"$f":"DATE(EQ4,8,1)","v":"2033-08-01"},{"$f":"DATE(EQ4,9,1)","v":"2033-09-01"},{"$f":"DATE(EQ4,10,1)","v":"2033-10-01"},{"$f":"DATE(EQ4,11,1)","v":"2033-11-01"},{"$f":"DATE(EQ4,12,1)","v":"2033-12-01"},{"$f":"DATE(FC4,1,1)","v":"2034-01-01"},{"$f":"DATE(FC4,2,1)","v":"2034-02-01"},{"$f":"DATE(FC4,3,1)","v":"2034-03-01"},{"$f":"DATE(FC4,4,1)","v":"2034-04-01"},{"$f":"DATE(FC4,5,1)","v":"2034-05-01"},{"$f":"DATE(FC4,6,1)","v":"2034-06-01"},{"$f":"DATE(FC4,7,1)","v":"2034-07-01"},{"$f":"DATE(FC4,8,1)","v":"2034-08-01"},{"$f":"DATE(FC4,9,1)","v":"2034-09-01"},{"$f":"DATE(FC4,10,1)","v":"2034-10-01"},{"$f":"DATE(FC4,11,1)","v":"2034-11-01"},{"$f":"DATE(FC4,12,1)","v":"2034-12-01"},{"$f":"DATE(FO4,1,1)","v":"2035-01-01"},{"$f":"DATE(FO4,2,1)","v":"2035-02-01"},{"$f":"DATE(FO4,3,1)","v":"2035-03-01"},{"$f":"DATE(FO4,4,1)","v":"2035-04-01"},{"$f":"DATE(FO4,5,1)","v":"2035-05-01"},{"$f":"DATE(FO4,6,1)","v":"2035-06-01"},{"$f":"DATE(FO4,7,1)","v":"2035-07-01"},{"$f":"DATE(FO4,8,1)","v":"2035-08-01"},{"$f":"DATE(FO4,9,1)","v":"2035-09-01"},{"$f":"DATE(FO4,10,1)","v":"2035-10-01"},{"$f":"DATE(FO4,11,1)","v":"2035-11-01"},{"$f":"DATE(FO4,12,1)","v":"2035-12-01"},{"$f":"DATE(GA4,1,1)","v":"2036-01-01"},{"$f":"DATE(GA4,2,1)","v":"2036-02-01"},{"$f":"DATE(GA4,3,1)","v":"2036-03-01"},{"$f":"DATE(GA4,4,1)","v":"2036-04-01"},{"$f":"DATE(GA4,5,1)","v":"2036-05-01"},{"$f":"DATE(GA4,6,1)","v":"2036-06-01"},{"$f":"DATE(GA4,7,1)","v":"2036-07-01"},{"$f":"DATE(GA4,8,1)","v":"2036-08-01"},{"$f":"DATE(GA4,9,1)","v":"2036-09-01"},{"$f":"DATE(GA4,10,1)","v":"2036-10-01"},{"$f":"DATE(GA4,11,1)","v":"2036-11-01"},{"$f":"DATE(GA4,12,1)","v":"2036-12-01"},{"$f":"DATE(GM4,1,1)","v":"2037-01-01"},{"$f":"DATE(GM4,2,1)","v":"2037-02-01"},{"$f":"DATE(GM4,3,1)","v":"2037-03-01"},{"$f":"DATE(GM4,4,1)","v":"2037-04-01"},{"$f":"DATE(GM4,5,1)","v":"2037-05-01"},{"$f":"DATE(GM4,6,1)","v":"2037-06-01"},{"$f":"DATE(GM4,7,1)","v":"2037-07-01"},{"$f":"DATE(GM4,8,1)","v":"2037-08-01"},{"$f":"DATE(GM4,9,1)","v":"2037-09-01"},{"$f":"DATE(GM4,10,1)","v":"2037-10-01"},{"$f":"DATE(GM4,11,1)","v":"2037-11-01"},{"$f":"DATE(GM4,12,1)","v":"2037-12-01"},{"$f":"DATE(GY4,1,1)","v":"2038-01-01"},{"$f":"DATE(GY4,2,1)","v":"2038-02-01"},{"$f":"DATE(GY4,3,1)","v":"2038-03-01"},{"$f":"DATE(GY4,4,1)","v":"2038-04-01"},{"$f":"DATE(GY4,5,1)","v":"2038-05-01"},{"$f":"DATE(GY4,6,1)","v":"2038-06-01"},{"$f":"DATE(GY4,7,1)","v":"2038-07-01"},{"$f":"DATE(GY4,8,1)","v":"2038-08-01"},{"$f":"DATE(GY4,9,1)","v":"2038-09-01"},{"$f":"DATE(GY4,10,1)","v":"2038-10-01"},{"$f":"DATE(GY4,11,1)","v":"2038-11-01"},{"$f":"DATE(GY4,12,1)","v":"2038-12-01"},{"$f":"DATE(HK4,1,1)","v":"2039-01-01"},{"$f":"DATE(HK4,2,1)","v":"2039-02-01"},{"$f":"DATE(HK4,3,1)","v":"2039-03-01"},{"$f":"DATE(HK4,4,1)","v":"2039-04-01"},{"$f":"DATE(HK4,5,1)","v":"2039-05-01"},{"$f":"DATE(HK4,6,1)","v":"2039-06-01"},{"$f":"DATE(HK4,7,1)","v":"2039-07-01"},{"$f":"DATE(HK4,8,1)","v":"2039-08-01"},{"$f":"DATE(HK4,9,1)","v":"2039-09-01"},{"$f":"DATE(HK4,10,1)","v":"2039-10-01"},{"$f":"DATE(HK4,11,1)","v":"2039-11-01"},{"$f":"DATE(HK4,12,1)","v":"2039-12-01"},{"$f":"DATE(HW4,1,1)","v":"2040-01-01"},{"$f":"DATE(HW4,2,1)","v":"2040-02-01"},{"$f":"DATE(HW4,3,1)","v":"2040-03-01"},{"$f":"DATE(HW4,4,1)","v":"2040-04-01"},{"$f":"DATE(HW4,5,1)","v":"2040-05-01"},{"$f":"DATE(HW4,6,1)","v":"2040-06-01"},{"$f":"DATE(HW4,7,1)","v":"2040-07-01"},{"$f":"DATE(HW4,8,1)","v":"2040-08-01"},{"$f":"DATE(HW4,9,1)","v":"2040-09-01"},{"$f":"DATE(HW4,10,1)","v":"2040-10-01"},{"$f":"DATE(HW4,11,1)","v":"2040-11-01"},{"$f":"DATE(HW4,12,1)","v":"2040-12-01"}]

{"sheet":"INA","index":6,"n_rows":51,"n_cols":3,"rows_kept":51}
["Značka","Název","Druh"]
["ČOS 051616","Termionologie pro bezporuchovost a udržovatelnost","ČOS"]
["ČOS 051632","Průvodní a provozní dokumentace pro vojenskou techniku a materiál","ČOS"]
["ČOS 051633","Učební pomůcky pro pozemní vojenskou techniku","ČOS"]
["ČOS 051655","Etapy a procesy životního cyklu systémů NATO","ČOS"]
["ČOS 051659","Pokyny NATO pro analýzu nákladů životního cyklu","ČOS"]
["ČOS 051662","Příručka pro postupné plánování vyzbrojování","ČOS"]
["Děl-1-20","Ohrožené prostory.","P"]
["Log-2-4","Vojskové opravy pozemní vojenské techniky.","P"]
["MP","Metodické pokyny pro tvorbu SdP","P"]
["N NGŠ","N NGŠ k pplánování a provádění PVPŠ","N NGŠ"]
["NVMO 16/2017","Rezervy majetku v působnosti MO","NVMO"]
["NVMO 2/2018","Provozování pozemní vojenské techniky","NVMO"]
["NVMO 38/2014","Normy vojenského materiálu pro předepisování do tabulek počtů","NVMO"]
["NVMO 41/2010","Vzdělávací a výcvikové aktivity v rezortu MO","NVMO"]
["NVMO 5/2013","Výcviková a školící zařízení organizačních celků rezortu MO","NVMO"]
["NVMO 60/2017","O jednotném postupu při úplatném nybývání majetku, služeb a stavebních prací vv rezoru MO","NVMO"]
["MO 15835/2019-3416","Odborné pokyny majetkového hospodáře pro provozování pozemní techniky v rezortu MO.","P"]
["RMO","Organizační řád MO vydaný jako služební předpis Státního tajemníka v Ministerstvu obrany","RMO"]
["RMO 1/2017","O přípravě návrhů, posuzování a schvalování vnitřních předpisů a Věstníku MO","RMO"]
["RMO 14/2013","Ochrana utajovaných informací v rezortu MO","RMO"]
["RMO 2/2019","Zásady tvorby systémizovaných míst","RMO"]
["RMO 61/2017","Koncepční dokumenty MO","RMO"]
["RMO 66/2012","Plánování činnosti a rozvoje vojsk v rezortu MO","RMO"]
["STANAG AEP ","STANAG AEP ","ČOS"]
["Pub","Vojenské publikace pro výcvik (obecně)","Pub"]
["Všeob-P-5","Parky vojenské techniky v působnosti MO a provoz v nich","P"]
["Vševojsk-10-1","Pravidla vedení provozní dokumentace výzbroje a ostatní techniky","P"]
["Vševojsk-10-6","Učební a výcviková základna","P"]
["Vševojsk-1-1","Povinnosti funkcionářů a jednotek pozemního vojska Čs. armády","P"]
["Vševojsk-16-3","Systemizace technologických zařízení pracovišť, dílen a opraven pro údržbu pozemní vojenské techniky","P"]
["Vševojsk-17-2","Plánování a hodnocení přípravy vojsk AČR","P"]
["Vševojsk-4-2","Osnovy střeleb z ručních zbraní a zbraní bojových vozidel","P"]
["Vyhláška 100/2018 Sb.","Vyhláška o technické způsobilosti a pravidelných technických prohlídkách vojenských vozidel","V"]
["Vyhláška 154/2011 Sb.","Vyhláška o vojenské letecké technice","V"]
["Vyhláška 273/1999 Sb.","Vyhláška vojenské technické zařízení","V"]
["Vyhláška 275/1999 Sb.","Vyhláška kategorie vojenských plavidel, technická způsobilost","V"]
["Zákon č. 219/2000 Sb.","Zákon o majetku ČR a jejím vystupovánmím v právních vztazích","Z"]
["Zákon č. 219/1999 Sb.","Zákon o ozbrojených silách ČR","Z"]
["Zákon č. 258/2000 Sb.","Zákon o ochraně veřejného zdraví","Z"]
["Zákon č. 309/2000 Sb.","Zákon o obranné standardizaci, katagolizaci a státního ověřování jakosti …","Z"]
["Zákon č. 309/2006 Sb.","Zákon o zajištění dalších podmínek bezpečnosti a ochrany zdraví při práci","Z"]
["Zákon č. 361/2000 Sb.","Zákon o provozu na pozemních komunikacích","Z"]
["Koncepce","Koncepční materiály","K"]
["Let-1-1","Předpis pro létání","P"]
["Let-1-4","Inženýrská letecká služba","P"]
["Let-1-11","Letecký zkušební provoz","P"]
["RMO 21/2018","O zajištění kybernetické bezpečnosti v rezortu MO","RMO"]
["NVMO 111/2013","Kryptografická ochrana utajovaných informací v rezortu MO","NVMO"]
["NVMO 85/2013","Bezpečnost informačních a komunikačních systémů a elektronických zařízení nakládajících s utajovanými informacemi v rezortu MO","NVMO"]
["NVMO 20/2013","Bezpečnost informačních a komunikačních systémů a elektronických zařízení, které nakládají s určenými neutajovanými informacemi v rezortu MO","NVMO"]

{"sheet":"Data_zdroj","index":7,"n_rows":134,"n_cols":111,"rows_kept":134,"hidden":true}
[{"$nulls":10},1,2,3,4,5,6,7,8,9,10,11,12,13,14,15,16,17,18,19,20,21,22,23,24,25,26,27,28,29,30,31,32,33,34,35,36,37,38,39,40,41,42,43,44,45,46,47,48,49,50,51,52,53,54,55,56,57,58,59,60,61,62,63,64,65,66,67,68,69,70,71,72,73,74,75,76,77,78,79,80,81,82,83,84,85,86,87,88,89,90,91,92,93,94,95,96,97,98,99,100]
[null,"před akvizicí","akvizice","po akvizici","Oblast","Činnost","Úkol","FO","Legislativa","Do kdy provést","ČOS 051616 Termionologie pro bezporuchovost a udržovatelnost","ČOS 051632 Průvodní a provozní dokumentace pro vojenskou techniku a materiál","ČOS 051633 Učební pomůcky pro pozemní vojenskou techniku","ČOS 051655 Etapy a procesy životního cyklu systémů NATO","ČOS 051659 Pokyny NATO pro analýzu nákladů životního cyklu","ČOS 051662 Příručka pro postupné plánování vyzbrojování","Děl-1-20 Ohrožené prostory.","Log-2-4 Vojskové opravy pozemní vojenské techniky.","MP Metodické pokyny pro tvorbu SdP","N NGŠ N NGŠ k pplánování a provádění PVPŠ","NVMO 16/2017 Rezervy majetku v působnosti MO","NVMO 2/2018 Provozování pozemní vojenské techniky","NVMO 38/2014 Normy vojenského materiálu pro předepisování do tabulek počtů","NVMO 41/2010 Vzdělávací a výcvikové aktivity v rezortu MO","NVMO 5/2013 Výcviková a školící zařízení organizačních celků rezortu MO","NVMO 60/2017 O jednotném postupu při úplatném nybývání majetku, služeb a stavebních prací vv rezoru MO","MO 15835/2019-3416 Odborné pokyny majetkového hospodáře pro provozování pozemní techniky v rezortu MO.","RMO Organizační řád MO vydaný jako služební předpis Státního tajemníka v Ministerstvu obrany","RMO 1/2017 O přípravě návrhů, posuzování a schvalování vnitřních předpisů a Věstníku MO","RMO 14/2013 Ochrana utajovaných informací v rezortu MO","RMO 2/2019 Zásady tvorby systémizovaných míst","RMO 61/2017 Koncepční dokumenty MO","RMO 66/2012 Plánování činnosti a rozvoje vojsk v rezortu MO","STANAG AEP  STANAG AEP ","Pub Vojenské publikace pro výcvik (obecně)","Všeob-P-5 Parky vojenské techniky v působnosti MO a provoz v nich","Vševojsk-10-1 Pravidla vedení provozní dokumentace výzbroje a ostatní techniky","Vševojsk-10-6 Učební a výcviková základna","Vševojsk-1-1 Povinnosti funkcionářů a jednotek pozemního vojska Čs. armády","Vševojsk-16-3 Systemizace technologických zařízení pracovišť, dílen a opraven pro údržbu pozemní vojenské techniky","Vševojsk-17-2 Plánování a hodnocení přípravy vojsk AČR","Vševojsk-4-2 Osnovy střeleb z ručních zbraní a zbraní bojových vozidel","Vyhláška 100/2018 Sb. Vyhláška o technické způsobilosti a pravidelných technických prohlídkách vojenských vozidel","Vyhláška 154/2011 Sb. Vyhláška o vojenské letecké technice","Vyhláška 273/1999 Sb. Vyhláška vojenské technické zařízení","Vyhláška 275/1999 Sb. Vyhláška kategorie vojenských plavidel, technická způsobilost","Zákon č. 219/2000 Sb. Zákon o majetku ČR a jejím vystupovánmím v právních vztazích","Zákon č. 219/1999 Sb. Zákon o ozbrojených silách ČR","Zákon č. 258/2000 Sb. Zákon o ochraně veřejného zdraví","Zákon č. 309/2000 Sb. Zákon o obranné standardizaci, katagolizaci a státního ověřování jakosti …","Zákon č. 309/2006 Sb. Zákon o zajištění dalších podmínek bezpečnosti a ochrany zdraví při práci","Zákon č. 361/2000 Sb. Zákon o provozu na pozemních komunikacích","Koncepce Koncepční materiály","Let-1-1 Předpis pro létání","Let-1-4 Inženýrská letecká služba","Let-1-11 Letecký zkušební provoz","RMO 21/2018 O zajištění kybernetické bezpečnosti v rezortu MO","NVMO 111/2013 Kryptografická ochrana utajovaných informací v rezortu MO","NVMO 85/2013 Bezpečnost informačních a komunikačních systémů a elektronických zařízení nakládajících s utajovanými informacemi v rezortu MO","NVMO 20/2013 Bezpečnost informačních a komunikačních systémů a elektronických zařízení, které nakládají s určenými neutajovanými informacemi v rezortu MO","","","","","","","","","","","","","","","","","","","","","","","","","","","","","","","","","","","","","","","","","","","","","","","","","",""]
[null,"x",null,null,"Doktríny","Provedení aktualizace Doktrín","Navrhnout systémové a organizační změny tvorby doktrín.",null,"RMO 61/2017 Koncepční dokumenty MO; Koncepce Koncepční materiály",-50,"","","","","","","","","","","","","","","","","","","","","","x","","","","","","","","","","","","","","","","","","","","","x",{"$nulls":57},2]
[null,"x",null,null,"Doktríny","Provedení aktualizace Doktrín","Provést analýzu doktríny AČR a případně navrhnout její změnu.",null,"RMO 61/2017 Koncepční dokumenty MO; Koncepce Koncepční materiály",-50,"","","","","","","","","","","","","","","","","","","","","","x","","","","","","","","","","","","","","","","","","","","","x",{"$nulls":57},2]
[null,"x",null,null,"Doktríny","Provedení aktualizace Doktrín","Provést analýzu doktríny druhu vojska (služby) a případně navrhnout její změnu.",null,"RMO 61/2017 Koncepční dokumenty MO; Koncepce Koncepční materiály",-50,"","","","","","","","","","","","","","","","","","","","","","x","","","","","","","","","","","","","","","","","","","","","x",{"$nulls":57},2]
[null,"x",null,null,"Doktríny","Provedení aktualizace Plánu vydávání (novelizací, revizí) vojenských předpisů a publikací","Aktualizovat Plány tvorby voj. předpisů a publikací, stanovit priority.",null,"RMO 1/2017 O přípravě návrhů, posuzování a schvalování vnitřních předpisů a Věstníku MO",-50,"","","","","","","","","","","","","","","","","","","x","","","","","","","","","","","","","","","","","","",null,"","","","",{"$nulls":58},1]
[null,null,"x",null,"Doktríny","Provedení aktualizace Plánu vydávání (novelizací, revizí) vojenských předpisů a publikací","Aktualizovat nebo vydat nový předpis \"Popis a provoz\"","M","ČOS 051632 Průvodní a provozní dokumentace pro vojenskou techniku a materiál; Zákon č. 219/1999 Sb. Zákon o ozbrojených silách ČR",-12,"","x","","","","","","","","","","","","","","","","","","","","","","","","","","","","","","","","","","","","x","","","","",{"$nulls":58},2]
[null,"x",null,null,"Doktríny","Provedení aktualizace Plánu vydávání (novelizací, revizí) vojenských předpisů a publikací","Zapracovat požadavek na zpracování výcvikové dokumentace do specifikace","T","ČOS 051632 Průvodní a provozní dokumentace pro vojenskou techniku a materiál; Pub Vojenské publikace pro výcvik (obecně); Vševojsk-4-2 Osnovy střeleb z ručních zbraní a zbraní bojových vozidel",-50,"","x","","","","","","","","","","","","","","","","","","","","","","","x","","","","","","","x","","","","","",null,"","","","",{"$nulls":58},3]
[null,null,"x",null,"Doktríny","Provedení aktualizace Plánu vydávání (novelizací, revizí) vojenských předpisů a publikací","Aktualizovat nebo vydat nový předpis pro výcvik s technikou.","T","ČOS 051633 Učební pomůcky pro pozemní vojenskou techniku; Pub Vojenské publikace pro výcvik (obecně); Vševojsk-4-2 Osnovy střeleb z ručních zbraní a zbraní bojových vozidel; Zákon č. 219/1999 Sb. Zákon o ozbrojených silách ČR",-12,"","","x","","","","","","","","","","","","","","","","","","","","","","x","","","","","","","x","","","","","","x","","","","",{"$nulls":58},4]
[null,null,"x",null,"Doktríny","Provedení aktualizace Plánu vydávání (novelizací, revizí) vojenských předpisů a publikací","Aktualizovat nebo vydat nový předpis pro výcvik s využitím STT.","T","Pub Vojenské publikace pro výcvik (obecně); Vševojsk-4-2 Osnovy střeleb z ručních zbraní a zbraní bojových vozidel",-12,"","","","","","","","","","","","","","","","","","","","","","","","","x","","","","","","","x","","","","","","","","","","",{"$nulls":58},2]
[null,"x",null,null,"Doktríny","Provedení aktualizace Plánu vydávání (novelizací, revizí) vojenských předpisů a publikací","Zapracovat požadavek na zpracování průvodní a provozní dokumentace dle ČOS 051632 do specifikace.","M",null,-50,"","","","","","","","","","","","","","","","","","","","","","","","","","","","","","","","","","","","","","","","","","",{"$nulls":58},0]
[null,null,"x",null,"Doktríny","Provedení aktualizace Plánu vydávání (novelizací, revizí) vojenských předpisů a publikací","Aktualizovat nebo vydat nový předpis pro logistickou podporu (tzv. průvodní dokumentace dle ČOS).","M","ČOS 051632 Průvodní a provozní dokumentace pro vojenskou techniku a materiál; NVMO 2/2018 Provozování pozemní vojenské techniky; MO 15835/2019-3416 Odborné pokyny majetkového hospodáře pro provozování pozemní techniky v rezortu MO.; STANAG AEP  STANAG AEP ; Vševojsk-10-1 Pravidla vedení provozní dokumentace výzbroje a ostatní techniky; Vyhláška 100/2018 Sb. Vyhláška o technické způsobilosti a pravidelných technických prohlídkách vojenských vozidel; Vyhláška 154/2011 Sb. Vyhláška o vojenské letecké technice; Vyhláška 273/1999 Sb. Vyhláška vojenské technické zařízení; Vyhláška 275/1999 Sb. Vyhláška kategorie vojenských plavidel, technická způsobilost",-12,"","x","","","","","","","","","","x","","","","","x","","","","","","","x","","","x","","","","","","x","x","x","x","","","","","","",{"$nulls":58},9]
[null,null,"x",null,"Doktríny","Provedení aktualizace Plánu vydávání (novelizací, revizí) vojenských předpisů a publikací","Aktualizovat nebo vydat předpisy KIS.","M","RMO 1/2017 O přípravě návrhů, posuzování a schvalování vnitřních předpisů a Věstníku MO",-12,"","","","","","","","","","","","","","","","","","","x","","","","","","","","","","","","","","","","","","","","","","","",{"$nulls":58},1]
[{"$nulls":3},"x","Doktríny","Provedení aktualizace Plánu vydávání (novelizací, revizí) vojenských předpisů a publikací","Aktualizovat nebo vydat Stálé operační postupy.",null,"Zákon č. 219/1999 Sb. Zákon o ozbrojených silách ČR; Koncepce Koncepční materiály",12,"","","","","","","","","","","","","","","","","","","","","","","","","","","","","","","","","","","","","","x","","","","","x",{"$nulls":57},2]
[null,"x",null,null,"Doktríny","Provedení aktualizace Plánu vydávání (novelizací, revizí) vojenských předpisů a publikací","Definovat požadavky na splnění OUI a následné zapracování do specifikace.",null,"NVMO 60/2017 O jednotném postupu při úplatném nybývání majetku, služeb a stavebních prací vv rezoru MO; RMO 14/2013 Ochrana utajovaných informací v rezortu MO",-50,"","","","","","","","","","","","","","","","x","","","","x","","","","","","","","","","","","","","","","","","","","","","",{"$nulls":58},2]
[null,"x",null,null,"Doktríny","Provedení aktualizace Plánu vydávání (novelizací, revizí) vojenských předpisů a publikací","Definovat požadavky na stanovené (vyžadované) certifikace a následné zapracování požadavků do specifikace.",null,"NVMO 60/2017 O jednotném postupu při úplatném nybývání majetku, služeb a stavebních prací vv rezoru MO; Pub Vojenské publikace pro výcvik (obecně); Vyhláška 154/2011 Sb. Vyhláška o vojenské letecké technice; Let-1-1 Předpis pro létání; Let-1-4 Inženýrská letecká služba; Let-1-11 Letecký zkušební provoz; RMO 21/2018 O zajištění kybernetické bezpečnosti v rezortu MO; NVMO 111/2013 Kryptografická ochrana utajovaných informací v rezortu MO; NVMO 85/2013 Bezpečnost informačních a komunikačních systémů a elektronických zařízení nakládajících s utajovanými informacemi v rezortu MO; NVMO 20/2013 Bezpečnost informačních a komunikačních systémů a elektronických zařízení, které nakládají s určenými neutajovanými informacemi v rezortu MO",-50,"","","","","","","","","","","","","","","","x","","","","","","","","","x","","","","","","","","","x","","","","","","","","",null,"x","x","x","x","x","x","x",{"$nulls":50},10]
[null,"x",null,null,"Doktríny","Provedení aktualizace Plánu vydávání (novelizací, revizí) vojenských předpisů a publikací","Zapracovat požadavek na stanovení tatkticko-technických parametrů výcvikových prostorů do specifikace.","T","Děl-1-20 Ohrožené prostory.; NVMO 41/2010 Vzdělávací a výcvikové aktivity v rezortu MO; NVMO 5/2013 Výcviková a školící zařízení organizačních celků rezortu MO; NVMO 60/2017 O jednotném postupu při úplatném nybývání majetku, služeb a stavebních prací vv rezoru MO; Vševojsk-10-6 Učební a výcviková základna",-50,"","","","","","","x","","","","","","","x","x","x","","","","","","","","","","","","x","","","","","","","","","","","","","","",{"$nulls":58},5]
[null,null,"x",null,"Doktríny","Provedení aktualizace Plánu vydávání (novelizací, revizí) vojenských předpisů a publikací","Aktualizovat stanovenou dokumentaci učebně výcvikových zařízení (ohrožené prostory, normy cvičišť,…)","T","Děl-1-20 Ohrožené prostory.; NVMO 41/2010 Vzdělávací a výcvikové aktivity v rezortu MO; NVMO 5/2013 Výcviková a školící zařízení organizačních celků rezortu MO; Vševojsk-10-6 Učební a výcviková základna",-12,"","","","","","","x","","","","","","","x","x","","","","","","","","","","","","","x","","","","","","","","","","","","","","",{"$nulls":58},4]
[null,null,"x",null,"Doktríny","Provedení aktualizace Plánu vydávání (novelizací, revizí) vojenských předpisů a publikací","Na základě výběru rozvojového projektu provést analýzu Organizace (jednotky, útvaru, …) a navrhnout její změny.","O","RMO Organizační řád MO vydaný jako služební předpis Státního tajemníka v Ministerstvu obrany",-12,"","","","","","","","","","","","","","","","","","x","","","","","","","","","","","","","","","","","","","","","","","","",{"$nulls":58},1]
[null,null,"x",null,"Doktríny","Provedení aktualizace Plánu vydávání (novelizací, revizí) vojenských předpisů a publikací","Na základě vybrané výzbroje (techniky) provést analýzu funkčních náplní a navrhnout jejich aktualizaci.","O","RMO 1/2017 O přípravě návrhů, posuzování a schvalování vnitřních předpisů a Věstníku MO",-12,"","","","","","","","","","","","","","","","","","","x","","","","","","","","","","","","","","","","","","","","","","","",{"$nulls":58},1]
[null,null,"x",null,"Doktríny","Provedení aktualizace jiných právních předpisů (zákony, vyhlášky, ČSN, ČOS, STANAG,…)","Na základě výsledků technického vývoje provést analýzu Zákona o majetku státu a majetku ozbrojených sil a navrhnout jejich novelizace","M","Zákon č. 219/2000 Sb. Zákon o majetku ČR a jejím vystupovánmím v právních vztazích; Zákon č. 219/1999 Sb. Zákon o ozbrojených silách ČR",-12,"","","","","","","","","","","","","","","","","","","","","","","","","","","","","","","","","","","","","x","x","","","","",{"$nulls":58},2]
[null,null,"X",null,"Doktríny","Provedení aktualizace jiných právních předpisů (zákony, vyhlášky, ČSN, ČOS, STANAG,…)","Na základě výsledků technického vývoje provést analýzu Vyhlášek v gesci MO ČR a případně navrhnout jejich novelizaci","M","Vyhláška 100/2018 Sb. Vyhláška o technické způsobilosti a pravidelných technických prohlídkách vojenských vozidel; Vyhláška 154/2011 Sb. Vyhláška o vojenské letecké technice; Vyhláška 273/1999 Sb. Vyhláška vojenské technické zařízení; Vyhláška 275/1999 Sb. Vyhláška kategorie vojenských plavidel, technická způsobilost",-12,"","","","","","","","","","","","","","","","","","","","","","","","","","","","","","","","","x","x","x","x","","","","","","",{"$nulls":58},4]
[null,null,"X",null,"Doktríny","Provedení aktualizace jiných právních předpisů (zákony, vyhlášky, ČSN, ČOS, STANAG,…)","Na základě výsledků technického vývoje provést analýzu ČOS, STANAG a případně navrhnout jejich novelizaci.",null,"ČOS 051616 Termionologie pro bezporuchovost a udržovatelnost; ČOS 051632 Průvodní a provozní dokumentace pro vojenskou techniku a materiál; ČOS 051633 Učební pomůcky pro pozemní vojenskou techniku; ČOS 051655 Etapy a procesy životního cyklu systémů NATO; ČOS 051659 Pokyny NATO pro analýzu nákladů životního cyklu; ČOS 051662 Příručka pro postupné plánování vyzbrojování; Zákon č. 309/2000 Sb. Zákon o obranné standardizaci, katagolizaci a státního ověřování jakosti …",-12,"x","x","x","x","x","x","","","","","","","","","","","","","","","","","","","","","","","","","","","","","","","","","","x","","",{"$nulls":58},7]
[null,null,"x",null,"Organizace","Organizační změny v závislosti na nově pořizovanou techniku","Na základě výběru rozvojového projektu provést analýzu organizačních struktur základního stupně (družstvo, četa, rota) a případně navrhnout jejich změny.",null,"RMO 2/2019 Zásady tvorby systémizovaných míst",-12,"","","","","","","","","","","","","","","","","","","","","x","","","","","","","","","","","","","","","","","","","","","",{"$nulls":58},1]
[null,null,"x",null,"Organizace","Organizační změny v závislosti na nově pořizovanou techniku","Provést analýzu organizační struktury příslušného útvaru nebo příslušných útvarů AČR a případně navrhnout jeho nebo jejich změny.",null,"RMO 2/2019 Zásady tvorby systémizovaných míst",-12,"","","","","","","","","","","","","","","","","","","","","x","","","","","","","","","","","","","","","","","","","","","",{"$nulls":58},1]
[null,null,"x",null,"Organizace","Organizační změny v závislosti na nově pořizovanou techniku","Provést analýzu organizačních struktur AČR a případně navrhnout jejich změny.",null,"RMO 2/2019 Zásady tvorby systémizovaných míst",-12,"","","","","","","","","","","","","","","","","","","","","x","","","","","","","","","","","","","","","","","","","","","",{"$nulls":58},1]
[null,null,"x",null,"Organizace","Organizační změny v závislosti na nově pořizovanou techniku","Provést analýzu organizačních struktur jednotek pro výcvik a případně navrhnout jejich změny.",null,"NVMO 41/2010 Vzdělávací a výcvikové aktivity v rezortu MO; NVMO 5/2013 Výcviková a školící zařízení organizačních celků rezortu MO; RMO 2/2019 Zásady tvorby systémizovaných míst",-12,"","","","","","","","","","","","","","x","x","","","","","","x","","","","","","","","","","","","","","","","","","","","","",{"$nulls":58},3]
[null,null,"x",null,"Organizace","Organizační změny v závislosti na nově pořizovanou techniku","Provést analýzu organizačních struktur jednotek pro školení SW a případně navrhnout jejich změny.",null,"NVMO 41/2010 Vzdělávací a výcvikové aktivity v rezortu MO; NVMO 5/2013 Výcviková a školící zařízení organizačních celků rezortu MO; RMO 2/2019 Zásady tvorby systémizovaných míst",-12,"","","","","","","","","","","","","","x","x","","","","","","x","","","","","","","","","","","","","","","","","","","","","",{"$nulls":58},3]
[null,null,"x",null,"Organizace","Organizační změny v závislosti na nově pořizovanou techniku","Provést analýzu organizačních struktur jednotek včetně bojového zabezpečení a bojové podpory a případně navrhnout jejich změny.","M","ČOS 051655 Etapy a procesy životního cyklu systémů NATO; ČOS 051662 Příručka pro postupné plánování vyzbrojování; Log-2-4 Vojskové opravy pozemní vojenské techniky.; NVMO 41/2010 Vzdělávací a výcvikové aktivity v rezortu MO; NVMO 5/2013 Výcviková a školící zařízení organizačních celků rezortu MO; RMO 2/2019 Zásady tvorby systémizovaných míst",-12,"","","","x","","x","","x","","","","","","x","x","","","","","","x","","","","","","","","","","","","","","","","","","","","","",{"$nulls":58},6]
[null,null,"x",null,"Organizace","Organizační změny v závislosti na nově pořizovanou techniku","Navrhnout organizační změny za účelem podpory koncepčního rozvoje, výzkumu, vývoje a inovací.",null,"RMO 2/2019 Zásady tvorby systémizovaných míst; Koncepce Koncepční materiály",-12,"","","","","","","","","","","","","","","","","","","","","x","","","","","","","","","","","","","","","","","","","","","","x",{"$nulls":57},2]
[null,null,"x",null,"Organizace","Organizační změny v závislosti na nově pořizovanou techniku","Realizovat organizační změny vydáním OMDZ.",null,"RMO 2/2019 Zásady tvorby systémizovaných míst; Koncepce Koncepční materiály",-12,"","","","","","","","","","","","","","","","","","","","","x","","","","","","","","","","","","","","","","","","","","","","x",{"$nulls":57},2]
[null,null,"x",null,"Organizace","Organizační změny v závislosti na nově pořizovanou techniku","Navrhnout a provést aktualizace odpovědností v Organizačním řádu velitelství/jednotek.","D","RMO Organizační řád MO vydaný jako služební předpis Státního tajemníka v Ministerstvu obrany",-12,"","","","","","","","","","","","","","","","","","x","","","","","","","","","","","","","","","","","","","","","","","","",{"$nulls":58},1]
[null,"x",null,null,"Výcvik","Modernizace nebo výstavba učební a výcvikové základny","Plánovat údržbu a rozvoj posádkového cvičiště a následné zapracování do projektové dokumentace (specifikace).",null,"MP Metodické pokyny pro tvorbu SdP; RMO 66/2012 Plánování činnosti a rozvoje vojsk v rezortu MO; Vševojsk-17-2 Plánování a hodnocení přípravy vojsk AČR",-30,"","","","","","","","","x","","","","","","","","","","","","","","x","","","","","","","","x","","","","","","","","","","","",{"$nulls":58},3]
[null,"x",null,null,"Výcvik","Modernizace nebo výstavba učební a výcvikové základny","Plánovat údržbu a rozvoj VA-VeV a následné zapracování do projektové dokumentace (specifikace).",null,"MP Metodické pokyny pro tvorbu SdP; RMO 66/2012 Plánování činnosti a rozvoje vojsk v rezortu MO; Vševojsk-17-2 Plánování a hodnocení přípravy vojsk AČR",-30,"","","","","","","","","x","","","","","","","","","","","","","","x","","","","","","","","x","","","","","","","","","","","",{"$nulls":58},3]
[null,"x",null,null,"Výcvik","Modernizace nebo výstavba učební a výcvikové základny","Plánovat údržbu a rozvoj SOVZ a následné zapracování do projektové dokumentace (specifikace).",null,"MP Metodické pokyny pro tvorbu SdP; NVMO 41/2010 Vzdělávací a výcvikové aktivity v rezortu MO; NVMO 5/2013 Výcviková a školící zařízení organizačních celků rezortu MO; RMO 66/2012 Plánování činnosti a rozvoje vojsk v rezortu MO; Vševojsk-17-2 Plánování a hodnocení přípravy vojsk AČR",-30,"","","","","","","","","x","","","","","x","x","","","","","","","","x","","","","","","","","x","","","","","","","","","","","",{"$nulls":58},5]
[null,"x",null,null,"Výcvik","Modernizace nebo výstavba učební a výcvikové základny","Plánovat údržbu a rozvoj školících zařízení KIS - školení SW a následné zapracování do projektové dokumentace (specifikace).",null,"MP Metodické pokyny pro tvorbu SdP; NVMO 41/2010 Vzdělávací a výcvikové aktivity v rezortu MO; NVMO 5/2013 Výcviková a školící zařízení organizačních celků rezortu MO; NVMO 60/2017 O jednotném postupu při úplatném nybývání majetku, služeb a stavebních prací vv rezoru MO; RMO 66/2012 Plánování činnosti a rozvoje vojsk v rezortu MO; Vševojsk-17-2 Plánování a hodnocení přípravy vojsk AČR",-30,"","","","","","","","","x","","","","","x","x","x","","","","","","","x","","","","","","","","x","","","","","","","","","","","",{"$nulls":58},6]
[null,"x",null,null,"Výcvik","Modernizace nebo výstavba učební a výcvikové základny","Plánovat údržbu a rozvoj CSTT a následné zapracování do projektové dokumentace (specifikace).",null,"MP Metodické pokyny pro tvorbu SdP; NVMO 41/2010 Vzdělávací a výcvikové aktivity v rezortu MO; NVMO 5/2013 Výcviková a školící zařízení organizačních celků rezortu MO; NVMO 60/2017 O jednotném postupu při úplatném nybývání majetku, služeb a stavebních prací vv rezoru MO; RMO 66/2012 Plánování činnosti a rozvoje vojsk v rezortu MO; Vševojsk-17-2 Plánování a hodnocení přípravy vojsk AČR",-30,"","","","","","","","","x","","","","","x","x","x","","","","","","","x","","","","","","","","x","","","","","","","","","","","",{"$nulls":58},6]
[null,"x",null,null,"Výcvik","Dokumentace výcviku","Aktualizovat nebo vydat novou dokumentaci pro školení řidičů, osádek, technického personálu.",null,"ČOS 051633 Učební pomůcky pro pozemní vojenskou techniku; MP Metodické pokyny pro tvorbu SdP; NVMO 2/2018 Provozování pozemní vojenské techniky; NVMO 41/2010 Vzdělávací a výcvikové aktivity v rezortu MO; RMO 1/2017 O přípravě návrhů, posuzování a schvalování vnitřních předpisů a Věstníku MO; RMO 66/2012 Plánování činnosti a rozvoje vojsk v rezortu MO; Zákon č. 258/2000 Sb. Zákon o ochraně veřejného zdraví; Zákon č. 309/2000 Sb. Zákon o obranné standardizaci, katagolizaci a státního ověřování jakosti …; Zákon č. 309/2006 Sb. Zákon o zajištění dalších podmínek bezpečnosti a ochrany zdraví při práci; Zákon č. 361/2000 Sb. Zákon o provozu na pozemních komunikacích",-30,"","","x","","","","","","x","","","x","","x","","","","","x","","","","x","","","","","","","","","","","","","","","","x","x","x","x",{"$nulls":58},10]
[null,"x",null,null,"Výcvik","Úvodní školení s dodávkou prvního kusu","Zapracovat požadavek na školení instruktorů výcviku osádek a technického personálu do specifikace.",null,"ČOS 051633 Učební pomůcky pro pozemní vojenskou techniku; NVMO 2/2018 Provozování pozemní vojenské techniky; NVMO 41/2010 Vzdělávací a výcvikové aktivity v rezortu MO; RMO 1/2017 O přípravě návrhů, posuzování a schvalování vnitřních předpisů a Věstníku MO; RMO 66/2012 Plánování činnosti a rozvoje vojsk v rezortu MO; Zákon č. 258/2000 Sb. Zákon o ochraně veřejného zdraví; Zákon č. 309/2000 Sb. Zákon o obranné standardizaci, katagolizaci a státního ověřování jakosti …; Zákon č. 309/2006 Sb. Zákon o zajištění dalších podmínek bezpečnosti a ochrany zdraví při práci",-30,"","","x","","","","","","","","","x","","x","","","","","x","","","","x","","","","","","","","","","","","","","","","x","x","x","",{"$nulls":58},8]
[null,"x",null,null,"Výcvik","Úvodní školení s dodávkou prvního kusu","Zapracovat požadavek na školení a výcvik prvních osádek a prvního technického personálu do specifikace.",null,"ČOS 051633 Učební pomůcky pro pozemní vojenskou techniku; NVMO 2/2018 Provozování pozemní vojenské techniky; NVMO 41/2010 Vzdělávací a výcvikové aktivity v rezortu MO; RMO 1/2017 O přípravě návrhů, posuzování a schvalování vnitřních předpisů a Věstníku MO; RMO 66/2012 Plánování činnosti a rozvoje vojsk v rezortu MO; Zákon č. 258/2000 Sb. Zákon o ochraně veřejného zdraví; Zákon č. 309/2000 Sb. Zákon o obranné standardizaci, katagolizaci a státního ověřování jakosti …; Zákon č. 309/2006 Sb. Zákon o zajištění dalších podmínek bezpečnosti a ochrany zdraví při práci",-30,"","","x","","","","","","","","","x","","x","","","","","x","","","","x","","","","","","","","","","","","","","","","x","x","x","",{"$nulls":58},8]
[null,"x",null,null,"Výcvik","Předpokládaný záměr rozsahu používání","Stanovit roční proběh v km (lehký/střední/těžký terén), případně jiný faktor dle daného rozvojového projektu.","M","ČOS 051659 Pokyny NATO pro analýzu nákladů životního cyklu; NVMO 2/2018 Provozování pozemní vojenské techniky; NVMO 41/2010 Vzdělávací a výcvikové aktivity v rezortu MO; RMO 66/2012 Plánování činnosti a rozvoje vojsk v rezortu MO; Pub Vojenské publikace pro výcvik (obecně)",-30,"","","","","x","","","","","","","x","","x","","","","","","","","","x","","x","","","","","","","","","","","","","","","","","",{"$nulls":58},5]
[null,"x",null,null,"Výcvik","Předpokládaný záměr rozsahu používání","Stanovit roční počet výstřelů po druzích a typech.","M","ČOS 051659 Pokyny NATO pro analýzu nákladů životního cyklu; NVMO 2/2018 Provozování pozemní vojenské techniky; NVMO 41/2010 Vzdělávací a výcvikové aktivity v rezortu MO; RMO 66/2012 Plánování činnosti a rozvoje vojsk v rezortu MO; Pub Vojenské publikace pro výcvik (obecně)",-30,"","","","","x","","","","","","","x","","x","","","","","","","","","x","","x","","","","","","","","","","","","","","","","","",{"$nulls":58},5]
[null,"x",null,null,"Výcvik","Předpokládaný záměr rozsahu používání","Definovat další provozní ukazatele (nabíjecí cyklus, provozní hodiny, motohodiny,…).","M","ČOS 051659 Pokyny NATO pro analýzu nákladů životního cyklu; NVMO 2/2018 Provozování pozemní vojenské techniky; RMO 66/2012 Plánování činnosti a rozvoje vojsk v rezortu MO; Pub Vojenské publikace pro výcvik (obecně)",-30,"","","","","x","","","","","","","x","","","","","","","","","","","x","","x","","","","","","","","","","","","","","","","","",{"$nulls":58},4]
[null,null,"x",null,"Výcvik","Aktualizace dokumentace pro hodnocení bojové připravenosti jednotek","Aktualizovat dokumentaci pro hopdnocení bojové připravenosti jednotek systémem CREVAL.","D","Pub Vojenské publikace pro výcvik (obecně); Koncepce Koncepční materiály",-12,"","","","","","","","","","","","","","","","","","","","","","","","","x","","","","","","","","","","","","","","","","","","x",{"$nulls":57},2]
[null,null,"x",null,"Výcvik","Aktualizace dokumentace pro hodnocení bojové připravenosti jednotek","Aktualizovat dokumentaci pro hopdnocení bojové připravenosti jednotek systémem TACEVAL.","D","Pub Vojenské publikace pro výcvik (obecně); Koncepce Koncepční materiály",-12,"","","","","","","","","","","","","","","","","","","","","","","","","x","","","","","","","","","","","","","","","","","","x",{"$nulls":57},2]
[null,null,"x",null,"Výcvik","Systém přípravy a výcviku jednotek","Navrhovat úpravy systému přípravy a výcviku jednotek a úpravy výcvikových cyklů k dosažení (udržení) operačních schopností.",null,"NVMO 41/2010 Vzdělávací a výcvikové aktivity v rezortu MO",-12,"","","","","","","","","","","","","","x","","","","","","","","","","","","","","","","","","","","","","","","","","","","",{"$nulls":58},1]
[null,null,"x",null,"Výcvik","Systém přípravy a výcviku jednotek","Navrhovat úpravu systému přípravy a výcviku jednotek a úpravy výcvikových cyklů při přípravě do operace, pro plnění stanoveného úkolu.",null,"NVMO 41/2010 Vzdělávací a výcvikové aktivity v rezortu MO",-12,"","","","","","","","","","","","","","x","","","","","","","","","","","","","","","","","","","","","","","","","","","","",{"$nulls":58},1]
[null,null,"x",null,"Výcvik","Systém přípravy a výcviku jednotek","Aktualizovat výcvikovou dokumentaci s využitím simulace, zavádění nového typu výcviku na základě nových technologií.","D","ČOS 051633 Učební pomůcky pro pozemní vojenskou techniku; NVMO 41/2010 Vzdělávací a výcvikové aktivity v rezortu MO; Pub Vojenské publikace pro výcvik (obecně)",-12,"","","x","","","","","","","","","","","x","","","","","","","","","","","x","","","","","","","","","","","","","","","","","",{"$nulls":58},3]
[null,null,"x",null,"Materiál","Udržitelnost","Na základě analýzy opravárenských schopností navrhnout změny pro jejich dostatečnost - organizační změny.","O","ČOS 051616 Termionologie pro bezporuchovost a udržovatelnost; ČOS 051655 Etapy a procesy životního cyklu systémů NATO; Log-2-4 Vojskové opravy pozemní vojenské techniky.; RMO 66/2012 Plánování činnosti a rozvoje vojsk v rezortu MO; Koncepce Koncepční materiály",-12,"x","","","x","","","","x","","","","","","","","","","","","","","","x","","","","","","","","","","","","","","","","","","","","x",{"$nulls":57},5]
[null,null,"x",null,"Materiál","Udržitelnost","Na základě analýzy opravárenských schopností navrhnout změny pro jejich dostatečnost - nákup služby.",null,"ČOS 051616 Termionologie pro bezporuchovost a udržovatelnost; ČOS 051655 Etapy a procesy životního cyklu systémů NATO; Log-2-4 Vojskové opravy pozemní vojenské techniky.; RMO 66/2012 Plánování činnosti a rozvoje vojsk v rezortu MO; Koncepce Koncepční materiály",-12,"x","","","x","","","","x","","","","","","","","","","","","","","","x","","","","","","","","","","","","","","","","","","","","x",{"$nulls":57},5]
[null,"x",null,null,"Materiál","Udržitelnost","Do specifikace zapracovat požadavek na vytvoření Normy náhradních dílů a na pořízení jedné takovéto soupravy.",null,"ČOS 051616 Termionologie pro bezporuchovost a udržovatelnost; Log-2-4 Vojskové opravy pozemní vojenské techniky.; NVMO 16/2017 Rezervy majetku v působnosti MO; RMO 66/2012 Plánování činnosti a rozvoje vojsk v rezortu MO; Koncepce Koncepční materiály",-36,"x","","","","","","","x","","","x","","","","","","","","","","","","x","","","","","","","","","","","","","","","","","","","","x",{"$nulls":57},5]
[null,null,"x",null,"Materiál","Udržitelnost","Do SdP zapracovat požadavek na tvorbu  zásob nové výzbroje a techniky po celý životní cyklus.",null,"ČOS 051616 Termionologie pro bezporuchovost a udržovatelnost; ČOS 051655 Etapy a procesy životního cyklu systémů NATO; NVMO 16/2017 Rezervy majetku v působnosti MO; RMO 66/2012 Plánování činnosti a rozvoje vojsk v rezortu MO; Koncepce Koncepční materiály",-12,"x","","","x","","","","","","","x","","","","","","","","","","","","x","","","","","","","","","","","","","","","","","","","","x",{"$nulls":57},5]
[{"$nulls":3},"x","Materiál","Udržitelnost","V SdP aktualizovat požadavek na tvorbu  zásob nové výzbroje a techniky po celý životní cyklus.",null,"ČOS 051616 Termionologie pro bezporuchovost a udržovatelnost; ČOS 051655 Etapy a procesy životního cyklu systémů NATO; NVMO 16/2017 Rezervy majetku v působnosti MO; RMO 66/2012 Plánování činnosti a rozvoje vojsk v rezortu MO; Koncepce Koncepční materiály",6,"x","","","x","","","","","","","x","","","","","","","","","","","","x","","","","","","","","","","","","","","","","","","","","x",{"$nulls":57},5]
[null,null,"x",null,"Materiál","Udržení schopnosti","Do SdP zapracovat požadavek na údržbu a doplňování  zásob nové výzbroje a techniky po celý její životní cyklus.",null,"ČOS 051616 Termionologie pro bezporuchovost a udržovatelnost; ČOS 051632 Průvodní a provozní dokumentace pro vojenskou techniku a materiál; ČOS 051655 Etapy a procesy životního cyklu systémů NATO; Log-2-4 Vojskové opravy pozemní vojenské techniky.; NVMO 16/2017 Rezervy majetku v působnosti MO; RMO 66/2012 Plánování činnosti a rozvoje vojsk v rezortu MO; Koncepce Koncepční materiály",-12,"x","x","","x","","","","x","","","x","","","","","","","","","","","","x","","","","","","","","","","","","","","","","","","","","x",{"$nulls":57},7]
[{"$nulls":3},"x","Materiál","Udržení schopnosti","V SdP aktualizovat požadavek na údržbu a doplňování  zásob nové výzbroje a techniky po celý její životní cyklus.",null,"ČOS 051616 Termionologie pro bezporuchovost a udržovatelnost; ČOS 051632 Průvodní a provozní dokumentace pro vojenskou techniku a materiál; ČOS 051655 Etapy a procesy životního cyklu systémů NATO; Log-2-4 Vojskové opravy pozemní vojenské techniky.; NVMO 16/2017 Rezervy majetku v působnosti MO; RMO 66/2012 Plánování činnosti a rozvoje vojsk v rezortu MO; Koncepce Koncepční materiály",6,"x","x","","x","","","","x","","","x","","","","","","","","","","","","x","","","","","","","","","","","","","","","","","","","","x",{"$nulls":57},7]
[null,null,"x",null,"Materiál","Udržení schopnosti","Do specifikace zapracovat požadavek na pořízení mechanizačních dílenských prostředků (MDP).",null,"ČOS 051616 Termionologie pro bezporuchovost a udržovatelnost; ČOS 051632 Průvodní a provozní dokumentace pro vojenskou techniku a materiál; ČOS 051655 Etapy a procesy životního cyklu systémů NATO; Log-2-4 Vojskové opravy pozemní vojenské techniky.; RMO 66/2012 Plánování činnosti a rozvoje vojsk v rezortu MO; Vševojsk-16-3 Systemizace technologických zařízení pracovišť, dílen a opraven pro údržbu pozemní vojenské techniky; Koncepce Koncepční materiály",-12,"x","x","","x","","","","x","","","","","","","","","","","","","","","x","","","","","","","x","","","","","","","","","","","","","x",{"$nulls":57},7]
[null,null,"x",null,"Materiál","Udržení schopnosti","Do specifikace zapracovat požadavek na pořízení nebo modernizaci evakuačních, vyprošťovacích a mobilních dílenských prostředků.",null,"ČOS 051616 Termionologie pro bezporuchovost a udržovatelnost; ČOS 051632 Průvodní a provozní dokumentace pro vojenskou techniku a materiál; ČOS 051655 Etapy a procesy životního cyklu systémů NATO; Log-2-4 Vojskové opravy pozemní vojenské techniky.; NVMO 38/2014 Normy vojenského materiálu pro předepisování do tabulek počtů; RMO 66/2012 Plánování činnosti a rozvoje vojsk v rezortu MO; Koncepce Koncepční materiály",-12,"x","x","","x","","","","x","","","","","x","","","","","","","","","","x","","","","","","","","","","","","","","","","","","","","x",{"$nulls":57},7]
[null,null,"x",null,"Materiál","Udržení schopnosti","Do SdP zapracovat požadavky na údržbu a obměnu vojenské výzbroje a vojenské techniky (naplnění životního cyklu).",null,"ČOS 051616 Termionologie pro bezporuchovost a udržovatelnost; ČOS 051632 Průvodní a provozní dokumentace pro vojenskou techniku a materiál; RMO 66/2012 Plánování činnosti a rozvoje vojsk v rezortu MO; Koncepce Koncepční materiály",-12,"x","x","","","","","","","","","","","","","","","","","","","","","x","","","","","","","","","","","","","","","","","","","","x",{"$nulls":57},4]
[{"$nulls":3},"x","Materiál","Udržení schopnosti","V SdP aktualizovat požadavky na údržbu a obměnu vojenské výzbroje a vojenské techniky (naplnění životního cyklu).",null,"ČOS 051616 Termionologie pro bezporuchovost a udržovatelnost; ČOS 051632 Průvodní a provozní dokumentace pro vojenskou techniku a materiál; RMO 66/2012 Plánování činnosti a rozvoje vojsk v rezortu MO; Koncepce Koncepční materiály",6,"x","x","","","","","","","","","","","","","","","","","","","","","x","","","","","","","","","","","","","","","","","","","","x",{"$nulls":57},4]
[null,null,"x",null,"Materiál","Udržení schopnosti","Do SdP zapracovat požadavky na údržbu a obměnu  zařízení a techniky UVZ a STT (naplnění životního cyklu).","T","ČOS 051616 Termionologie pro bezporuchovost a udržovatelnost; ČOS 051632 Průvodní a provozní dokumentace pro vojenskou techniku a materiál; RMO 66/2012 Plánování činnosti a rozvoje vojsk v rezortu MO; Koncepce Koncepční materiály",-12,"x","x","","","","","","","","","","","","","","","","","","","","","x","","","","","","","","","","","","","","","","","","","","x",{"$nulls":57},4]
[{"$nulls":3},"x","Materiál","Udržení schopnosti","V SdP aktualizovat požadavky na údržbu a obměnu  zařízení a techniky UVZ a STT (naplnění životního cyklu).","T","ČOS 051616 Termionologie pro bezporuchovost a udržovatelnost; ČOS 051632 Průvodní a provozní dokumentace pro vojenskou techniku a materiál; RMO 66/2012 Plánování činnosti a rozvoje vojsk v rezortu MO; Koncepce Koncepční materiály",6,"x","x","","","","","","","","","","","","","","","","","","","","","x","","","","","","","","","","","","","","","","","","","","x",{"$nulls":57},4]
[{"$nulls":3},"x","Materiál","Rozvoj schopnosti","Vyčlenit finanční prostředky pro zabezpečení životního cyklu nové výzbroje a techniky (pořízení MDP, ND, školení personálu, údržby a oprav).",null,"ČOS 051616 Termionologie pro bezporuchovost a udržovatelnost; ČOS 051632 Průvodní a provozní dokumentace pro vojenskou techniku a materiál; RMO 66/2012 Plánování činnosti a rozvoje vojsk v rezortu MO; Koncepce Koncepční materiály",24,"x","x","","","","","","","","","","","","","","","","","","","","","x","","","","","","","","","","","","","","","","","","","","x",{"$nulls":57},4]
[null,null,"x",null,"Materiál","Rozvoj schopnosti","Plánovat (rozpočtovat) finanční prostředky pro zabezpečení nákladů na vojskové zkoušky a certifikaci (NUKIB, ODVL SŘO MO, …)",null,"ČOS 051616 Termionologie pro bezporuchovost a udržovatelnost; ČOS 051632 Průvodní a provozní dokumentace pro vojenskou techniku a materiál; ČOS 051655 Etapy a procesy životního cyklu systémů NATO; RMO 66/2012 Plánování činnosti a rozvoje vojsk v rezortu MO; Koncepce Koncepční materiály; Let-1-1 Předpis pro létání; Let-1-4 Inženýrská letecká služba; Let-1-11 Letecký zkušební provoz; RMO 21/2018 O zajištění kybernetické bezpečnosti v rezortu MO; NVMO 111/2013 Kryptografická ochrana utajovaných informací v rezortu MO; NVMO 85/2013 Bezpečnost informačních a komunikačních systémů a elektronických zařízení nakládajících s utajovanými informacemi v rezortu MO; NVMO 20/2013 Bezpečnost informačních a komunikačních systémů a elektronických zařízení, které nakládají s určenými neutajovanými informacemi v rezortu MO",-12,"x","x","","x","","","","","","","","","","","","","","","","","","","x","","","","","","","","","","","","","","","","","","","","x","x","x","x","x","x","x","x",{"$nulls":50},12]
[{"$nulls":3},"x","Materiál","Rozvoj schopnosti","Vyčlenit finanční prostředky pro zabezpečení nákladů na vojskové zkoušky a certifikaci",null,"ČOS 051616 Termionologie pro bezporuchovost a udržovatelnost; ČOS 051632 Průvodní a provozní dokumentace pro vojenskou techniku a materiál; ČOS 051655 Etapy a procesy životního cyklu systémů NATO; RMO 66/2012 Plánování činnosti a rozvoje vojsk v rezortu MO; Koncepce Koncepční materiály",6,"x","x","","x","","","","","","","","","","","","","","","","","","","x","","","","","","","","","","","","","","","","","","","","x",{"$nulls":57},5]
[{"$nulls":3},"x","Materiál","Rozvoj schopnosti","Aktualizovat Koncepci rozvoje materiálního zabezpečení (logistiky, KIS, zdr.).","D","ČOS 051616 Termionologie pro bezporuchovost a udržovatelnost; ČOS 051632 Průvodní a provozní dokumentace pro vojenskou techniku a materiál; ČOS 051655 Etapy a procesy životního cyklu systémů NATO; RMO 61/2017 Koncepční dokumenty MO; RMO 66/2012 Plánování činnosti a rozvoje vojsk v rezortu MO; Koncepce Koncepční materiály",12,"x","x","","x","","","","","","","","","","","","","","","","","","x","x","","","","","","","","","","","","","","","","","","","","x",{"$nulls":57},6]
[null,null,"x",null,"Materiál","Rozvoj schopnosti","Aktualizovat předpisy, pomůcek a postupů pro materiální zabezpečení.","D","ČOS 051616 Termionologie pro bezporuchovost a udržovatelnost; ČOS 051632 Průvodní a provozní dokumentace pro vojenskou techniku a materiál; ČOS 051655 Etapy a procesy životního cyklu systémů NATO; RMO 66/2012 Plánování činnosti a rozvoje vojsk v rezortu MO; Koncepce Koncepční materiály; Let-1-1 Předpis pro létání; Let-1-4 Inženýrská letecká služba; Let-1-11 Letecký zkušební provoz; RMO 21/2018 O zajištění kybernetické bezpečnosti v rezortu MO; NVMO 111/2013 Kryptografická ochrana utajovaných informací v rezortu MO; NVMO 85/2013 Bezpečnost informačních a komunikačních systémů a elektronických zařízení nakládajících s utajovanými informacemi v rezortu MO; NVMO 20/2013 Bezpečnost informačních a komunikačních systémů a elektronických zařízení, které nakládají s určenými neutajovanými informacemi v rezortu MO",-12,"x","x","","x","","","","","","","","","","","","","","","","","","","x","","","","","","","","","","","","","","","","","","","","x","x","x","x","x","x","x","x",{"$nulls":50},12]
[{"$nulls":3},"x","Materiál","Rozvoj schopnosti","Zpracovat předpisy, pomůcek a postupů pro materiální zabezpečení.","D","ČOS 051616 Termionologie pro bezporuchovost a udržovatelnost; ČOS 051632 Průvodní a provozní dokumentace pro vojenskou techniku a materiál; ČOS 051655 Etapy a procesy životního cyklu systémů NATO; RMO 66/2012 Plánování činnosti a rozvoje vojsk v rezortu MO; Koncepce Koncepční materiály",18,"x","x","","x","","","","","","","","","","","","","","","","","","","x","","","","","","","","","","","","","","","","","","","","x",{"$nulls":57},5]
[null,"x",null,null,"Leadership","Udržení a rozvoj schopnosti","Do specifikace zapracovat požadavek na implementaci/integraci stávajících prostředků SVŘ nebo na přizpůsobení stávajícího SW.","M","ČOS 051616 Termionologie pro bezporuchovost a udržovatelnost; ČOS 051632 Průvodní a provozní dokumentace pro vojenskou techniku a materiál; ČOS 051655 Etapy a procesy životního cyklu systémů NATO; NVMO 60/2017 O jednotném postupu při úplatném nybývání majetku, služeb a stavebních prací vv rezoru MO; RMO 66/2012 Plánování činnosti a rozvoje vojsk v rezortu MO; Koncepce Koncepční materiály",-36,"x","x","","x","","","","","","","","","","","","x","","","","","","","x","","","","","","","","","","","","","","","","","","","","x",{"$nulls":57},6]
[null,null,"x",null,"Leadership","Udržení a rozvoj schopnosti","Při pořizování nové výzbroje a techniky zabezpečit implementaci do stávajícího SVŘ.","M","Koncepce Koncepční materiály",-12,"","","","","","","","","","","","","","","","","","","","","","","","","","","","","","","","","","","","","","","","","","","x",{"$nulls":57},1]
[null,null,"x",null,"Leadership","Udržení a rozvoj schopnosti","Zabezpečit rozvoj prostředků systému velení a řízení včetně implementace do zavedené vojenské výzbroje a techniky.","M","Koncepce Koncepční materiály",-12,"","","","","","","","","","","","","","","","","","","","","","","","","","","","","","","","","","","","","","","","","","","x",{"$nulls":57},1]
[null,"x",null,null,"Interoperabilita","Udržení a rozvoj schopnosti","Zabezpečit interoperabilitu se systémy NATO.","M","Koncepce Koncepční materiály",-36,"","","","","","","","","","","","","","","","","","","","","","","","","","","","","","","","","","","","","","","","","","","x",{"$nulls":57},1]
[null,null,"x",null,"Výcvik","Udržení a rozvoj schopnosti","Plánovat přípravu personálu v oblasti velení a řízení.","T, P","N NGŠ N NGŠ k pplánování a provádění PVPŠ; NVMO 41/2010 Vzdělávací a výcvikové aktivity v rezortu MO; NVMO 5/2013 Výcviková a školící zařízení organizačních celků rezortu MO; RMO 1/2017 O přípravě návrhů, posuzování a schvalování vnitřních předpisů a Věstníku MO; Pub Vojenské publikace pro výcvik (obecně)",-12,"","","","","","","","","","x","","","","x","x","","","","x","","","","","","x","","","","","","","","","","","","","","","","","",{"$nulls":58},5]
[{"$nulls":3},"x","Výcvik","Udržení a rozvoj schopnosti","Zajistit přípravu personálu v oblasti velení a řízení.","T, P","N NGŠ N NGŠ k pplánování a provádění PVPŠ; NVMO 41/2010 Vzdělávací a výcvikové aktivity v rezortu MO; NVMO 5/2013 Výcviková a školící zařízení organizačních celků rezortu MO; RMO 1/2017 O přípravě návrhů, posuzování a schvalování vnitřních předpisů a Věstníku MO; Pub Vojenské publikace pro výcvik (obecně)",12,"","","","","","","","","","x","","","","x","x","","","","x","","","","","","x","","","","","","","","","","","","","","","","","",{"$nulls":58},5]
[null,null,"x",null,"Materiál","Udržení schopnosti","Plánovat informační podporu plánování, provedení a vyhodnocování využívání vzdušného prostoru UVZ (SVOZ)",null,"MP Metodické pokyny pro tvorbu SdP; NVMO 41/2010 Vzdělávací a výcvikové aktivity v rezortu MO; NVMO 5/2013 Výcviková a školící zařízení organizačních celků rezortu MO",-12,"","","","","","","","","x","","","","","x","x","","","","","","","","","","","","","","","","","","","","","","","","","","","",{"$nulls":58},3]
[{"$nulls":3},"x","Materiál","Udržení schopnosti","Zabezpečit informační podporu plánování, provedení a vyhodnocování využívání vzdušného prostoru UVZ (SVOZ)",null,"MP Metodické pokyny pro tvorbu SdP; NVMO 41/2010 Vzdělávací a výcvikové aktivity v rezortu MO; NVMO 5/2013 Výcviková a školící zařízení organizačních celků rezortu MO",12,"","","","","","","","","x","","","","","x","x","","","","","","","","","","","","","","","","","","","","","","","","","","","",{"$nulls":58},3]
[null,null,"x",null,"Leadership","Udržení a rozvoj schopnosti","Plánovat informační podporu plánování, provedení a vyhodnocování UVZ.","M","ČOS 051633 Učební pomůcky pro pozemní vojenskou techniku; Vševojsk-10-1 Pravidla vedení provozní dokumentace výzbroje a ostatní techniky; Vševojsk-10-6 Učební a výcviková základna",-12,"","","x","","","","","","","","","","","","","","","","","","","","","","","","x","x","","","","","","","","","","","","","","",{"$nulls":58},3]
[{"$nulls":3},"x","Leadership","Udržení a rozvoj schopnosti","Zabezpečit informační podporu plánování, provedení a vyhodnocování UVZ.","M","ČOS 051633 Učební pomůcky pro pozemní vojenskou techniku; Vševojsk-10-1 Pravidla vedení provozní dokumentace výzbroje a ostatní techniky; Vševojsk-10-6 Učební a výcviková základna",12,"","","x","","","","","","","","","","","","","","","","","","","","","","","","x","x","","","","","","","","","","","","","","",{"$nulls":58},3]
[null,null,"x",null,"Výcvik","Udržení a rozvoj schopnosti","Aktualizovat pomůcky, předpisy a směrnice pro přípravu velitelů a štábů.","D","ČOS 051633 Učební pomůcky pro pozemní vojenskou techniku; RMO 1/2017 O přípravě návrhů, posuzování a schvalování vnitřních předpisů a Věstníku MO",-12,"","","x","","","","","","","","","","","","","","","","x","","","","","","","","","","","","","","","","","","","","","","","",{"$nulls":58},2]
[{"$nulls":3},"x","Výcvik","Udržení a rozvoj schopnosti","Zpracovat pomůcky, předpisy a směrnice pro přípravu velitelů a štábů.","D","ČOS 051633 Učební pomůcky pro pozemní vojenskou techniku; RMO 1/2017 O přípravě návrhů, posuzování a schvalování vnitřních předpisů a Věstníku MO",18,"","","x","","","","","","","","","","","","","","","","x","","","","","","","","","","","","","","","","","","","","","","","",{"$nulls":58},2]
[null,"x",null,null,"Leadership","Udržení a rozvoj schopnosti","Aktualizovat Koncepci výstavby systému velení a řízení AČR.","D","RMO 61/2017 Koncepční dokumenty MO; Koncepce Koncepční materiály",-36,"","","","","","","","","","","","","","","","","","","","","","x","","","","","","","","","","","","","","","","","","","","","x",{"$nulls":57},2]
[{"$nulls":3},"x","Personál","Udržení a rozvoj schopnosti","Zpracovat nebo aktualizovat popis jednotlivých systemizovaných míst.","O","RMO Organizační řád MO vydaný jako služební předpis Státního tajemníka v Ministerstvu obrany; RMO 2/2019 Zásady tvorby systémizovaných míst; Vševojsk-1-1 Povinnosti funkcionářů a jednotek pozemního vojska Čs. armády",18,"","","","","","","","","","","","","","","","","","x","","","x","","","","","","","","x","","","","","","","","","","","","","",{"$nulls":58},3]
[null,"x",null,null,"Personál","Udržení a rozvoj schopnosti","Do specifikace zapracovat požadavek na prvotní vyškolení personálu (osádek a instruktorů).","T, M","ČOS 051655 Etapy a procesy životního cyklu systémů NATO; NVMO 60/2017 O jednotném postupu při úplatném nybývání majetku, služeb a stavebních prací vv rezoru MO; Vševojsk-10-6 Učební a výcviková základna; Vševojsk-1-1 Povinnosti funkcionářů a jednotek pozemního vojska Čs. armády; Vševojsk-17-2 Plánování a hodnocení přípravy vojsk AČR; Vševojsk-4-2 Osnovy střeleb z ručních zbraní a zbraní bojových vozidel",-36,"","","","x","","","","","","","","","","","","x","","","","","","","","","","","","x","x","","x","x","","","","","","","","","","",{"$nulls":58},6]
[null,null,"x",null,"Personál","Udržení a rozvoj schopnosti","Plánovat přípravu instruktorů.","T","Vševojsk-10-6 Učební a výcviková základna; Vševojsk-1-1 Povinnosti funkcionářů a jednotek pozemního vojska Čs. armády; Vševojsk-17-2 Plánování a hodnocení přípravy vojsk AČR; Vševojsk-4-2 Osnovy střeleb z ručních zbraní a zbraní bojových vozidel",-12,"","","","","","","","","","","","","","","","","","","","","","","","","","","","x","x","","x","x","","","","","","","","","","",{"$nulls":58},4]
[{"$nulls":3},"x","Personál","Udržení a rozvoj schopnosti","Zabezpečit přípravu instruktorů.","T","Vševojsk-10-6 Učební a výcviková základna; Vševojsk-1-1 Povinnosti funkcionářů a jednotek pozemního vojska Čs. armády; Vševojsk-17-2 Plánování a hodnocení přípravy vojsk AČR; Vševojsk-4-2 Osnovy střeleb z ručních zbraní a zbraní bojových vozidel",12,"","","","","","","","","","","","","","","","","","","","","","","","","","","","x","x","","x","x","","","","","","","","","","",{"$nulls":58},4]
[null,null,"x",null,"Personál","Udržení a rozvoj schopnosti","Plánovat přípravu pedagogického sboru vojenského školství a školících zařízení.","T","ČOS 051633 Učební pomůcky pro pozemní vojenskou techniku; Vševojsk-10-6 Učební a výcviková základna; Vševojsk-1-1 Povinnosti funkcionářů a jednotek pozemního vojska Čs. armády; Vševojsk-17-2 Plánování a hodnocení přípravy vojsk AČR",-12,"","","x","","","","","","","","","","","","","","","","","","","","","","","","","x","x","","x","","","","","","","","","","","",{"$nulls":58},4]
[{"$nulls":3},"x","Personál","Udržení a rozvoj schopnosti","Připravit pedagogický sbor vojenského školství a školících zařízení.","T","ČOS 051633 Učební pomůcky pro pozemní vojenskou techniku; Vševojsk-10-6 Učební a výcviková základna; Vševojsk-1-1 Povinnosti funkcionářů a jednotek pozemního vojska Čs. armády; Vševojsk-17-2 Plánování a hodnocení přípravy vojsk AČR",12,"","","x","","","","","","","","","","","","","","","","","","","","","","","","","x","x","","x","","","","","","","","","","","",{"$nulls":58},4]
[null,null,"x",null,"Personál","Udržení a rozvoj schopnosti","Plánovat zavedení nových metod přípravy personálu na základě nových technologií.","T","ČOS 051633 Učební pomůcky pro pozemní vojenskou techniku; Vševojsk-10-6 Učební a výcviková základna; Vševojsk-1-1 Povinnosti funkcionářů a jednotek pozemního vojska Čs. armády; Vševojsk-17-2 Plánování a hodnocení přípravy vojsk AČR",-12,"","","x","","","","","","","","","","","","","","","","","","","","","","","","","x","x","","x","","","","","","","","","","","",{"$nulls":58},4]
[{"$nulls":3},"x","Personál","Udržení a rozvoj schopnosti","Zavést nové metody přípravy personálu na základě nových technologií.","T","ČOS 051633 Učební pomůcky pro pozemní vojenskou techniku; Vševojsk-10-6 Učební a výcviková základna; Vševojsk-1-1 Povinnosti funkcionářů a jednotek pozemního vojska Čs. armády; Vševojsk-17-2 Plánování a hodnocení přípravy vojsk AČR",18,"","","x","","","","","","","","","","","","","","","","","","","","","","","","","x","x","","x","","","","","","","","","","","",{"$nulls":58},4]
[null,null,"x",null,"Personál","Udržení a rozvoj schopnosti","Aktualizovat popis jednotlivých systemizovaných míst.","O, D","RMO 2/2019 Zásady tvorby systémizovaných míst",-12,"","","","","","","","","","","","","","","","","","","","","x","","","","","","","","","","","","","","","","","","","","","",{"$nulls":58},1]
[{"$nulls":3},"x","Personál","Udržení a rozvoj schopnosti","Zpracovat popis jednotlivých systemizovaných míst.","O, D","RMO 2/2019 Zásady tvorby systémizovaných míst",12,"","","","","","","","","","","","","","","","","","","","","x","","","","","","","","","","","","","","","","","","","","","",{"$nulls":58},1]
[{"$nulls":3},"x","Personál","Udržení a rozvoj schopnosti","Provést nábor personálu při zavádění nové výzbroje a techniky.","O","N NGŠ N NGŠ k pplánování a provádění PVPŠ; NVMO 41/2010 Vzdělávací a výcvikové aktivity v rezortu MO",18,"","","","","","","","","","x","","","","x","","","","","","","","","","","","","","","","","","","","","","","","","","","","",{"$nulls":58},2]
[null,null,"x",null,"Infrastruktura","Služební a pobytové zóny","Plánovat zabezpečení dostatečné kapacity služebních a pobytových zón.","O","N NGŠ N NGŠ k pplánování a provádění PVPŠ; NVMO 41/2010 Vzdělávací a výcvikové aktivity v rezortu MO",-12,"","","","","","","","","","x","","","","x","","","","","","","","","","","","","","","","","","","","","","","","","","","","",{"$nulls":58},2]
[{"$nulls":3},"x","Infrastruktura","Služební a pobytové zóny","Zabezpečit dostatečné kapacity služebních a pobytových zón.","O","N NGŠ N NGŠ k pplánování a provádění PVPŠ; NVMO 41/2010 Vzdělávací a výcvikové aktivity v rezortu MO",12,"","","","","","","","","","x","","","","x","","","","","","","","","","","","","","","","","","","","","","","","","","","","",{"$nulls":58},2]
[{"$nulls":3},"x","Infrastruktura","Služební a pobytové zóny","Provést údržbu stávajících prostorů služebních a pobytových zón.",null,"ČOS 051655 Etapy a procesy životního cyklu systémů NATO; Log-2-4 Vojskové opravy pozemní vojenské techniky.; Zákon č. 219/2000 Sb. Zákon o majetku ČR a jejím vystupovánmím v právních vztazích",12,"","","","x","","","","x","","","","","","","","","","","","","","","","","","","","","","","","","","","","","x","","","","","",{"$nulls":58},3]
[null,null,"x",null,"Infrastruktura","Služební a pobytové zóny","Plánovat modernizaci stávajících prostor na zaváděné nové technologie.","M","ČOS 051655 Etapy a procesy životního cyklu systémů NATO; Zákon č. 219/2000 Sb. Zákon o majetku ČR a jejím vystupovánmím v právních vztazích",-12,"","","","x","","","","","","","","","","","","","","","","","","","","","","","","","","","","","","","","","x","","","","","",{"$nulls":58},2]
[{"$nulls":3},"x","Infrastruktura","Služební a pobytové zóny","Modernizovat stávající prostory na zaváděné nové technologie.","M","ČOS 051655 Etapy a procesy životního cyklu systémů NATO; Zákon č. 219/2000 Sb. Zákon o majetku ČR a jejím vystupovánmím v právních vztazích",18,"","","","x","","","","","","","","","","","","","","","","","","","","","","","","","","","","","","","","","x","","","","","",{"$nulls":58},2]
[null,null,"x",null,"Infrastruktura","Zabezpečení vojenského majetku","Plánovat údržbu garážových stání.","M","ČOS 051655 Etapy a procesy životního cyklu systémů NATO; RMO 66/2012 Plánování činnosti a rozvoje vojsk v rezortu MO; Všeob-P-5 Parky vojenské techniky v působnosti MO a provoz v nich; Zákon č. 219/2000 Sb. Zákon o majetku ČR a jejím vystupovánmím v právních vztazích",-12,"","","","x","","","","","","","","","","","","","","","","","","","x","","","x","","","","","","","","","","","x","","","","","",{"$nulls":58},4]
[{"$nulls":3},"x","Infrastruktura","Zabezpečení vojenského majetku","Provést údržbu garážových stání.","M","ČOS 051655 Etapy a procesy životního cyklu systémů NATO; RMO 66/2012 Plánování činnosti a rozvoje vojsk v rezortu MO; Všeob-P-5 Parky vojenské techniky v působnosti MO a provoz v nich; Zákon č. 219/2000 Sb. Zákon o majetku ČR a jejím vystupovánmím v právních vztazích",18,"","","","x","","","","","","","","","","","","","","","","","","","x","","","x","","","","","","","","","","","x","","","","","",{"$nulls":58},4]
[null,null,"x",null,"Infrastruktura","Zabezpečení vojenského majetku","Plánovat údržbu skladových prostorů.","M","ČOS 051655 Etapy a procesy životního cyklu systémů NATO; RMO 66/2012 Plánování činnosti a rozvoje vojsk v rezortu MO; Všeob-P-5 Parky vojenské techniky v působnosti MO a provoz v nich; Zákon č. 219/2000 Sb. Zákon o majetku ČR a jejím vystupovánmím v právních vztazích",-12,"","","","x","","","","","","","","","","","","","","","","","","","x","","","x","","","","","","","","","","","x","","","","","",{"$nulls":58},4]
[{"$nulls":3},"x","Infrastruktura","Zabezpečení vojenského majetku","Provést údržbu skladových prostorů.","M","ČOS 051655 Etapy a procesy životního cyklu systémů NATO; RMO 66/2012 Plánování činnosti a rozvoje vojsk v rezortu MO; Všeob-P-5 Parky vojenské techniky v působnosti MO a provoz v nich; Zákon č. 219/2000 Sb. Zákon o majetku ČR a jejím vystupovánmím v právních vztazích",18,"","","","x","","","","","","","","","","","","","","","","","","","x","","","x","","","","","","","","","","","x","","","","","",{"$nulls":58},4]
[null,null,"x",null,"Infrastruktura","Zabezpečení vojenského majetku","Plánovat údržbu prostorů pro ošetřování, údržbu a opravy vojenského majetku.","M","ČOS 051655 Etapy a procesy životního cyklu systémů NATO; RMO 66/2012 Plánování činnosti a rozvoje vojsk v rezortu MO; Všeob-P-5 Parky vojenské techniky v působnosti MO a provoz v nich; Zákon č. 219/2000 Sb. Zákon o majetku ČR a jejím vystupovánmím v právních vztazích",-12,"","","","x","","","","","","","","","","","","","","","","","","","x","","","x","","","","","","","","","","","x","","","","","",{"$nulls":58},4]
[{"$nulls":3},"x","Infrastruktura","Zabezpečení vojenského majetku","Provést údržbu prostorů pro ošetřování, údržbu a opravy vojenského majetku.","M","ČOS 051655 Etapy a procesy životního cyklu systémů NATO; RMO 66/2012 Plánování činnosti a rozvoje vojsk v rezortu MO; Všeob-P-5 Parky vojenské techniky v působnosti MO a provoz v nich; Zákon č. 219/2000 Sb. Zákon o majetku ČR a jejím vystupovánmím v právních vztazích",18,"","","","x","","","","","","","","","","","","","","","","","","","x","","","x","","","","","","","","","","","x","","","","","",{"$nulls":58},4]
[null,"x",null,null,"Infrastruktura","Zabezpečení vojenského majetku","Zapracovat požadavky do specifikace pro AHNM na rekonstrukci nebo výstavbu potřebné infrastruktury pro nově pořizovaný vojenský majetek.","M","ČOS 051655 Etapy a procesy životního cyklu systémů NATO; RMO 66/2012 Plánování činnosti a rozvoje vojsk v rezortu MO; Všeob-P-5 Parky vojenské techniky v působnosti MO a provoz v nich; Zákon č. 219/2000 Sb. Zákon o majetku ČR a jejím vystupovánmím v právních vztazích",-45,"","","","x","","","","","","","","","","","","","","","","","","","x","","","x","","","","","","","","","","","x","","","","","",{"$nulls":58},4]
[null,null,"x",null,"Infrastruktura","Učebně výcviková zařízení, SOVZ, STT","Vyčlenit finanční prostředky na zabezpečení údržby a rozvoje prostorů pro výcvik.","T","RMO 66/2012 Plánování činnosti a rozvoje vojsk v rezortu MO; Zákon č. 219/2000 Sb. Zákon o majetku ČR a jejím vystupovánmím v právních vztazích",-12,"","","","","","","","","","","","","","","","","","","","","","","x","","","","","","","","","","","","","","x","","","","","",{"$nulls":58},2]
[{"$nulls":3},"x","Infrastruktura","Učebně výcviková zařízení, SOVZ, STT","Realizovat údržbu a rozvoj prostorů pro výcvik.","T","RMO 66/2012 Plánování činnosti a rozvoje vojsk v rezortu MO; Zákon č. 219/2000 Sb. Zákon o majetku ČR a jejím vystupovánmím v právních vztazích",24,"","","","","","","","","","","","","","","","","","","","","","","x","","","","","","","","","","","","","","x","","","","","",{"$nulls":58},2]
[null,null,"x",null,"Infrastruktura","Učebně výcviková zařízení, SOVZ, STT","Plánovat modernizaci prostorů pro výcvik na moderní systémy simulace.","T","RMO 66/2012 Plánování činnosti a rozvoje vojsk v rezortu MO; Zákon č. 219/2000 Sb. Zákon o majetku ČR a jejím vystupovánmím v právních vztazích; Koncepce Koncepční materiály",-12,"","","","","","","","","","","","","","","","","","","","","","","x","","","","","","","","","","","","","","x","","","","","","x",{"$nulls":57},3]
[{"$nulls":3},"x","Infrastruktura","Učebně výcviková zařízení, SOVZ, STT","Zabezpečit modernizaci prostorů pro výcvik na moderní systémy simulace.","T","RMO 66/2012 Plánování činnosti a rozvoje vojsk v rezortu MO; Zákon č. 219/2000 Sb. Zákon o majetku ČR a jejím vystupovánmím v právních vztazích; Koncepce Koncepční materiály",24,"","","","","","","","","","","","","","","","","","","","","","","x","","","","","","","","","","","","","","x","","","","","","x",{"$nulls":57},3]
[null,null,"x",null,"Infrastruktura","Učebně výcviková zařízení, SOVZ, STT","Plánovat údržbu a rozvoj ubytovacích kapacit ve VÚ.","T","ČOS 051655 Etapy a procesy životního cyklu systémů NATO; RMO 66/2012 Plánování činnosti a rozvoje vojsk v rezortu MO; Zákon č. 219/2000 Sb. Zákon o majetku ČR a jejím vystupovánmím v právních vztazích; Koncepce Koncepční materiály",-12,"","","","x","","","","","","","","","","","","","","","","","","","x","","","","","","","","","","","","","","x","","","","","","x",{"$nulls":57},4]
[{"$nulls":3},"x","Infrastruktura","Učebně výcviková zařízení, SOVZ, STT","Provést údržbu a rozvoj ubytovacích kapacit ve VÚ.","T","ČOS 051655 Etapy a procesy životního cyklu systémů NATO; RMO 66/2012 Plánování činnosti a rozvoje vojsk v rezortu MO; Zákon č. 219/2000 Sb. Zákon o majetku ČR a jejím vystupovánmím v právních vztazích; Koncepce Koncepční materiály",18,"","","","x","","","","","","","","","","","","","","","","","","","x","","","","","","","","","","","","","","x","","","","","","x",{"$nulls":57},4]
[null,null,"x",null,"Infrastruktura","Učebně výcviková zařízení, SOVZ, STT","Plánovat údržbu a rozvoj technického zázemí pro výcvik ve vojenských újezdech a na posádkových cvičištích.",null,"ČOS 051655 Etapy a procesy životního cyklu systémů NATO; RMO 66/2012 Plánování činnosti a rozvoje vojsk v rezortu MO; Zákon č. 219/2000 Sb. Zákon o majetku ČR a jejím vystupovánmím v právních vztazích",-12,"","","","x","","","","","","","","","","","","","","","","","","","x","","","","","","","","","","","","","","x","","","","","",{"$nulls":58},3]
[{"$nulls":3},"x","Infrastruktura","Učebně výcviková zařízení, SOVZ, STT","Provést údržbu a rozvoj technického zázemí pro výcvik ve vojenských újezdech a na posádkových cvičištích.",null,"ČOS 051655 Etapy a procesy životního cyklu systémů NATO; RMO 66/2012 Plánování činnosti a rozvoje vojsk v rezortu MO; Zákon č. 219/2000 Sb. Zákon o majetku ČR a jejím vystupovánmím v právních vztazích",18,"","","","x","","","","","","","","","","","","","","","","","","","x","","","","","","","","","","","","","","x","","","","","",{"$nulls":58},3]
[null,null,"x",null,"Infrastruktura","Učebně výcviková zařízení, SOVZ, STT","Plánovat údržbu a rozvoj objektů vojenského školství.","T","ČOS 051655 Etapy a procesy životního cyklu systémů NATO; RMO 66/2012 Plánování činnosti a rozvoje vojsk v rezortu MO; Zákon č. 219/2000 Sb. Zákon o majetku ČR a jejím vystupovánmím v právních vztazích",-12,"","","","x","","","","","","","","","","","","","","","","","","","x","","","","","","","","","","","","","","x","","","","","",{"$nulls":58},3]
[{"$nulls":3},"x","Infrastruktura","Učebně výcviková zařízení, SOVZ, STT","Provést údržbu a rozvoj objektů vojenského školství.","T","ČOS 051655 Etapy a procesy životního cyklu systémů NATO; RMO 66/2012 Plánování činnosti a rozvoje vojsk v rezortu MO; Zákon č. 219/2000 Sb. Zákon o majetku ČR a jejím vystupovánmím v právních vztazích",18,"","","","x","","","","","","","","","","","","","","","","","","","x","","","","","","","","","","","","","","x","","","","","",{"$nulls":58},3]
[null,null,"x",null,"Infrastruktura","Učebně výcviková zařízení, SOVZ, STT","Plánovat údržbu a rozvoj vojenských školících zařízení.",null,"ČOS 051655 Etapy a procesy životního cyklu systémů NATO; RMO 66/2012 Plánování činnosti a rozvoje vojsk v rezortu MO; Zákon č. 219/2000 Sb. Zákon o majetku ČR a jejím vystupovánmím v právních vztazích",-12,"","","","x","","","","","","","","","","","","","","","","","","","x","","","","","","","","","","","","","","x","","","","","",{"$nulls":58},3]
[{"$nulls":3},"x","Infrastruktura","Učebně výcviková zařízení, SOVZ, STT","Provést údržbu a rozvoj vojenských školících zařízení.",null,"ČOS 051655 Etapy a procesy životního cyklu systémů NATO; RMO 66/2012 Plánování činnosti a rozvoje vojsk v rezortu MO; Zákon č. 219/2000 Sb. Zákon o majetku ČR a jejím vystupovánmím v právních vztazích",24,"","","","x","","","","","","","","","","","","","","","","","","","x","","","","","","","","","","","","","","x","","","","","",{"$nulls":58},3]
[null,"x",null,null,"Interoperabilita","Systém velení a řízení","Do specifikace zapracovat požadavek na zabezpečení interoperability prostředků SVŘ v rámci jednotlivých druhů vojsk.",null,"ČOS 051662 Příručka pro postupné plánování vyzbrojování",-45,"","","","","","x","","","","","","","","","","","","","","","","","","","","","","","","","","","","","","","","","","","","",{"$nulls":58},1]
[null,null,"x",null,"Interoperabilita","Systém velení a řízení","Kontrolovat zabezpečení interoperability prostředků SVŘ v rámci jednotlivých druhů vojsk.",null,"ČOS 051662 Příručka pro postupné plánování vyzbrojování",-12,"","","","","","x","","","","","","","","","","","","","","","","","","","","","","","","","","","","","","","","","","","","",{"$nulls":58},1]
[{"$nulls":3},"x","Interoperabilita","Systém velení a řízení","Zabezpečit interoperabilitu prostředků SVŘ v rámci jednotlivých druhů vojsk.",null,"ČOS 051662 Příručka pro postupné plánování vyzbrojování",18,"","","","","","x","","","","","","","","","","","","","","","","","","","","","","","","","","","","","","","","","","","","",{"$nulls":58},1]
[null,"x",null,null,"Interoperabilita","Systém velení a řízení","Do specifikace zapracovat požadavek na interoperabilitu prostředků SVŘ mezi jednotlivými druhy vojsk.",null,"ČOS 051662 Příručka pro postupné plánování vyzbrojování",-45,"","","","","","x","","","","","","","","","","","","","","","","","","","","","","","","","","","","","","","","","","","","",{"$nulls":58},1]
[null,null,"x",null,"Interoperabilita","Systém velení a řízení","Kontrolovat zabezpečení interoperability prostředků SVŘ mezi jednotlivými druhy vojsk.",null,"ČOS 051662 Příručka pro postupné plánování vyzbrojování",-12,"","","","","","x","","","","","","","","","","","","","","","","","","","","","","","","","","","","","","","","","","","","",{"$nulls":58},1]
[{"$nulls":3},"x","Interoperabilita","Systém velení a řízení","Zabezpečit interoperabilitu prostředků SVŘ mezi jednotlivými druhy vojsk.",null,"ČOS 051662 Příručka pro postupné plánování vyzbrojování",18,"","","","","","x","","","","","","","","","","","","","","","","","","","","","","","","","","","","","","","","","","","","",{"$nulls":58},1]
[null,"x",null,null,"Interoperabilita","Systém velení a řízení","Do specifikace zapracovat požadavek na interoperabilitu prostředků SVŘ v rámci NATO.",null,"ČOS 051662 Příručka pro postupné plánování vyzbrojování",-45,"","","","","","x","","","","","","","","","","","","","","","","","","","","","","","","","","","","","","","","","","","","",{"$nulls":58},1]
[null,null,"x",null,"Interoperabilita","Systém velení a řízení","Kontrolovat zabezpečení interoperability prostředků SVŘ v rámci NATO.",null,"ČOS 051662 Příručka pro postupné plánování vyzbrojování",-12,"","","","","","x","","","","","","","","","","","","","","","","","","","","","","","","","","","","","","","","","","","","",{"$nulls":58},1]
[{"$nulls":3},"x","Interoperabilita","Systém velení a řízení","Zabezpečit interoperabilitu prostředků SVŘ v rámci NATO.",null,"ČOS 051662 Příručka pro postupné plánování vyzbrojování",18,"","","","","","x","","","","","","","","","","","","","","","","","","","","","","","","","","","","","","","","","","","","",{"$nulls":58},1]
[null,"x",null,null,"Interoperabilita","Výzbroj a technika","Zapracovat požadavky do specifikace na zabezpečení provozování nové VTM na jednotné palivo NATO.","M","ČOS 051662 Příručka pro postupné plánování vyzbrojování",-36,"","","","","","x","","","","","","","","","","","","","","","","","","","","","","","","","","","","","","","","","","","","",{"$nulls":58},1]
[null,"x",null,null,"Interoperabilita","Výzbroj a technika","Zapracovat požadavky do specifikace na vyprošťovací prvky dle příslušných STANAGů a ČOSů.","M","ČOS 051662 Příručka pro postupné plánování vyzbrojování",-36,"","","","","","x","","","","","","","","","","","","","","","","","","","","","","","","","","","","","","","","","","","","",{"$nulls":58},1]
[null,"x",null,null,"Interoperabilita","Výzbroj a technika","Zapracovat požadavky do specifikace na používání unifikované munice NATO.","M","ČOS 051662 Příručka pro postupné plánování vyzbrojování",-36,"","","","","","x","","","","","","","","","","","","","","","","","","","","","","","","","","","","","","","","","","","","",{"$nulls":58},1]
[null,"x",null,null,"Interoperabilita","Výzbroj a technika","Zapracovat požadavek do specifikace na zabezpečení jednotné podvozkové platformy a jednotné logistiky s již zavedeným vojenským materiálem.","M","ČOS 051662 Příručka pro postupné plánování vyzbrojování",-40,"","","","","","x","","","","","","","","","","","","","","","","","","","","","","","","","","","","","","","","","","","","",{"$nulls":58},1]
[{"$nulls":3},"x","Interoperabilita","Doktríny","Aktualizovat a implementovat STANAGy do národních předpisů.","D","ČOS 051662 Příručka pro postupné plánování vyzbrojování",24,"","","","","","x","","","","","","","","","","","","","","","","","","","","","","","","","","","","","","","","","","","","",{"$nulls":58},1]
[{"$nulls":3},"x","Interoperabilita","UVZ, VVP, STT","Aplikovat alianční předpisy a postupy do národních předpisů a postupů.","T, D","ČOS 051662 Příručka pro postupné plánování vyzbrojování",24,"","","","","","x","","","","","","","","","","","","","","","","","","","","","","","","","","","","","","","","","","","","",{"$nulls":58},1]
[null,"x",null,null,"Interoperabilita","Udržení a rozvoj schopnosti","Do specifikace zapracovat požadavek na interoperabilitu se systémy NATO.","M, T, D","ČOS 051662 Příručka pro postupné plánování vyzbrojování",-40,"","","","","","x","","","","","","","","","","","","","","","","","","","","","","","","","","","","","","","","","","","","",{"$nulls":58},1]
[null,null,"x",null,"Interoperabilita","Udržení a rozvoj schopnosti","Kontrolovat zabezpečení interoperability se systémy NATO.","M, T, D","ČOS 051662 Příručka pro postupné plánování vyzbrojování",-12,"","","","","","x","","","","","","","","","","","","","","","","","","","","","","","","","","","","","","","","","","","","",{"$nulls":58},1]
[{"$nulls":3},"x","Interoperabilita","Udržení a rozvoj schopnosti","Zabezpečit interoperabilitu se systémy NATO.","M, T, D","ČOS 051662 Příručka pro postupné plánování vyzbrojování",18,"","","","","","x","","","","","","","","","","","","","","","","","","","","","","","","","","","","","","","","","","","","",{"$nulls":58},1]
[{"$nulls":10},21,19,14,35,4,20,2,9,8,5,5,7,1,23,12,7,1,3,10,1,11,5,50,1,12,7,3,11,8,1,12,6,2,3,2,2,23,4,3,4,3,1,36,3,3,3,3,3,3,3]